Workbook

Sheet Om
J1: Version 2.0
B2: Effektsamband steg 1 och 2 åtgärder verktyg
B4: Om bedömning och verktyg
B6: Bakgrund
B7: Det finns i dagsläget flera verktyg publicerade på Trafikverkets hemsida som kan användas för att beräkna koldioxid- och energibesparingseffekter av steg 1- och 2-åtgärder. I detta verktyg har dessa befintilga verktyg slagits samman och utvecklats för att även kunna beräkna miljö- och trafiksäkerhetseffekter.
B9: Användarhandledning
B10: > Länken till användarhandledning
B12: Beräkningarna i verktyget
B13: > Om TS-EVA
B14: > Om Bostadsetablering beräkningar
B15: > Om Handelsetableringar beräkningar
B16: > Om Parkeringsavgift beräkningar
B17: > Om Cykelprogram beräkningar
B19: Flikar
C20: Input och resultat
C21: Användarhandledning
C22: Resultatberäkningar
C23: Åtgärdsberäkningar

Sheet Åtgärd
B2: Välj åtgärd:
B3: Lokalisering Handel | D3: TRUE
C8: Default parameterar
D11: Värdering utsläpp kr/kg | E11: ASEK Kapital 11, 2018
D13: CO2 kr/kg landsbygd | E13: 7 | F13: Ändrat! | H13: CO2 kr/kg tätort | I13: 7 | J13: Ändrat!
D14: Pslitage Kr/kg landsbygd | E14: 0 | F14: Ändrat! | H14: Pslitage Kr/kg tätort | I14: 1400 | J14: Ändrat!
D15: HC Kr/kg landsbygd | E15: 0 | F15: Ändrat! | H15: HC Kr/kg tätort | I15: 0 | J15: Ändrat!
D16: Nox Kr/kg landsbygd | E16: 1 | F16: Ändrat! | H16: Nox Kr/kg tätort | I16: 0 | J16: Ändrat!
D17: Pmavgas Kr/kg landsbygd | E17: 0 | F17: Ändrat! | H17: Pmavgas Kr/kg tätort | I17: 6900 | J17: Ändrat!
D18: SO2 Kr/kg landsbygd | E18: 0 | F18: Ändrat! | H18: SO2 Kr/kg tätort | I18: 0 | J18: Ändrat!
D23: Trafiksäkerhet systemeffekter | E23: TS-EVA 3,0 | J23: Värdering Olyckor (kr) | K23: ASEK Kapital 9, 2018
D25: Systemeffekt per år, D | E25: 0.98 | F25: Ändrat! | J25: Riskvärdering Dödade | K25: 44020000 | L25: Ändrat! | O25: Materiall Dödade | P25: 6230000 | Q25: Ändrat!
D26: Systemeffekt per år, SS | E26: 0.99 | F26: Ändrat! | J26: Riskvärdering Mycket allvarligt skadade (MAS) | K26: 13260000 | L26: Ändrat! | O26: Materiall Mycket allvarligt skadade (MAS) | P26: 4530000 | Q26: Ändrat!
D27: Systemeffekt per år, LS | E27: 1 | F27: Ändrat! | J27: Riskvärdering Allvarigt skadade, ex MAS | K27: 11520000 | L27: Ändrat! | O27: Materiall Allvarigt skadade, ex MAS | P27: 360000 | Q27: Ändrat!
D28: Systemeffekt per år, MAS | E28: 1 | F28: Ändrat! | J28: Riskvärdering Ej allvarligt skadade | K28: 4560000 | L28: Ändrat! | O28: Materiall Ej allvarligt skadade | P28: 4000 | Q28: Ändrat!
D29: Systemeffekt per år, AS | E29: 1 | F29: Ändrat! | J29: Riskvärdering Egendomsolyckor | K29: 0 | L29: Ändrat! | O29: Materiall Egendomsolyckor | P29: 15000 | Q29: Ändrat!
D30: Systemeffekt per år, EG | E30: 1.002 | F30: Ändrat! | J30: Riskvärdering Allvarligt skadade (AS) | K30: 12930000 | L30: Ändrat! | O30: Materiall Allvarligt skadade (AS) | P30: 970000 | Q30: Ändrat!
D34: Medelbeläggning (antal personer) | E34: RVU, 201? | J34: Färdmedelsfördelning under arbetsresa | K34: RVU, 201?
D36: Antal resnärer per personbil | E36: 1.5 | F36: Ändrat! | J36: Bil | K36: 0.5103301862 | L36: Ändrat!
D37: Antal resnärer per buss | E37: 12 | F37: Ändrat! | J37: Buss | K37: 0.2210360321 | L37: Ändrat!
D38: Antal resnärer per tåg | E38: 1 | F38: Ändrat! | J38: Tåg | K38: 0 | L38: Ändrat!
D39: Antal resnärer per tunnelbana/spårväg | E39: 1 | F39: Ändrat! | J39: T-bana/Spårvagn | K39: 0 | L39: Ändrat!
D40: Antal resnärer per cykel/gång | E40: 1 | F40: Ändrat! | J40: Gång/cykel | K40: 0.2343037496 | L40: Ändrat!
F41: Ändrat! | L41: Ändrat!
D44: Emissioner per fordonskilometer (kg/km) | E44: Handbok för vägtrafikens luftföroreningar, Viktat medel 2017
E46: CO2 | F46: CO | G46: HC | H46: Nox | I46: Pmavgas | J46: SO2
D47: Personbil | E47: 0.18 | F47: 0.00073 | G47: 0.00012 | H47: 0.00034 | I47: 3.1e-06 | J47: 7e-07 | K47: Ändrat! | R47: =SUM(E47:J47) -> 0.1811938
D48: Lätt lastbil | E48: 0.19 | F48: 0.09 | G48: 4e-05 | H48: 0.00066 | I48: 1.67e-05 | J48: 3e-07 | K48: Ändrat! | R48: =SUM(E48:J48) -> 0.280717
D49: Lastbil utan släp | E49: 0.6 | F49: 0.00082 | G49: 7e-05 | H49: 0.00222 | I49: 3.57e-05 | J49: 8e-07 | K49: Ändrat! | R49: 0.6031465
D50: Lastbil med släp | E50: 0.87 | F50: 0.00098 | G50: 5e-05 | H50: 0.00201 | I50: 3.59e-05 | J50: 1.1e-06 | K50: Ändrat! | R50: 0.873077
D51: Landsvägsbuss | E51: 0.27 | F51: 0.0009 | G51: 5e-05 | H51: 0.00222 | I51: 3.11e-05 | J51: 9e-07 | K51: Ändrat! | R51: 0.273202
D52: Stadsbuss | E52: 0.39 | F52: 0.00129 | G52: 0.00013 | H52: 0.00394 | I52: 3.93e-05 | J52: 1e-06 | K52: Ändrat! | R52: 0.3954003
D53: Tåg | E53: 0 | F53: 0 | G53: 0 | H53: 0 | I53: 0 | J53: 0 | K53: Ändrat! | R53: 0
D54: T-bana/Spårvagn | E54: 0 | F54: 0 | G54: 0 | H54: 0 | I54: 0 | J54: 0 | K54: Ändrat! | R54: 0
D55: Cykel/gång | K55: Ändrat! | R55: 0
E56: Ändrat! | F56: Ändrat! | G56: Ändrat! | H56: Ändrat! | I56: Ändrat! | J56: Ändrat!
D58: Emissioner per personkilometer (kg/pkm)
D59: OBS beräknat svälj från ovan! Ändra ej!
E60: CO2 | F60: CO | G60: HC | H60: Nox | I60: Pmavgas | J60: SO2
D61: Personbil | E61: 0.1466666667 | F61: =Åtgärd!F47/Åtgärd!$E$36 -> 0.0004866666667 | G61: =Åtgärd!G47/Åtgärd!$E$36 -> 8e-05 | H61: =Åtgärd!H47/Åtgärd!$E$36 -> 0.0002266666667 | I61: =Åtgärd!I47/Åtgärd!$E$36 -> 2.066666667e-06 | J61: =Åtgärd!J47/Åtgärd!$E$36 -> 4.666666667e-07
D62: Lätt lastbil | E62: =Åtgärd!E48 -> 0.19 | F62: =Åtgärd!F48 -> 0.09 | G62: =Åtgärd!G48 -> 4e-05 | H62: =Åtgärd!H48 -> 0.00066 | I62: =Åtgärd!I48 -> 1.67e-05 | J62: =Åtgärd!J48 -> 3e-07
D63: Lastbil utan släp | E63: =Åtgärd!E49 -> 0.6 | F63: =Åtgärd!F49 -> 0.00082 | G63: =Åtgärd!G49 -> 7e-05 | H63: =Åtgärd!H49 -> 0.00222 | I63: =Åtgärd!I49 -> 3.57e-05 | J63: =Åtgärd!J49 -> 8e-07
D64: Lastbil med släp | E64: =Åtgärd!E50 -> 0.87 | F64: =Åtgärd!F50 -> 0.00098 | G64: =Åtgärd!G50 -> 5e-05 | H64: =Åtgärd!H50 -> 0.00201 | I64: =Åtgärd!I50 -> 3.59e-05 | J64: =Åtgärd!J50 -> 1.1e-06
D65: Landsvägsbuss | E65: =E51/$E$37 -> 0.0225 | F65: 7.5e-05 | G65: 4.166666667e-06 | H65: 0.000185 | I65: 2.591666667e-06 | J65: 7.5e-08
D66: Stadsbuss | E66: 0.0325 | F66: 0.0001075 | G66: 1.083333333e-05 | H66: 0.0003283333333 | I66: 3.275e-06 | J66: 8.333333333e-08
D67: Tåg | E67: =E53/$E$38 -> 0 | F67: 0 | G67: 0 | H67: 0 | I67: 0 | J67: 0
D68: T-bana/Spårvagn | E68: =Åtgärd!E54/Åtgärd!$E$39 -> 0 | F68: =Åtgärd!F54/Åtgärd!$E$39 -> 0 | G68: =Åtgärd!G54/Åtgärd!$E$39 -> 0 | H68: =Åtgärd!H54/Åtgärd!$E$39 -> 0 | I68: =Åtgärd!I54/Åtgärd!$E$39 -> 0 | J68: =Åtgärd!J54/Åtgärd!$E$39 -> 0
D69: Cykel/gång
E72: =SUM(E47:E55) -> 2.5 | F72: 0.09472 | G72: 0.00046 | H72: 0.01139 | I72: 0.0001618 | J72: 4.8e-06
B77: Lokalisering Bostäder
B79: Välj kommun för beräkningen om känt
B80: Väjl kommun: | C80: Malmö
C81: "Ingen specifik kommun" betyder att genomsnittseffekter kalkyleras
B83: Välj typ av område typ där bostäder byggs
C84: Jämförelsealternativ | D84: Utredningsalternativ
B85: Bostad område: | C85: Perifert | D85: Centralt
C86: Centralt: Ett centralt område ligger på promenadavstånd från kommuncentrum eller ett samhälle med liknande grad av kommunal och offentlig service.
C87: Perifert: I storstäder kan man ha som utgångspunkt att läget är centralt om en stor del av arbetsmarknaden i regionen kan nås inom 30 min med bil resp. 45 min med kollektivtrafik.
B89: Välj bostad exploateringsgrad
C90: Jämförelsealternativ | D90: Utredningsalternativ
B91: Bostad exploateringsgrad: | C91: Mellan | D91: Hög
C92: Hög: Höga flerfamiljshus
C93: Mellan: Villor, radhus, flerfamiljshus eller låga flerbostadshus
C94: Låg: Villor och radhus
B96: Skriv in antal hushåll och medelstorlek
C97: Jämförelsealternativ | D97: Utredningsalternativ
B98: Antall hushåll: | C98: 100 | D98: 100 | E98: st
B99: Medelstorlek/hushåll: | C99: 150 | D99: 100 | E99: kvm (default = 100 kvm)
B101: Skriv in fördelning per färdmedel
C102: Jämförelsealternativ | D102: Utredningsalternativ
B103: Buss | C103: 1 | D103: 1
B104: Tåg | C104: 0 | D104: 0
B105: t-bana/Spårvagn | C105: 0 | D105: 0
B117: Lokalisering Handel
B119: Välj kommun för beräkningen om känt
B120: Väjl kommun: | C120: Malmö
C121: "Ingen specifik kommun" betyder att genomsnittseffekter kalkyleras
B123: Välj lokaliseringsalternativ
C124: Jämförelsealternativ | D124: Utredningsalternativ
B125: Läge | C125: Externetablering | D125: Områdescentra
C126: Externetablering definieras som "All handel som ligger i ett biltrafikorienterat läge, utanför bostadsområden och stadscentrum. Som externa affärsetableringar räknas storbutikscentrum, handel i industriområden, stormarknader och handelsområden".
B128: Beräknat antal besök
C129: Jämförelsealternativ | D129: Utredningsalternativ
B130: Besökare | C130: 2000000 | D130: 2000000
B140: Parkeringsavgift arbetsplats
B142: Välj kommun för beräkningen om känt
B143: Väjl kommun: | C143: Malmö
C144: "Ingen specifik kommun" betyder att genomsnittseffekter kalkyleras
B146: Antal personer som arbetar i organisationen
B147: Anställda | C147: 200
B149: Andel som har personbil (förare) som huvudsakligt färdmedel för arbetsresor
B150: Andel | C150: 0.56 | D150: Schablon: 56 % (Källa RES05/06)
B153: Genomsnittlig reslängd arbetsresa (enkel väg)
B154: Distans (km) | C154: 16 | D154: Schablon: 16km (Källa RES05/06)
B157: Genomsnittlig bränslepriskostnad per kilometer
B158: kr/km | C158: 1.5 | D158: Schablon: 1,5 kr/km
B161: Höjning av parkeringsavgiften per parkeringstillfälle (kronor)
B162: Kr | C162: 15
B165: Faktor för hur höjningen av parkeringsavgiften upplevs jämfört med en höjning av bränslekostnaden
C166: 1.5
C167: Dvs. hur stor känsligheten för en parkeringsavgiftshöjning är i förhållande till en bränsleprishöjning. Schablon: 1,5 om föraren betalar själv och direkt på plats;
C168: 1,0 om föraren betalar själv men inte direkt ( t.ex. en månadsgift); 0,3 om arbetsgivare betalar (förmånsbeskattningen är ca 30 %)
B179: Cykelprogram
B181: Välj kommun för beräkningen om känt
B182: Väjl kommun: | C182: Malmö
C183: "Ingen specifik kommun" betyder att genomsnittseffekter kalkyleras
B185: Antal personer som cyklar före åtgärd
B186: Personer | C186: 1000
B189: Antal personer som cyklar efter åtgärd
B190: Personer | C190: 1200
B193: Andel av nytillkommande cyklister som tidigare har kört bil
B194: Andel | C194: 0.2
C195: ASEK 5 rekommenderar att andelen nytillkommande cykelresor av befintliga cykelresor i största möjliga mån bestäms i varje specifikt -
C196: fall utifrån lokalkännedom eller statistiskt underlag. I de fall lokalkännedom eller statistiskt underlag saknas kan andelen sättas till 20 %.
B198: Reslängd för överflyttade bilresor
B199: Distans (km) | C199: 6 | D199: Schablon: 6km (Källa RES05/06)
C200: Schablon 6 km (ToR) Vi antar här att reslängden för de överflyttade bilresorna motsvarar en genomsnittlig cykelresa (ToR) -
C201: en genomsnittlig resa enkel väg med cykel är 3 km (Motsvarar medelsreslängd för reselement cykel, källa RES05/06)
B203: Antal dagar man cyklar per år
B204: Dagar | C204: 232 | D204: Schablon 232 dagar

Sheet Resultat
G4: Sammanfattning indata
D5: Generellt
C6: Åtgärd | D6: =väld_åtgärd -> Lokalisering Handel
C7: Använder default parameterar? | D7: =IF(använd_defaults=TRUE,"Ja","Nej") -> Ja
C8: Kommun | D8: =INDEX(Beräkningar!$F:$F,MATCH(Resultat!$D$6&"_"&Resultat!$C8&"_",Beräkningar!$E:$E,0)) -> Malmö
D9: Åtgärdsspecifik indata
D11: Jämförelsealternativ | E11: Utredningsalternativ
C12: Bostad område | D12: =Åtgärd!C85 -> Perifert | E12: =Åtgärd!D85 -> Centralt
C13: Bostad exploateringsgrad | D13: =Åtgärd!C91 -> Mellan | E13: =Åtgärd!D91 -> Hög
C14: Bostad antall hushåll | D14: =Åtgärd!C98 -> 100 | E14: =Åtgärd!D98 -> 100
C15: Bostad medelstorlek/hushåll | D15: =Åtgärd!C99 -> 150 | E15: =Åtgärd!D99 -> 100
C16: Buss | D16: =Åtgärd!C103 -> 1 | E16: =Åtgärd!D103 -> 1
C17: Tåg | D17: =Åtgärd!C104 -> 0 | E17: =Åtgärd!D104 -> 0
C18: T-bana/spårvagn | D18: =Åtgärd!C105 -> 0 | E18: =Åtgärd!D105 -> 0
D20: Jämförelsealternativ | E20: Utredningsalternativ
C21: Välj lokaliseringsalternativ | D21: =Åtgärd!C125 -> Externetablering | E21: =Åtgärd!D125 -> Områdescentra
C22: Beräknat antal besök | D22: =Åtgärd!C130 -> 2000000 | E22: =Åtgärd!D130 -> 2000000
C25: Antal personer som arbetar i organisationen | D25: =Åtgärd!C147 -> 200
C26: Andel arbetsresor bilförare | D26: =Åtgärd!C150 -> 0.56
C27: Genomsnittlig reslängd arbetsresa (enkel väg) | D27: =Åtgärd!C154 -> 16
C28: Genomsnittlig bränslepriskostnad per kilometer | D28: =Åtgärd!C158 -> 1.5
C29: Höjning av parkeringsavgiften (kronor) | D29: =Åtgärd!C162 -> 15
C30: Faktor för hur höjningen av parkeringsavgiften | D30: =Åtgärd!C166 -> 1.5
C32: Antal personer som cyklar före åtgärd | D32: =Åtgärd!C186 -> 1000
C33: Antal personer som cyklar efter åtgärd | D33: =Åtgärd!C190 -> 1200
C34: Andel av nya cyklister som tidigare har kört bil | D34: =Åtgärd!C194 -> 0.2
C35: Reslängd för överflyttade bilresor | D35: =Åtgärd!C199 -> 6
C36: Antal dagar man cyklar per år | D36: =Åtgärd!C204 -> 232
G40: Effekt första året
D41: Resealstring/dygn
D42: Bil | E42: Buss | F42: Tåg | G42: T-bana/Spårvagn | H42: Gång/cykel
C43: Resealstring (samtliga hushåll) | D43: =_xlfn.IFNA(INDEX(Beräkningar!$F:$F,MATCH(Resultat!$D$6&"_"&Resultat!$C43&"_"&Resultat!D$42,Beräkningar!$E:$E,0)),0) -> -1534.246575 | E43: =_xlfn.IFNA(INDEX(Beräkningar!$F:$F,MATCH(Resultat!$D$6&"_"&Resultat!$C43&"_"&Resultat!E$42,Beräkningar!$E:$E,0)),0) -> 383.5616438 | F43: =_xlfn.IFNA(INDEX(Beräkningar!$F:$F,MATCH(Resultat!$D$6&"_"&Resultat!$C43&"_"&Resultat!F$42,Beräkningar!$E:$E,0)),0) -> 0 | G43: =_xlfn.IFNA(INDEX(Beräkningar!$F:$F,MATCH(Resultat!$D$6&"_"&Resultat!$C43&"_"&Resultat!G$42,Beräkningar!$E:$E,0)),0) -> 0 | H43: =_xlfn.IFNA(INDEX(Beräkningar!$F:$F,MATCH(Resultat!$D$6&"_"&Resultat!$C43&"_"&Resultat!H$42,Beräkningar!$E:$E,0)),0) -> 1095.890411
C44: Total reslängd (km/dygn) | D44: =_xlfn.IFNA(INDEX(Beräkningar!$F:$F,MATCH(Resultat!$D$6&"_"&Resultat!$C44&"_"&Resultat!D$42,Beräkningar!$E:$E,0)),0) -> -47041.09589 | E44: =_xlfn.IFNA(INDEX(Beräkningar!$F:$F,MATCH(Resultat!$D$6&"_"&Resultat!$C44&"_"&Resultat!E$42,Beräkningar!$E:$E,0)),0) -> 453.8812785 | F44: =_xlfn.IFNA(INDEX(Beräkningar!$F:$F,MATCH(Resultat!$D$6&"_"&Resultat!$C44&"_"&Resultat!F$42,Beräkningar!$E:$E,0)),0) -> 0 | G44: =_xlfn.IFNA(INDEX(Beräkningar!$F:$F,MATCH(Resultat!$D$6&"_"&Resultat!$C44&"_"&Resultat!G$42,Beräkningar!$E:$E,0)),0) -> 0 | H44: =_xlfn.IFNA(INDEX(Beräkningar!$F:$F,MATCH(Resultat!$D$6&"_"&Resultat!$C44&"_"&Resultat!H$42,Beräkningar!$E:$E,0)),0) -> 2191.780822
D45: Resealstring/år
D46: Bil | E46: Buss | F46: Tåg | G46: T-bana/Spårvagn | H46: Gång/cykel
C47: Resealstring (samtliga hushåll) | D47: =D43*365 -> -560000 | E47: =E43*365 -> 140000 | F47: 0 | G47: 0 | H47: 400000
C48: Total reslängd (km/dygn) | D48: =D44*365 -> -17170000 | E48: =E44*365 -> 165666.6667 | F48: 0 | G48: 0 | H48: 800000
D49: Påverkan på utsläpp (kg/km) per dygn
D50: Bil | E50: Buss | F50: Tåg | G50: T-bana/Spårvagn | H50: Gång/cykel | I50: Summa
C51: CO2 | D51: =_xlfn.IFNA(INDEX(Beräkningar!$F:$F,MATCH(Resultat!$D$6&"_"&Resultat!$C51&"_"&Resultat!D$50,Beräkningar!$E:$E,0)),0) -> -6899.360731 | E51: =_xlfn.IFNA(INDEX(Beräkningar!$F:$F,MATCH(Resultat!$D$6&"_"&Resultat!$C51&"_"&Resultat!E$50,Beräkningar!$E:$E,0)),0) -> 14.75114155 | F51: =_xlfn.IFNA(INDEX(Beräkningar!$F:$F,MATCH(Resultat!$D$6&"_"&Resultat!$C51&"_"&Resultat!F$50,Beräkningar!$E:$E,0)),0) -> 0 | G51: =_xlfn.IFNA(INDEX(Beräkningar!$F:$F,MATCH(Resultat!$D$6&"_"&Resultat!$C51&"_"&Resultat!G$50,Beräkningar!$E:$E,0)),0) -> 0 | H51: =_xlfn.IFNA(INDEX(Beräkningar!$F:$F,MATCH(Resultat!$D$6&"_"&Resultat!$C51&"_"&Resultat!H$50,Beräkningar!$E:$E,0)),0) -> 0 | I51: =SUM(D51:H51) -> -6884.609589
C52: Pslitage | D52: =_xlfn.IFNA(INDEX(Beräkningar!$F:$F,MATCH(Resultat!$D$6&"_"&Resultat!$C52&"_"&Resultat!D$50,Beräkningar!$E:$E,0)),0) -> 0 | E52: =_xlfn.IFNA(INDEX(Beräkningar!$F:$F,MATCH(Resultat!$D$6&"_"&Resultat!$C52&"_"&Resultat!E$50,Beräkningar!$E:$E,0)),0) -> 0 | F52: =_xlfn.IFNA(INDEX(Beräkningar!$F:$F,MATCH(Resultat!$D$6&"_"&Resultat!$C52&"_"&Resultat!F$50,Beräkningar!$E:$E,0)),0) -> 0 | G52: =_xlfn.IFNA(INDEX(Beräkningar!$F:$F,MATCH(Resultat!$D$6&"_"&Resultat!$C52&"_"&Resultat!G$50,Beräkningar!$E:$E,0)),0) -> 0 | H52: =_xlfn.IFNA(INDEX(Beräkningar!$F:$F,MATCH(Resultat!$D$6&"_"&Resultat!$C52&"_"&Resultat!H$50,Beräkningar!$E:$E,0)),0) -> 0 | I52: 0
C53: HC | D53: =_xlfn.IFNA(INDEX(Beräkningar!$F:$F,MATCH(Resultat!$D$6&"_"&Resultat!$C53&"_"&Resultat!D$50,Beräkningar!$E:$E,0)),0) -> -3.763287671 | E53: =_xlfn.IFNA(INDEX(Beräkningar!$F:$F,MATCH(Resultat!$D$6&"_"&Resultat!$C53&"_"&Resultat!E$50,Beräkningar!$E:$E,0)),0) -> 0.004917047184 | F53: =_xlfn.IFNA(INDEX(Beräkningar!$F:$F,MATCH(Resultat!$D$6&"_"&Resultat!$C53&"_"&Resultat!F$50,Beräkningar!$E:$E,0)),0) -> 0 | G53: =_xlfn.IFNA(INDEX(Beräkningar!$F:$F,MATCH(Resultat!$D$6&"_"&Resultat!$C53&"_"&Resultat!G$50,Beräkningar!$E:$E,0)),0) -> 0 | H53: =_xlfn.IFNA(INDEX(Beräkningar!$F:$F,MATCH(Resultat!$D$6&"_"&Resultat!$C53&"_"&Resultat!H$50,Beräkningar!$E:$E,0)),0) -> 0 | I53: -3.758370624
C54: Nox | D54: =_xlfn.IFNA(INDEX(Beräkningar!$F:$F,MATCH(Resultat!$D$6&"_"&Resultat!$C54&"_"&Resultat!D$50,Beräkningar!$E:$E,0)),0) -> -10.6626484 | E54: =_xlfn.IFNA(INDEX(Beräkningar!$F:$F,MATCH(Resultat!$D$6&"_"&Resultat!$C54&"_"&Resultat!E$50,Beräkningar!$E:$E,0)),0) -> 0.1490243531 | F54: =_xlfn.IFNA(INDEX(Beräkningar!$F:$F,MATCH(Resultat!$D$6&"_"&Resultat!$C54&"_"&Resultat!F$50,Beräkningar!$E:$E,0)),0) -> 0 | G54: =_xlfn.IFNA(INDEX(Beräkningar!$F:$F,MATCH(Resultat!$D$6&"_"&Resultat!$C54&"_"&Resultat!G$50,Beräkningar!$E:$E,0)),0) -> 0 | H54: =_xlfn.IFNA(INDEX(Beräkningar!$F:$F,MATCH(Resultat!$D$6&"_"&Resultat!$C54&"_"&Resultat!H$50,Beräkningar!$E:$E,0)),0) -> 0 | I54: -10.51362405
C55: Pmavgas | D55: =_xlfn.IFNA(INDEX(Beräkningar!$F:$F,MATCH(Resultat!$D$6&"_"&Resultat!$C55&"_"&Resultat!D$50,Beräkningar!$E:$E,0)),0) -> -0.09721826484 | E55: =_xlfn.IFNA(INDEX(Beräkningar!$F:$F,MATCH(Resultat!$D$6&"_"&Resultat!$C55&"_"&Resultat!E$50,Beräkningar!$E:$E,0)),0) -> 0.001486461187 | F55: =_xlfn.IFNA(INDEX(Beräkningar!$F:$F,MATCH(Resultat!$D$6&"_"&Resultat!$C55&"_"&Resultat!F$50,Beräkningar!$E:$E,0)),0) -> 0 | G55: =_xlfn.IFNA(INDEX(Beräkningar!$F:$F,MATCH(Resultat!$D$6&"_"&Resultat!$C55&"_"&Resultat!G$50,Beräkningar!$E:$E,0)),0) -> 0 | H55: =_xlfn.IFNA(INDEX(Beräkningar!$F:$F,MATCH(Resultat!$D$6&"_"&Resultat!$C55&"_"&Resultat!H$50,Beräkningar!$E:$E,0)),0) -> 0 | I55: -0.09573180365
C56: SO2 | D56: =_xlfn.IFNA(INDEX(Beräkningar!$F:$F,MATCH(Resultat!$D$6&"_"&Resultat!$C56&"_"&Resultat!D$50,Beräkningar!$E:$E,0)),0) -> -0.02195251142 | E56: =_xlfn.IFNA(INDEX(Beräkningar!$F:$F,MATCH(Resultat!$D$6&"_"&Resultat!$C56&"_"&Resultat!E$50,Beräkningar!$E:$E,0)),0) -> 3.782343988e-05 | F56: =_xlfn.IFNA(INDEX(Beräkningar!$F:$F,MATCH(Resultat!$D$6&"_"&Resultat!$C56&"_"&Resultat!F$50,Beräkningar!$E:$E,0)),0) -> 0 | G56: =_xlfn.IFNA(INDEX(Beräkningar!$F:$F,MATCH(Resultat!$D$6&"_"&Resultat!$C56&"_"&Resultat!G$50,Beräkningar!$E:$E,0)),0) -> 0 | H56: =_xlfn.IFNA(INDEX(Beräkningar!$F:$F,MATCH(Resultat!$D$6&"_"&Resultat!$C56&"_"&Resultat!H$50,Beräkningar!$E:$E,0)),0) -> 0 | I56: -0.02191468798
D57: Påverkan på utsläpp (kg/km) per år
D58: Bil | E58: Buss | F58: Tåg | G58: T-bana/Spårvagn | H58: Gång/cykel | I58: Summa
C59: CO2 | D59: =D51*365 -> -2518266.667 | E59: 5384.166667 | F59: 0 | G59: 0 | H59: 0 | I59: =SUM(D59:H59) -> -2512882.5
C60: Pslitage | D60: =D52*365 -> 0 | E60: 0 | F60: 0 | G60: 0 | H60: 0 | I60: 0
C61: HC | D61: -1373.6 | E61: 1.794722222 | F61: 0 | G61: 0 | H61: 0 | I61: -1371.805278
C62: Nox | D62: -3891.866667 | E62: 54.39388889 | F62: 0 | G62: 0 | H62: 0 | I62: -3837.472778
C63: Pmavgas | D63: -35.48466667 | E63: 0.5425583333 | F63: 0 | G63: 0 | H63: 0 | I63: -34.94210833
C64: SO2 | D64: -8.012666667 | E64: 0.01380555556 | F64: 0 | G64: 0 | H64: 0 | I64: -7.998861111
D65: Påverkan på olyckor per år
D66: Bil + Bil | E66: Bil + Gång | F66: Bil + Cykel/moped | G66: Summa
C67: Dödad (D) | D67: =IF($D$43<0,-'TS-EVA Länkberäkningar'!D143,'TS-EVA Länkberäkningar'!D143) -> -0.0388784476 | E67: =IF($D$43<0,-'TS-EVA Länkberäkningar'!E143,'TS-EVA Länkberäkningar'!E143) -> -0.01830536932 | F67: =IF($D$43<0,-'TS-EVA Länkberäkningar'!F143,'TS-EVA Länkberäkningar'!F143) -> -0.007381935912 | G67: =SUM(D67:F67) -> -0.06456575283
C68: Mycket allvarligt skadad (MAS) | D68: =IF($D$43<0,-'TS-EVA Länkberäkningar'!D144,'TS-EVA Länkberäkningar'!D144) -> -0.1622127582 | E68: =IF($D$43<0,-'TS-EVA Länkberäkningar'!E144,'TS-EVA Länkberäkningar'!E144) -> -0.02189452863 | F68: =IF($D$43<0,-'TS-EVA Länkberäkningar'!F144,'TS-EVA Länkberäkningar'!F144) -> -0.02073798486 | G68: =SUM(D68:F68) -> -0.2048452717
C69: Allvarligt skadad (AS) | D69: =IF($D$43<0,-'TS-EVA Länkberäkningar'!D145,'TS-EVA Länkberäkningar'!D145) -> -0.9939993604 | E69: =IF($D$43<0,-'TS-EVA Länkberäkningar'!E145,'TS-EVA Länkberäkningar'!E145) -> -0.1047352891 | F69: =IF($D$43<0,-'TS-EVA Länkberäkningar'!F145,'TS-EVA Länkberäkningar'!F145) -> -0.1070905173 | G69: =SUM(D69:F69) -> -1.205825167
C70: Ej Allvarligt skadad (EAS) | D70: =IF($D$43<0,-'TS-EVA Länkberäkningar'!D146,'TS-EVA Länkberäkningar'!D146) -> -5.624519896 | E70: =IF($D$43<0,-'TS-EVA Länkberäkningar'!E146,'TS-EVA Länkberäkningar'!E146) -> -0.2801794603 | F70: =IF($D$43<0,-'TS-EVA Länkberäkningar'!F146,'TS-EVA Länkberäkningar'!F146) -> -0.4189502532 | G70: =SUM(D70:F70) -> -6.32364961
C71: Egendomsolyckor (EG) | D71: =IF($D$43<0,-'TS-EVA Länkberäkningar'!D147,'TS-EVA Länkberäkningar'!D147) -> -72.29678463 | E71: =IF($D$43<0,-'TS-EVA Länkberäkningar'!E147,'TS-EVA Länkberäkningar'!E147) -> 0 | F71: =IF($D$43<0,-'TS-EVA Länkberäkningar'!F147,'TS-EVA Länkberäkningar'!F147) -> 0 | G71: =SUM(D71:F71) -> -72.29678463
C72: Summa | D72: =SUM(D67:D71) -> -79.11639509 | E72: =SUM(E67:E71) -> -0.4251146473 | F72: =SUM(F67:F71) -> -0.5541606912 | G72: =SUM(G67:G71) -> -80.09567043
G74: Resultat SEK första året
D75: Utsläpp SEK per år (positiv betyder att spara, negativ att kosta)
D76: Bil | E76: Buss | F76: Tåg | G76: T-bana/Spårvagn | H76: Gång/cykel | I76: Summa
C77: CO2 | D77: =(IF(VLOOKUP(Resultat!$D$8,Data!$D:$E,2,FALSE)=0,Åtgärd!$I13,Åtgärd!$E13))*-D59 -> 17627866.67 | E77: =(IF(VLOOKUP(Resultat!$D$8,Data!$D:$E,2,FALSE)=0,Åtgärd!$I13,Åtgärd!$E13))*-E59 -> -37689.16667 | F77: =(IF(VLOOKUP(Resultat!$D$8,Data!$D:$E,2,FALSE)=0,Åtgärd!$I13,Åtgärd!$E13))*-F59 -> 0 | G77: =(IF(VLOOKUP(Resultat!$D$8,Data!$D:$E,2,FALSE)=0,Åtgärd!$I13,Åtgärd!$E13))*-G59 -> 0 | H77: =(IF(VLOOKUP(Resultat!$D$8,Data!$D:$E,2,FALSE)=0,Åtgärd!$I13,Åtgärd!$E13))*-H59 -> 0 | I77: =SUM(D77:H77) -> 17590177.5
C78: Pslitage | D78: =(IF(VLOOKUP(Resultat!$D$8,Data!$D:$E,2,FALSE)=0,Åtgärd!$I14,Åtgärd!$E14))*-D60 -> 0 | E78: =(IF(VLOOKUP(Resultat!$D$8,Data!$D:$E,2,FALSE)=0,Åtgärd!$I14,Åtgärd!$E14))*-E60 -> 0 | F78: =(IF(VLOOKUP(Resultat!$D$8,Data!$D:$E,2,FALSE)=0,Åtgärd!$I14,Åtgärd!$E14))*-F60 -> 0 | G78: =(IF(VLOOKUP(Resultat!$D$8,Data!$D:$E,2,FALSE)=0,Åtgärd!$I14,Åtgärd!$E14))*-G60 -> 0 | H78: =(IF(VLOOKUP(Resultat!$D$8,Data!$D:$E,2,FALSE)=0,Åtgärd!$I14,Åtgärd!$E14))*-H60 -> 0 | I78: =SUM(D78:H78) -> 0
C79: HC | D79: =(IF(VLOOKUP(Resultat!$D$8,Data!$D:$E,2,FALSE)=0,Åtgärd!$I15,Åtgärd!$E15))*-D61 -> 0 | E79: =(IF(VLOOKUP(Resultat!$D$8,Data!$D:$E,2,FALSE)=0,Åtgärd!$I15,Åtgärd!$E15))*-E61 -> 0 | F79: =(IF(VLOOKUP(Resultat!$D$8,Data!$D:$E,2,FALSE)=0,Åtgärd!$I15,Åtgärd!$E15))*-F61 -> 0 | G79: =(IF(VLOOKUP(Resultat!$D$8,Data!$D:$E,2,FALSE)=0,Åtgärd!$I15,Åtgärd!$E15))*-G61 -> 0 | H79: =(IF(VLOOKUP(Resultat!$D$8,Data!$D:$E,2,FALSE)=0,Åtgärd!$I15,Åtgärd!$E15))*-H61 -> 0 | I79: 0
C80: Nox | D80: =(IF(VLOOKUP(Resultat!$D$8,Data!$D:$E,2,FALSE)=0,Åtgärd!$I16,Åtgärd!$E16))*-D62 -> 0 | E80: =(IF(VLOOKUP(Resultat!$D$8,Data!$D:$E,2,FALSE)=0,Åtgärd!$I16,Åtgärd!$E16))*-E62 -> 0 | F80: =(IF(VLOOKUP(Resultat!$D$8,Data!$D:$E,2,FALSE)=0,Åtgärd!$I16,Åtgärd!$E16))*-F62 -> 0 | G80: =(IF(VLOOKUP(Resultat!$D$8,Data!$D:$E,2,FALSE)=0,Åtgärd!$I16,Åtgärd!$E16))*-G62 -> 0 | H80: =(IF(VLOOKUP(Resultat!$D$8,Data!$D:$E,2,FALSE)=0,Åtgärd!$I16,Åtgärd!$E16))*-H62 -> 0 | I80: 0
C81: Pmavgas | D81: =(IF(VLOOKUP(Resultat!$D$8,Data!$D:$E,2,FALSE)=0,Åtgärd!$I17,Åtgärd!$E17))*-D63 -> 244844.2 | E81: =(IF(VLOOKUP(Resultat!$D$8,Data!$D:$E,2,FALSE)=0,Åtgärd!$I17,Åtgärd!$E17))*-E63 -> -3743.6525 | F81: =(IF(VLOOKUP(Resultat!$D$8,Data!$D:$E,2,FALSE)=0,Åtgärd!$I17,Åtgärd!$E17))*-F63 -> 0 | G81: =(IF(VLOOKUP(Resultat!$D$8,Data!$D:$E,2,FALSE)=0,Åtgärd!$I17,Åtgärd!$E17))*-G63 -> 0 | H81: =(IF(VLOOKUP(Resultat!$D$8,Data!$D:$E,2,FALSE)=0,Åtgärd!$I17,Åtgärd!$E17))*-H63 -> 0 | I81: 241100.5475
C82: SO2 | D82: =(IF(VLOOKUP(Resultat!$D$8,Data!$D:$E,2,FALSE)=0,Åtgärd!$I18,Åtgärd!$E18))*-D64 -> 0 | E82: =(IF(VLOOKUP(Resultat!$D$8,Data!$D:$E,2,FALSE)=0,Åtgärd!$I18,Åtgärd!$E18))*-E64 -> 0 | F82: =(IF(VLOOKUP(Resultat!$D$8,Data!$D:$E,2,FALSE)=0,Åtgärd!$I18,Åtgärd!$E18))*-F64 -> 0 | G82: =(IF(VLOOKUP(Resultat!$D$8,Data!$D:$E,2,FALSE)=0,Åtgärd!$I18,Åtgärd!$E18))*-G64 -> 0 | H82: =(IF(VLOOKUP(Resultat!$D$8,Data!$D:$E,2,FALSE)=0,Åtgärd!$I18,Åtgärd!$E18))*-H64 -> 0 | I82: 0
C83: Summa | D83: =SUM(D77:D82) -> 17872710.87 | E83: =SUM(E77:E82) -> -41432.81917 | F83: =SUM(F77:F82) -> 0 | G83: =SUM(G77:G82) -> 0 | H83: =SUM(H77:H82) -> 0 | I83: 17831278.05
D84: Påverkan på olyckor SEK per år (positiv betyder att spara, negativ att kosta)
D85: Bil + Bil | E85: Bil + Gång | F85: Bil + Cykel/moped | G85: Summa
C86: Dödad (D) | D86: =(Åtgärd!$K$25+Åtgärd!$P$25)*-D67 -> 1953641.992 | E86: =(Åtgärd!$K$25+Åtgärd!$P$25)*-E67 -> 919844.8082 | F86: =(Åtgärd!$K$25+Åtgärd!$P$25)*-F67 -> 370942.2796 | G86: =SUM(D86:F86) -> 3244429.08
C87: Mycket allvarligt skadad (MAS) | D87: =(Åtgärd!$K$26+Åtgärd!$P$26)*-D68 -> 2885764.968 | E87: =(Åtgärd!$K$26+Åtgärd!$P$26)*-E68 -> 389503.6643 | F87: =(Åtgärd!$K$26+Åtgärd!$P$26)*-F68 -> 368928.7506 | G87: =SUM(D87:F87) -> 3644197.383
C88: Allvarligt skadad (AS) | D88: =(Åtgärd!$K$27+Åtgärd!$P$27)*-D69 -> 11808712.4 | E88: =(Åtgärd!$K$27+Åtgärd!$P$27)*-E69 -> 1244255.234 | F88: =(Åtgärd!$K$27+Åtgärd!$P$27)*-F69 -> 1272235.345 | G88: =SUM(D88:F88) -> 14325202.98
C89: Ej Allvarligt skadad (EAS) | D89: =(Åtgärd!$K$28+Åtgärd!$P$28)*-D70 -> 25670308.81 | E89: =(Åtgärd!$K$28+Åtgärd!$P$28)*-E70 -> 1278739.057 | F89: =(Åtgärd!$K$28+Åtgärd!$P$28)*-F70 -> 1912088.956 | G89: =SUM(D89:F89) -> 28861136.82
C90: Egendomsolyckor (EG) | D90: =(Åtgärd!$K$29+Åtgärd!$P$29)*-D71 -> 1084451.769 | E90: =(Åtgärd!$K$29+Åtgärd!$P$29)*-E71 -> 0 | F90: =(Åtgärd!$K$29+Åtgärd!$P$29)*-F71 -> 0 | G90: =SUM(D90:F90) -> 1084451.769
C91: Summa | D91: =SUM(D86:D90) -> 43402879.94 | E91: =SUM(E86:E90) -> 3832342.763 | F91: =SUM(F86:F90) -> 3924195.331 | G91: =SUM(G86:G90) -> 51159418.03
C93: Utsläpp SEK per år totalt | D93: =I83 -> 17831278.05
C94: Påverkan på olyckor SEK per år totalt | D94: =G91 -> 51159418.03
C95: Nyttor första året | D95: =SUM(D93:D94) -> 68990696.08

Sheet Användarhandledning
B2: Övergripande upplägg
B3: Som användare av verktyget använder man tre flikar:
B4: · ‘Om’: Här finns en kort sammanfattning av verktyget. Här finns också länkar till information om respektive åtgärd.
B5: · ‘Åtgärd’: Fliken åtgärd används för att välja åtgärd och lägga till indata.
B6: · ‘Resultat’: Fliken resultat beräknar och presenterar resultatet
B8: Flik Åtgärd
B9: All indata till verktyget läggs till i fliken Åtgärd. Det första steget är att välja en åtgärd att studera. Till höger om valet av åtgärd finns en checkbox där man som användare kan välja att ändra parametrar med defaultsatta värden. (Se figur 1).
B14: Figur 1.
B18: Om boxen inte är ikryssad visas en gulmarkerad del av arket där parametrar och variabler som används i beräkningarna visas. Om någon parameter ändras visas det genom att cell bredvid blir röd. (se Figur 2).
B30: Figur 2.
B32: Användaren kan återställa parametrar som ändrats genom att klicka på ’Återgå till originalet’
B34: Alla ljusblåa celler, se figur 3, är indata som användaren behöver specificera utifrån åtgärden som ska utredas. I vissa fall finns det rullistor med förinställda val och vissa kräver input från användaren i form av värden eller procent.
B40: Figur 3.
B42: När all indata är på plats kan man välja ‘Gå till resultat’ så flyttas man till resultatfilken där man kan se resultatet.
B45: Ett exempel
B46: Arbetsplats parkeringavgift ökning scenario:
B48: Förvaltningen av en arbetsplats på 500 anställda (varav 56% brukar köra till jobbet) vill göra kollektivtrafiken och gång/cykel mer attraktiv i förhållande till att köra väg genom att öka kostnaderna för personalens parkering något.
B49: Anställda betalar dock inte direkt vid parkering utan månadsvis avdrag från lönen. Resorna till kontoret är ca 11 km i genomsnitt.
B50: Företaget vill beräkna effekten av prisökningar över en 5-årsperiod med avseende på miljön genom förändringar i utsläpp och trafiksäkerhet, trots förändringar i trafikolyckor.
B52: Steg 1: välj rätt åtgärd (se figur 4)
B62: Figur 4.
B64: Steg 2. Välj om defalutvärden ska användas
B65: I det här exemplet har defaultvärden använts så rutan behålls ikryssad.
B67: Steg 3. Lägg till indata för ‘Arbetsplats parkeringsavgift’
B68: Figur 5 visar hur indata har lagts till utifrån beskrivningar. Bensinpriset är inlagt som ett defaultvärde om 1,5 kr/km
B70: Steg. 4 Fortsätt till resultat
B71: Använd knappen för ’Gå till resultat’ där resultatet presenteras
B95: Figur 5.
B98: Flik resultat
B100: Resultatfliken visar resultatet av beräkningarna. Det finns tre huvuddelar som kan skiljas åt genom att de har olika färg. Den första, gröna, delen visar en sammanfattning av indata. (se figur 6).
B110: Figur 6.
B112: Den andra, blå, delen visar hur åtgärden påverkar antalet resor, reslängd samt hur det påverkar utsläpp och trafiksäkerhet, se figur 7.
B132: Figur 7.
B134: Den sista delen, i orange, visar resultatet som nytta första året (figur 8).
B150: Figur 8.

Sheet Beräkningar
A1: Åtgärd | B1: Effekt | C1: Specifikeffekt | D1: Färd | E1: ID | F1: Funktion
A2: Lokalisering Bostäder | C2: Kommun | E2: =A2&"_"&C2&"_"&D2 -> Lokalisering Bostäder_Kommun_ | F2: =Åtgärd!C80 -> Malmö
A3: Lokalisering Bostäder | C3: Tätort (0) eller landsbygd (1) | E3: =A3&"_"&C3&"_"&D3 -> Lokalisering Bostäder_Tätort (0) eller landsbygd (1)_ | F3: =VLOOKUP(F2,Data!D:E,2,FALSE) -> 0
A4: Lokalisering Bostäder | C4: Investeringskostnad (Mkr) | E4: =A4&"_"&C4&"_"&D4 -> Lokalisering Bostäder_Investeringskostnad (Mkr)_ | F4: =Åtgärd!$C$109 -> 0
A5: Lokalisering Bostäder | B5: Resealstring/dygn | C5: Resealstring (samtliga hushåll) | D5: Bil | E5: =A5&"_"&C5&"_"&D5 -> Lokalisering Bostäder_Resealstring (samtliga hushåll) _Bil | F5: ='Bostadsetablering beräkningar'!H9-'Bostadsetablering beräkningar'!B9 -> -33.75520849
A6: Lokalisering Bostäder | B6: Resealstring/dygn | C6: Resealstring (samtliga hushåll) | D6: Buss | E6: =A6&"_"&C6&"_"&D6 -> Lokalisering Bostäder_Resealstring (samtliga hushåll) _Buss | F6: ='Bostadsetablering beräkningar'!I9-'Bostadsetablering beräkningar'!C9 -> -21.37956564
A7: Lokalisering Bostäder | B7: Resealstring/dygn | C7: Resealstring (samtliga hushåll) | D7: Tåg | E7: Lokalisering Bostäder_Resealstring (samtliga hushåll) _Tåg | F7: ='Bostadsetablering beräkningar'!J9-'Bostadsetablering beräkningar'!D9 -> 0
A8: Lokalisering Bostäder | B8: Resealstring/dygn | C8: Resealstring (samtliga hushåll) | D8: T-bana/Spårvagn | E8: Lokalisering Bostäder_Resealstring (samtliga hushåll) _T-bana/Spårvagn | F8: ='Bostadsetablering beräkningar'!K9-'Bostadsetablering beräkningar'!E9 -> 0
A9: Lokalisering Bostäder | B9: Resealstring/dygn | C9: Resealstring (samtliga hushåll) | D9: Gång/cykel | E9: Lokalisering Bostäder_Resealstring (samtliga hushåll) _Gång/cykel | F9: ='Bostadsetablering beräkningar'!L9-'Bostadsetablering beräkningar'!F9 -> -34.86522588
A10: Lokalisering Bostäder | B10: Resealstring/dygn | C10: Reslängd (genomsnitt i km) | D10: Bil | E10: Lokalisering Bostäder_Reslängd (genomsnitt i km)_Bil | F10: ='Bostadsetablering beräkningar'!H10-'Bostadsetablering beräkningar'!B10 -> 0
A11: Lokalisering Bostäder | B11: Resealstring/dygn | C11: Reslängd (genomsnitt i km) | D11: Buss | E11: Lokalisering Bostäder_Reslängd (genomsnitt i km)_Buss | F11: ='Bostadsetablering beräkningar'!I10-'Bostadsetablering beräkningar'!C10 -> 0
A12: Lokalisering Bostäder | B12: Resealstring/dygn | C12: Reslängd (genomsnitt i km) | D12: Tåg | E12: Lokalisering Bostäder_Reslängd (genomsnitt i km)_Tåg | F12: ='Bostadsetablering beräkningar'!J10-'Bostadsetablering beräkningar'!D10 -> 0
A13: Lokalisering Bostäder | B13: Resealstring/dygn | C13: Reslängd (genomsnitt i km) | D13: T-bana/Spårvagn | E13: Lokalisering Bostäder_Reslängd (genomsnitt i km)_T-bana/Spårvagn | F13: ='Bostadsetablering beräkningar'!K10-'Bostadsetablering beräkningar'!E10 -> 0
A14: Lokalisering Bostäder | B14: Resealstring/dygn | C14: Reslängd (genomsnitt i km) | D14: Gång/cykel | E14: Lokalisering Bostäder_Reslängd (genomsnitt i km)_Gång/cykel | F14: ='Bostadsetablering beräkningar'!L10-'Bostadsetablering beräkningar'!F10 -> 0
A15: Lokalisering Bostäder | B15: Resealstring/dygn | C15: Total reslängd (km/dygn) | D15: Bil | E15: Lokalisering Bostäder_Total reslängd (km/dygn)_Bil | F15: ='Bostadsetablering beräkningar'!H11-'Bostadsetablering beräkningar'!B11 -> -573.8385443
A16: Lokalisering Bostäder | B16: Resealstring/dygn | C16: Total reslängd (km/dygn) | D16: Buss | E16: Lokalisering Bostäder_Total reslängd (km/dygn)_Buss | F16: ='Bostadsetablering beräkningar'!I11-'Bostadsetablering beräkningar'!C11 -> -256.5547876
A17: Lokalisering Bostäder | B17: Resealstring/dygn | C17: Total reslängd (km/dygn) | D17: Tåg | E17: Lokalisering Bostäder_Total reslängd (km/dygn)_Tåg | F17: ='Bostadsetablering beräkningar'!J11-'Bostadsetablering beräkningar'!D11 -> 0
A18: Lokalisering Bostäder | B18: Resealstring/dygn | C18: Total reslängd (km/dygn) | D18: T-bana/Spårvagn | E18: Lokalisering Bostäder_Total reslängd (km/dygn)_T-bana/Spårvagn | F18: ='Bostadsetablering beräkningar'!K11-'Bostadsetablering beräkningar'!E11 -> 0
A19: Lokalisering Bostäder | B19: Resealstring/dygn | C19: Total reslängd (km/dygn) | D19: Gång/cykel | E19: Lokalisering Bostäder_Total reslängd (km/dygn)_Gång/cykel | F19: ='Bostadsetablering beräkningar'!L11-'Bostadsetablering beräkningar'!F11 -> -69.73045176
A20: Lokalisering Bostäder | B20: Påverkan på Utsläpp (kg/km) | C20: CO2 | D20: Bil | E20: Lokalisering Bostäder_CO2_Bil | F20: =F15*Åtgärd!$E$61 -> -84.16298649
A21: Lokalisering Bostäder | B21: Påverkan på Utsläpp (kg/km) | C21: CO2 | D21: Buss | E21: Lokalisering Bostäder_CO2_Buss | F21: =F16*IF(F3=0,Åtgärd!$E$66,Åtgärd!$E$65) -> -8.338030598
A22: Lokalisering Bostäder | B22: Påverkan på Utsläpp (kg/km) | C22: CO2 | D22: Tåg | E22: Lokalisering Bostäder_CO2_Tåg | F22: =F17*Åtgärd!$E$67 -> 0
A23: Lokalisering Bostäder | B23: Påverkan på Utsläpp (kg/km) | C23: CO2 | D23: T-bana/Spårvagn | E23: Lokalisering Bostäder_CO2_T-bana/Spårvagn | F23: =F18*Åtgärd!$E$68 -> 0
A24: Lokalisering Bostäder | B24: Påverkan på Utsläpp (kg/km) | C24: CO2 | D24: Gång/cykel | E24: Lokalisering Bostäder_CO2_Gång/cykel | F24: =F19*Åtgärd!$E$69 -> 0
A25: Lokalisering Bostäder | B25: Påverkan på Utsläpp (kg/km) | C25: CO | D25: Bil | E25: Lokalisering Bostäder_CO_Bil | F25: =F15*Åtgärd!$F$61 -> -0.2792680915
A26: Lokalisering Bostäder | B26: Påverkan på Utsläpp (kg/km) | C26: CO | D26: Buss | E26: Lokalisering Bostäder_CO_Buss | F26: =F16*IF(F3=0,Åtgärd!$F$66,Åtgärd!$F$65) -> -0.02757963967
A27: Lokalisering Bostäder | B27: Påverkan på Utsläpp (kg/km) | C27: CO | D27: Tåg | E27: Lokalisering Bostäder_CO_Tåg | F27: =F17*Åtgärd!$F$67 -> 0
A28: Lokalisering Bostäder | B28: Påverkan på Utsläpp (kg/km) | C28: CO | D28: T-bana/Spårvagn | E28: Lokalisering Bostäder_CO_T-bana/Spårvagn | F28: =F18*Åtgärd!$F$68 -> 0
A29: Lokalisering Bostäder | B29: Påverkan på Utsläpp (kg/km) | C29: CO | D29: Gång/cykel | E29: Lokalisering Bostäder_CO_Gång/cykel | F29: =F19*Åtgärd!$F$69 -> 0
A30: Lokalisering Bostäder | B30: Påverkan på Utsläpp (kg/km) | C30: HC | D30: Bil | E30: Lokalisering Bostäder_HC_Bil | F30: =F15*Åtgärd!$G$61 -> -0.04590708354
A31: Lokalisering Bostäder | B31: Påverkan på Utsläpp (kg/km) | C31: HC | D31: Buss | E31: Lokalisering Bostäder_HC_Buss | F31: =F16*IF(F3=0,Åtgärd!$G$66,Åtgärd!$G$65) -> -0.002779343533
A32: Lokalisering Bostäder | B32: Påverkan på Utsläpp (kg/km) | C32: HC | D32: Tåg | E32: Lokalisering Bostäder_HC_Tåg | F32: =F17*Åtgärd!$G$67 -> 0
A33: Lokalisering Bostäder | B33: Påverkan på Utsläpp (kg/km) | C33: HC | D33: T-bana/Spårvagn | E33: Lokalisering Bostäder_HC_T-bana/Spårvagn | F33: =F18*Åtgärd!$G$68 -> 0
A34: Lokalisering Bostäder | B34: Påverkan på Utsläpp (kg/km) | C34: HC | D34: Gång/cykel | E34: Lokalisering Bostäder_HC_Gång/cykel | F34: =F19*Åtgärd!$G$69 -> 0
A35: Lokalisering Bostäder | B35: Påverkan på Utsläpp (kg/km) | C35: Nox | D35: Bil | E35: Lokalisering Bostäder_Nox_Bil | F35: =F15*Åtgärd!$H$61 -> -0.13007007
A36: Lokalisering Bostäder | B36: Påverkan på Utsläpp (kg/km) | C36: Nox | D36: Buss | E36: Lokalisering Bostäder_Nox_Buss | F36: =F16*IF(F3=0,Åtgärd!$H$66,Åtgärd!$H$65) -> -0.08423548861
A37: Lokalisering Bostäder | B37: Påverkan på Utsläpp (kg/km) | C37: Nox | D37: Tåg | E37: Lokalisering Bostäder_Nox_Tåg | F37: =F17*Åtgärd!$H$67 -> 0
A38: Lokalisering Bostäder | B38: Påverkan på Utsläpp (kg/km) | C38: Nox | D38: T-bana/Spårvagn | E38: Lokalisering Bostäder_Nox_T-bana/Spårvagn | F38: =F18*Åtgärd!$H$68 -> 0
A39: Lokalisering Bostäder | B39: Påverkan på Utsläpp (kg/km) | C39: Nox | D39: Gång/cykel | E39: Lokalisering Bostäder_Nox_Gång/cykel | F39: =F19*Åtgärd!$H$69 -> 0
A40: Lokalisering Bostäder | B40: Påverkan på Utsläpp (kg/km) | C40: Pmavgas | D40: Bil | E40: Lokalisering Bostäder_Pmavgas_Bil | F40: =F15*Åtgärd!$I$61 -> -0.001185932991
A41: Lokalisering Bostäder | B41: Påverkan på Utsläpp (kg/km) | C41: Pmavgas | D41: Buss | E41: Lokalisering Bostäder_Pmavgas_Buss | F41: =F16*IF(F3=0,Åtgärd!$I$66,Åtgärd!$I$65) -> -0.0008402169295
A42: Lokalisering Bostäder | B42: Påverkan på Utsläpp (kg/km) | C42: Pmavgas | D42: Tåg | E42: Lokalisering Bostäder_Pmavgas_Tåg | F42: =F17*Åtgärd!$I$67 -> 0
A43: Lokalisering Bostäder | B43: Påverkan på Utsläpp (kg/km) | C43: Pmavgas | D43: T-bana/Spårvagn | E43: Lokalisering Bostäder_Pmavgas_T-bana/Spårvagn | F43: =F18*Åtgärd!$I$68 -> 0
A44: Lokalisering Bostäder | B44: Påverkan på Utsläpp (kg/km) | C44: Pmavgas | D44: Gång/cykel | E44: Lokalisering Bostäder_Pmavgas_Gång/cykel | F44: =F19*Åtgärd!$I$69 -> 0
A45: Lokalisering Bostäder | B45: Påverkan på Utsläpp (kg/km) | C45: SO2 | D45: Bil | E45: Lokalisering Bostäder_SO2_Bil | F45: =F15*Åtgärd!$J$61 -> -0.0002677913207
A46: Lokalisering Bostäder | B46: Påverkan på Utsläpp (kg/km) | C46: SO2 | D46: Buss | E46: Lokalisering Bostäder_SO2_Buss | F46: =F16*IF(F3=0,Åtgärd!$J$66,Åtgärd!$J$65) -> -2.137956564e-05
A47: Lokalisering Bostäder | B47: Påverkan på Utsläpp (kg/km) | C47: SO2 | D47: Tåg | E47: Lokalisering Bostäder_SO2_Tåg | F47: =F17*Åtgärd!$J$67 -> 0
A48: Lokalisering Bostäder | B48: Påverkan på Utsläpp (kg/km) | C48: SO2 | D48: T-bana/Spårvagn | E48: Lokalisering Bostäder_SO2_T-bana/Spårvagn | F48: =F18*Åtgärd!$J$68 -> 0
A49: Lokalisering Bostäder | B49: Påverkan på Utsläpp (kg/km) | C49: SO2 | D49: Gång/cykel | E49: Lokalisering Bostäder_SO2_Gång/cykel | F49: =F19*Åtgärd!$J$69 -> 0
A50: Lokalisering Handel | C50: Kommun | E50: =A50&"_"&C50&"_"&D50 -> Lokalisering Handel_Kommun_ | F50: =Åtgärd!C120 -> Malmö
A51: Lokalisering Handel | C51: Tätort (0) eller landsbygd (1) | E51: Lokalisering Handel_Tätort (0) eller landsbygd (1)_ | F51: =VLOOKUP(F50,Data!D:E,2,FALSE) -> 0
A52: Lokalisering Handel | C52: Investeringskostnad (Mkr) | E52: Lokalisering Handel_Investeringskostnad (Mkr)_ | F52: =Åtgärd!C134 -> 0
A53: Lokalisering Handel | B53: Resealstring/dygn | C53: Resealstring (samtliga hushåll) | D53: Bil | E53: Lokalisering Handel_Resealstring (samtliga hushåll) _Bil | F53: ='2.Besökare per färdmedel'!E8/365 -> -1534.246575
A54: Lokalisering Handel | B54: Resealstring/dygn | C54: Resealstring (samtliga hushåll) | D54: Buss | E54: Lokalisering Handel_Resealstring (samtliga hushåll) _Buss | F54: ='2.Besökare per färdmedel'!E15/365 -> 383.5616438
A55: Lokalisering Handel | B55: Resealstring/dygn | C55: Resealstring (samtliga hushåll) | D55: Tåg | E55: Lokalisering Handel_Resealstring (samtliga hushåll) _Tåg | F55: 0
A56: Lokalisering Handel | B56: Resealstring/dygn | C56: Resealstring (samtliga hushåll) | D56: T-bana/Spårvagn | E56: Lokalisering Handel_Resealstring (samtliga hushåll) _T-bana/Spårvagn | F56: 0
A57: Lokalisering Handel | B57: Resealstring/dygn | C57: Resealstring (samtliga hushåll) | D57: Gång/cykel | E57: Lokalisering Handel_Resealstring (samtliga hushåll) _Gång/cykel | F57: ='2.Besökare per färdmedel'!E22/365 -> 1095.890411
A58: Lokalisering Handel | B58: Resealstring/dygn | C58: Total reslängd (km/dygn) | D58: Bil | E58: =A58&"_"&C58&"_"&D58 -> Lokalisering Handel_Total reslängd (km/dygn)_Bil | F58: =('Handelsetablering Beräkningar'!D6-'Handelsetablering Beräkningar'!C6)/365 -> -47041.09589
A59: Lokalisering Handel | B59: Resealstring/dygn | C59: Total reslängd (km/dygn) | D59: Buss | E59: Lokalisering Handel_Total reslängd (km/dygn)_Buss | F59: =('Handelsetablering Beräkningar'!D7-'Handelsetablering Beräkningar'!C7)/365 -> 453.8812785
A60: Lokalisering Handel | B60: Resealstring/dygn | C60: Total reslängd (km/dygn) | D60: Tåg | E60: Lokalisering Handel_Total reslängd (km/dygn)_Tåg | F60: 0
A61: Lokalisering Handel | B61: Resealstring/dygn | C61: Total reslängd (km/dygn) | D61: T-bana/Spårvagn | E61: Lokalisering Handel_Total reslängd (km/dygn)_T-bana/Spårvagn | F61: 0
A62: Lokalisering Handel | B62: Resealstring/dygn | C62: Total reslängd (km/dygn) | D62: Gång/cykel | E62: Lokalisering Handel_Total reslängd (km/dygn)_Gång/cykel | F62: =('Handelsetablering Beräkningar'!D8-'Handelsetablering Beräkningar'!C8)/365 -> 2191.780822
A63: Lokalisering Handel | B63: Påverkan på Utsläpp (kg/km) | C63: CO2 | D63: Bil | E63: Lokalisering Handel_CO2_Bil | F63: =F58*Åtgärd!$E$61 -> -6899.360731
A64: Lokalisering Handel | B64: Påverkan på Utsläpp (kg/km) | C64: CO2 | D64: Buss | E64: Lokalisering Handel_CO2_Buss | F64: =F59*IF(F51=0,Åtgärd!$E$66,Åtgärd!$E$65) -> 14.75114155
A65: Lokalisering Handel | B65: Påverkan på Utsläpp (kg/km) | C65: CO2 | D65: Tåg | E65: Lokalisering Handel_CO2_Tåg | F65: =F60*Åtgärd!$E$67 -> 0
A66: Lokalisering Handel | B66: Påverkan på Utsläpp (kg/km) | C66: CO2 | D66: T-bana/Spårvagn | E66: Lokalisering Handel_CO2_T-bana/Spårvagn | F66: =F61*Åtgärd!$E$68 -> 0
A67: Lokalisering Handel | B67: Påverkan på Utsläpp (kg/km) | C67: CO2 | D67: Gång/cykel | E67: Lokalisering Handel_CO2_Gång/cykel | F67: =F62*Åtgärd!$E$69 -> 0
A68: Lokalisering Handel | B68: Påverkan på Utsläpp (kg/km) | C68: CO | D68: Bil | E68: Lokalisering Handel_CO_Bil | F68: =F58*Åtgärd!$F$61 -> -22.89333333
A69: Lokalisering Handel | B69: Påverkan på Utsläpp (kg/km) | C69: CO | D69: Buss | E69: Lokalisering Handel_CO_Buss | F69: =F59*IF(F51=0,Åtgärd!$F$66,Åtgärd!$F$65) -> 0.04879223744
A70: Lokalisering Handel | B70: Påverkan på Utsläpp (kg/km) | C70: CO | D70: Tåg | E70: Lokalisering Handel_CO_Tåg | F70: =F60*Åtgärd!$F$67 -> 0
A71: Lokalisering Handel | B71: Påverkan på Utsläpp (kg/km) | C71: CO | D71: T-bana/Spårvagn | E71: Lokalisering Handel_CO_T-bana/Spårvagn | F71: =F61*Åtgärd!$F$68 -> 0
A72: Lokalisering Handel | B72: Påverkan på Utsläpp (kg/km) | C72: CO | D72: Gång/cykel | E72: Lokalisering Handel_CO_Gång/cykel | F72: =F62*Åtgärd!$F$69 -> 0
A73: Lokalisering Handel | B73: Påverkan på Utsläpp (kg/km) | C73: HC | D73: Bil | E73: Lokalisering Handel_HC_Bil | F73: =F58*Åtgärd!$G$61 -> -3.763287671
A74: Lokalisering Handel | B74: Påverkan på Utsläpp (kg/km) | C74: HC | D74: Buss | E74: Lokalisering Handel_HC_Buss | F74: =F59*IF(F51=0,Åtgärd!$G$66,Åtgärd!$G$65) -> 0.004917047184
A75: Lokalisering Handel | B75: Påverkan på Utsläpp (kg/km) | C75: HC | D75: Tåg | E75: Lokalisering Handel_HC_Tåg | F75: =F60*Åtgärd!$G$67 -> 0
A76: Lokalisering Handel | B76: Påverkan på Utsläpp (kg/km) | C76: HC | D76: T-bana/Spårvagn | E76: Lokalisering Handel_HC_T-bana/Spårvagn | F76: =F61*Åtgärd!$G$68 -> 0
A77: Lokalisering Handel | B77: Påverkan på Utsläpp (kg/km) | C77: HC | D77: Gång/cykel | E77: Lokalisering Handel_HC_Gång/cykel | F77: =F62*Åtgärd!$G$69 -> 0
A78: Lokalisering Handel | B78: Påverkan på Utsläpp (kg/km) | C78: Nox | D78: Bil | E78: Lokalisering Handel_Nox_Bil | F78: =F58*Åtgärd!$H$61 -> -10.6626484
A79: Lokalisering Handel | B79: Påverkan på Utsläpp (kg/km) | C79: Nox | D79: Buss | E79: Lokalisering Handel_Nox_Buss | F79: =F59*IF(F51=0,Åtgärd!$H$66,Åtgärd!$H$65) -> 0.1490243531
A80: Lokalisering Handel | B80: Påverkan på Utsläpp (kg/km) | C80: Nox | D80: Tåg | E80: Lokalisering Handel_Nox_Tåg | F80: =F60*Åtgärd!$H$67 -> 0
A81: Lokalisering Handel | B81: Påverkan på Utsläpp (kg/km) | C81: Nox | D81: T-bana/Spårvagn | E81: Lokalisering Handel_Nox_T-bana/Spårvagn | F81: =F61*Åtgärd!$H$68 -> 0
A82: Lokalisering Handel | B82: Påverkan på Utsläpp (kg/km) | C82: Nox | D82: Gång/cykel | E82: Lokalisering Handel_Nox_Gång/cykel | F82: =F62*Åtgärd!$H$69 -> 0
A83: Lokalisering Handel | B83: Påverkan på Utsläpp (kg/km) | C83: Pmavgas | D83: Bil | E83: Lokalisering Handel_Pmavgas_Bil | F83: =F58*Åtgärd!$I$61 -> -0.09721826484
A84: Lokalisering Handel | B84: Påverkan på Utsläpp (kg/km) | C84: Pmavgas | D84: Buss | E84: Lokalisering Handel_Pmavgas_Buss | F84: =F59*IF(F51=0,Åtgärd!$I$66,Åtgärd!$I$65) -> 0.001486461187
A85: Lokalisering Handel | B85: Påverkan på Utsläpp (kg/km) | C85: Pmavgas | D85: Tåg | E85: Lokalisering Handel_Pmavgas_Tåg | F85: =F60*Åtgärd!$I$67 -> 0
A86: Lokalisering Handel | B86: Påverkan på Utsläpp (kg/km) | C86: Pmavgas | D86: T-bana/Spårvagn | E86: Lokalisering Handel_Pmavgas_T-bana/Spårvagn | F86: =F61*Åtgärd!$I$68 -> 0
A87: Lokalisering Handel | B87: Påverkan på Utsläpp (kg/km) | C87: Pmavgas | D87: Gång/cykel | E87: Lokalisering Handel_Pmavgas_Gång/cykel | F87: =F62*Åtgärd!$I$69 -> 0
A88: Lokalisering Handel | B88: Påverkan på Utsläpp (kg/km) | C88: SO2 | D88: Bil | E88: Lokalisering Handel_SO2_Bil | F88: =F58*Åtgärd!$J$61 -> -0.02195251142
A89: Lokalisering Handel | B89: Påverkan på Utsläpp (kg/km) | C89: SO2 | D89: Buss | E89: Lokalisering Handel_SO2_Buss | F89: =F59*IF(F51=0,Åtgärd!$J$66,Åtgärd!$J$65) -> 3.782343988e-05
A90: Lokalisering Handel | B90: Påverkan på Utsläpp (kg/km) | C90: SO2 | D90: Tåg | E90: Lokalisering Handel_SO2_Tåg | F90: =F60*Åtgärd!$J$67 -> 0
A91: Lokalisering Handel | B91: Påverkan på Utsläpp (kg/km) | C91: SO2 | D91: T-bana/Spårvagn | E91: Lokalisering Handel_SO2_T-bana/Spårvagn | F91: =F61*Åtgärd!$J$68 -> 0
A92: Lokalisering Handel | B92: Påverkan på Utsläpp (kg/km) | C92: SO2 | D92: Gång/cykel | E92: Lokalisering Handel_SO2_Gång/cykel | F92: =F62*Åtgärd!$J$69 -> 0
A93: Parkeringsavgift arbetsplats | C93: Kommun | E93: =A93&"_"&C93&"_"&D93 -> Parkeringsavgift arbetsplats_Kommun_ | F93: =Åtgärd!C143 -> Malmö
A94: Parkeringsavgift arbetsplats | C94: Tätort (0) eller landsbygd (1) | E94: =A94&"_"&C94&"_"&D94 -> Parkeringsavgift arbetsplats_Tätort (0) eller landsbygd (1)_ | F94: =VLOOKUP(F93,Data!D:E,2,FALSE) -> 0
A95: Parkeringsavgift arbetsplats | C95: Investeringskostnad (Mkr) | E95: =A95&"_"&C95&"_"&D95 -> Parkeringsavgift arbetsplats_Investeringskostnad (Mkr)_ | F95: =Åtgärd!C171 -> 0
A96: Parkeringsavgift arbetsplats | B96: Resealstring/dygn | C96: Resealstring (samtliga hushåll) | D96: Bil | E96: =A96&"_"&C96&"_"&D96 -> Parkeringsavgift arbetsplats_Resealstring (samtliga hushåll) _Bil | F96: ='Parkeringsavgift Beräkningar'!C79 -> -21
A97: Parkeringsavgift arbetsplats | B97: Resealstring/dygn | C97: Resealstring (samtliga hushåll) | D97: Buss | E97: =A97&"_"&C97&"_"&D97 -> Parkeringsavgift arbetsplats_Resealstring (samtliga hushåll) _Buss | F97: =-'Parkeringsavgift Beräkningar'!C79 -> 21
A98: Parkeringsavgift arbetsplats | B98: Resealstring/dygn | C98: Resealstring (samtliga hushåll) | D98: Tåg | E98: Parkeringsavgift arbetsplats_Resealstring (samtliga hushåll) _Tåg | F98: 0
A99: Parkeringsavgift arbetsplats | B99: Resealstring/dygn | C99: Resealstring (samtliga hushåll) | D99: T-bana/Spårvagn | E99: Parkeringsavgift arbetsplats_Resealstring (samtliga hushåll) _T-bana/Spårvagn | F99: 0
A100: Parkeringsavgift arbetsplats | B100: Resealstring/dygn | C100: Resealstring (samtliga hushåll) | D100: Gång/cykel | E100: Parkeringsavgift arbetsplats_Resealstring (samtliga hushåll) _Gång/cykel | F100: 0
A101: Parkeringsavgift arbetsplats | B101: Resealstring/dygn | C101: Total reslängd (km/dygn) | D101: Bil | E101: Parkeringsavgift arbetsplats_Total reslängd (km/dygn)_Bil | F101: ='Parkeringsavgift Beräkningar'!D79 -> -336
A102: Parkeringsavgift arbetsplats | B102: Resealstring/dygn | C102: Total reslängd (km/dygn) | D102: Buss | E102: Parkeringsavgift arbetsplats_Total reslängd (km/dygn)_Buss | F102: =F101*-1 -> 336
A103: Parkeringsavgift arbetsplats | B103: Resealstring/dygn | C103: Total reslängd (km/dygn) | D103: Tåg | E103: Parkeringsavgift arbetsplats_Total reslängd (km/dygn)_Tåg | F103: 0
A104: Parkeringsavgift arbetsplats | B104: Resealstring/dygn | C104: Total reslängd (km/dygn) | D104: T-bana/Spårvagn | E104: Parkeringsavgift arbetsplats_Total reslängd (km/dygn)_T-bana/Spårvagn | F104: 0
A105: Parkeringsavgift arbetsplats | B105: Resealstring/dygn | C105: Total reslängd (km/dygn) | D105: Gång/cykel | E105: Parkeringsavgift arbetsplats_Total reslängd (km/dygn)_Gång/cykel | F105: 0
A106: Parkeringsavgift arbetsplats | B106: Påverkan på Utsläpp (kg/km) | C106: CO2 | D106: Bil | E106: Parkeringsavgift arbetsplats_CO2_Bil | F106: =F101*Åtgärd!$E$61 -> -49.28
A107: Parkeringsavgift arbetsplats | B107: Påverkan på Utsläpp (kg/km) | C107: CO2 | D107: Buss | E107: Parkeringsavgift arbetsplats_CO2_Buss | F107: =F102*IF(F94=0,Åtgärd!$E$66,Åtgärd!$E$65) -> 10.92
A108: Parkeringsavgift arbetsplats | B108: Påverkan på Utsläpp (kg/km) | C108: CO2 | D108: Tåg | E108: Parkeringsavgift arbetsplats_CO2_Tåg | F108: =F103*Åtgärd!$E$67 -> 0
A109: Parkeringsavgift arbetsplats | B109: Påverkan på Utsläpp (kg/km) | C109: CO2 | D109: T-bana/Spårvagn | E109: Parkeringsavgift arbetsplats_CO2_T-bana/Spårvagn | F109: =F104*Åtgärd!$E$68 -> 0
A110: Parkeringsavgift arbetsplats | B110: Påverkan på Utsläpp (kg/km) | C110: CO2 | D110: Gång/cykel | E110: Parkeringsavgift arbetsplats_CO2_Gång/cykel | F110: =F105*Åtgärd!$E$69 -> 0
A111: Parkeringsavgift arbetsplats | B111: Påverkan på Utsläpp (kg/km) | C111: CO | D111: Bil | E111: Parkeringsavgift arbetsplats_CO_Bil | F111: =F101*Åtgärd!$F$61 -> -0.16352
A112: Parkeringsavgift arbetsplats | B112: Påverkan på Utsläpp (kg/km) | C112: CO | D112: Buss | E112: Parkeringsavgift arbetsplats_CO_Buss | F112: =F102*IF(F94=0,Åtgärd!$F$66,Åtgärd!$F$65) -> 0.03612
A113: Parkeringsavgift arbetsplats | B113: Påverkan på Utsläpp (kg/km) | C113: CO | D113: Tåg | E113: Parkeringsavgift arbetsplats_CO_Tåg | F113: =F103*Åtgärd!$F$67 -> 0
A114: Parkeringsavgift arbetsplats | B114: Påverkan på Utsläpp (kg/km) | C114: CO | D114: T-bana/Spårvagn | E114: Parkeringsavgift arbetsplats_CO_T-bana/Spårvagn | F114: =F104*Åtgärd!$F$68 -> 0
A115: Parkeringsavgift arbetsplats | B115: Påverkan på Utsläpp (kg/km) | C115: CO | D115: Gång/cykel | E115: Parkeringsavgift arbetsplats_CO_Gång/cykel | F115: =F105*Åtgärd!$F$69 -> 0
A116: Parkeringsavgift arbetsplats | B116: Påverkan på Utsläpp (kg/km) | C116: HC | D116: Bil | E116: Parkeringsavgift arbetsplats_HC_Bil | F116: =F101*Åtgärd!$G$61 -> -0.02688
A117: Parkeringsavgift arbetsplats | B117: Påverkan på Utsläpp (kg/km) | C117: HC | D117: Buss | E117: Parkeringsavgift arbetsplats_HC_Buss | F117: =F102*IF(F94=0,Åtgärd!$G$66,Åtgärd!$G$65) -> 0.00364
A118: Parkeringsavgift arbetsplats | B118: Påverkan på Utsläpp (kg/km) | C118: HC | D118: Tåg | E118: Parkeringsavgift arbetsplats_HC_Tåg | F118: =F103*Åtgärd!$G$67 -> 0
A119: Parkeringsavgift arbetsplats | B119: Påverkan på Utsläpp (kg/km) | C119: HC | D119: T-bana/Spårvagn | E119: Parkeringsavgift arbetsplats_HC_T-bana/Spårvagn | F119: =F104*Åtgärd!$G$68 -> 0
A120: Parkeringsavgift arbetsplats | B120: Påverkan på Utsläpp (kg/km) | C120: HC | D120: Gång/cykel | E120: Parkeringsavgift arbetsplats_HC_Gång/cykel | F120: =F105*Åtgärd!$G$69 -> 0
A121: Parkeringsavgift arbetsplats | B121: Påverkan på Utsläpp (kg/km) | C121: Nox | D121: Bil | E121: Parkeringsavgift arbetsplats_Nox_Bil | F121: =F101*Åtgärd!$H$61 -> -0.07616
A122: Parkeringsavgift arbetsplats | B122: Påverkan på Utsläpp (kg/km) | C122: Nox | D122: Buss | E122: Parkeringsavgift arbetsplats_Nox_Buss | F122: =F102*IF(F94=0,Åtgärd!$H$66,Åtgärd!$H$65) -> 0.11032
A123: Parkeringsavgift arbetsplats | B123: Påverkan på Utsläpp (kg/km) | C123: Nox | D123: Tåg | E123: Parkeringsavgift arbetsplats_Nox_Tåg | F123: =F103*Åtgärd!$H$67 -> 0
A124: Parkeringsavgift arbetsplats | B124: Påverkan på Utsläpp (kg/km) | C124: Nox | D124: T-bana/Spårvagn | E124: Parkeringsavgift arbetsplats_Nox_T-bana/Spårvagn | F124: =F104*Åtgärd!$H$68 -> 0
A125: Parkeringsavgift arbetsplats | B125: Påverkan på Utsläpp (kg/km) | C125: Nox | D125: Gång/cykel | E125: Parkeringsavgift arbetsplats_Nox_Gång/cykel | F125: =F105*Åtgärd!$H$69 -> 0
A126: Parkeringsavgift arbetsplats | B126: Påverkan på Utsläpp (kg/km) | C126: Pmavgas | D126: Bil | E126: Parkeringsavgift arbetsplats_Pmavgas_Bil | F126: =F101*Åtgärd!$I$61 -> -0.0006944
A127: Parkeringsavgift arbetsplats | B127: Påverkan på Utsläpp (kg/km) | C127: Pmavgas | D127: Buss | E127: Parkeringsavgift arbetsplats_Pmavgas_Buss | F127: =F102*IF(F94=0,Åtgärd!$I$66,Åtgärd!$I$65) -> 0.0011004
A128: Parkeringsavgift arbetsplats | B128: Påverkan på Utsläpp (kg/km) | C128: Pmavgas | D128: Tåg | E128: Parkeringsavgift arbetsplats_Pmavgas_Tåg | F128: =F103*Åtgärd!$I$67 -> 0
A129: Parkeringsavgift arbetsplats | B129: Påverkan på Utsläpp (kg/km) | C129: Pmavgas | D129: T-bana/Spårvagn | E129: Parkeringsavgift arbetsplats_Pmavgas_T-bana/Spårvagn | F129: =F104*Åtgärd!$I$68 -> 0
A130: Parkeringsavgift arbetsplats | B130: Påverkan på Utsläpp (kg/km) | C130: Pmavgas | D130: Gång/cykel | E130: Parkeringsavgift arbetsplats_Pmavgas_Gång/cykel | F130: =F105*Åtgärd!$I$69 -> 0
A131: Parkeringsavgift arbetsplats | B131: Påverkan på Utsläpp (kg/km) | C131: SO2 | D131: Bil | E131: Parkeringsavgift arbetsplats_SO2_Bil | F131: =F101*Åtgärd!$J$61 -> -0.0001568
A132: Parkeringsavgift arbetsplats | B132: Påverkan på Utsläpp (kg/km) | C132: SO2 | D132: Buss | E132: Parkeringsavgift arbetsplats_SO2_Buss | F132: =F102*IF(F94=0,Åtgärd!$J$66,Åtgärd!$J$65) -> 2.8e-05
A133: Parkeringsavgift arbetsplats | B133: Påverkan på Utsläpp (kg/km) | C133: SO2 | D133: Tåg | E133: Parkeringsavgift arbetsplats_SO2_Tåg | F133: =F103*Åtgärd!$J$67 -> 0
A134: Parkeringsavgift arbetsplats | B134: Påverkan på Utsläpp (kg/km) | C134: SO2 | D134: T-bana/Spårvagn | E134: Parkeringsavgift arbetsplats_SO2_T-bana/Spårvagn | F134: =F104*Åtgärd!$J$68 -> 0
A135: Parkeringsavgift arbetsplats | B135: Påverkan på Utsläpp (kg/km) | C135: SO2 | D135: Gång/cykel | E135: Parkeringsavgift arbetsplats_SO2_Gång/cykel | F135: =F105*Åtgärd!$J$69 -> 0
A136: Cykelprogram | C136: Kommun | E136: =A136&"_"&C136&"_"&D136 -> Cykelprogram_Kommun_ | F136: =Åtgärd!C182 -> Malmö
A137: Cykelprogram | C137: Tätort (0) eller landsbygd (1) | E137: =A137&"_"&C137&"_"&D137 -> Cykelprogram_Tätort (0) eller landsbygd (1)_ | F137: =VLOOKUP(F136,Data!D:E,2,FALSE) -> 0
A138: Cykelprogram | C138: Investeringskostnad (Mkr) | E138: =A138&"_"&C138&"_"&D138 -> Cykelprogram_Investeringskostnad (Mkr)_ | F138: =Åtgärd!C208 -> 0
A139: Cykelprogram | B139: Resealstring/dygn | C139: Resealstring (samtliga hushåll) | D139: Bil | E139: =A139&"_"&C139&"_"&D139 -> Cykelprogram_Resealstring (samtliga hushåll) _Bil | F139: =('Cykelprogram Beräkningar'!C83-'Cykelprogram Beräkningar'!C84)*'Cykelprogram Beräkningar'!C85 -> -40
A140: Cykelprogram | B140: Resealstring/dygn | C140: Resealstring (samtliga hushåll) | D140: Buss | E140: =A140&"_"&C140&"_"&D140 -> Cykelprogram_Resealstring (samtliga hushåll) _Buss | F140: =-'Parkeringsavgift Beräkningar'!C124 -> 0
A141: Cykelprogram | B141: Resealstring/dygn | C141: Resealstring (samtliga hushåll) | D141: Tåg | E141: Cykelprogram_Resealstring (samtliga hushåll) _Tåg | F141: 0
A142: Cykelprogram | B142: Resealstring/dygn | C142: Resealstring (samtliga hushåll) | D142: T-bana/Spårvagn | E142: Cykelprogram_Resealstring (samtliga hushåll) _T-bana/Spårvagn | F142: 0
A143: Cykelprogram | B143: Resealstring/dygn | C143: Resealstring (samtliga hushåll) | D143: Gång/cykel | E143: Cykelprogram_Resealstring (samtliga hushåll) _Gång/cykel | F143: =-F139 -> 40
A144: Cykelprogram | B144: Resealstring/dygn | C144: Total reslängd (km/dygn) | D144: Bil | E144: Cykelprogram_Total reslängd (km/dygn)_Bil | F144: =F139*'Cykelprogram Beräkningar'!C87 -> -240
A145: Cykelprogram | B145: Resealstring/dygn | C145: Total reslängd (km/dygn) | D145: Buss | E145: Cykelprogram_Total reslängd (km/dygn)_Buss | F145: 0
A146: Cykelprogram | B146: Resealstring/dygn | C146: Total reslängd (km/dygn) | D146: Tåg | E146: Cykelprogram_Total reslängd (km/dygn)_Tåg | F146: 0
A147: Cykelprogram | B147: Resealstring/dygn | C147: Total reslängd (km/dygn) | D147: T-bana/Spårvagn | E147: Cykelprogram_Total reslängd (km/dygn)_T-bana/Spårvagn | F147: 0
A148: Cykelprogram | B148: Resealstring/dygn | C148: Total reslängd (km/dygn) | D148: Gång/cykel | E148: Cykelprogram_Total reslängd (km/dygn)_Gång/cykel | F148: =F143*'Cykelprogram Beräkningar'!C87 -> 240
A149: Cykelprogram | B149: Påverkan på Utsläpp (kg/km) | C149: CO2 | D149: Bil | E149: Cykelprogram_CO2_Bil | F149: =F144*Åtgärd!$E$61 -> -35.2
A150: Cykelprogram | B150: Påverkan på Utsläpp (kg/km) | C150: CO2 | D150: Buss | E150: Cykelprogram_CO2_Buss | F150: =F145*IF(F137=0,Åtgärd!$E$66,Åtgärd!$E$65) -> 0
A151: Cykelprogram | B151: Påverkan på Utsläpp (kg/km) | C151: CO2 | D151: Tåg | E151: Cykelprogram_CO2_Tåg | F151: =F146*Åtgärd!$E$67 -> 0
A152: Cykelprogram | B152: Påverkan på Utsläpp (kg/km) | C152: CO2 | D152: T-bana/Spårvagn | E152: Cykelprogram_CO2_T-bana/Spårvagn | F152: =F147*Åtgärd!$E$68 -> 0
A153: Cykelprogram | B153: Påverkan på Utsläpp (kg/km) | C153: CO2 | D153: Gång/cykel | E153: Cykelprogram_CO2_Gång/cykel | F153: =F148*Åtgärd!$E$69 -> 0
A154: Cykelprogram | B154: Påverkan på Utsläpp (kg/km) | C154: CO | D154: Bil | E154: Cykelprogram_CO_Bil | F154: =F144*Åtgärd!$F$61 -> -0.1168
A155: Cykelprogram | B155: Påverkan på Utsläpp (kg/km) | C155: CO | D155: Buss | E155: Cykelprogram_CO_Buss | F155: =F145*IF(F137=0,Åtgärd!$F$66,Åtgärd!$F$65) -> 0
A156: Cykelprogram | B156: Påverkan på Utsläpp (kg/km) | C156: CO | D156: Tåg | E156: Cykelprogram_CO_Tåg | F156: =F146*Åtgärd!$F$67 -> 0
A157: Cykelprogram | B157: Påverkan på Utsläpp (kg/km) | C157: CO | D157: T-bana/Spårvagn | E157: Cykelprogram_CO_T-bana/Spårvagn | F157: =F147*Åtgärd!$F$68 -> 0
A158: Cykelprogram | B158: Påverkan på Utsläpp (kg/km) | C158: CO | D158: Gång/cykel | E158: Cykelprogram_CO_Gång/cykel | F158: =F148*Åtgärd!$F$69 -> 0
A159: Cykelprogram | B159: Påverkan på Utsläpp (kg/km) | C159: HC | D159: Bil | E159: Cykelprogram_HC_Bil | F159: =F144*Åtgärd!$G$61 -> -0.0192
A160: Cykelprogram | B160: Påverkan på Utsläpp (kg/km) | C160: HC | D160: Buss | E160: Cykelprogram_HC_Buss | F160: =F145*IF(F137=0,Åtgärd!$G$66,Åtgärd!$G$65) -> 0
A161: Cykelprogram | B161: Påverkan på Utsläpp (kg/km) | C161: HC | D161: Tåg | E161: Cykelprogram_HC_Tåg | F161: =F146*Åtgärd!$G$67 -> 0
A162: Cykelprogram | B162: Påverkan på Utsläpp (kg/km) | C162: HC | D162: T-bana/Spårvagn | E162: Cykelprogram_HC_T-bana/Spårvagn | F162: =F147*Åtgärd!$G$68 -> 0
A163: Cykelprogram | B163: Påverkan på Utsläpp (kg/km) | C163: HC | D163: Gång/cykel | E163: Cykelprogram_HC_Gång/cykel | F163: =F148*Åtgärd!$G$69 -> 0
A164: Cykelprogram | B164: Påverkan på Utsläpp (kg/km) | C164: Nox | D164: Bil | E164: Cykelprogram_Nox_Bil | F164: =F144*Åtgärd!$H$61 -> -0.0544
A165: Cykelprogram | B165: Påverkan på Utsläpp (kg/km) | C165: Nox | D165: Buss | E165: Cykelprogram_Nox_Buss | F165: =F145*IF(F137=0,Åtgärd!$H$66,Åtgärd!$H$65) -> 0
A166: Cykelprogram | B166: Påverkan på Utsläpp (kg/km) | C166: Nox | D166: Tåg | E166: Cykelprogram_Nox_Tåg | F166: =F146*Åtgärd!$H$67 -> 0
A167: Cykelprogram | B167: Påverkan på Utsläpp (kg/km) | C167: Nox | D167: T-bana/Spårvagn | E167: Cykelprogram_Nox_T-bana/Spårvagn | F167: =F147*Åtgärd!$H$68 -> 0
A168: Cykelprogram | B168: Påverkan på Utsläpp (kg/km) | C168: Nox | D168: Gång/cykel | E168: Cykelprogram_Nox_Gång/cykel | F168: =F148*Åtgärd!$H$69 -> 0
A169: Cykelprogram | B169: Påverkan på Utsläpp (kg/km) | C169: Pmavgas | D169: Bil | E169: Cykelprogram_Pmavgas_Bil | F169: =F144*Åtgärd!$I$61 -> -0.000496
A170: Cykelprogram | B170: Påverkan på Utsläpp (kg/km) | C170: Pmavgas | D170: Buss | E170: Cykelprogram_Pmavgas_Buss | F170: =F145*IF(F137=0,Åtgärd!$I$66,Åtgärd!$I$65) -> 0
A171: Cykelprogram | B171: Påverkan på Utsläpp (kg/km) | C171: Pmavgas | D171: Tåg | E171: Cykelprogram_Pmavgas_Tåg | F171: =F146*Åtgärd!$I$67 -> 0
A172: Cykelprogram | B172: Påverkan på Utsläpp (kg/km) | C172: Pmavgas | D172: T-bana/Spårvagn | E172: Cykelprogram_Pmavgas_T-bana/Spårvagn | F172: =F147*Åtgärd!$I$68 -> 0
A173: Cykelprogram | B173: Påverkan på Utsläpp (kg/km) | C173: Pmavgas | D173: Gång/cykel | E173: Cykelprogram_Pmavgas_Gång/cykel | F173: =F148*Åtgärd!$I$69 -> 0
A174: Cykelprogram | B174: Påverkan på Utsläpp (kg/km) | C174: SO2 | D174: Bil | E174: Cykelprogram_SO2_Bil | F174: =F144*Åtgärd!$J$61 -> -0.000112
A175: Cykelprogram | B175: Påverkan på Utsläpp (kg/km) | C175: SO2 | D175: Buss | E175: Cykelprogram_SO2_Buss | F175: =F145*IF(F137=0,Åtgärd!$J$66,Åtgärd!$J$65) -> 0
A176: Cykelprogram | B176: Påverkan på Utsläpp (kg/km) | C176: SO2 | D176: Tåg | E176: Cykelprogram_SO2_Tåg | F176: =F146*Åtgärd!$J$67 -> 0
A177: Cykelprogram | B177: Påverkan på Utsläpp (kg/km) | C177: SO2 | D177: T-bana/Spårvagn | E177: Cykelprogram_SO2_T-bana/Spårvagn | F177: =F147*Åtgärd!$J$68 -> 0
A178: Cykelprogram | B178: Påverkan på Utsläpp (kg/km) | C178: SO2 | D178: Gång/cykel | E178: Cykelprogram_SO2_Gång/cykel | F178: =F148*Åtgärd!$J$69 -> 0

Sheet Default parameterar
B2: Det här arket är bara för att lagra listor och sökningar efter funktionalitet. Det är inte att interagera med.
C5: Värdering utsläpp kr/kg | D5: ASEK Kapital 11, 2018
C7: CO2 kr/kg landsbygd | D7: 7 | E7: Ändrat! | G7: CO2 kr/kg tätort | H7: 7 | I7: Ändrat!
C8: Pslitage Kr/kg landsbygd | D8: 0 | E8: Ändrat! | G8: Pslitage Kr/kg tätort | H8: 1400 | I8: Ändrat!
C9: HC Kr/kg landsbygd | D9: 0 | E9: Ändrat! | G9: HC Kr/kg tätort | H9: 0 | I9: Ändrat!
C10: Nox Kr/kg landsbygd | D10: 1 | E10: Ändrat! | G10: Nox Kr/kg tätort | H10: 0 | I10: Ändrat!
C11: Pmavgas Kr/kg landsbygd | D11: 0 | E11: Ändrat! | G11: Pmavgas Kr/kg tätort | H11: 6900 | I11: Ändrat!
C12: SO2 Kr/kg landsbygd | D12: 0 | E12: Ändrat! | G12: SO2 Kr/kg tätort | H12: 0 | I12: Ändrat!
C17: Trafiksäkerhet systemeffekter | D17: TS-EVA 3,0 | I17: Värdering Olyckor (kr) | J17: ASEK Kapital 9, 2018
C19: Systemeffekt per år, D | D19: 0.98 | E19: Ändrat! | I19: Riskvärdering Dödade | J19: 44020000 | K19: Ändrat! | N19: Materiall Dödade | O19: 6230000 | P19: Ändrat!
C20: Systemeffekt per år, SS | D20: 0.99 | E20: Ändrat! | I20: Riskvärdering Mycket allvarligt skadade (MAS) | J20: 13260000 | K20: Ändrat! | N20: Materiall Mycket allvarligt skadade (MAS) | O20: 4530000 | P20: Ändrat!
C21: Systemeffekt per år, LS | D21: 1 | E21: Ändrat! | I21: Riskvärdering Allvarigt skadade, ex MAS | J21: 11520000 | K21: Ändrat! | N21: Materiall Allvarigt skadade, ex MAS | O21: 360000 | P21: Ändrat!
C22: Systemeffekt per år, MAS | D22: 1 | E22: Ändrat! | I22: Riskvärdering Ej allvarligt skadade | J22: 4560000 | K22: Ändrat! | N22: Materiall Ej allvarligt skadade | O22: 4000 | P22: Ändrat!
C23: Systemeffekt per år, AS | D23: 1 | E23: Ändrat! | I23: Riskvärdering Egendomsolyckor | J23: 0 | K23: Ändrat! | N23: Materiall Egendomsolyckor | O23: 15000 | P23: Ändrat!
C24: Systemeffekt per år, EG | D24: 1.002 | E24: Ändrat! | I24: Riskvärdering Allvarligt skadade (AS) | J24: 12930000 | K24: Ändrat! | N24: Materiall Allvarligt skadade (AS) | O24: 970000 | P24: Ändrat!
C28: Medelbeläggning (antal personer) | D28: RVU, 201? | I28: Färdmedelsfördelning under arbetsresa | J28: RVU, 201?
C30: Antal resnärer per personbil | D30: 1.5 | E30: Ändrat! | I30: Bil | J30: 0.5103301862 | K30: Ändrat!
C31: Antal resnärer per buss | D31: 12 | E31: Ändrat! | I31: Buss | J31: 0.2210360321 | K31: Ändrat!
C32: Antal resnärer per tåg | D32: 1 | E32: Ändrat! | I32: Tåg | J32: 0 | K32: Ändrat!
C33: Antal resnärer per tunnelbana/spårväg | D33: 1 | E33: Ändrat! | I33: T-bana/Spårvagn | J33: 0 | K33: Ändrat!
C34: Antal resnärer per cykel/gång | D34: 1 | E34: Ändrat! | I34: Gång/cykel | J34: 0.2343037496 | K34: Ändrat!
E35: Ändrat! | K35: Ändrat!
C38: Emissioner per fordonskilometer (kg/km) | D38: Handbok för vägtrafikens luftföroreningar, Viktat medel 2017
D40: CO2 | E40: CO | F40: HC | G40: Nox | H40: Pmavgas | I40: SO2
C41: Personbil | D41: 0.18 | E41: 0.00073 | F41: 0.00012 | G41: 0.00034 | H41: 3.1e-06 | I41: 7e-07 | J41: Ändrat! | Q41: =SUM(D41:I41) -> 0.1811938
C42: Lätt lastbil | D42: 0.19 | E42: 0.09 | F42: 4e-05 | G42: 0.00066 | H42: 1.67e-05 | I42: 3e-07 | J42: Ändrat! | Q42: =SUM(D42:I42) -> 0.280717
C43: Lastbil utan släp | D43: 0.6 | E43: 0.00082 | F43: 7e-05 | G43: 0.00222 | H43: 3.57e-05 | I43: 8e-07 | J43: Ändrat! | Q43: 0.6031465
C44: Lastbil med släp | D44: 0.87 | E44: 0.00098 | F44: 5e-05 | G44: 0.00201 | H44: 3.59e-05 | I44: 1.1e-06 | J44: Ändrat! | Q44: 0.873077
C45: Landsvägsbuss | D45: 0.27 | E45: 0.0009 | F45: 5e-05 | G45: 0.00222 | H45: 3.11e-05 | I45: 9e-07 | J45: Ändrat! | Q45: 0.273202
C46: Stadsbuss | D46: 0.39 | E46: 0.00129 | F46: 0.00013 | G46: 0.00394 | H46: 3.93e-05 | I46: 1e-06 | J46: Ändrat! | Q46: 0.3954003
C47: Tåg | D47: 0 | E47: 0 | F47: 0 | G47: 0 | H47: 0 | I47: 0 | J47: Ändrat! | Q47: 0
C48: T-bana/Spårvagn | D48: 0 | E48: 0 | F48: 0 | G48: 0 | H48: 0 | I48: 0 | J48: Ändrat! | Q48: 0
C49: Cykel/gång | J49: Ändrat! | Q49: 0
D50: =SUM(D41:D49) -> 2.5 | E50: 0.09472 | F50: 0.00046 | G50: 0.01139 | H50: 0.0001618 | I50: 4.8e-06

Sheet Data
B2: Det här arket är bara för att lagra listor och sökningar efter funktionalitet. Det är inte att interagera med.
B5: Åtgärder | D5: Kommun | E5: Tärtort=0, landsbygd=1 | F5: PB 2017-2040 | G5: PB 2017-2065 | I5: Lokalisering alternativ | K5: Handelse lokaliseringsalternativ | M5: År | O5: Faktor för hur höjningen av parkeringsavgiften
B6: Lokalisering Bostäder | D6: Ingen specifik kommun | E6: 0 | F6: =AVERAGE(F7:F296) -> 1.245517241 | G6: =AVERAGE(G7:G296) -> 1.41662069 | I6: Centralt | K6: Stadscentra | M6: 2010 | O6: 0.3
B7: Lokalisering Handel | D7: Ale | E7: 0 | F7: 1.28 | G7: 1.45 | I7: Perifert | K7: Områdescentra | M7: =M6+1 -> 2011 | O7: 1
B8: Parkeringsavgift arbetsplats | D8: Alingsås | E8: 1 | F8: 1.28 | G8: 1.45 | K8: Förort | M8: =M7+1 -> 2012 | O8: 1.5
B9: Cykelprogram | D9: Alvesta | E9: 1 | F9: 1.32 | G9: 1.61 | K9: Externetablering | M9: 2013
D10: Aneby | E10: 1 | F10: 1.29 | G10: 1.55 | M10: 2014
D11: Arboga | E11: 1 | F11: 1.28 | G11: 1.51 | M11: 2015
D12: Arjeplog | E12: 1 | F12: 0.94 | G12: 0.89 | M12: 2016
D13: Arvidsjaur | E13: 1 | F13: 0.94 | G13: 0.89 | M13: 2017
D14: Arvika | E14: 1 | F14: 1.2 | G14: 1.34 | M14: 2018
D15: Askersund | E15: 1 | F15: 1.25 | G15: 1.49 | M15: 2019
D16: Avesta | E16: 1 | F16: 1.16 | G16: 1.3 | M16: 2020
D17: Bengtsfors | E17: 1 | F17: 1.2 | G17: 1.34 | M17: 2021
D18: Berg | E18: 1 | F18: 1.14 | G18: 1.2 | M18: 2022
D19: Bjurholm | E19: 1 | F19: 1.13 | G19: 1.19 | M19: 2023
D20: Bjuv | E20: 0 | F20: 1.37 | G20: 1.65 | M20: 2024
D21: Boden | E21: 1 | F21: 1.09 | G21: 1.13 | M21: 2025
D22: Bollebygd | E22: 0 | F22: 1.28 | G22: 1.45 | M22: 2026
D23: Bollnäs | E23: 1 | F23: 1.15 | G23: 1.29 | M23: 2027
D24: Borgholm | E24: 1 | F24: 1.2 | G24: 1.38 | M24: 2028
D25: Borlänge | E25: 0 | F25: 1.16 | G25: 1.3 | M25: 2029
D26: Borås | E26: 0 | F26: 1.28 | G26: 1.45 | M26: 2030
D27: Botkyrka | E27: 0 | F27: 1.43 | G27: 1.59 | M27: 2031
D28: Boxholm | E28: 1 | F28: 1.25 | G28: 1.46 | M28: 2032
D29: Bromölla | E29: 1 | F29: 1.37 | G29: 1.65 | M29: 2033
D30: Bräcke | E30: 1 | F30: 1.14 | G30: 1.2 | M30: 2034
D31: Burlöv | E31: 0 | F31: 1.37 | G31: 1.65 | M31: 2035
D32: Båstad | E32: 1 | F32: 1.37 | G32: 1.65 | M32: 2036
D33: Dals-Ed | E33: 1 | F33: 1.2 | G33: 1.34 | M33: 2037
D34: Danderyd | E34: 0 | F34: 1.43 | G34: 1.59 | M34: 2038
D35: Degerfors | E35: 1 | F35: 1.25 | G35: 1.49 | M35: 2039
D36: Dorotea | E36: 1 | F36: 1.86 | G36: 0.79 | M36: 2040
D37: Eda | E37: 1 | F37: 1.2 | G37: 1.34 | M37: 2041
D38: Ekerö | E38: 0 | F38: 1.43 | G38: 1.59 | M38: 2042
D39: Eksjö | E39: 1 | F39: 1.29 | G39: 1.55 | M39: 2043
D40: Emmaboda | E40: 1 | F40: 1.2 | G40: 1.38 | M40: 2044
D41: Enköping | E41: 1 | F41: 1.29 | G41: 1.52 | M41: 2045
D42: Eskilstuna | E42: 0 | F42: 1.33 | G42: 1.62 | M42: 2046
D43: Eslöv | E43: 1 | F43: 1.37 | G43: 1.65 | M43: 2047
D44: Essunga | E44: 1 | F44: 1.22 | G44: 1.39 | M44: 2048
D45: Fagersta | E45: 1 | F45: 1.28 | G45: 1.51 | M45: =M44+1 -> 2049
D46: Falkenberg | E46: 1 | F46: 1.3 | G46: 1.59 | M46: 2050
D47: Falköping | E47: 1 | F47: 1.22 | G47: 1.39 | M47: 2051
D48: Falun | E48: 0 | F48: 1.16 | G48: 1.3 | M48: 2052
D49: Filipstad | E49: 1 | F49: 1.2 | G49: 1.34 | M49: 2053
D50: Finspång | E50: 1 | F50: 1.25 | G50: 1.46 | M50: 2054
D51: Flen | E51: 1 | F51: 1.33 | G51: 1.62 | M51: 2055
D52: Forshaga | E52: 0 | F52: 1.2 | G52: 1.34 | M52: 2056
D53: Färgelanda | E53: 1 | F53: 1.2 | G53: 1.34 | M53: 2057
D54: Gagnef | E54: 1 | F54: 1.16 | G54: 1.3 | M54: 2058
D55: Gislaved | E55: 1 | F55: 1.29 | G55: 1.55 | M55: 2059
D56: Gnesta | E56: 0 | F56: 1.33 | G56: 1.62 | M56: 2060
D57: Gnosjö | E57: 1 | F57: 1.29 | G57: 1.55 | M57: 2061
D58: Gotland | E58: 1 | F58: 1.05 | G58: 1.12 | M58: 2062
D59: Grums | E59: 1 | F59: 1.2 | G59: 1.34 | M59: 2063
D60: Grästorp | E60: 0 | F60: 1.22 | G60: 1.34 | M60: 2064
D61: Gullspång | E61: 1 | F61: 1.22 | G61: 1.39 | M61: =M60+1 -> 2065
D62: Gällivare | E62: 1 | F62: 0.94 | G62: 0.89 | M62: 2066
D63: Gävle | E63: 0 | F63: 1.15 | G63: 1.29 | M63: 2067
D64: Göteborg | E64: 0 | F64: 1.28 | G64: 1.45 | M64: =M63+1 -> 2068
D65: Götene | E65: 1 | F65: 1.22 | G65: 1.39 | M65: 2069
D66: Habo | E66: 0 | F66: 1.29 | G66: 1.55 | M66: 2070
D67: Hagfors | E67: 1 | F67: 1.2 | G67: 1.34
D68: Hallsberg | E68: 1 | F68: 1.25 | G68: 1.49
D69: Hallstahammar | E69: 1 | F69: 1.28 | G69: 1.51
D70: Halmstad | E70: 0 | F70: 1.3 | G70: 1.59
D71: Hammarö | E71: 0 | F71: 1.16 | G71: 1.28
D72: Haninge | E72: 0 | F72: 1.43 | G72: 1.59
D73: Haparanda | E73: 1 | F73: 1.09 | G73: 1.13
D74: Heby | E74: 1 | F74: 1.29 | G74: 1.52
D75: Hedemora | E75: 1 | F75: 1.16 | G75: 1.3
D76: Helsingborg | E76: 0 | F76: 1.37 | G76: 1.65
D77: Herrljunga | E77: 1 | F77: 1.22 | G77: 1.39
D78: Hjo | E78: 1 | F78: 1.22 | G78: 1.39
D79: Hofors | E79: 1 | F79: 1.15 | G79: 1.29
D80: Huddinge | E80: 0 | F80: 1.43 | G80: 1.59
D81: Hudiksvall | E81: 1 | F81: 1.15 | G81: 1.29
D82: Hultsfred | E82: 1 | F82: 1.2 | G82: 1.38
D83: Hylte | E83: 1 | F83: 1.3 | G83: 1.59
D84: Håbo | E84: 0 | F84: 1.29 | G84: 1.52
D85: Hällefors | E85: 1 | F85: 1.25 | G85: 1.49
D86: Härjedalen | E86: 1 | F86: 1.14 | G86: 1.2
D87: Härnösand | E87: 1 | F87: 1.14 | G87: 1.23
D88: Härryda | E88: 0 | F88: 1.28 | G88: 1.45
D89: Hässleholm | E89: 1 | F89: 1.37 | G89: 1.65
D90: Höganäs | E90: 1 | F90: 1.37 | G90: 1.65
D91: Högsby | E91: 1 | F91: 1.2 | G91: 1.38
D92: Hörby | E92: 1 | F92: 1.37 | G92: 1.65
D93: Höör | E93: 0 | F93: 1.37 | G93: 1.65
D94: Jokkmokk | E94: 1 | F94: 0.94 | G94: 0.89
D95: Järfälla | E95: 0 | F95: 1.43 | G95: 1.59
D96: Jönköping | E96: 0 | F96: 1.29 | G96: 1.55
D97: Kalix | E97: 1 | F97: 1.09 | G97: 1.13
D98: Kalmar | E98: 0 | F98: 1.2 | G98: 1.38
D99: Karlsborg | E99: 1 | F99: 1.22 | G99: 1.39
D100: Karlshamn | E100: 1 | F100: 1.26 | G100: 1.47
D101: Karlskoga | E101: 1 | F101: 1.25 | G101: 1.49
D102: Karlskrona | E102: 0 | F102: 1.26 | G102: 1.47
D103: Karlstad | E103: 0 | F103: 1.16 | G103: 1.28
D104: Katrineholm | E104: 1 | F104: 1.33 | G104: 1.62
D105: Kil | E105: 0 | F105: 1.16 | G105: 1.28
D106: Kinda | E106: 1 | F106: 1.25 | G106: 1.46
D107: Kiruna | E107: 1 | F107: 0.94 | G107: 0.89
D108: Klippan | E108: 1 | F108: 1.37 | G108: 1.65
D109: Knivsta | E109: 0 | F109: 1.29 | G109: 1.52
D110: Kramfors | E110: 1 | F110: 1 | G110: 1.02
D111: Kristianstad | E111: 0 | F111: 1.37 | G111: 1.65
D112: Kristinehamn | E112: 1 | F112: 1.16 | G112: 1.28
D113: Krokom | E113: 1 | F113: 1.14 | G113: 1.2
D114: Kumla | E114: 0 | F114: 1.25 | G114: 1.49
D115: Kungsbacka | E115: 0 | F115: 1.28 | G115: 1.45
D116: Kungsör | E116: 1 | F116: 1.28 | G116: 1.51
D117: Kungälv | E117: 0 | F117: 1.29 | G117: 1.45
D118: Kävlinge | E118: 0 | F118: 1.37 | G118: 1.65
D119: Köping | E119: 1 | F119: 1.28 | G119: 1.51
D120: Laholm | E120: 1 | F120: 1.3 | G120: 1.59
D121: Landskrona | E121: 0 | F121: 1.37 | G121: 1.65
D122: Laxå | E122: 1 | F122: 1.25 | G122: 1.49
D123: Lekeberg | E123: 0 | F123: 1.25 | G123: 1.49
D124: Leksand | E124: 1 | F124: 1.16 | G124: 1.3
D125: Lerum | E125: 0 | F125: 1.28 | G125: 1.45
D126: Lessebo | E126: 1 | F126: 1.32 | G126: 1.61
D127: Lidingö | E127: 0 | F127: 1.43 | G127: 1.59
D128: Lidköping | E128: 1 | F128: 1.22 | G128: 1.39
D129: Lilla Edet | E129: 1 | F129: 1.28 | G129: 1.45
D130: Lindesberg | E130: 1 | F130: 1.25 | G130: 1.49
D131: Linköping | E131: 0 | F131: 1.25 | G131: 1.46
D132: Ljungby | E132: 1 | F132: 1.32 | G132: 1.61
D133: Ljusdal | E133: 1 | F133: 1.15 | G133: 1.29
D134: Ljusnarsberg | E134: 1 | F134: 1.25 | G134: 1.49
D135: Lomma | E135: 0 | F135: 1.37 | G135: 1.65
D136: Ludvika | E136: 1 | F136: 1.16 | G136: 1.3
D137: Luleå | E137: 0 | F137: 1.09 | G137: 1.13
D138: Lund | E138: 0 | F138: 1.37 | G138: 1.65
D139: Lycksele | E139: 1 | F139: 1.13 | G139: 1.19
D140: Lysekil | E140: 1 | F140: 1.2 | G140: 1.34
D141: Malmö | E141: 0 | F141: 1.37 | G141: 1.65
D142: Malung-Sälen | E142: 1 | F142: 1.16 | G142: 1.3
D143: Malå | E143: 1 | F143: 0.86 | G143: 0.79
D144: Mariestad | E144: 1 | F144: 1.22 | G144: 1.39
D145: Mark | E145: 1 | F145: 1.28 | G145: 1.45
D146: Markaryd | E146: 1 | F146: 1.32 | G146: 1.61
D147: Mellerud | E147: 1 | F147: 1.2 | G147: 1.34
D148: Mjölby | E148: 1 | F148: 1.25 | G148: 1.46
D149: Mora | E149: 1 | F149: 1.16 | G149: 1.3
D150: Motala | E150: 1 | F150: 1.26 | G150: 1.46
D151: Mullsjö | E151: 1 | F151: 1.29 | G151: 1.55
D152: Munkedal | E152: 1 | F152: 1.2 | G152: 1.34
D153: Munkfors | E153: 1 | F153: 1.2 | G153: 1.34
D154: Mölndal | E154: 0 | F154: 1.28 | G154: 1.45
D155: Mönsterås | E155: 1 | F155: 1.2 | G155: 1.38
D156: Mörbylånga | E156: 1 | F156: 1.2 | G156: 1.38
D157: Nacka | E157: 0 | F157: 1.43 | G157: 1.59
D158: Nora | E158: 1 | F158: 1.25 | G158: 1.49
D159: Norberg | E159: 1 | F159: 1.25 | G159: 1.49
D160: Nordanstig | E160: 1 | F160: 1.15 | G160: 1.29
D161: Nordmaling | E161: 1 | F161: 1.13 | G161: 1.19
D162: Norrköping | E162: 0 | F162: 1.25 | G162: 1.46
D163: Norrtälje | E163: 1 | F163: 1.43 | G163: 1.59
D164: Norsjö | E164: 1 | F164: 1.13 | G164: 1.19
D165: Nybro | E165: 1 | F165: 1.2 | G165: 1.38
D166: Nykvarn | E166: 0 | F166: 1.43 | G166: 1.59
D167: Nyköping | E167: 1 | F167: 1.33 | G167: 1.62
D168: Nynäshamn | E168: 1 | F168: 1.43 | G168: 1.59
D169: Nässjö | E169: 1 | F169: 1.29 | G169: 1.55
D170: Ockelbo | E170: 1 | F170: 1.15 | G170: 1.29
D171: Olofström | E171: 1 | F171: 1.26 | G171: 1.47
D172: Orsa | E172: 1 | F172: 1.16 | G172: 1.3
D173: Orust | E173: 1 | F173: 1.2 | G173: 1.34
D174: Osby | E174: 1 | F174: 1.37 | G174: 1.65
D175: Oskarshamn | E175: 1 | F175: 1.2 | G175: 1.38
D176: Ovanåker | E176: 1 | F176: 1.15 | G176: 1.29
D177: Oxelösund | E177: 0 | F177: 1.33 | G177: 1.62
D178: Pajala | E178: 1 | F178: 0.94 | G178: 0.89
D179: Partille | E179: 0 | F179: 1.28 | G179: 1.45
D180: Perstorp | E180: 1 | F180: 1.37 | G180: 1.65
D181: Piteå | E181: 1 | F181: 1.09 | G181: 1.13
D182: Ragunda | E182: 1 | F182: 1.14 | G182: 1.2
D183: Robertsfors | E183: 1 | F183: 1.13 | G183: 1.19
D184: Ronneby | E184: 1 | F184: 1.26 | G184: 1.47
D185: Rättvik | E185: 1 | F185: 1.16 | G185: 1.3
D186: Sala | E186: 1 | F186: 1.28 | G186: 1.51
D187: Salem | E187: 0 | F187: 1.43 | G187: 1.59
D188: Sandviken | E188: 1 | F188: 1.15 | G188: 1.29
D189: Sigtuna | E189: 0 | F189: 1.43 | G189: 1.59
D190: Simrishamn | E190: 1 | F190: 1.37 | G190: 1.65
D191: Sjöbo | E191: 1 | F191: 1.37 | G191: 1.65
D192: Skara | E192: 1 | F192: 1.22 | G192: 1.39
D193: Skellefteå | E193: 0 | F193: 1.13 | G193: 1.19
D194: Skinnskatteberg | E194: 1 | F194: 1.28 | G194: 1.51
D195: Skurup | E195: 0 | F195: 1.37 | G195: 1.65
D196: Skövde | E196: 0 | F196: 1.22 | G196: 1.39
D197: Smedjebacken | E197: 1 | F197: 1.16 | G197: 1.3
D198: Sollefteå | E198: 1 | F198: 0.86 | G198: 0.79
D199: Sollentuna | E199: 0 | F199: 1.43 | G199: 1.59
D200: Solna | E200: 0 | F200: 1.43 | G200: 1.59
D201: Sorsele | E201: 1 | F201: 0.86 | G201: 0.79
D202: Sotenäs | E202: 1 | F202: 1.2 | G202: 1.34
D203: Staffanstorp | E203: 0 | F203: 1.37 | G203: 1.65
... 93 more rows

Sheet TS-EVA Länkberäkningar
A2: MATRIS - LÄNK
A3: Avser nivå år 2010 | M3: Korrigering | N3: Faktor
M4: Generell korrigering | N4: ='0. Beräkna - Länk'!C20 -> 1
A5: Ändra ej celler i denna flik | M5: MF-Fotgängare | N5: ='0. Beräkna - Länk'!C21 -> 1
A6: Filtrera fram den vägmiljö som du är intresserad av och avläs resultat i kolumnerna till höger | M6: MF-Cyklist/Mopedist | N6: ='0. Beräkna - Länk'!C22 -> 1 | Q6: Resultat för olyckor med MF delaktigt exkl vilt | AF6: MF-MF inklusive MF singel exkl bortfall och vilt | BM6: MF-F exkl bortfall | CN6: MF-C/M exkl bortfall
A7: Indata som bland annat ÅDT och väglängd anges i fliken "Beräkna - Länk" | Q7: Antal per år, exkl bortfall | Y7: Antal per år, uppräknat för bortfall | AF7: Systemvärden | AL7: Antal per år | AT7: Antal per år uppräknat för bortfall | AZ7: AF | BA7: Kvot | BB7: Bortfallsfaktor | BE7: RPMI | BJ7: Medicinsk invaliditet | BM7: Systemvärden | BR7: Antal per år | BY7: Antal per år uppräknat | CD7: AF | CF7: Bortfallsfaktor | CH7: RPMI | CL7: Medicinsk invaliditet | CN7: Systemvärden | CS7: Antal per år | CZ7: Antal per år uppräknat | DE7: AF | DG7: Bortfallsfaktor | DI7: RPMI | DM7: Medicinsk invaliditet
A8: Index | B8: Väghållare | C8: Miljötyp | D8: Vägtyp | E8: Körfält | F8: HG | G8: Bredd | H8: Trafikfunktion | I8: Trafikmiljö | J8: ÅDT | K8: Letarad | L8: 1 | M8: Kommentar | N8: Längd (Km) | O8: ÅDT (ap) | P8: TA (Mapkm) | Q8: PO | R8: Skadade (DSSLS) | S8: D | T8: SS | U8: LS | V8: EG | W8: MAS | X8: AS | Y8: SS | Z8: LS | AA8: EG | AB8: MAS | AC8: AS | AD8: 1 | AE8: 1 | AF8: PO-kvot | AG8: SF | AH8: DF% | AI8: SSF% | AJ8: LSF% | AK8: EGp | AL8: PO | AM8: Skadade (DSSLS) | AN8: D | AO8: SS | AP8: LS | AQ8: EG | AR8: MAS | AS8: AS | AT8: SS | AU8: LS | AV8: EG | AW8: MAS | AX8: AS | AY8: EAS | AZ8: DSS/DSSLS | BA8: DSS/TA | BB8: BF givet SS | BC8: BF givet LS | BD8: BF givet EG | BE8: MAS|SS | BF8: AS|SS | BG8: MAS|LS | BH8: AS|LS | BI8: EAS|SS | BJ8: MASk | BK8: ASk | BL8: EASk | BM8: POk % | BN8: SF | BO8: DF% | BP8: SSF% | BQ8: LSF% | BR8: PO | BS8: Skadade (DSSLS) | BT8: D | BU8: SS | BV8: LS | BW8: MAS | BX8: AS | BY8: SS | BZ8: LS | CA8: MAS | CB8: AS | CC8: EAS | CD8: DSS/DSSLS | CE8: 1 | CF8: BF givet SS | CG8: BF givet LS | CH8: MAS|SS | CI8: AS|SS | CJ8: MAS|LS | CK8: AS|LS | CL8: MASk | CM8: ASk | CN8: POk % | CO8: SF | CP8: DF% | CQ8: SSF% | CR8: LSF% | CS8: PO | CT8: Skadade (DSSLS) | CU8: D | CV8: SS | CW8: LS | CX8: MAS | CY8: AS | CZ8: SS | DA8: LS | DB8: MAS | DC8: AS | DD8: EAS | DE8: DSS/DSSLS | DF8: 1 | DG8: BF givet SS | DH8: BF givet LS | DI8: MAS|SS | DJ8: AS|SS | DK8: MAS|LS | DL8: AS|LS | DM8: MASk | DN8: ASk
A9: 1 | B9: Kommunal | C9: Tätort | D9: VV | E9: 2 | F9: 40 | G9: - | H9: City | I9: C | J9: - | K9: =B9&" "&C9&" "&D9&" "&F9&" "&G9&" "&H9&" "&I9 -> Kommunal Tätort VV 40 - City C | M9: - | N9: ='0. Beräkna - Länk'!$C$26 -> 1 | O9: ='TS-EVA Länkberäkningar'!$L$142/('TS-EVA Länkberäkningar'!$L$145)^('TS-EVA Länkberäkningar'!$L$143-2010) -> 1534.246575 | P9: =N9*O9*365*0.000001 -> 0.56 | Q9: =AL9+BR9+CS9 -> 0.129654 | R9: =AM9+BS9+CT9 -> 0.15435 | S9: 0.001795752 | T9: 0.023694048 | U9: 0.1288602 | V9: =AQ9 -> 0.338688 | W9: =AR9+BW9+CX9 -> 0.004542365268 | X9: 0.02589377364 | Y9: =AO9*BB9+BU9*CF9+CV9*DG9 -> 0.035541072 | Z9: 0.1932903 | AA9: =AQ9*BD9 -> 2.370816 | AB9: =BE9*AO9*BB9+BG9*AP9*BC9+CH9*BU9*CF9+CJ9*BV9*CG9+DI9*CV9*DG9+DK9*CW9*DH9 -> 0.006813547902 | AC9: =BF9*AO9*BB9+BH9*AP9*BC9+CI9*BU9*CF9+CK9*BV9*CG9+DJ9*CV9*DG9+DL9*CW9*DH9 -> 0.03884066046 | AF9: 0.1575 | AG9: 1.28 | AH9: 0.7 | AI9: 12.3 | AJ9: 87 | AK9: 3 | AL9: =$N$4*P9*AF9 -> 0.0882 | AM9: =AG9*$AL9 -> 0.112896 | AN9: =AH9*$AM9/100 -> 0.000790272 | AO9: 0.013886208 | AP9: 0.09821952 | AQ9: =AK9*$AM9 -> 0.338688 | AR9: =BJ9*P9 -> 0.002753872128 | AS9: =BK9*P9 -> 0.01665667584 | AT9: =AO9*BB9 -> 0.020829312 | AU9: 0.14732928 | AV9: 2.370816 | AW9: =BE9*AT9+BG9*AU9 -> 0.004130808192 | AX9: =BF9*AT9+BH9*AU9 -> 0.02498501376 | AY9: =AT9*(1-BF9)+AU9*(1-BH9) -> 0.1431735782 | AZ9: =AH9/100+AI9/100 -> 0.13 | BA9: =(AH9/100+AI9/100)*AG9*AF9 -> 0.026208 | BB9: 1.5 | BC9: 1.5 | BD9: 7 | BE9: 0.071 | BF9: 0.28 | BG9: 0.018 | BH9: 0.13 | BJ9: =$AF9*$AG9*($AI9*BE9+$AJ9*BG9)/100 -> 0.0049176288 | BK9: 0.029744064 | BM9: 22 | BN9: 1 | BO9: 4.5 | BP9: 28.5 | BQ9: 67 | BR9: =$N$5*BM9/100*AL9 -> 0.019404 | BS9: =BN9*BR9 -> 0.019404 | BT9: =BO9/100*BS9 -> 0.00087318 | BU9: =BP9/100*BS9 -> 0.00553014 | BV9: =BQ9/100*BS9 -> 0.01300068 | BW9: =CL9*P9 -> 0.00099028314 | BX9: =CM9*P9 -> 0.0049227948 | BY9: =BU9*CF9 -> 0.00829521 | BZ9: 0.01950102 | CA9: =BY9*CH9+CJ9*BZ9 -> 0.00148542471 | CB9: =BZ9*CK9+BY9*CI9 -> 0.0073841922 | CC9: =BY9*(1-CI9)+BZ9*(1-CK9) -> 0.0204120378 | CD9: =BO9/100+BP9/100 -> 0.33 | CF9: 1.5 | CG9: 1.5 | CH9: 0.125 | CI9: 0.42 | CJ9: 0.023 | CK9: 0.2 | CL9: =BM9/100*$AF9*BN9*(BP9*CH9+BQ9*CJ9)/100 -> 0.00176836275 | CM9: =$BM9/100*$AF9*$BN9*($BP9*CI9+$BQ9*CK9)/100 -> 0.008790705 | CN9: 25 | CO9: 1 | CP9: 0.6 | CQ9: 19.4 | CR9: 80 | CS9: =$N$6*CN9/100*AL9 -> 0.02205 | CT9: =CO9*CS9 -> 0.02205 | CU9: =CP9/100*CT9 -> 0.0001323 | CV9: =CQ9/100*CT9 -> 0.0042777 | CW9: =CR9/100*CT9 -> 0.01764 | CX9: =DM9*P9 -> 0.00079821 | CY9: =DN9*P9 -> 0.004314303 | CZ9: =CV9*DG9 -> 0.00641655 | DA9: 0.02646 | DB9: =CZ9*DI9+DA9*DK9 -> 0.001197315 | DC9: =CZ9*DJ9+DA9*DL9 -> 0.0064714545 | DD9: =CZ9*(1-DJ9)+DA9*(1-DL9) -> 0.0264050955 | DE9: =CP9/100+CQ9/100 -> 0.2 | DG9: 1.5 | DH9: 1.5 | DI9: 0.1 | DJ9: 0.39 | DK9: 0.021 | DL9: 0.15 | DM9: =$CN9/100*$AF9*$CO9*($CQ9*DI9+$CR9*DK9)/100 -> 0.001425375 | DN9: 0.0077041125
A10: 2 | B10: Kommunal | C10: Tätort | D10: VV | E10: 2 | F10: 40 | G10: - | H10: City | I10: M | J10: - | K10: Kommunal Tätort VV 40 - City M | M10: - | N10: ='0. Beräkna - Länk'!$C$26 -> 1 | O10: ='TS-EVA Länkberäkningar'!$L$142/('TS-EVA Länkberäkningar'!$L$145)^('TS-EVA Länkberäkningar'!$L$143-2010) -> 1534.246575 | P10: =N10*O10*365*0.000001 -> 0.56 | Q10: 0.116466 | R10: 0.149506 | S10: 0.001624742 | T10: 0.022221878 | U10: 0.12565938 | V10: 0.34692 | W10: 0.00427957621 | X10: 0.02459862692 | Y10: 0.033332817 | Z10: 0.18848907 | AA10: 2.42844 | AB10: 0.006419364315 | AC10: 0.03689794038 | AF10: 0.1475 | AG10: 1.4 | AH10: 0.7 | AI10: 12.3 | AJ10: 87 | AK10: 3 | AL10: =$N$4*P10*AF10 -> 0.0826 | AM10: =AG10*$AL10 -> 0.11564 | AN10: 0.00080948 | AO10: 0.01422372 | AP10: 0.1006068 | AQ10: 0.34692 | AR10: 0.00282080652 | AS10: 0.0170615256 | AT10: 0.02133558 | AU10: 0.1509102 | AV10: 2.42844 | AW10: 0.00423120978 | AX10: 0.0255922884 | AZ10: 0.13 | BA10: 0.026845 | BB10: 1.5 | BC10: 1.5 | BD10: 7 | BE10: 0.071 | BF10: 0.28 | BG10: 0.018 | BH10: 0.13 | BJ10: 0.0050371545 | BK10: 0.03046701 | BM10: 19 | BN10: 1 | BO10: 4.5 | BP10: 28.5 | BQ10: 67 | BR10: 0.015694 | BS10: 0.015694 | BT10: 0.00070623 | BU10: 0.00447279 | BV10: 0.01051498 | BW10: 0.00080094329 | BX10: 0.0039815678 | BY10: 0.006709185 | BZ10: 0.01577247 | CA10: 0.001201414935 | CB10: 0.0059723517 | CD10: 0.33 | CF10: 1.5 | CG10: 1.5 | CH10: 0.125 | CI10: 0.42 | CJ10: 0.023 | CK10: 0.2 | CL10: =$BM10/100*$AF10*$BN10*($BP10*CH10+$BQ10*CJ10)/100 -> 0.001430255875 | CM10: 0.0071099425 | CN10: 22 | CO10: 1 | CP10: 0.6 | CQ10: 19.4 | CR10: 80 | CS10: 0.018172 | CT10: 0.018172 | CU10: 0.000109032 | CV10: 0.003525368 | CW10: 0.0145376 | CX10: 0.0006578264 | CY10: 0.00355553352 | CZ10: 0.005288052 | DA10: 0.0218064 | DB10: 0.0009867396 | DC10: 0.00533330028 | DE10: 0.2 | DG10: 1.5 | DH10: 1.5 | DI10: 0.1 | DJ10: 0.39 | DK10: 0.021 | DL10: 0.15 | DM10: 0.00117469 | DN10: 0.006349167
A11: 3 | B11: Kommunal | C11: Tätort | D11: VV | E11: 2 | F11: 40 | G11: - | H11: GIF | I11: C | J11: - | K11: Kommunal Tätort VV 40 - GIF C | M11: - | N11: ='0. Beräkna - Länk'!$C$26 -> 1 | O11: ='TS-EVA Länkberäkningar'!$L$142/('TS-EVA Länkberäkningar'!$L$145)^('TS-EVA Länkberäkningar'!$L$143-2010) -> 1534.246575 | P11: 0.56 | Q11: 0.10549 | R11: 0.15169 | S11: 0.00148379 | T11: 0.02173171 | U11: 0.1284745 | V11: 0.3696 | W11: 0.00420789985 | X11: 0.0244216434 | Y11: 0.032597565 | Z11: 0.19271175 | AA11: 2.5872 | AB11: 0.006311849775 | AC11: 0.0366324651 | AF11: 0.1375 | AG11: 1.6 | AH11: 0.7 | AI11: 12.3 | AJ11: 87 | AK11: 3 | AL11: 0.077 | AM11: 0.1232 | AN11: 0.0008624 | AO11: 0.0151536 | AP11: 0.107184 | AQ11: 0.3696 | AR11: 0.0030052176 | AS11: 0.018176928 | AT11: 0.0227304 | AU11: 0.160776 | AV11: 2.5872 | AW11: 0.0045078264 | AX11: 0.027265392 | AZ11: 0.13 | BA11: 0.0286 | BB11: 1.5 | BC11: 1.5 | BD11: 7 | BE11: 0.071 | BF11: 0.28 | BG11: 0.018 | BH11: 0.13 | BJ11: 0.00536646 | BK11: 0.0324588 | BM11: 15 | BN11: 1 | BO11: 4.5 | BP11: 28.5 | BQ11: 67 | BR11: 0.01155 | BS11: 0.01155 | BT11: 0.00051975 | BU11: 0.00329175 | BV11: 0.0077385 | BW11: 0.00058945425 | BX11: 0.002930235 | BY11: 0.004937625 | BZ11: 0.01160775 | CA11: 0.000884181375 | CB11: 0.0043953525 | CD11: 0.33 | CF11: 1.5 | CG11: 1.5 | CH11: 0.125 | CI11: 0.42 | CJ11: 0.023 | CK11: 0.2 | CL11: 0.001052596875 | CM11: 0.0052325625 | CN11: 22 | CO11: 1 | CP11: 0.6 | CQ11: 19.4 | CR11: 80 | CS11: 0.01694 | CT11: 0.01694 | CU11: 0.00010164 | CV11: 0.00328636 | CW11: 0.013552 | CX11: 0.000613228 | CY11: 0.0033144804 | CZ11: 0.00492954 | DA11: 0.020328 | DB11: 0.000919842 | DC11: 0.0049717206 | DE11: 0.2 | DG11: 1.5 | DH11: 1.5 | DI11: 0.1 | DJ11: 0.39 | DK11: 0.021 | DL11: 0.15 | DM11: 0.00109505 | DN11: 0.005918715
A12: 4 | B12: Kommunal | C12: Tätort | D12: VV | E12: 2 | F12: 40 | G12: - | H12: GIF | I12: M | J12: - | K12: Kommunal Tätort VV 40 - GIF M | M12: - | N12: ='0. Beräkna - Länk'!$C$26 -> 1 | O12: ='TS-EVA Länkberäkningar'!$L$142/('TS-EVA Länkberäkningar'!$L$145)^('TS-EVA Länkberäkningar'!$L$143-2010) -> 1534.246575 | P12: 0.56 | Q12: 0.090552 | R12: 0.134456 | S12: 0.001240288 | T12: 0.018845792 | U12: 0.11436992 | V12: 0.337512 | W12: 0.003661094192 | X12: 0.02137175376 | Y12: 0.028268688 | Z12: 0.17155488 | AA12: 2.362584 | AB12: 0.005491641288 | AC12: 0.03205763064 | AF12: 0.1225 | AG12: 1.64 | AH12: 0.7 | AI12: 12.3 | AJ12: 87 | AK12: 3 | AL12: 0.0686 | AM12: 0.112504 | AN12: 0.000787528 | AO12: 0.013837992 | AP12: 0.09787848 | AQ12: 0.337512 | AR12: 0.002744310072 | AS12: 0.01659884016 | AT12: 0.020756988 | AU12: 0.14681772 | AV12: 2.362584 | AW12: 0.004116465108 | AX12: 0.02489826024 | AZ12: 0.13 | BA12: 0.026117 | BB12: 1.5 | BC12: 1.5 | BD12: 7 | BE12: 0.071 | BF12: 0.28 | BG12: 0.018 | BH12: 0.13 | BJ12: 0.0049005537 | BK12: 0.029640786 | BM12: 12 | BN12: 1 | BO12: 4.5 | BP12: 28.5 | BQ12: 67 | BR12: 0.008232 | BS12: 0.008232 | BT12: 0.00037044 | BU12: 0.00234612 | BV12: 0.00551544 | BW12: 0.00042012012 | BX12: 0.0020884584 | BY12: 0.00351918 | BZ12: 0.00827316 | CA12: 0.00063018018 | CB12: 0.0031326876 | CD12: 0.33 | CF12: 1.5 | CG12: 1.5 | CH12: 0.125 | CI12: 0.42 | CJ12: 0.023 | CK12: 0.2 | CL12: 0.0007502145 | CM12: 0.00372939 | CN12: 20 | CO12: 1 | CP12: 0.6 | CQ12: 19.4 | CR12: 80 | CS12: 0.01372 | CT12: 0.01372 | CU12: 8.232e-05 | CV12: 0.00266168 | CW12: 0.010976 | CX12: 0.000496664 | CY12: 0.0026844552 | CZ12: 0.00399252 | DA12: 0.016464 | DB12: 0.000744996 | DC12: 0.0040266828 | DE12: 0.2 | DG12: 1.5 | DH12: 1.5 | DI12: 0.1 | DJ12: 0.39 | DK12: 0.021 | DL12: 0.15 | DM12: 0.0008869 | DN12: 0.00479367
A13: 5 | B13: Kommunal | C13: Tätort | D13: VV | E13: 2 | F13: 40 | G13: - | H13: Tangent | I13: C | J13: - | K13: Kommunal Tätort VV 40 - Tangent C | M13: - | N13: ='0. Beräkna - Länk'!$C$26 -> 1 | O13: ='TS-EVA Länkberäkningar'!$L$142/('TS-EVA Länkberäkningar'!$L$145)^('TS-EVA Länkberäkningar'!$L$143-2010) -> 1534.246575 | P13: 0.56 | Q13: 0.113162 | R13: 0.146202 | S13: 0.00154049 | T13: 0.02143057 | U13: 0.12323094 | V13: 0.34692 | W13: 0.00413546399 | X13: 0.0238562842 | Y13: 0.032145855 | Z13: 0.18484641 | AA13: 2.42844 | AB13: 0.006203195985 | AC13: 0.0357844263 | AF13: 0.1475 | AG13: 1.4 | AH13: 0.7 | AI13: 12.3 | AJ13: 87 | AK13: 3 | AL13: 0.0826 | AM13: 0.11564 | AN13: 0.00080948 | AO13: 0.01422372 | AP13: 0.1006068 | AQ13: 0.34692 | AR13: 0.00282080652 | AS13: 0.0170615256 | AT13: 0.02133558 | AU13: 0.1509102 | AV13: 2.42844 | AW13: 0.00423120978 | AX13: 0.0255922884 | AZ13: 0.13 | BA13: 0.026845 | BB13: 1.5 | BC13: 1.5 | BD13: 7 | BE13: 0.071 | BF13: 0.28 | BG13: 0.018 | BH13: 0.13 | BJ13: 0.0050371545 | BK13: 0.03046701 | BM13: 17 | BN13: 1 | BO13: 4.5 | BP13: 28.5 | BQ13: 67 | BR13: 0.014042 | BS13: 0.014042 | BT13: 0.00063189 | BU13: 0.00400197 | BV13: 0.00940814 | BW13: 0.00071663347 | BX13: 0.0035624554 | BY13: 0.006002955 | BZ13: 0.01411221 | CA13: 0.001074950205 | CB13: 0.0053436831 | CD13: 0.33 | CF13: 1.5 | CG13: 1.5 | CH13: 0.125 | CI13: 0.42 | CJ13: 0.023 | CK13: 0.2 | CL13: 0.001279702625 | CM13: 0.0063615275 | CN13: 20 | CO13: 1 | CP13: 0.6 | CQ13: 19.4 | CR13: 80 | CS13: 0.01652 | CT13: 0.01652 | CU13: 9.912e-05 | CV13: 0.00320488 | CW13: 0.013216 | CX13: 0.000598024 | CY13: 0.0032323032 | CZ13: 0.00480732 | DA13: 0.019824 | DB13: 0.000897036 | DC13: 0.0048484548 | DE13: 0.2 | DG13: 1.5 | DH13: 1.5 | DI13: 0.1 | DJ13: 0.39 | DK13: 0.021 | DL13: 0.15 | DM13: 0.0010679 | DN13: 0.00577197
A14: 6 | B14: Kommunal | C14: Tätort | D14: VV | E14: 2 | F14: 40 | G14: - | H14: Tangent | I14: M | J14: - | K14: Kommunal Tätort VV 40 - Tangent M | M14: - | N14: ='0. Beräkna - Länk'!$C$26 -> 1 | O14: ='TS-EVA Länkberäkningar'!$L$142/('TS-EVA Länkberäkningar'!$L$145)^('TS-EVA Länkberäkningar'!$L$143-2010) -> 1534.246575 | P14: 0.56 | Q14: 0.097202 | R14: 0.138754 | S14: 0.001353408 | T14: 0.019645192 | U14: 0.1177554 | V14: 0.347256 | W14: 0.003810316916 | X14: 0.02218154092 | Y14: 0.029467788 | Z14: 0.1766331 | AA14: 2.430792 | AB14: 0.005715475374 | AC14: 0.03327231138 | AF14: 0.1325 | AG14: 1.56 | AH14: 0.7 | AI14: 12.3 | AJ14: 87 | AK14: 3 | AL14: 0.0742 | AM14: 0.115752 | AN14: 0.000810264 | AO14: 0.014237496 | AP14: 0.10070424 | AQ14: 0.347256 | AR14: 0.002823538536 | AS14: 0.01707805008 | AT14: 0.021356244 | AU14: 0.15105636 | AV14: 2.430792 | AW14: 0.004235307804 | AX14: 0.02561707512 | AZ14: 0.13 | BA14: 0.026871 | BB14: 1.5 | BC14: 1.5 | BD14: 7 | BE14: 0.071 | BF14: 0.28 | BG14: 0.018 | BH14: 0.13 | BJ14: 0.0050420331 | BK14: 0.030496518 | BM14: 14 | BN14: 1 | BO14: 4.5 | BP14: 28.5 | BQ14: 67 | BR14: 0.010388 | BS14: 0.010388 | BT14: 0.00046746 | BU14: 0.00296058 | BV14: 0.00695996 | BW14: 0.00053015158 | BX14: 0.0026354356 | BY14: 0.00444087 | BZ14: 0.01043994 | CA14: 0.00079522737 | CB14: 0.0039531534 | CD14: 0.33 | CF14: 1.5 | CG14: 1.5 | CH14: 0.125 | CI14: 0.42 | CJ14: 0.023 | CK14: 0.2 | CL14: 0.00094669925 | CM14: 0.004706135 | CN14: 17 | CO14: 1 | CP14: 0.6 | CQ14: 19.4 | CR14: 80 | CS14: 0.012614 | CT14: 0.012614 | CU14: 7.5684e-05 | CV14: 0.002447116 | CW14: 0.0100912 | CX14: 0.0004566268 | CY14: 0.00246805524 | CZ14: 0.003670674 | DA14: 0.0151368 | DB14: 0.0006849402 | DC14: 0.00370208286 | DE14: 0.2 | DG14: 1.5 | DH14: 1.5 | DI14: 0.1 | DJ14: 0.39 | DK14: 0.021 | DL14: 0.15 | DM14: 0.000815405 | DN14: 0.0044072415
A15: 7 | B15: Kommunal | C15: Tätort | D15: VV | E15: 2 | F15: 50 | G15: - | H15: City | I15: C | J15: - | K15: Kommunal Tätort VV 50 - City C | M15: - | N15: ='0. Beräkna - Länk'!$C$26 -> 1 | O15: ='TS-EVA Länkberäkningar'!$L$142/('TS-EVA Länkberäkningar'!$L$145)^('TS-EVA Länkberäkningar'!$L$143-2010) -> 1534.246575 | P15: 0.56 | Q15: 0.14406 | R15: 0.1715 | S15: 0.0023716 | T15: 0.0297136 | U15: 0.1394148 | V15: 0.37632 | W15: 0.0052198034 | X15: 0.02922997 | Y15: 0.0445704 | Z15: 0.2091222 | AA15: 2.63424 | AB15: 0.0078297051 | AC15: 0.043844955 | AF15: 0.175 | AG15: 1.28 | AH15: 1 | AI15: 15 | AJ15: 84 | AK15: 3 | AL15: 0.098 | AM15: 0.12544 | AN15: 0.0012544 | AO15: 0.018816 | AP15: 0.1053696 | AQ15: 0.37632 | AR15: 0.0032325888 | AS15: 0.018966528 | AT15: 0.028224 | AU15: 0.1580544 | AV15: 2.63424 | AW15: 0.0048488832 | AX15: 0.028449792 | AZ15: 0.16 | BA15: 0.03584 | BB15: 1.5 | BC15: 1.5 | BD15: 7 | BE15: 0.071 | BF15: 0.28 | BG15: 0.018 | BH15: 0.13 | BJ15: 0.00577248 | BK15: 0.0338688 | BM15: 22 | BN15: 1 | BO15: 4.5 | BP15: 28.5 | BQ15: 67 | BR15: 0.02156 | BS15: 0.02156 | BT15: 0.0009702 | BU15: 0.0061446 | BV15: 0.0144452 | BW15: 0.0011003146 | BX15: 0.005469772 | BY15: 0.0092169 | BZ15: 0.0216678 | CA15: 0.0016504719 | CB15: 0.008204658 | CD15: 0.33 | CF15: 1.5 | CG15: 1.5 | CH15: 0.125 | CI15: 0.42 | CJ15: 0.023 | CK15: 0.2 | CL15: 0.0019648475 | CM15: 0.00976745 | CN15: 25 | CO15: 1 | CP15: 0.6 | CQ15: 19.4 | CR15: 80 | CS15: 0.0245 | CT15: 0.0245 | CU15: 0.000147 | CV15: 0.004753 | CW15: 0.0196 | CX15: 0.0008869 | CY15: 0.00479367 | CZ15: 0.0071295 | DA15: 0.0294 | DB15: 0.00133035 | DC15: 0.007190505 | DE15: 0.2 | DG15: 1.5 | DH15: 1.5 | DI15: 0.1 | DJ15: 0.39 | DK15: 0.021 | DL15: 0.15 | DM15: 0.00158375 | DN15: 0.008560125
A16: 8 | B16: Kommunal | C16: Tätort | D16: VV | E16: 2 | F16: 50 | G16: - | H16: City | I16: M | J16: - | K16: Kommunal Tätort VV 50 - City M | M16: - | N16: ='0. Beräkna - Länk'!$C$26 -> 1 | O16: ='TS-EVA Länkberäkningar'!$L$142/('TS-EVA Länkberäkningar'!$L$145)^('TS-EVA Länkberäkningar'!$L$143-2010) -> 1534.246575 | P16: 0.56 | Q16: 0.130284 | R16: 0.167244 | S16: 0.002205588 | T16: 0.028351092 | U16: 0.13668732 | V16: 0.38808 | W16: 0.00496545126 | X16: 0.02799056568 | Y16: 0.042526638 | Z16: 0.20503098 | AA16: 2.71656 | AB16: 0.00744817689 | AC16: 0.04198584852 | AF16: 0.165 | AG16: 1.4 | AH16: 1 | AI16: 15 | AJ16: 84 | AK16: 3 | AL16: 0.0924 | AM16: 0.12936 | AN16: 0.0012936 | AO16: 0.019404 | AP16: 0.1086624 | AQ16: 0.38808 | AR16: 0.0033336072 | AS16: 0.019559232 | AT16: 0.029106 | AU16: 0.1629936 | AV16: 2.71656 | AW16: 0.0050004108 | AX16: 0.029338848 | AZ16: 0.16 | BA16: 0.03696 | BB16: 1.5 | BC16: 1.5 | BD16: 7 | BE16: 0.071 | BF16: 0.28 | BG16: 0.018 | BH16: 0.13 | BJ16: 0.00595287 | BK16: 0.0349272 | BM16: 19 | BN16: 1 | BO16: 4.5 | BP16: 28.5 | BQ16: 67 | BR16: 0.017556 | BS16: 0.017556 | BT16: 0.00079002 | BU16: 0.00500346 | BV16: 0.01176252 | BW16: 0.00089597046 | BX16: 0.0044539572 | BY16: 0.00750519 | BZ16: 0.01764378 | CA16: 0.00134395569 | CB16: 0.0066809358 | CD16: 0.33 | CF16: 1.5 | CG16: 1.5 | CH16: 0.125 | CI16: 0.42 | CJ16: 0.023 | CK16: 0.2 | CL16: 0.00159994725 | CM16: 0.007953495 | CN16: 22 | CO16: 1 | CP16: 0.6 | CQ16: 19.4 | CR16: 80 | CS16: 0.020328 | CT16: 0.020328 | CU16: 0.000121968 | CV16: 0.003943632 | CW16: 0.0162624 | CX16: 0.0007358736 | CY16: 0.00397737648 | CZ16: 0.005915448 | DA16: 0.0243936 | DB16: 0.0011038104 | DC16: 0.00596606472 | DE16: 0.2 | DG16: 1.5 | DH16: 1.5 | DI16: 0.1 | DJ16: 0.39 | DK16: 0.021 | DL16: 0.15 | DM16: 0.00131406 | DN16: 0.007102458
A17: 9 | B17: Kommunal | C17: Tätort | D17: VV | E17: 2 | F17: 50 | G17: - | H17: GIF | I17: C | J17: - | K17: Kommunal Tätort VV 50 - GIF C | M17: - | N17: ='0. Beräkna - Länk'!$C$26 -> 1 | O17: ='TS-EVA Länkberäkningar'!$L$142/('TS-EVA Länkberäkningar'!$L$145)^('TS-EVA Länkberäkningar'!$L$143-2010) -> 1534.246575 | P17: 0.56 | Q17: 0.116998 | R17: 0.168238 | S17: 0.002055578 | T17: 0.027791722 | U17: 0.1383907 | V17: 0.40992 | W17: 0.00485509675 | X17: 0.02758592508 | Y17: 0.041687583 | Z17: 0.20758605 | AA17: 2.86944 | AB17: 0.007282645125 | AC17: 0.04137888762 | AF17: 0.1525 | AG17: 1.6 | AH17: 1 | AI17: 15 | AJ17: 84 | AK17: 3 | AL17: 0.0854 | AM17: 0.13664 | AN17: 0.0013664 | AO17: 0.020496 | AP17: 0.1147776 | AQ17: 0.40992 | AR17: 0.0035212128 | AS17: 0.020659968 | AT17: 0.030744 | AU17: 0.1721664 | AV17: 2.86944 | AW17: 0.0052818192 | AX17: 0.030989952 | AZ17: 0.16 | BA17: 0.03904 | BB17: 1.5 | BC17: 1.5 | BD17: 7 | BE17: 0.071 | BF17: 0.28 | BG17: 0.018 | BH17: 0.13 | BJ17: 0.00628788 | BK17: 0.0368928 | BM17: 15 | BN17: 1 | BO17: 4.5 | BP17: 28.5 | BQ17: 67 | BR17: 0.01281 | BS17: 0.01281 | BT17: 0.00057645 | BU17: 0.00365085 | BV17: 0.0085827 | BW17: 0.00065375835 | BX17: 0.003249897 | BY17: 0.005476275 | BZ17: 0.01287405 | CA17: 0.000980637525 | CB17: 0.0048748455 | CD17: 0.33 | CF17: 1.5 | CG17: 1.5 | CH17: 0.125 | CI17: 0.42 | CJ17: 0.023 | CK17: 0.2 | CL17: 0.001167425625 | CM17: 0.0058033875 | CN17: 22 | CO17: 1 | CP17: 0.6 | CQ17: 19.4 | CR17: 80 | CS17: 0.018788 | CT17: 0.018788 | CU17: 0.000112728 | CV17: 0.003644872 | CW17: 0.0150304 | CX17: 0.0006801256 | CY17: 0.00367606008 | CZ17: 0.005467308 | DA17: 0.0225456 | DB17: 0.0010201884 | DC17: 0.00551409012 | DE17: 0.2 | DG17: 1.5 | DH17: 1.5 | DI17: 0.1 | DJ17: 0.39 | DK17: 0.021 | DL17: 0.15 | DM17: 0.00121451 | DN17: 0.006564393
A18: 10 | B18: Kommunal | C18: Tätort | D18: VV | E18: 2 | F18: 50 | G18: - | H18: GIF | I18: M | J18: - | K18: Kommunal Tätort VV 50 - GIF M | M18: - | N18: ='0. Beräkna - Länk'!$C$26 -> 1 | O18: ='TS-EVA Länkberäkningar'!$L$142/('TS-EVA Länkberäkningar'!$L$145)^('TS-EVA Länkberäkningar'!$L$143-2010) -> 1534.246575 | P18: 0.56 | Q18: 0.099792 | R18: 0.148176 | S18: 0.0017388 | T18: 0.0241164 | U18: 0.1223208 | V18: 0.371952 | W18: 0.0042054012 | X18: 0.0240063264 | Y18: 0.0361746 | Z18: 0.1834812 | AA18: 2.603664 | AB18: 0.0063081018 | AC18: 0.0360094896 | AF18: 0.135 | AG18: 1.64 | AH18: 1 | AI18: 15 | AJ18: 84 | AK18: 3 | AL18: 0.0756 | AM18: 0.123984 | AN18: 0.00123984 | AO18: 0.0185976 | AP18: 0.10414656 | AQ18: 0.371952 | AR18: 0.00319506768 | AS18: 0.0187463808 | AT18: 0.0278964 | AU18: 0.15621984 | AV18: 2.603664 | AW18: 0.00479260152 | AX18: 0.0281195712 | AZ18: 0.16 | BA18: 0.035424 | BB18: 1.5 | BC18: 1.5 | BD18: 7 | BE18: 0.071 | BF18: 0.28 | BG18: 0.018 | BH18: 0.13 | BJ18: 0.005705478 | BK18: 0.03347568 | BM18: 12 | BN18: 1 | BO18: 4.5 | BP18: 28.5 | BQ18: 67 | BR18: 0.009072 | BS18: 0.009072 | BT18: 0.00040824 | BU18: 0.00258552 | BV18: 0.00607824 | BW18: 0.00046298952 | BX18: 0.0023015664 | BY18: 0.00387828 | BZ18: 0.00911736 | CA18: 0.00069448428 | CB18: 0.0034523496 | CD18: 0.33 | CF18: 1.5 | CG18: 1.5 | CH18: 0.125 | CI18: 0.42 | CJ18: 0.023 | CK18: 0.2 | CL18: 0.000826767 | CM18: 0.00410994 | CN18: 20 | CO18: 1 | CP18: 0.6 | CQ18: 19.4 | CR18: 80 | CS18: 0.01512 | CT18: 0.01512 | CU18: 9.072e-05 | CV18: 0.00293328 | CW18: 0.012096 | CX18: 0.000547344 | CY18: 0.0029583792 | CZ18: 0.00439992 | DA18: 0.018144 | DB18: 0.000821016 | DC18: 0.0044375688 | DE18: 0.2 | DG18: 1.5 | DH18: 1.5 | DI18: 0.1 | DJ18: 0.39 | DK18: 0.021 | DL18: 0.15 | DM18: 0.0009774 | DN18: 0.00528282
A19: 11 | B19: Kommunal | C19: Tätort | D19: VV | E19: 2 | F19: 50 | G19: - | H19: GIF | I19: Y | J19: - | K19: Kommunal Tätort VV 50 - GIF Y | M19: - | N19: ='0. Beräkna - Länk'!$C$26 -> 1 | O19: ='TS-EVA Länkberäkningar'!$L$142/('TS-EVA Länkberäkningar'!$L$145)^('TS-EVA Länkberäkningar'!$L$143-2010) -> 1534.246575 | P19: 0.56 | Q19: 0.086436 | R19: 0.141316 | S19: 0.001609356 | T19: 0.022606444 | U19: 0.1171002 | V19: 0.37044 | W19: 0.0039295109 | X19: 0.02255812216 | Y19: 0.033909666 | Z19: 0.1756503 | AA19: 2.59308 | AB19: 0.00589426635 | AC19: 0.03383718324 | AF19: 0.1225 | AG19: 1.8 | AH19: 1 | AI19: 15 | AJ19: 84 | AK19: 3 | AL19: 0.0686 | AM19: 0.12348 | AN19: 0.0012348 | AO19: 0.018522 | AP19: 0.1037232 | AQ19: 0.37044 | AR19: 0.0031820796 | AS19: 0.018670176 | AT19: 0.027783 | AU19: 0.1555848 | AV19: 2.59308 | AW19: 0.0047731194 | AX19: 0.028005264 | AZ19: 0.16 | BA19: 0.03528 | BB19: 1.5 | BC19: 1.5 | BD19: 7 | BE19: 0.071 | BF19: 0.28 | BG19: 0.018 | BH19: 0.13 | BJ19: 0.005682285 | BK19: 0.0333396 | BM19: 10 | BN19: 1 | BO19: 4.5 | BP19: 28.5 | BQ19: 67 | BR19: 0.00686 | BS19: 0.00686 | BT19: 0.0003087 | BU19: 0.0019551 | BV19: 0.0045962 | BW19: 0.0003501001 | BX19: 0.001740382 | BY19: 0.00293265 | BZ19: 0.0068943 | CA19: 0.00052515015 | CB19: 0.002610573 | CD19: 0.33 | CF19: 1.5 | CG19: 1.5 | CH19: 0.125 | CI19: 0.42 | CJ19: 0.023 | CK19: 0.2 | CL19: 0.00062517875 | CM19: 0.003107825 | CN19: 16 | CO19: 1 | CP19: 0.6 | CQ19: 19.4 | CR19: 80 | CS19: 0.010976 | CT19: 0.010976 | CU19: 6.5856e-05 | CV19: 0.002129344 | CW19: 0.0087808 | CX19: 0.0003973312 | CY19: 0.00214756416 | CZ19: 0.003194016 | DA19: 0.0131712 | DB19: 0.0005959968 | DC19: 0.00322134624 | DE19: 0.2 | DG19: 1.5 | DH19: 1.5 | DI19: 0.1 | DJ19: 0.39 | DK19: 0.021 | DL19: 0.15 | DM19: 0.00070952 | DN19: 0.003834936
A20: 12 | B20: Kommunal | C20: Tätort | D20: VV | E20: 2 | F20: 50 | G20: - | H20: Tangent | I20: C | J20: - | K20: Kommunal Tätort VV 50 - Tangent C | M20: - | N20: ='0. Beräkna - Länk'!$C$26 -> 1 | O20: ='TS-EVA Länkberäkningar'!$L$142/('TS-EVA Länkberäkningar'!$L$145)^('TS-EVA Länkberäkningar'!$L$143-2010) -> 1534.246575 | P20: 0.56 | Q20: 0.126588 | R20: 0.163548 | S20: 0.00211134 | T20: 0.0274659 | U20: 0.13397076 | V20: 0.38808 | W20: 0.00480424098 | X20: 0.0271601484 | Y20: 0.04119885 | Z20: 0.20095614 | AA20: 2.71656 | AB20: 0.00720636147 | AC20: 0.0407402226 | AF20: 0.165 | AG20: 1.4 | AH20: 1 | AI20: 15 | AJ20: 84 | AK20: 3 | AL20: 0.0924 | AM20: 0.12936 | AN20: 0.0012936 | AO20: 0.019404 | AP20: 0.1086624 | AQ20: 0.38808 | AR20: 0.0033336072 | AS20: 0.019559232 | AT20: 0.029106 | AU20: 0.1629936 | AV20: 2.71656 | AW20: 0.0050004108 | AX20: 0.029338848 | AZ20: 0.16 | BA20: 0.03696 | BB20: 1.5 | BC20: 1.5 | BD20: 7 | BE20: 0.071 | BF20: 0.28 | BG20: 0.018 | BH20: 0.13 | BJ20: 0.00595287 | BK20: 0.0349272 | BM20: 17 | BN20: 1 | BO20: 4.5 | BP20: 28.5 | BQ20: 67 | BR20: 0.015708 | BS20: 0.015708 | BT20: 0.00070686 | BU20: 0.00447678 | BV20: 0.01052436 | BW20: 0.00080165778 | BX20: 0.0039851196 | BY20: 0.00671517 | BZ20: 0.01578654 | CA20: 0.00120248667 | CB20: 0.0059776794 | CD20: 0.33 | CF20: 1.5 | CG20: 1.5 | CH20: 0.125 | CI20: 0.42 | CJ20: 0.023 | CK20: 0.2 | CL20: 0.00143153175 | CM20: 0.007116285 | CN20: 20 | CO20: 1 | CP20: 0.6 | CQ20: 19.4 | CR20: 80 | CS20: 0.01848 | CT20: 0.01848 | CU20: 0.00011088 | CV20: 0.00358512 | CW20: 0.014784 | CX20: 0.000668976 | CY20: 0.0036157968 | CZ20: 0.00537768 | DA20: 0.022176 | DB20: 0.001003464 | DC20: 0.0054236952 | DE20: 0.2 | DG20: 1.5 | DH20: 1.5 | DI20: 0.1 | DJ20: 0.39 | DK20: 0.021 | DL20: 0.15 | DM20: 0.0011946 | DN20: 0.00645678
A21: 13 | B21: Kommunal | C21: Tätort | D21: VV | E21: 2 | F21: 50 | G21: - | H21: Tangent | I21: M | J21: - | K21: Kommunal Tätort VV 50 - Tangent M | M21: - | N21: ='0. Beräkna - Länk'!$C$26 -> 1 | O21: ='TS-EVA Länkberäkningar'!$L$142/('TS-EVA Länkberäkningar'!$L$145)^('TS-EVA Länkberäkningar'!$L$143-2010) -> 1534.246575 | P21: 0.56 | Q21: 0.108206 | R21: 0.154462 | S21: 0.001893192 | T21: 0.025348288 | U21: 0.12722052 | V21: 0.386568 | W21: 0.00441910826 | X21: 0.02516427172 | Y21: 0.038022432 | Z21: 0.19083078 | AA21: 2.705976 | AB21: 0.00662866239 | AC21: 0.03774640758 | AF21: 0.1475 | AG21: 1.56 | AH21: 1 | AI21: 15 | AJ21: 84 | AK21: 3 | AL21: 0.0826 | AM21: 0.128856 | AN21: 0.00128856 | AO21: 0.0193284 | AP21: 0.10823904 | AQ21: 0.386568 | AR21: 0.00332061912 | AS21: 0.0194830272 | AT21: 0.0289926 | AU21: 0.16235856 | AV21: 2.705976 | AW21: 0.00498092868 | AX21: 0.0292245408 | AZ21: 0.16 | BA21: 0.036816 | BB21: 1.5 | BC21: 1.5 | BD21: 7 | BE21: 0.071 | BF21: 0.28 | BG21: 0.018 | BH21: 0.13 | BJ21: 0.005929677 | BK21: 0.03479112 | BM21: 14 | BN21: 1 | BO21: 4.5 | BP21: 28.5 | BQ21: 67 | BR21: 0.011564 | BS21: 0.011564 | BT21: 0.00052038 | BU21: 0.00329574 | BV21: 0.00774788 | BW21: 0.00059016874 | BX21: 0.0029337868 | BY21: 0.00494361 | BZ21: 0.01162182 | CA21: 0.00088525311 | CB21: 0.0044006802 | CD21: 0.33 | CF21: 1.5 | CG21: 1.5 | CH21: 0.125 | CI21: 0.42 | CJ21: 0.023 | CK21: 0.2 | CL21: 0.00105387275 | CM21: 0.005238905 | CN21: 17 | CO21: 1 | CP21: 0.6 | CQ21: 19.4 | CR21: 80 | CS21: 0.014042 | CT21: 0.014042 | CU21: 8.4252e-05 | CV21: 0.002724148 | CW21: 0.0112336 | CX21: 0.0005083204 | CY21: 0.00274745772 | CZ21: 0.004086222 | DA21: 0.0168504 | DB21: 0.0007624806 | DC21: 0.00412118658 | DE21: 0.2 | DG21: 1.5 | DH21: 1.5 | DI21: 0.1 | DJ21: 0.39 | DK21: 0.021 | DL21: 0.15 | DM21: 0.000907715 | DN21: 0.0049061745
A22: 14 | B22: Kommunal | C22: Tätort | D22: VV | E22: 2 | F22: 50 | G22: - | H22: Tangent | I22: Y | J22: - | K22: Kommunal Tätort VV 50 - Tangent Y | M22: - | N22: ='0. Beräkna - Länk'!$C$26 -> 1 | O22: ='TS-EVA Länkberäkningar'!$L$142/('TS-EVA Länkberäkningar'!$L$145)^('TS-EVA Länkberäkningar'!$L$143-2010) -> 1534.246575 | P22: 0.56 | Q22: 0.096012 | R22: 0.150444 | S22: 0.0017766 | T22: 0.02429028 | U22: 0.12437712 | V22: 0.390096 | W22: 0.00422442216 | X22: 0.0241811892 | Y22: 0.03643542 | Z22: 0.18656568 | AA22: 2.730672 | AB22: 0.00633663324 | AC22: 0.0362717838 | AF22: 0.135 | AG22: 1.72 | AH22: 1 | AI22: 15 | AJ22: 84 | AK22: 3 | AL22: 0.0756 | AM22: 0.130032 | AN22: 0.00130032 | AO22: 0.0195048 | AP22: 0.10922688 | AQ22: 0.390096 | AR22: 0.00335092464 | AS22: 0.0196608384 | AT22: 0.0292572 | AU22: 0.16384032 | AV22: 2.730672 | AW22: 0.00502638696 | AX22: 0.0294912576 | AZ22: 0.16 | BA22: 0.037152 | BB22: 1.5 | BC22: 1.5 | BD22: 7 | BE22: 0.071 | BF22: 0.28 | BG22: 0.018 | BH22: 0.13 | BJ22: 0.005983794 | BK22: 0.03510864 | BM22: 12 | BN22: 1 | BO22: 4.5 | BP22: 28.5 | BQ22: 67 | BR22: 0.009072 | BS22: 0.009072 | BT22: 0.00040824 | BU22: 0.00258552 | BV22: 0.00607824 | BW22: 0.00046298952 | BX22: 0.0023015664 | BY22: 0.00387828 | BZ22: 0.00911736 | CA22: 0.00069448428 | CB22: 0.0034523496 | CD22: 0.33 | CF22: 1.5 | CG22: 1.5 | CH22: 0.125 | CI22: 0.42 | CJ22: 0.023 | CK22: 0.2 | CL22: 0.000826767 | CM22: 0.00410994 | CN22: 15 | CO22: 1 | CP22: 0.6 | CQ22: 19.4 | CR22: 80 | CS22: 0.01134 | CT22: 0.01134 | CU22: 6.804e-05 | CV22: 0.00219996 | CW22: 0.009072 | CX22: 0.000410508 | CY22: 0.0022187844 | CZ22: 0.00329994 | DA22: 0.013608 | DB22: 0.000615762 | DC22: 0.0033281766 | DE22: 0.2 | DG22: 1.5 | DH22: 1.5 | DI22: 0.1 | DJ22: 0.39 | DK22: 0.021 | DL22: 0.15 | DM22: 0.00073305 | DN22: 0.003962115
A23: 15 | B23: Kommunal | C23: Tätort | D23: VV | E23: 2 | F23: 60 | G23: - | H23: GIF | I23: M | J23: - | K23: Kommunal Tätort VV 60 - GIF M | M23: - | N23: ='0. Beräkna - Länk'!$C$26 -> 1 | O23: ='TS-EVA Länkberäkningar'!$L$142/('TS-EVA Länkberäkningar'!$L$145)^('TS-EVA Länkberäkningar'!$L$143-2010) -> 1534.246575 | P23: 0.56 | Q23: 0.064512 | R23: 0.10752 | S23: 0.001671936 | T23: 0.014070784 | U23: 0.09075584 | V23: 0.2073832727 | W23: 0.002694517504 | X23: 0.01602130432 | Y23: 0.021106176 | Z23: 0.13613376 | AA23: 1.451682909 | AB23: 0.004041776256 | AC23: 0.02403195648 | AF23: 0.1056 | AG23: 1.727272727 | AH23: 1.4 | AI23: 12.6 | AJ23: 85 | AK23: 2.03030303 | AL23: 0.059136 | AM23: 0.102144 | AN23: 0.001430016 | AO23: 0.012870144 | AP23: 0.0868224 | AQ23: 0.2073832727 | AR23: 0.002476583424 | AS23: 0.01489055232 | AT23: 0.019305216 | AU23: 0.1302336 | AV23: 1.451682909 | AW23: 0.003714875136 | AX23: 0.02233582848 | AZ23: 0.14 | BA23: 0.025536 | BB23: 1.5 | BC23: 1.5 | BD23: 7 | BE23: 0.071 | BF23: 0.28 | BG23: 0.018 | BH23: 0.13 | BJ23: 0.0044224704 | BK23: 0.026590272 | BM23: 3.03030303 | BN23: 1 | BO23: 7.5 | BP23: 29 | BQ23: 63.5 | BR23: 0.001792 | BS23: 0.001792 | BT23: 0.0001344 | BU23: 0.00051968 | BV23: 0.00113792 | BW23: 9.113216e-05 | BX23: 0.0004458496 | BY23: 0.00077952 | BZ23: 0.00170688 | CA23: 0.00013669824 | CB23: 0.0006687744 | CD23: 0.365 | CF23: 1.5 | CG23: 1.5 | CH23: 0.125 | CI23: 0.42 | CJ23: 0.023 | CK23: 0.2 | CL23: 0.000162736 | CM23: 0.00079616 | CN23: 6.060606061 | CO23: 1 | CP23: 3 | CQ23: 19 | CR23: 78 | CS23: 0.003584 | CT23: 0.003584 | CU23: 0.00010752 | CV23: 0.00068096 | CW23: 0.00279552 | CX23: 0.00012680192 | CY23: 0.0006849024 | CZ23: 0.00102144 | DA23: 0.00419328 | DB23: 0.00019020288 | DC23: 0.0010273536 | DE23: 0.22 | DG23: 1.5 | DH23: 1.5 | DI23: 0.1 | DJ23: 0.39 | DK23: 0.021 | DL23: 0.15 | DM23: 0.000226432 | DN23: 0.00122304
A24: 16 | B24: Kommunal | C24: Tätort | D24: VV | E24: 2 | F24: 60 | G24: - | H24: GIF | I24: Y | J24: - | K24: Kommunal Tätort VV 60 - GIF Y | M24: - | N24: ='0. Beräkna - Länk'!$C$26 -> 1 | O24: ='TS-EVA Länkberäkningar'!$L$142/('TS-EVA Länkberäkningar'!$L$145)^('TS-EVA Länkberäkningar'!$L$143-2010) -> 1534.246575 | P24: 0.56 | Q24: 0.05739216 | R24: 0.10448816 | S24: 0.0015726004 | T24: 0.0135175264 | U24: 0.0883911532 | V24: 0.2044271515 | W24: 0.002592568947 | X24: 0.01546728943 | Y24: 0.0202762896 | Z24: 0.1325867298 | AA24: 1.430990061 | AB24: 0.00388885342 | AC24: 0.02320093415 | AF24: 0.0957 | AG24: 1.878787879 | AH24: 1.4 | AI24: 12.6 | AJ24: 85 | AK24: 2.03030303 | AL24: 0.053592 | AM24: 0.100688 | AN24: 0.001409632 | AO24: 0.012686688 | AP24: 0.0855848 | AQ24: 0.2044271515 | AR24: 0.002441281248 | AS24: 0.01467829664 | AT24: 0.019030032 | AU24: 0.1283772 | AV24: 1.430990061 | AW24: 0.003661921872 | AX24: 0.02201744496 | AZ24: 0.14 | BA24: 0.025172 | BB24: 1.5 | BC24: 1.5 | BD24: 7 | BE24: 0.071 | BF24: 0.28 | BG24: 0.018 | BH24: 0.13 | BJ24: 0.0043594308 | BK24: 0.026211244 | BM24: 2.03030303 | BN24: 1 | BO24: 7.5 | BP24: 29 | BQ24: 63.5 | BR24: 0.00108808 | BS24: 0.00108808 | BT24: 8.1606e-05 | BU24: 0.0003155432 | BV24: 0.0006909308 | BW24: 5.53343084e-05 | BX24: 0.000270714304 | BY24: 0.0004733148 | BZ24: 0.0010363962 | CA24: 8.30014626e-05 | CB24: 0.000406071456 | CD24: 0.365 | CF24: 1.5 | CG24: 1.5 | CH24: 0.125 | CI24: 0.42 | CJ24: 0.023 | CK24: 0.2 | CL24: 9.8811265e-05 | CM24: 0.0004834184 | CN24: 5.060606061 | CO24: 1 | CP24: 3 | CQ24: 19 | CR24: 78 | CS24: 0.00271208 | CT24: 0.00271208 | CU24: 8.13624e-05 | CV24: 0.0005152952 | CW24: 0.0021154224 | CX24: 9.59533904e-05 | CY24: 0.000518278488 | CZ24: 0.0007729428 | DA24: 0.0031731336 | DB24: 0.0001439300856 | DC24: 0.000777417732 | DE24: 0.22 | DG24: 1.5 | DH24: 1.5 | DI24: 0.1 | DJ24: 0.39 | DK24: 0.021 | DL24: 0.15 | DM24: 0.00017134534 | DN24: 0.0009254973
A25: 17 | B25: Kommunal | C25: Tätort | D25: VV | E25: 2 | F25: 60 | G25: - | H25: Tangent | I25: M | J25: - | K25: Kommunal Tätort VV 60 - Tangent M | M25: - | N25: ='0. Beräkna - Länk'!$C$26 -> 1 | O25: ='TS-EVA Länkberäkningar'!$L$142/('TS-EVA Länkberäkningar'!$L$145)^('TS-EVA Länkberäkningar'!$L$143-2010) -> 1534.246575 | P25: 0.56 | Q25: 0.07457184 | R25: 0.12093984 | S25: 0.0019425168 | T25: 0.0160213536 | U25: 0.1018470096 | V25: 0.2292130909 | W25: 0.003063360283 | X25: 0.01814986656 | Y25: 0.0240320304 | Z25: 0.1527705144 | AA25: 1.604491636 | AB25: 0.004595040425 | AC25: 0.02722479984 | AF25: 0.1188 | AG25: 1.696969697 | AH25: 1.4 | AI25: 12.6 | AJ25: 85 | AK25: 2.03030303 | AL25: 0.066528 | AM25: 0.112896 | AN25: 0.001580544 | AO25: 0.014224896 | AP25: 0.0959616 | AQ25: 0.2292130909 | AR25: 0.002737276416 | AS25: 0.01645797888 | AT25: 0.021337344 | AU25: 0.1439424 | AV25: 1.604491636 | AW25: 0.004105914624 | AX25: 0.02468696832 | AZ25: 0.14 | BA25: 0.028224 | BB25: 1.5 | BC25: 1.5 | BD25: 7 | BE25: 0.071 | BF25: 0.28 | BG25: 0.018 | BH25: 0.13 | BJ25: 0.0048879936 | BK25: 0.029389248 | BM25: 4.03030303 | BN25: 1 | BO25: 7.5 | BP25: 29 | BQ25: 63.5 | BR25: 0.00268128 | BS25: 0.00268128 | BT25: 0.000201096 | BU25: 0.0007775712 | BV25: 0.0017026128 | BW25: 0.0001363564944 | BX25: 0.000667102464 | BY25: 0.0011663568 | BZ25: 0.0025539192 | CA25: 0.0002045347416 | CB25: 0.001000653696 | CD25: 0.365 | CF25: 1.5 | CG25: 1.5 | CH25: 0.125 | CI25: 0.42 | CJ25: 0.023 | CK25: 0.2 | CL25: 0.00024349374 | CM25: 0.0011912544 | CN25: 8.060606061 | CO25: 1 | CP25: 3 | CQ25: 19 | CR25: 78 | CS25: 0.00536256 | CT25: 0.00536256 | CU25: 0.0001608768 | CV25: 0.0010188864 | CW25: 0.0041827968 | CX25: 0.0001897273728 | CY25: 0.001024785216 | CZ25: 0.0015283296 | DA25: 0.0062741952 | DB25: 0.0002845910592 | DC25: 0.001537177824 | DE25: 0.22 | DG25: 1.5 | DH25: 1.5 | DI25: 0.1 | DJ25: 0.39 | DK25: 0.021 | DL25: 0.15 | DM25: 0.00033879888 | DN25: 0.0018299736
A26: 18 | B26: Kommunal | C26: Tätort | D26: VV | E26: 2 | F26: 60 | G26: - | H26: Tangent | I26: Y | J26: - | K26: Kommunal Tätort VV 60 - Tangent Y | M26: - | N26: ='0. Beräkna - Länk'!$C$26 -> 1 | O26: ='TS-EVA Länkberäkningar'!$L$142/('TS-EVA Länkberäkningar'!$L$145)^('TS-EVA Länkberäkningar'!$L$143-2010) -> 1534.246575 | P26: 0.56 | Q26: 0.064512 | R26: 0.112896 | S26: 0.0017472 | T26: 0.01474816 | U26: 0.09532544 | V26: 0.2182981818 | W26: 0.002824864 | X26: 0.0168050176 | Y26: 0.02212224 | Z26: 0.14298816 | AA26: 1.528087273 | AB26: 0.004237296 | AC26: 0.0252075264 | AF26: 0.1056 | AG26: 1.818181818 | AH26: 1.4 | AI26: 12.6 | AJ26: 85 | AK26: 2.03030303 | AL26: 0.059136 | AM26: 0.10752 | AN26: 0.00150528 | AO26: 0.01354752 | AP26: 0.091392 | AQ26: 0.2182981818 | AR26: 0.00260692992 | AS26: 0.0156742656 | AT26: 0.02032128 | AU26: 0.137088 | AV26: 1.528087273 | AW26: 0.00391039488 | AX26: 0.0235113984 | AZ26: 0.14 | BA26: 0.02688 | BB26: 1.5 | BC26: 1.5 | BD26: 7 | BE26: 0.071 | BF26: 0.28 | BG26: 0.018 | BH26: 0.13 | BJ26: 0.004655232 | BK26: 0.02798976 | BM26: 3.03030303 | BN26: 1 | BO26: 7.5 | BP26: 29 | BQ26: 63.5 | BR26: 0.001792 | BS26: 0.001792 | BT26: 0.0001344 | BU26: 0.00051968 | BV26: 0.00113792 | BW26: 9.113216e-05 | BX26: 0.0004458496 | BY26: 0.00077952 | BZ26: 0.00170688 | CA26: 0.00013669824 | CB26: 0.0006687744 | CD26: 0.365 | CF26: 1.5 | CG26: 1.5 | CH26: 0.125 | CI26: 0.42 | CJ26: 0.023 | CK26: 0.2 | CL26: 0.000162736 | CM26: 0.00079616 | CN26: 6.060606061 | CO26: 1 | CP26: 3 | CQ26: 19 | CR26: 78 | CS26: 0.003584 | CT26: 0.003584 | CU26: 0.00010752 | CV26: 0.00068096 | CW26: 0.00279552 | CX26: 0.00012680192 | CY26: 0.0006849024 | CZ26: 0.00102144 | DA26: 0.00419328 | DB26: 0.00019020288 | DC26: 0.0010273536 | DE26: 0.22 | DG26: 1.5 | DH26: 1.5 | DI26: 0.1 | DJ26: 0.39 | DK26: 0.021 | DL26: 0.15 | DM26: 0.000226432 | DN26: 0.00122304
A27: 19 | B27: Kommunal | C27: Tätort | D27: VV | E27: 2 | F27: 70 | G27: - | H27: GIF | I27: M | J27: - | K27: Kommunal Tätort VV 70 - GIF M | M27: - | N27: ='0. Beräkna - Länk'!$C$26 -> 1 | O27: ='TS-EVA Länkberäkningar'!$L$142/('TS-EVA Länkberäkningar'!$L$145)^('TS-EVA Länkberäkningar'!$L$143-2010) -> 1534.246575 | P27: 0.56 | Q27: 0.072576 | R27: 0.12096 | S27: 0.0025704 | T27: 0.02088576 | U27: 0.09750384 | V27: 0.2333061818 | W27: 0.00360439632 | X27: 0.0201712896 | Y27: 0.03132864 | Z27: 0.14625576 | AA27: 1.633143273 | AB27: 0.00540659448 | AC27: 0.0302569344 | AF27: 0.1188 | AG27: 1.727272727 | AH27: 2 | AI27: 17 | AJ27: 81 | AK27: 2.03030303 | AL27: 0.066528 | AM27: 0.114912 | AN27: 0.00229824 | AO27: 0.01953504 | AP27: 0.09307872 | AQ27: 0.2333061818 | AR27: 0.00333129888 | AS27: 0.0188915328 | AT27: 0.02930256 | AU27: 0.13961808 | AV27: 1.633143273 | AW27: 0.00499694832 | AX27: 0.0283372992 | AZ27: 0.19 | BA27: 0.038988 | BB27: 1.5 | BC27: 1.5 | BD27: 7 | BE27: 0.08 | BF27: 0.3 | BG27: 0.019 | BH27: 0.14 | BJ27: 0.005948748 | BK27: 0.03373488 | BM27: 3.03030303 | BN27: 1 | BO27: 7.5 | BP27: 29 | BQ27: 63.5 | BR27: 0.002016 | BS27: 0.002016 | BT27: 0.0001512 | BU27: 0.00058464 | BV27: 0.00128016 | BW27: 0.00011129328 | BX27: 0.0005015808 | BY27: 0.00087696 | BZ27: 0.00192024 | CA27: 0.00016693992 | CB27: 0.0007523712 | CD27: 0.365 | CF27: 1.5 | CG27: 1.5 | CH27: 0.14 | CI27: 0.42 | CJ27: 0.023 | CK27: 0.2 | CL27: 0.000198738 | CM27: 0.00089568 | CN27: 6.060606061 | CO27: 1 | CP27: 3 | CQ27: 19 | CR27: 78 | CS27: 0.004032 | CT27: 0.004032 | CU27: 0.00012096 | CV27: 0.00076608 | CW27: 0.00314496 | CX27: 0.00016180416 | CY27: 0.000778176 | CZ27: 0.00114912 | DA27: 0.00471744 | DB27: 0.00024270624 | DC27: 0.001167264 | DE27: 0.22 | DG27: 1.5 | DH27: 1.5 | DI27: 0.125 | DJ27: 0.4 | DK27: 0.021 | DL27: 0.15 | DM27: 0.000288936 | DN27: 0.0013896
A28: 20 | B28: Kommunal | C28: Tätort | D28: VV | E28: 2 | F28: 70 | G28: - | H28: GIF | I28: Y | J28: - | K28: Kommunal Tätort VV 70 - GIF Y | M28: - | N28: ='0. Beräkna - Länk'!$C$26 -> 1 | O28: ='TS-EVA Länkberäkningar'!$L$142/('TS-EVA Länkberäkningar'!$L$145)^('TS-EVA Länkberäkningar'!$L$143-2010) -> 1534.246575 | P28: 0.56 | Q28: 0.06332928 | R28: 0.11529728 | S28: 0.0024019072 | T28: 0.0198044672 | U28: 0.0930909056 | V28: 0.2255747879 | W28: 0.003407280934 | X28: 0.01914179635 | Y28: 0.0297067008 | Z28: 0.1396363584 | AA28: 1.579023515 | AB28: 0.005110921402 | AC28: 0.02871269453 | AF28: 0.1056 | AG28: 1.878787879 | AH28: 2 | AI28: 17 | AJ28: 81 | AK28: 2.03030303 | AL28: 0.059136 | AM28: 0.111104 | AN28: 0.00222208 | AO28: 0.01888768 | AP28: 0.08999424 | AQ28: 0.2255747879 | AR28: 0.00322090496 | AS28: 0.0182654976 | AT28: 0.02833152 | AU28: 0.13499136 | AV28: 1.579023515 | AW28: 0.00483135744 | AX28: 0.0273982464 | AZ28: 0.19 | BA28: 0.037696 | BB28: 1.5 | BC28: 1.5 | BD28: 7 | BE28: 0.08 | BF28: 0.3 | BG28: 0.019 | BH28: 0.14 | BJ28: 0.005751616 | BK28: 0.03261696 | BM28: 2.03030303 | BN28: 1 | BO28: 7.5 | BP28: 29 | BQ28: 63.5 | BR28: 0.00120064 | BS28: 0.00120064 | BT28: 9.0048e-05 | BU28: 0.0003481856 | BV28: 0.0007624064 | BW28: 6.62813312e-05 | BX28: 0.000298719232 | BY28: 0.0005222784 | BZ28: 0.0011436096 | CA28: 9.94219968e-05 | CB28: 0.000448078848 | CD28: 0.365 | CF28: 1.5 | CG28: 1.5 | CH28: 0.14 | CI28: 0.42 | CJ28: 0.023 | CK28: 0.2 | CL28: 0.00011835952 | CM28: 0.0005334272 | CN28: 5.060606061 | CO28: 1 | CP28: 3 | CQ28: 19 | CR28: 78 | CS28: 0.00299264 | CT28: 0.00299264 | CU28: 8.97792e-05 | CV28: 0.0005686016 | CW28: 0.0023342592 | CX28: 0.0001200946432 | CY28: 0.00057757952 | CZ28: 0.0008529024 | DA28: 0.0035013888 | DB28: 0.0001801419648 | DC28: 0.00086636928 | DE28: 0.22 | DG28: 1.5 | DH28: 1.5 | DI28: 0.125 | DJ28: 0.4 | DK28: 0.021 | DL28: 0.15 | DM28: 0.00021445472 | DN28: 0.001031392
A29: 21 | B29: Kommunal | C29: Tätort | D29: VV | E29: 2 | F29: 70 | G29: - | H29: Tangent | I29: M | J29: - | K29: Kommunal Tätort VV 70 - Tangent M | M29: - | N29: ='0. Beräkna - Länk'!$C$26 -> 1 | O29: ='TS-EVA Länkberäkningar'!$L$142/('TS-EVA Länkberäkningar'!$L$145)^('TS-EVA Länkberäkningar'!$L$143-2010) -> 1534.246575 | P29: 0.56 | Q29: 0.0828576 | R29: 0.1343776 | S29: 0.002910992 | T29: 0.023320864 | U29: 0.108145744 | V29: 0.2546812121 | W29: 0.004040082928 | X29: 0.02251353216 | Y29: 0.034981296 | Z29: 0.162218616 | AA29: 1.782768485 | AB29: 0.006060124392 | AC29: 0.03377029824 | AF29: 0.132 | AG29: 1.696969697 | AH29: 2 | AI29: 17 | AJ29: 81 | AK29: 2.03030303 | AL29: 0.07392 | AM29: 0.12544 | AN29: 0.0025088 | AO29: 0.0213248 | AP29: 0.1016064 | AQ29: 0.2546812121 | AR29: 0.0036365056 | AS29: 0.020622336 | AT29: 0.0319872 | AU29: 0.1524096 | AV29: 1.782768485 | AW29: 0.0054547584 | AX29: 0.030933504 | AZ29: 0.19 | BA29: 0.04256 | BB29: 1.5 | BC29: 1.5 | BD29: 7 | BE29: 0.08 | BF29: 0.3 | BG29: 0.019 | BH29: 0.14 | BJ29: 0.00649376 | BK29: 0.0368256 | BM29: 4.03030303 | BN29: 1 | BO29: 7.5 | BP29: 29 | BQ29: 63.5 | BR29: 0.0029792 | BS29: 0.0029792 | BT29: 0.00022344 | BU29: 0.000863968 | BV29: 0.001891792 | BW29: 0.000164466736 | BX29: 0.00074122496 | BY29: 0.001295952 | BZ29: 0.002837688 | CA29: 0.000246700104 | CB29: 0.00111183744 | CD29: 0.365 | CF29: 1.5 | CG29: 1.5 | CH29: 0.14 | CI29: 0.42 | CJ29: 0.023 | CK29: 0.2 | CL29: 0.0002936906 | CM29: 0.001323616 | CN29: 8.060606061 | CO29: 1 | CP29: 3 | CQ29: 19 | CR29: 78 | CS29: 0.0059584 | CT29: 0.0059584 | CU29: 0.000178752 | CV29: 0.001132096 | CW29: 0.004647552 | CX29: 0.000239110592 | CY29: 0.0011499712 | CZ29: 0.001698144 | DA29: 0.006971328 | DB29: 0.000358665888 | DC29: 0.0017249568 | DE29: 0.22 | DG29: 1.5 | DH29: 1.5 | DI29: 0.125 | DJ29: 0.4 | DK29: 0.021 | DL29: 0.15 | DM29: 0.0004269832 | DN29: 0.00205352
A30: 22 | B30: Kommunal | C30: Tätort | D30: VV | E30: 2 | F30: 70 | G30: - | H30: Tangent | I30: Y | J30: - | K30: Kommunal Tätort VV 70 - Tangent Y | M30: - | N30: ='0. Beräkna - Länk'!$C$26 -> 1 | O30: ='TS-EVA Länkberäkningar'!$L$142/('TS-EVA Länkberäkningar'!$L$145)^('TS-EVA Länkberäkningar'!$L$143-2010) -> 1534.246575 | P30: 0.56 | Q30: 0.072576 | R30: 0.127008 | S30: 0.00269136 | T30: 0.02191392 | U30: 0.10240272 | V30: 0.2455854545 | W30: 0.00377972784 | X30: 0.0211655808 | Y30: 0.03287088 | Z30: 0.15360408 | AA30: 1.719098182 | AB30: 0.00566959176 | AC30: 0.0317483712 | AF30: 0.1188 | AG30: 1.818181818 | AH30: 2 | AI30: 17 | AJ30: 81 | AK30: 2.03030303 | AL30: 0.066528 | AM30: 0.12096 | AN30: 0.0024192 | AO30: 0.0205632 | AP30: 0.0979776 | AQ30: 0.2455854545 | AR30: 0.0035066304 | AS30: 0.019885824 | AT30: 0.0308448 | AU30: 0.1469664 | AV30: 1.719098182 | AW30: 0.0052599456 | AX30: 0.029828736 | AZ30: 0.19 | BA30: 0.04104 | BB30: 1.5 | BC30: 1.5 | BD30: 7 | BE30: 0.08 | BF30: 0.3 | BG30: 0.019 | BH30: 0.14 | BJ30: 0.00626184 | BK30: 0.0355104 | BM30: 3.03030303 | BN30: 1 | BO30: 7.5 | BP30: 29 | BQ30: 63.5 | BR30: 0.002016 | BS30: 0.002016 | BT30: 0.0001512 | BU30: 0.00058464 | BV30: 0.00128016 | BW30: 0.00011129328 | BX30: 0.0005015808 | BY30: 0.00087696 | BZ30: 0.00192024 | CA30: 0.00016693992 | CB30: 0.0007523712 | CD30: 0.365 | CF30: 1.5 | CG30: 1.5 | CH30: 0.14 | CI30: 0.42 | CJ30: 0.023 | CK30: 0.2 | CL30: 0.000198738 | CM30: 0.00089568 | CN30: 6.060606061 | CO30: 1 | CP30: 3 | CQ30: 19 | CR30: 78 | CS30: 0.004032 | CT30: 0.004032 | CU30: 0.00012096 | CV30: 0.00076608 | CW30: 0.00314496 | CX30: 0.00016180416 | CY30: 0.000778176 | CZ30: 0.00114912 | DA30: 0.00471744 | DB30: 0.00024270624 | DC30: 0.001167264 | DE30: 0.22 | DG30: 1.5 | DH30: 1.5 | DI30: 0.125 | DJ30: 0.4 | DK30: 0.021 | DL30: 0.15 | DM30: 0.000288936 | DN30: 0.0013896
A31: 23 | B31: Kommunal | C31: Tätort | D31: VV | E31: 2 | F31: 80 | G31: - | H31: GIF | I31: Y | J31: - | K31: Kommunal Tätort VV 80 - GIF Y | M31: - | N31: ='0. Beräkna - Länk'!$C$26 -> 1 | O31: ='TS-EVA Länkberäkningar'!$L$142/('TS-EVA Länkberäkningar'!$L$145)^('TS-EVA Länkberäkningar'!$L$143-2010) -> 1534.246575 | P31: 0.56 | Q31: 0.05124 | R31: 0.08204 | S31: 0.0021658 | T31: 0.0145922 | U31: 0.065282 | V31: 0.1482 | W31: 0.002443924 | X31: 0.013622924 | Y31: 0.0218883 | Z31: 0.097923 | AA31: 1.0374 | AB31: 0.003665886 | AC31: 0.020434386 | AF31: 0.0875 | AG31: 1.628571429 | AH31: 2.5 | AI31: 17.5 | AJ31: 80 | AK31: 1.857142857 | AL31: 0.049 | AM31: 0.0798 | AN31: 0.001995 | AO31: 0.013965 | AP31: 0.06384 | AQ31: 0.1482 | AR31: 0.00233016 | AS31: 0.0131271 | AT31: 0.0209475 | AU31: 0.09576 | AV31: 1.0374 | AW31: 0.00349524 | AX31: 0.01969065 | AZ31: 0.2 | BA31: 0.0285 | BB31: 1.5 | BC31: 1.5 | BD31: 7 | BE31: 0.08 | BF31: 0.3 | BG31: 0.019 | BH31: 0.14 | BJ31: 0.004161 | BK31: 0.02344125 | BM31: 1.714285714 | BN31: 1 | BO31: 12 | BP31: 33 | BQ31: 55 | BR31: 0.00084 | BS31: 0.00084 | BT31: 0.0001008 | BU31: 0.0002772 | BV31: 0.000462 | BW31: 4.9434e-05 | BX31: 0.000208824 | BY31: 0.0004158 | BZ31: 0.000693 | CA31: 7.4151e-05 | CB31: 0.000313236 | CD31: 0.45 | CF31: 1.5 | CG31: 1.5 | CH31: 0.14 | CI31: 0.42 | CJ31: 0.023 | CK31: 0.2 | CL31: 8.8275e-05 | CM31: 0.0003729 | CN31: 2.857142857 | CO31: 1 | CP31: 5 | CQ31: 25 | CR31: 70 | CS31: 0.0014 | CT31: 0.0014 | CU31: 7e-05 | CV31: 0.00035 | CW31: 0.00098 | CX31: 6.433e-05 | CY31: 0.000287 | CZ31: 0.000525 | DA31: 0.00147 | DB31: 9.6495e-05 | DC31: 0.0004305 | DE31: 0.3 | DG31: 1.5 | DH31: 1.5 | DI31: 0.125 | DJ31: 0.4 | DK31: 0.021 | DL31: 0.15 | DM31: 0.000114875 | DN31: 0.0005125
A32: 24 | B32: Kommunal | C32: Tätort | D32: VV | E32: 2 | F32: 80 | G32: - | H32: Tangent | I32: Y | J32: - | K32: Kommunal Tätort VV 80 - Tangent Y | M32: - | N32: ='0. Beräkna - Länk'!$C$26 -> 1 | O32: ='TS-EVA Länkberäkningar'!$L$142/('TS-EVA Länkberäkningar'!$L$145)^('TS-EVA Länkberäkningar'!$L$143-2010) -> 1534.246575 | P32: 0.56 | Q32: 0.05124 | R32: 0.08204 | S32: 0.0021658 | T32: 0.0145922 | U32: 0.065282 | V32: 0.1482 | W32: 0.002443924 | X32: 0.013622924 | Y32: 0.0218883 | Z32: 0.097923 | AA32: 1.0374 | AB32: 0.003665886 | AC32: 0.020434386 | AF32: 0.0875 | AG32: 1.628571429 | AH32: 2.5 | AI32: 17.5 | AJ32: 80 | AK32: 1.857142857 | AL32: 0.049 | AM32: 0.0798 | AN32: 0.001995 | AO32: 0.013965 | AP32: 0.06384 | AQ32: 0.1482 | AR32: 0.00233016 | AS32: 0.0131271 | AT32: 0.0209475 | AU32: 0.09576 | AV32: 1.0374 | AW32: 0.00349524 | AX32: 0.01969065 | AZ32: 0.2 | BA32: 0.0285 | BB32: 1.5 | BC32: 1.5 | BD32: 7 | BE32: 0.08 | BF32: 0.3 | BG32: 0.019 | BH32: 0.14 | BJ32: 0.004161 | BK32: 0.02344125 | BM32: 1.714285714 | BN32: 1 | BO32: 12 | BP32: 33 | BQ32: 55 | BR32: 0.00084 | BS32: 0.00084 | BT32: 0.0001008 | BU32: 0.0002772 | BV32: 0.000462 | BW32: 4.9434e-05 | BX32: 0.000208824 | BY32: 0.0004158 | BZ32: 0.000693 | CA32: 7.4151e-05 | CB32: 0.000313236 | CD32: 0.45 | CF32: 1.5 | CG32: 1.5 | CH32: 0.14 | CI32: 0.42 | CJ32: 0.023 | CK32: 0.2 | CL32: 8.8275e-05 | CM32: 0.0003729 | CN32: 2.857142857 | CO32: 1 | CP32: 5 | CQ32: 25 | CR32: 70 | CS32: 0.0014 | CT32: 0.0014 | CU32: 7e-05 | CV32: 0.00035 | CW32: 0.00098 | CX32: 6.433e-05 | CY32: 0.000287 | CZ32: 0.000525 | DA32: 0.00147 | DB32: 9.6495e-05 | DC32: 0.0004305 | DE32: 0.3 | DG32: 1.5 | DH32: 1.5 | DI32: 0.125 | DJ32: 0.4 | DK32: 0.021 | DL32: 0.15 | DM32: 0.000114875 | DN32: 0.0005125
A33: 25 | B33: Statlig | C33: Tätort | D33: VV | E33: 2 | F33: 40 | G33: - | H33: - | I33: - | J33: - | K33: Statlig Tätort VV 40 - - - | M33: - | N33: ='0. Beräkna - Länk'!$C$26 -> 1 | O33: ='TS-EVA Länkberäkningar'!$L$142/('TS-EVA Länkberäkningar'!$L$145)^('TS-EVA Länkberäkningar'!$L$143-2010) -> 1534.246575 | P33: 0.56 | Q33: 0.0865536 | R33: 0.12029696 | S33: 0.0016137856 | T33: 0.0217958272 | U33: 0.0968873472 | V33: 0.21952 | W33: 0.00372040489 | X33: 0.02082727987 | Y33: 0.03705290624 | Z33: 0.1647084902 | AA33: 1.53664 | AB33: 0.006324688312 | AC33: 0.03540637578 | AF33: 0.112 | AG33: 1.5 | AH33: 1.4 | AI33: 18.1 | AJ33: 80.5 | AK33: 2.333333333 | AL33: 0.06272 | AM33: 0.09408 | AN33: 0.00131712 | AO33: 0.01702848 | AP33: 0.0757344 | AQ33: 0.21952 | AR33: 0.0025552128 | AS33: 0.0146134464 | AT33: 0.028948416 | AU33: 0.12874848 | AV33: 1.53664 | AW33: 0.00434386176 | AX33: 0.02484285888 | AZ33: 0.195 | BA33: 0.03276 | BB33: 1.7 | BC33: 1.7 | BD33: 7 | BE33: 0.07 | BF33: 0.28 | BG33: 0.018 | BH33: 0.13 | BJ33: 0.00456288 | BK33: 0.02609544 | BM33: 16 | BN33: 1.1 | BO33: 2 | BP33: 26 | BQ33: 72 | BR33: 0.0100352 | BS33: 0.01103872 | BT33: 0.0002207744 | BU33: 0.0028700672 | BV33: 0.0079478784 | BW33: 0.0006035972096 | BX33: 0.003040063488 | BY33: 0.00487911424 | BZ33: 0.01351139328 | CA33: 0.001026115256 | CB33: 0.00516810793 | CD33: 0.28 | CF33: 1.7 | CG33: 1.7 | CH33: 0.13 | CI33: 0.45 | CJ33: 0.029 | CK33: 0.22 | CL33: 0.00107785216 | CM33: 0.0054286848 | CN33: 22 | CO33: 1.1 | CP33: 0.5 | CQ33: 12.5 | CR33: 87 | CS33: 0.0137984 | CT33: 0.01517824 | CU33: 7.58912e-05 | CV33: 0.00189728 | CW33: 0.0132050688 | CX33: 0.00056159488 | CY33: 0.003173769984 | CZ33: 0.003225376 | DA33: 0.02244861696 | DB33: 0.000954711296 | DC33: 0.005395408973 | DE33: 0.13 | DG33: 1.7 | DH33: 1.7 | DI33: 0.122 | DJ33: 0.42 | DK33: 0.025 | DL33: 0.18 | DM33: 0.001002848 | DN33: 0.0056674464
A34: 26 | B34: Statlig | C34: Tätort | D34: VV | E34: 2 | F34: 50 | G34: <5,7 | H34: - | I34: - | J34: - | K34: Statlig Tätort VV 50 <5,7 - - | M34: - | N34: ='0. Beräkna - Länk'!$C$26 -> 1 | O34: ='TS-EVA Länkberäkningar'!$L$142/('TS-EVA Länkberäkningar'!$L$145)^('TS-EVA Länkberäkningar'!$L$143-2010) -> 1534.246575 | P34: 0.56 | Q34: 0.10280592 | R34: 0.149021208 | S34: 0.00216101676 | T34: 0.0215132442 | U34: 0.125346947 | V34: 0.2837296 | W34: 0.00427773546 | X34: 0.0245999805 | Y34: 0.03657251514 | Z34: 0.21308981 | AA34: 1.9861072 | AB34: 0.007272150282 | AC34: 0.04181996685 | AF34: 0.141 | AG34: 1.54 | AH34: 1.3 | AI34: 12.7 | AJ34: 86 | AK34: 2.333333333 | AL34: 0.07896 | AM34: 0.1215984 | AN34: 0.0015807792 | AO34: 0.0154429968 | AP34: 0.104574624 | AQ34: 0.2837296 | AR34: 0.002963353008 | AS34: 0.01791874022 | AT34: 0.02625309456 | AU34: 0.1777768608 | AV34: 1.9861072 | AW34: 0.005037700114 | AX34: 0.03046185838 | AZ34: 0.14 | BA34: 0.0303996 | BB34: 1.7 | BC34: 1.7 | BD34: 7 | BE34: 0.07 | BF34: 0.28 | BG34: 0.018 | BH34: 0.13 | BJ34: 0.0052917018 | BK34: 0.0319977504 | BM34: 12.2 | BN34: 1.15 | BO34: 4.5 | BP34: 27.5 | BQ34: 68 | BR34: 0.00963312 | BS34: 0.011078088 | BT34: 0.00049851396 | BU34: 0.0030464742 | BV34: 0.00753309984 | BW34: 0.0006145015414 | BX34: 0.003028195355 | BY34: 0.00517900614 | BZ34: 0.01280626973 | CA34: 0.00104465262 | CB34: 0.005147932103 | CD34: 0.32 | CF34: 1.7 | CG34: 1.7 | CH34: 0.13 | CI34: 0.45 | CJ34: 0.029 | CK34: 0.22 | CL34: 0.001097324181 | CM34: 0.005407491705 | CN34: 18 | CO34: 1.15 | CP34: 0.5 | CQ34: 18.5 | CR34: 81 | CS34: 0.0142128 | CT34: 0.01634472 | CU34: 8.17236e-05 | CV34: 0.0030237732 | CW34: 0.0132392232 | CX34: 0.0006998809104 | CY34: 0.00365304492 | CZ34: 0.00514041444 | DA34: 0.02250667944 | DB34: 0.001189797548 | DC34: 0.006210176364 | DE34: 0.19 | DG34: 1.7 | DH34: 1.7 | DI34: 0.122 | DJ34: 0.42 | DK34: 0.025 | DL34: 0.18 | DM34: 0.00124978734 | DN34: 0.0065232945
A35: 27 | B35: Statlig | C35: Tätort | D35: VV | E35: 2 | F35: 50 | G35: 5,7-6,6 | H35: - | I35: - | J35: - | K35: Statlig Tätort VV 50 5,7-6,6 - - | M35: - | N35: ='0. Beräkna - Länk'!$C$26 -> 1 | O35: ='TS-EVA Länkberäkningar'!$L$142/('TS-EVA Länkberäkningar'!$L$145)^('TS-EVA Länkberäkningar'!$L$143-2010) -> 1534.246575 | P35: 0.56 | Q35: 0.10280592 | R35: 0.149021208 | S35: 0.00216101676 | T35: 0.0215132442 | U35: 0.125346947 | V35: 0.2837296 | W35: 0.00427773546 | X35: 0.0245999805 | Y35: 0.03657251514 | Z35: 0.21308981 | AA35: 1.9861072 | AB35: 0.007272150282 | AC35: 0.04181996685 | AF35: 0.141 | AG35: 1.54 | AH35: 1.3 | AI35: 12.7 | AJ35: 86 | AK35: 2.333333333 | AL35: 0.07896 | AM35: 0.1215984 | AN35: 0.0015807792 | AO35: 0.0154429968 | AP35: 0.104574624 | AQ35: 0.2837296 | AR35: 0.002963353008 | AS35: 0.01791874022 | AT35: 0.02625309456 | AU35: 0.1777768608 | AV35: 1.9861072 | AW35: 0.005037700114 | AX35: 0.03046185838 | AZ35: 0.14 | BA35: 0.0303996 | BB35: 1.7 | BC35: 1.7 | BD35: 7 | BE35: 0.07 | BF35: 0.28 | BG35: 0.018 | BH35: 0.13 | BJ35: 0.0052917018 | BK35: 0.0319977504 | BM35: 12.2 | BN35: 1.15 | BO35: 4.5 | BP35: 27.5 | BQ35: 68 | BR35: 0.00963312 | BS35: 0.011078088 | BT35: 0.00049851396 | BU35: 0.0030464742 | BV35: 0.00753309984 | BW35: 0.0006145015414 | BX35: 0.003028195355 | BY35: 0.00517900614 | BZ35: 0.01280626973 | CA35: 0.00104465262 | CB35: 0.005147932103 | CD35: 0.32 | CF35: 1.7 | CG35: 1.7 | CH35: 0.13 | CI35: 0.45 | CJ35: 0.029 | CK35: 0.22 | CL35: 0.001097324181 | CM35: 0.005407491705 | CN35: 18 | CO35: 1.15 | CP35: 0.5 | CQ35: 18.5 | CR35: 81 | CS35: 0.0142128 | CT35: 0.01634472 | CU35: 8.17236e-05 | CV35: 0.0030237732 | CW35: 0.0132392232 | CX35: 0.0006998809104 | CY35: 0.00365304492 | CZ35: 0.00514041444 | DA35: 0.02250667944 | DB35: 0.001189797548 | DC35: 0.006210176364 | DE35: 0.19 | DG35: 1.7 | DH35: 1.7 | DI35: 0.122 | DJ35: 0.42 | DK35: 0.025 | DL35: 0.18 | DM35: 0.00124978734 | DN35: 0.0065232945
A36: 28 | B36: Statlig | C36: Tätort | D36: VV | E36: 2 | F36: 50 | G36: 6,7-7,9 | H36: - | I36: - | J36: - | K36: Statlig Tätort VV 50 6,7-7,9 - - | M36: - | N36: ='0. Beräkna - Länk'!$C$26 -> 1 | O36: ='TS-EVA Länkberäkningar'!$L$142/('TS-EVA Länkberäkningar'!$L$145)^('TS-EVA Länkberäkningar'!$L$143-2010) -> 1534.246575 | P36: 0.56 | Q36: 0.10280592 | R36: 0.149021208 | S36: 0.00216101676 | T36: 0.0215132442 | U36: 0.125346947 | V36: 0.2837296 | W36: 0.00427773546 | X36: 0.0245999805 | Y36: 0.03657251514 | Z36: 0.21308981 | AA36: 1.9861072 | AB36: 0.007272150282 | AC36: 0.04181996685 | AF36: 0.141 | AG36: 1.54 | AH36: 1.3 | AI36: 12.7 | AJ36: 86 | AK36: 2.333333333 | AL36: 0.07896 | AM36: 0.1215984 | AN36: 0.0015807792 | AO36: 0.0154429968 | AP36: 0.104574624 | AQ36: 0.2837296 | AR36: 0.002963353008 | AS36: 0.01791874022 | AT36: 0.02625309456 | AU36: 0.1777768608 | AV36: 1.9861072 | AW36: 0.005037700114 | AX36: 0.03046185838 | AZ36: 0.14 | BA36: 0.0303996 | BB36: 1.7 | BC36: 1.7 | BD36: 7 | BE36: 0.07 | BF36: 0.28 | BG36: 0.018 | BH36: 0.13 | BJ36: 0.0052917018 | BK36: 0.0319977504 | BM36: 12.2 | BN36: 1.15 | BO36: 4.5 | BP36: 27.5 | BQ36: 68 | BR36: 0.00963312 | BS36: 0.011078088 | BT36: 0.00049851396 | BU36: 0.0030464742 | BV36: 0.00753309984 | BW36: 0.0006145015414 | BX36: 0.003028195355 | BY36: 0.00517900614 | BZ36: 0.01280626973 | CA36: 0.00104465262 | CB36: 0.005147932103 | CD36: 0.32 | CF36: 1.7 | CG36: 1.7 | CH36: 0.13 | CI36: 0.45 | CJ36: 0.029 | CK36: 0.22 | CL36: 0.001097324181 | CM36: 0.005407491705 | CN36: 18 | CO36: 1.15 | CP36: 0.5 | CQ36: 18.5 | CR36: 81 | CS36: 0.0142128 | CT36: 0.01634472 | CU36: 8.17236e-05 | CV36: 0.0030237732 | CW36: 0.0132392232 | CX36: 0.0006998809104 | CY36: 0.00365304492 | CZ36: 0.00514041444 | DA36: 0.02250667944 | DB36: 0.001189797548 | DC36: 0.006210176364 | DE36: 0.19 | DG36: 1.7 | DH36: 1.7 | DI36: 0.122 | DJ36: 0.42 | DK36: 0.025 | DL36: 0.18 | DM36: 0.00124978734 | DN36: 0.0065232945
A37: 29 | B37: Statlig | C37: Tätort | D37: VV | E37: 2 | F37: 50 | G37: 8-10 | H37: - | I37: - | J37: - | K37: Statlig Tätort VV 50 8-10 - - | M37: - | N37: ='0. Beräkna - Länk'!$C$26 -> 1 | O37: ='TS-EVA Länkberäkningar'!$L$142/('TS-EVA Länkberäkningar'!$L$145)^('TS-EVA Länkberäkningar'!$L$143-2010) -> 1534.246575 | P37: 0.56 | Q37: 0.10280592 | R37: 0.149021208 | S37: 0.00216101676 | T37: 0.0215132442 | U37: 0.125346947 | V37: 0.2837296 | W37: 0.00427773546 | X37: 0.0245999805 | Y37: 0.03657251514 | Z37: 0.21308981 | AA37: 1.9861072 | AB37: 0.007272150282 | AC37: 0.04181996685 | AF37: 0.141 | AG37: 1.54 | AH37: 1.3 | AI37: 12.7 | AJ37: 86 | AK37: 2.333333333 | AL37: 0.07896 | AM37: 0.1215984 | AN37: 0.0015807792 | AO37: 0.0154429968 | AP37: 0.104574624 | AQ37: 0.2837296 | AR37: 0.002963353008 | AS37: 0.01791874022 | AT37: 0.02625309456 | AU37: 0.1777768608 | AV37: 1.9861072 | AW37: 0.005037700114 | AX37: 0.03046185838 | AZ37: 0.14 | BA37: 0.0303996 | BB37: 1.7 | BC37: 1.7 | BD37: 7 | BE37: 0.07 | BF37: 0.28 | BG37: 0.018 | BH37: 0.13 | BJ37: 0.0052917018 | BK37: 0.0319977504 | BM37: 12.2 | BN37: 1.15 | BO37: 4.5 | BP37: 27.5 | BQ37: 68 | BR37: 0.00963312 | BS37: 0.011078088 | BT37: 0.00049851396 | BU37: 0.0030464742 | BV37: 0.00753309984 | BW37: 0.0006145015414 | BX37: 0.003028195355 | BY37: 0.00517900614 | BZ37: 0.01280626973 | CA37: 0.00104465262 | CB37: 0.005147932103 | CD37: 0.32 | CF37: 1.7 | CG37: 1.7 | CH37: 0.13 | CI37: 0.45 | CJ37: 0.029 | CK37: 0.22 | CL37: 0.001097324181 | CM37: 0.005407491705 | CN37: 18 | CO37: 1.15 | CP37: 0.5 | CQ37: 18.5 | CR37: 81 | CS37: 0.0142128 | CT37: 0.01634472 | CU37: 8.17236e-05 | CV37: 0.0030237732 | CW37: 0.0132392232 | CX37: 0.0006998809104 | CY37: 0.00365304492 | CZ37: 0.00514041444 | DA37: 0.02250667944 | DB37: 0.001189797548 | DC37: 0.006210176364 | DE37: 0.19 | DG37: 1.7 | DH37: 1.7 | DI37: 0.122 | DJ37: 0.42 | DK37: 0.025 | DL37: 0.18 | DM37: 0.00124978734 | DN37: 0.0065232945
A38: 30 | B38: Statlig | C38: Tätort | D38: VV | E38: 2 | F38: 50 | G38: 10,1-11,5 | H38: - | I38: - | J38: - | K38: Statlig Tätort VV 50 10,1-11,5 - - | M38: - | N38: ='0. Beräkna - Länk'!$C$26 -> 1 | O38: ='TS-EVA Länkberäkningar'!$L$142/('TS-EVA Länkberäkningar'!$L$145)^('TS-EVA Länkberäkningar'!$L$143-2010) -> 1534.246575 | P38: 0.56 | Q38: 0.10280592 | R38: 0.149021208 | S38: 0.00216101676 | T38: 0.0215132442 | U38: 0.125346947 | V38: 0.2837296 | W38: 0.00427773546 | X38: 0.0245999805 | Y38: 0.03657251514 | Z38: 0.21308981 | AA38: 1.9861072 | AB38: 0.007272150282 | AC38: 0.04181996685 | AF38: 0.141 | AG38: 1.54 | AH38: 1.3 | AI38: 12.7 | AJ38: 86 | AK38: 2.333333333 | AL38: 0.07896 | AM38: 0.1215984 | AN38: 0.0015807792 | AO38: 0.0154429968 | AP38: 0.104574624 | AQ38: 0.2837296 | AR38: 0.002963353008 | AS38: 0.01791874022 | AT38: 0.02625309456 | AU38: 0.1777768608 | AV38: 1.9861072 | AW38: 0.005037700114 | AX38: 0.03046185838 | AZ38: 0.14 | BA38: 0.0303996 | BB38: 1.7 | BC38: 1.7 | BD38: 7 | BE38: 0.07 | BF38: 0.28 | BG38: 0.018 | BH38: 0.13 | BJ38: 0.0052917018 | BK38: 0.0319977504 | BM38: 12.2 | BN38: 1.15 | BO38: 4.5 | BP38: 27.5 | BQ38: 68 | BR38: 0.00963312 | BS38: 0.011078088 | BT38: 0.00049851396 | BU38: 0.0030464742 | BV38: 0.00753309984 | BW38: 0.0006145015414 | BX38: 0.003028195355 | BY38: 0.00517900614 | BZ38: 0.01280626973 | CA38: 0.00104465262 | CB38: 0.005147932103 | CD38: 0.32 | CF38: 1.7 | CG38: 1.7 | CH38: 0.13 | CI38: 0.45 | CJ38: 0.029 | CK38: 0.22 | CL38: 0.001097324181 | CM38: 0.005407491705 | CN38: 18 | CO38: 1.15 | CP38: 0.5 | CQ38: 18.5 | CR38: 81 | CS38: 0.0142128 | CT38: 0.01634472 | CU38: 8.17236e-05 | CV38: 0.0030237732 | CW38: 0.0132392232 | CX38: 0.0006998809104 | CY38: 0.00365304492 | CZ38: 0.00514041444 | DA38: 0.02250667944 | DB38: 0.001189797548 | DC38: 0.006210176364 | DE38: 0.19 | DG38: 1.7 | DH38: 1.7 | DI38: 0.122 | DJ38: 0.42 | DK38: 0.025 | DL38: 0.18 | DM38: 0.00124978734 | DN38: 0.0065232945
A39: 31 | B39: Statlig | C39: Tätort | D39: VV | E39: 2 | F39: 50 | G39: 11,6- | H39: - | I39: - | J39: - | K39: Statlig Tätort VV 50 11,6- - - | M39: - | N39: ='0. Beräkna - Länk'!$C$26 -> 1 | O39: ='TS-EVA Länkberäkningar'!$L$142/('TS-EVA Länkberäkningar'!$L$145)^('TS-EVA Länkberäkningar'!$L$143-2010) -> 1534.246575 | P39: 0.56 | Q39: 0.10280592 | R39: 0.149021208 | S39: 0.00216101676 | T39: 0.0215132442 | U39: 0.125346947 | V39: 0.2837296 | W39: 0.00427773546 | X39: 0.0245999805 | Y39: 0.03657251514 | Z39: 0.21308981 | AA39: 1.9861072 | AB39: 0.007272150282 | AC39: 0.04181996685 | AF39: 0.141 | AG39: 1.54 | AH39: 1.3 | AI39: 12.7 | AJ39: 86 | AK39: 2.333333333 | AL39: 0.07896 | AM39: 0.1215984 | AN39: 0.0015807792 | AO39: 0.0154429968 | AP39: 0.104574624 | AQ39: 0.2837296 | AR39: 0.002963353008 | AS39: 0.01791874022 | AT39: 0.02625309456 | AU39: 0.1777768608 | AV39: 1.9861072 | AW39: 0.005037700114 | AX39: 0.03046185838 | AZ39: 0.14 | BA39: 0.0303996 | BB39: 1.7 | BC39: 1.7 | BD39: 7 | BE39: 0.07 | BF39: 0.28 | BG39: 0.018 | BH39: 0.13 | BJ39: 0.0052917018 | BK39: 0.0319977504 | BM39: 12.2 | BN39: 1.15 | BO39: 4.5 | BP39: 27.5 | BQ39: 68 | BR39: 0.00963312 | BS39: 0.011078088 | BT39: 0.00049851396 | BU39: 0.0030464742 | BV39: 0.00753309984 | BW39: 0.0006145015414 | BX39: 0.003028195355 | BY39: 0.00517900614 | BZ39: 0.01280626973 | CA39: 0.00104465262 | CB39: 0.005147932103 | CD39: 0.32 | CF39: 1.7 | CG39: 1.7 | CH39: 0.13 | CI39: 0.45 | CJ39: 0.029 | CK39: 0.22 | CL39: 0.001097324181 | CM39: 0.005407491705 | CN39: 18 | CO39: 1.15 | CP39: 0.5 | CQ39: 18.5 | CR39: 81 | CS39: 0.0142128 | CT39: 0.01634472 | CU39: 8.17236e-05 | CV39: 0.0030237732 | CW39: 0.0132392232 | CX39: 0.0006998809104 | CY39: 0.00365304492 | CZ39: 0.00514041444 | DA39: 0.02250667944 | DB39: 0.001189797548 | DC39: 0.006210176364 | DE39: 0.19 | DG39: 1.7 | DH39: 1.7 | DI39: 0.122 | DJ39: 0.42 | DK39: 0.025 | DL39: 0.18 | DM39: 0.00124978734 | DN39: 0.0065232945
A40: 32 | B40: Statlig | C40: Tätort | D40: VV | E40: 2 | F40: 60 | G40: - | H40: - | I40: - | J40: - | K40: Statlig Tätort VV 60 - - - | M40: - | N40: ='0. Beräkna - Länk'!$C$26 -> 1 | O40: ='TS-EVA Länkberäkningar'!$L$142/('TS-EVA Länkberäkningar'!$L$145)^('TS-EVA Länkberäkningar'!$L$143-2010) -> 1534.246575 | P40: 0.56 | Q40: 0.07315056 | R40: 0.112537544 | S40: 0.0024281922 | T40: 0.01556648212 | U40: 0.09454286968 | V40: 0.2436149333 | W40: 0.002948918063 | X40: 0.01731159512 | Y40: 0.0264630196 | Z40: 0.1607228785 | AA40: 1.705304533 | AB40: 0.005013160707 | AC40: 0.0294297117 | AF40: 0.118 | AG40: 1.58 | AH40: 2 | AI40: 13 | AJ40: 85 | AK40: 2.333333333 | AL40: 0.06608 | AM40: 0.1044064 | AN40: 0.002088128 | AO40: 0.013572832 | AP40: 0.08874544 | AQ40: 0.2436149333 | AR40: 0.00254751616 | AS40: 0.01533730016 | AT40: 0.0230738144 | AU40: 0.150867248 | AV40: 1.705304533 | AW40: 0.004330777472 | AX40: 0.02607341027 | AZ40: 0.15 | BA40: 0.027966 | BB40: 1.7 | BC40: 1.7 | BD40: 7 | BE40: 0.07 | BF40: 0.28 | BG40: 0.018 | BH40: 0.13 | BJ40: 0.004549136 | BK40: 0.027388036 | BM40: 3.6 | BN40: 1.15 | BO40: 7.5 | BP40: 28.5 | BQ40: 64 | BR40: 0.00237888 | BS40: 0.002735712 | BT40: 0.0002051784 | BU40: 0.00077967792 | BV40: 0.00175085568 | BW40: 0.0001521329443 | BX40: 0.0007360433136 | BY40: 0.001325452464 | BZ40: 0.002976454656 | CA40: 0.0002586260053 | CB40: 0.001251273633 | CD40: 0.36 | CF40: 1.7 | CG40: 1.7 | CH40: 0.13 | CI40: 0.45 | CJ40: 0.029 | CK40: 0.22 | CL40: 0.000271665972 | CM40: 0.00131436306 | CN40: 7.1 | CO40: 1.15 | CP40: 2.5 | CQ40: 22.5 | CR40: 75 | CS40: 0.00469168 | CT40: 0.005395432 | CU40: 0.0001348858 | CV40: 0.0012139722 | CW40: 0.004046574 | CX40: 0.0002492689584 | CY40: 0.001238251644 | CZ40: 0.00206375274 | DA40: 0.0068791758 | DB40: 0.0004237572293 | DC40: 0.002105027795 | DE40: 0.25 | DG40: 1.7 | DH40: 1.7 | DI40: 0.122 | DJ40: 0.42 | DK40: 0.025 | DL40: 0.18 | DM40: 0.00044512314 | DN40: 0.00221116365
A41: 33 | B41: Statlig | C41: Landsbygd | D41: VV | E41: 2 | F41: 70 | G41: <5,7 | H41: - | I41: - | J41: - | K41: Statlig Landsbygd VV 70 <5,7 - - | M41: - | N41: ='0. Beräkna - Länk'!$C$26 -> 1 | O41: ='TS-EVA Länkberäkningar'!$L$142/('TS-EVA Länkberäkningar'!$L$145)^('TS-EVA Länkberäkningar'!$L$143-2010) -> 1534.246575 | P41: 0.56 | Q41: 0.0995988 | R41: =AM41+BS41+CT41 -> 0.136450356 | S41: =AN41+BT41+CU41 -> 0.002889768 | T41: =AO41+BU41+CV41 -> 0.0240856084 | U41: =AP41+BV41+CW41 -> 0.1094749796 | V41: 0.2620260364 | W41: =AR41+BW41+CX41 -> 0.004360391977 | X41: 0.02380141982 | Y41: =AO41*BB41+BU41*CF41+CV41*DG41 -> 0.04094553428 | Z41: 0.1861074653 | AA41: 1.834182255 | AB41: 0.007412666361 | AC41: 0.0404624137 | AF41: 0.167 | AG41: 1.38 | AH41: 1.9 | AI41: 17.1 | AJ41: 81 | AK41: 2.03030303 | AL41: 0.09352 | AM41: 0.1290576 | AN41: =AH41*$AM41/100 -> 0.0024520944 | AO41: 0.0220688496 | AP41: 0.104536656 | AQ41: 0.2620260364 | AR41: 0.003922447637 | AS41: 0.02191785221 | AT41: =AO41*BB41 -> 0.03751704432 | AU41: 0.1777123152 | AV41: 1.834182255 | AW41: 0.006668160983 | AX41: 0.03726034875 | AZ41: 0.19 | BA41: 0.0437874 | BB41: 1.7 | BC41: 1.7 | BD41: 7 | BE41: 0.083 | BF41: 0.33 | BG41: 0.02 | BH41: 0.14 | BJ41: =$AF41*$AG41*($AI41*BE41+$AJ41*BG41)/100 -> 0.00700437078 | BK41: 0.0391390218 | BM41: 2.2 | BN41: 1.15 | BO41: 10 | BP41: 30 | BQ41: 60 | BR41: 0.00205744 | BS41: 0.002366056 | BT41: 0.0002366056 | BU41: 0.0007098168 | BV41: 0.0014196336 | BW41: 0.0001547400624 | BX41: 0.000653031456 | BY41: =BU41*CF41 -> 0.00120668856 | BZ41: 0.00241337712 | CA41: 0.0002630581061 | CB41: 0.001110153475 | CD41: 0.4 | CF41: 1.7 | CG41: 1.7 | CH41: 0.16 | CI41: 0.48 | CJ41: 0.029 | CK41: 0.22 | CL41: 0.00027632154 | CM41: 0.0011661276 | CN41: 4.3 | CO41: 1.25 | CP41: 4 | CQ41: 26 | CR41: 70 | CS41: 0.00402136 | CT41: 0.0050267 | CU41: 0.000201068 | CV41: 0.001306942 | CW41: 0.00351869 | CX41: 0.000283204278 | CY41: 0.00123053616 | CZ41: =CV41*DG41 -> 0.0022218014 | DA41: 0.005981773 | DB41: 0.0004814472726 | DC41: 0.002091911472 | DE41: 0.3 | DG41: 1.7 | DH41: 1.7 | DI41: 0.144 | DJ41: 0.43 | DK41: 0.027 | DL41: 0.19 | DM41: =$CN41/100*$AF41*$CO41*($CQ41*DI41+$CR41*DK41)/100 -> 0.000505721925 | DN41: 0.002197386
A42: 34 | B42: Statlig | C42: Landsbygd | D42: VV | E42: 2 | F42: 70 | G42: 5,7-6,6 | H42: - | I42: - | J42: - | K42: Statlig Landsbygd VV 70 5,7-6,6 - - | M42: - | N42: ='0. Beräkna - Länk'!$C$26 -> 1 | O42: ='TS-EVA Länkberäkningar'!$L$142/('TS-EVA Länkberäkningar'!$L$145)^('TS-EVA Länkberäkningar'!$L$143-2010) -> 1534.246575 | P42: 0.56 | Q42: =AL42+BR42+CS42 -> 0.08604288 | R42: 0.125907264 | S42: 0.003140928 | T42: 0.0217256256 | U42: 0.1010407104 | V42: 0.2423109818 | W42: 0.003977454701 | X42: 0.02178654106 | Y42: 0.03693356352 | Z42: 0.1717692077 | AA42: 1.696176873 | AB42: 0.006761672991 | AC42: 0.0370371198 | AF42: 0.144 | AG42: 1.48 | AH42: 2.3 | AI42: 16.7 | AJ42: 81 | AK42: 2.03030303 | AL42: 0.08064 | AM42: 0.1193472 | AN42: 0.0027449856 | AO42: 0.0199309824 | AP42: 0.096671232 | AQ42: 0.2423109818 | AR42: 0.003587696179 | AS42: 0.02011119667 | AT42: 0.03388267008 | AU42: 0.1643410944 | AV42: 1.696176873 | AW42: 0.006099083505 | AX42: 0.03418903434 | AZ42: 0.19 | BA42: 0.0404928 | BB42: 1.7 | BC42: 1.7 | BD42: 7 | BE42: 0.083 | BF42: 0.33 | BG42: 0.02 | BH42: 0.14 | BJ42: 0.00640660032 | BK42: 0.0359128512 | BM42: 2.4 | BN42: 1.15 | BO42: 10 | BP42: 30 | BQ42: 60 | BR42: 0.00193536 | BS42: 0.002225664 | BT42: 0.0002225664 | BU42: 0.0006676992 | BV42: 0.0013353984 | BW42: 0.0001455584256 | BX42: 0.000614283264 | BY42: 0.00113508864 | BZ42: 0.00227017728 | CA42: 0.0002474493235 | CB42: 0.001044281549 | CD42: 0.4 | CF42: 1.7 | CG42: 1.7 | CH42: 0.16 | CI42: 0.48 | CJ42: 0.029 | CK42: 0.22 | CL42: 0.00025992576 | CM42: 0.0010969344 | CN42: 4.3 | CO42: 1.25 | CP42: 4 | CQ42: 26 | CR42: 70 | CS42: 0.00346752 | CT42: 0.0043344 | CU42: 0.000173376 | CV42: 0.001126944 | CW42: 0.00303408 | CX42: 0.000244200096 | CY42: 0.00106106112 | CZ42: 0.0019158048 | DA42: 0.005157936 | DB42: 0.0004151401632 | DC42: 0.001803803904 | DE42: 0.3 | DG42: 1.7 | DH42: 1.7 | DI42: 0.144 | DJ42: 0.43 | DK42: 0.027 | DL42: 0.19 | DM42: 0.0004360716 | DN42: 0.001894752
A43: 35 | B43: Statlig | C43: Landsbygd | D43: VV | E43: 2 | F43: 70 | G43: 6,7-7,9 | H43: - | I43: - | J43: - | K43: Statlig Landsbygd VV 70 6,7-7,9 - - | M43: - | N43: ='0. Beräkna - Länk'!$C$26 -> 1 | O43: ='TS-EVA Länkberäkningar'!$L$142/('TS-EVA Länkberäkningar'!$L$145)^('TS-EVA Länkberäkningar'!$L$143-2010) -> 1534.246575 | P43: 0.56 | Q43: 0.08604288 | R43: 0.125907264 | S43: 0.003140928 | T43: 0.0217256256 | U43: 0.1010407104 | V43: 0.2423109818 | W43: 0.003977454701 | X43: 0.02178654106 | Y43: 0.03693356352 | Z43: 0.1717692077 | AA43: 1.696176873 | AB43: 0.006761672991 | AC43: 0.0370371198 | AF43: 0.144 | AG43: 1.48 | AH43: 2.3 | AI43: 16.7 | AJ43: 81 | AK43: 2.03030303 | AL43: 0.08064 | AM43: 0.1193472 | AN43: 0.0027449856 | AO43: 0.0199309824 | AP43: 0.096671232 | AQ43: 0.2423109818 | AR43: 0.003587696179 | AS43: 0.02011119667 | AT43: 0.03388267008 | AU43: 0.1643410944 | AV43: 1.696176873 | AW43: 0.006099083505 | AX43: 0.03418903434 | AZ43: 0.19 | BA43: 0.0404928 | BB43: 1.7 | BC43: 1.7 | BD43: 7 | BE43: 0.083 | BF43: 0.33 | BG43: 0.02 | BH43: 0.14 | BJ43: 0.00640660032 | BK43: 0.0359128512 | BM43: 2.4 | BN43: 1.15 | BO43: 10 | BP43: 30 | BQ43: 60 | BR43: 0.00193536 | BS43: 0.002225664 | BT43: 0.0002225664 | BU43: 0.0006676992 | BV43: 0.0013353984 | BW43: 0.0001455584256 | BX43: 0.000614283264 | BY43: 0.00113508864 | BZ43: 0.00227017728 | CA43: 0.0002474493235 | CB43: 0.001044281549 | CD43: 0.4 | CF43: 1.7 | CG43: 1.7 | CH43: 0.16 | CI43: 0.48 | CJ43: 0.029 | CK43: 0.22 | CL43: 0.00025992576 | CM43: 0.0010969344 | CN43: 4.3 | CO43: 1.25 | CP43: 4 | CQ43: 26 | CR43: 70 | CS43: 0.00346752 | CT43: 0.0043344 | CU43: 0.000173376 | CV43: 0.001126944 | CW43: 0.00303408 | CX43: 0.000244200096 | CY43: 0.00106106112 | CZ43: 0.0019158048 | DA43: 0.005157936 | DB43: 0.0004151401632 | DC43: 0.001803803904 | DE43: 0.3 | DG43: 1.7 | DH43: 1.7 | DI43: 0.144 | DJ43: 0.43 | DK43: 0.027 | DL43: 0.19 | DM43: 0.0004360716 | DN43: 0.001894752
A44: 36 | B44: Statlig | C44: Landsbygd | D44: VV | E44: 2 | F44: 70 | G44: 8-10 | H44: - | I44: - | J44: - | K44: Statlig Landsbygd VV 70 8-10 - - | M44: - | N44: ='0. Beräkna - Länk'!$C$26 -> 1 | O44: ='TS-EVA Länkberäkningar'!$L$142/('TS-EVA Länkberäkningar'!$L$145)^('TS-EVA Länkberäkningar'!$L$143-2010) -> 1534.246575 | P44: 0.56 | Q44: 0.06632472 | R44: 0.103891116 | S44: 0.0014912184 | T44: 0.017493378 | U44: 0.0849065196 | V44: 0.2006637818 | W44: 0.003268337058 | X44: 0.01802308687 | Y44: 0.0297387426 | Z44: 0.1443410833 | AA44: 1.404646473 | AB44: 0.005556172999 | AC44: 0.03063924768 | AF44: 0.111 | AG44: 1.59 | AH44: 1.2 | AI44: 16.3 | AJ44: 82.5 | AK44: 2.03030303 | AL44: 0.06216 | AM44: 0.0988344 | AN44: 0.0011860128 | AO44: 0.0161100072 | AP44: 0.08153838 | AQ44: 0.2006637818 | AR44: 0.002967898198 | AS44: 0.01673167558 | AT44: 0.02738701224 | AU44: 0.138615246 | AV44: 1.404646473 | AW44: 0.005045426936 | AX44: 0.02844384848 | AZ44: 0.175 | BA44: 0.03088575 | BB44: 1.7 | BC44: 1.7 | BD44: 7 | BE44: 0.083 | BF44: 0.33 | BG44: 0.02 | BH44: 0.14 | BJ44: 0.00529981821 | BK44: 0.0298779921 | BM44: 2.4 | BN44: 1.15 | BO44: 10 | BP44: 30 | BQ44: 60 | BR44: 0.00149184 | BS44: 0.001715616 | BT44: 0.0001715616 | BU44: 0.0005146848 | BV44: 0.0010293696 | BW44: 0.0001122012864 | BX44: 0.000473510016 | BY44: 0.00087496416 | BZ44: 0.00174992832 | CA44: 0.0001907421869 | CB44: 0.0008049670272 | CD44: 0.4 | CF44: 1.7 | CG44: 1.7 | CH44: 0.16 | CI44: 0.48 | CJ44: 0.029 | CK44: 0.22 | CL44: 0.00020035944 | CM44: 0.0008455536 | CN44: 4.3 | CO44: 1.25 | CP44: 4 | CQ44: 26 | CR44: 70 | CS44: 0.00267288 | CT44: 0.0033411 | CU44: 0.000133644 | CV44: 0.000868686 | CW44: 0.00233877 | CX44: 0.000188237574 | CY44: 0.00081790128 | CZ44: 0.0014767662 | DA44: 0.003975909 | DB44: 0.0003200038758 | DC44: 0.001390432176 | DE44: 0.3 | DG44: 1.7 | DH44: 1.7 | DI44: 0.144 | DJ44: 0.43 | DK44: 0.027 | DL44: 0.19 | DM44: 0.000336138525 | DN44: 0.001460538
A45: 37 | B45: Statlig | C45: Landsbygd | D45: VV | E45: 2 | F45: 70 | G45: 10,1-11,5 | H45: - | I45: - | J45: - | K45: Statlig Landsbygd VV 70 10,1-11,5 - - | M45: - | N45: ='0. Beräkna - Länk'!$C$26 -> 1 | O45: ='TS-EVA Länkberäkningar'!$L$142/('TS-EVA Länkberäkningar'!$L$145)^('TS-EVA Länkberäkningar'!$L$143-2010) -> 1534.246575 | P45: 0.56 | Q45: 0.06214208 | R45: 0.103745824 | S45: 0.0012760384 | T45: 0.0166423712 | U45: 0.0858274144 | V45: 0.2010162424 | W45: 0.003208663786 | X45: 0.01784826534 | Y45: 0.02829203104 | Z45: 0.1459066045 | AA45: 1.407113697 | AB45: 0.005454728436 | AC45: 0.03034205108 | AF45: 0.104 | AG45: 1.7 | AH45: 1 | AI45: 15.5 | AJ45: 83.5 | AK45: 2.03030303 | AL45: 0.05824 | AM45: 0.099008 | AN45: 0.00099008 | AO45: 0.01534624 | AP45: 0.08267168 | AQ45: 0.2010162424 | AR45: 0.00292717152 | AS45: 0.0166382944 | AT45: 0.026088608 | AU45: 0.140541856 | AV45: 1.407113697 | AW45: 0.004976191584 | AX45: 0.02828510048 | AZ45: 0.165 | BA45: 0.029172 | BB45: 1.7 | BC45: 1.7 | BD45: 7 | BE45: 0.083 | BF45: 0.33 | BG45: 0.02 | BH45: 0.14 | BJ45: 0.005227092 | BK45: 0.02971124 | BM45: 2.4 | BN45: 1.15 | BO45: 10 | BP45: 30 | BQ45: 60 | BR45: 0.00139776 | BS45: 0.001607424 | BT45: 0.0001607424 | BU45: 0.0004822272 | BV45: 0.0009644544 | BW45: 0.0001051255296 | BX45: 0.000443649024 | BY45: 0.00081978624 | BZ45: 0.00163957248 | CA45: 0.0001787134003 | CB45: 0.0007542033408 | CD45: 0.4 | CF45: 1.7 | CG45: 1.7 | CH45: 0.16 | CI45: 0.48 | CJ45: 0.029 | CK45: 0.22 | CL45: 0.00018772416 | CM45: 0.0007922304 | CN45: 4.3 | CO45: 1.25 | CP45: 4 | CQ45: 26 | CR45: 70 | CS45: 0.00250432 | CT45: 0.0031304 | CU45: 0.000125216 | CV45: 0.000813904 | CW45: 0.00219128 | CX45: 0.000176366736 | CY45: 0.00076632192 | CZ45: 0.0013836368 | DA45: 0.003725176 | DB45: 0.0002998234512 | DC45: 0.001302747264 | DE45: 0.3 | DG45: 1.7 | DH45: 1.7 | DI45: 0.144 | DJ45: 0.43 | DK45: 0.027 | DL45: 0.19 | DM45: 0.0003149406 | DN45: 0.001368432
A46: 38 | B46: Statlig | C46: Landsbygd | D46: VV | E46: 2 | F46: 70 | G46: 11,6- | H46: - | I46: - | J46: - | K46: Statlig Landsbygd VV 70 11,6- - - | M46: - | N46: ='0. Beräkna - Länk'!$C$26 -> 1 | O46: ='TS-EVA Länkberäkningar'!$L$142/('TS-EVA Länkberäkningar'!$L$145)^('TS-EVA Länkberäkningar'!$L$143-2010) -> 1534.246575 | P46: 0.56 | Q46: 0.06214208 | R46: 0.103745824 | S46: 0.0011770304 | T46: 0.0167413792 | U46: 0.0858274144 | V46: 0.2010162424 | W46: 0.00321688145 | X46: 0.01788093798 | Y46: 0.02846034464 | Z46: 0.1459066045 | AA46: 1.407113697 | AB46: 0.005468698464 | AC46: 0.03039759457 | AF46: 0.104 | AG46: 1.7 | AH46: 0.9 | AI46: 15.6 | AJ46: 83.5 | AK46: 2.03030303 | AL46: 0.05824 | AM46: 0.099008 | AN46: 0.000891072 | AO46: 0.015445248 | AP46: 0.08267168 | AQ46: 0.2010162424 | AR46: 0.002935389184 | AS46: 0.01667096704 | AT46: 0.0262569216 | AU46: 0.140541856 | AV46: 1.407113697 | AW46: 0.004990161613 | AX46: 0.02834064397 | AZ46: 0.165 | BA46: 0.029172 | BB46: 1.7 | BC46: 1.7 | BD46: 7 | BE46: 0.083 | BF46: 0.33 | BG46: 0.02 | BH46: 0.14 | BJ46: 0.0052417664 | BK46: 0.029769584 | BM46: 2.4 | BN46: 1.15 | BO46: 10 | BP46: 30 | BQ46: 60 | BR46: 0.00139776 | BS46: 0.001607424 | BT46: 0.0001607424 | BU46: 0.0004822272 | BV46: 0.0009644544 | BW46: 0.0001051255296 | BX46: 0.000443649024 | BY46: 0.00081978624 | BZ46: 0.00163957248 | CA46: 0.0001787134003 | CB46: 0.0007542033408 | CD46: 0.4 | CF46: 1.7 | CG46: 1.7 | CH46: 0.16 | CI46: 0.48 | CJ46: 0.029 | CK46: 0.22 | CL46: 0.00018772416 | CM46: 0.0007922304 | CN46: 4.3 | CO46: 1.25 | CP46: 4 | CQ46: 26 | CR46: 70 | CS46: 0.00250432 | CT46: 0.0031304 | CU46: 0.000125216 | CV46: 0.000813904 | CW46: 0.00219128 | CX46: 0.000176366736 | CY46: 0.00076632192 | CZ46: 0.0013836368 | DA46: 0.003725176 | DB46: 0.0002998234512 | DC46: 0.001302747264 | DE46: 0.3 | DG46: 1.7 | DH46: 1.7 | DI46: 0.144 | DJ46: 0.43 | DK46: 0.027 | DL46: 0.19 | DM46: 0.0003149406 | DN46: 0.001368432
A47: 39 | B47: Statlig | C47: Landsbygd | D47: VV | E47: 2 | F47: 80 | G47: <5,7 | H47: - | I47: - | J47: - | K47: Statlig Landsbygd VV 80 <5,7 - - | M47: - | N47: ='0. Beräkna - Länk'!$C$26 -> 1 | O47: ='TS-EVA Länkberäkningar'!$L$142/('TS-EVA Länkberäkningar'!$L$145)^('TS-EVA Länkberäkningar'!$L$143-2010) -> 1534.246575 | P47: 0.56 | Q47: 0.0636636 | R47: 0.09480548 | S47: 0.0025569852 | T47: 0.0139895448 | U47: 0.07825895 | V47: 0.1642666667 | W47: 0.002777961617 | X47: 0.01573485082 | Y47: 0.02378222616 | Z47: 0.133040215 | AA47: 1.149866667 | AB47: 0.004722534749 | AC47: 0.0267492464 | AF47: 0.11 | AG47: 1.5 | AH47: 2.5 | AI47: 14.5 | AJ47: 83 | AK47: 1.777777778 | AL47: 0.0616 | AM47: 0.0924 | AN47: 0.00231 | AO47: 0.013398 | AP47: 0.076692 | AQ47: 0.1642666667 | AR47: 0.002645874 | AS47: 0.01515822 | AT47: 0.0227766 | AU47: 0.1303764 | AV47: 1.149866667 | AW47: 0.0044979858 | AX47: 0.025768974 | AZ47: 0.17 | BA47: 0.02805 | BB47: 1.7 | BC47: 1.7 | BD47: 7 | BE47: 0.083 | BF47: 0.33 | BG47: 0.02 | BH47: 0.14 | BJ47: 0.004724775 | BK47: 0.02706825 | BM47: 1.15 | BN47: 1.1 | BO47: 15 | BP47: 30 | BQ47: 55 | BR47: 0.0007084 | BS47: 0.00077924 | BT47: 0.000116886 | BU47: 0.000233772 | BV47: 0.000428582 | BW47: 4.9832398e-05 | BX47: 0.0002064986 | BY47: 0.0003974124 | BZ47: 0.0007285894 | CA47: 8.47150766e-05 | CB47: 0.00035104762 | CD47: 0.45 | CF47: 1.7 | CG47: 1.7 | CH47: 0.16 | CI47: 0.48 | CJ47: 0.029 | CK47: 0.22 | CL47: 8.8986425e-05 | CM47: 0.0003687475 | CN47: 2.2 | CO47: 1.2 | CP47: 8 | CQ47: 22 | CR47: 70 | CS47: 0.0013552 | CT47: 0.00162624 | CU47: 0.0001300992 | CV47: 0.0003577728 | CW47: 0.001138368 | CX47: 8.22552192e-05 | CY47: 0.000370132224 | CZ47: 0.00060821376 | DA47: 0.0019352256 | DB47: 0.0001398338726 | DC47: 0.0006292247808 | DE47: 0.3 | DG47: 1.7 | DH47: 1.7 | DI47: 0.144 | DJ47: 0.43 | DK47: 0.027 | DL47: 0.19 | DM47: 0.00014688432 | DN47: 0.0006609504
A48: 40 | B48: Statlig | C48: Landsbygd | D48: VV | E48: 2 | F48: 80 | G48: 5,7-6,6 | H48: - | I48: - | J48: - | K48: Statlig Landsbygd VV 80 5,7-6,6 - - | M48: - | N48: ='0. Beräkna - Länk'!$C$26 -> 1 | O48: ='TS-EVA Länkberäkningar'!$L$142/('TS-EVA Länkberäkningar'!$L$145)^('TS-EVA Länkberäkningar'!$L$143-2010) -> 1534.246575 | P48: 0.56 | Q48: 0.06482112 | R48: 0.097156416 | S48: 0.00271386304 | T48: 0.01660781696 | U48: 0.077834736 | V48: 0.1683683556 | W48: 0.002987733025 | X48: 0.016542437 | Y48: 0.02823328883 | Z48: 0.1323190512 | AA48: 1.178578489 | AB48: 0.005079146142 | AC48: 0.02812214291 | AF48: 0.112 | AG48: 1.51 | AH48: 2.6 | AI48: 16.9 | AJ48: 80.5 | AK48: 1.777777778 | AL48: 0.06272 | AM48: 0.0947072 | AN48: 0.0024623872 | AO48: 0.0160055168 | AP48: 0.076239296 | AQ48: 0.1683683556 | AR48: 0.002853243814 | AS48: 0.01595532198 | AT48: 0.02720937856 | AU48: 0.1296068032 | AV48: 1.178578489 | AW48: 0.004850514484 | AX48: 0.02712404737 | AZ48: 0.195 | BA48: 0.0329784 | BB48: 1.7 | BC48: 1.7 | BD48: 7 | BE48: 0.083 | BF48: 0.33 | BG48: 0.02 | BH48: 0.14 | BJ48: 0.00509507824 | BK48: 0.0284916464 | BM48: 1.15 | BN48: 1.1 | BO48: 15 | BP48: 30 | BQ48: 55 | BR48: 0.00072128 | BS48: 0.000793408 | BT48: 0.0001190112 | BU48: 0.0002380224 | BV48: 0.0004363744 | BW48: 5.07384416e-05 | BX48: 0.00021025312 | BY48: 0.00040463808 | BZ48: 0.00074183648 | CA48: 8.625535072e-05 | CB48: 0.000357430304 | CD48: 0.45 | CF48: 1.7 | CG48: 1.7 | CH48: 0.16 | CI48: 0.48 | CJ48: 0.029 | CK48: 0.22 | CL48: 9.060436e-05 | CM48: 0.000375452 | CN48: 2.2 | CO48: 1.2 | CP48: 8 | CQ48: 22 | CR48: 70 | CS48: 0.00137984 | CT48: 0.001655808 | CU48: 0.00013246464 | CV48: 0.00036427776 | CW48: 0.0011590656 | CX48: 8.375076864e-05 | CY48: 0.0003768619008 | CZ48: 0.000619272192 | DA48: 0.00197041152 | DB48: 0.0001423763067 | DC48: 0.0006406652314 | DE48: 0.3 | DG48: 1.7 | DH48: 1.7 | DI48: 0.144 | DJ48: 0.43 | DK48: 0.027 | DL48: 0.19 | DM48: 0.000149554944 | DN48: 0.00067296768
A49: 41 | B49: Statlig | C49: Landsbygd | D49: VV | E49: 2 | F49: 80 | G49: 6,7-7,9 | H49: - | I49: - | J49: - | K49: Statlig Landsbygd VV 80 6,7-7,9 - - | M49: - | N49: ='0. Beräkna - Länk'!$C$26 -> 1 | O49: ='TS-EVA Länkberäkningar'!$L$142/('TS-EVA Länkberäkningar'!$L$145)^('TS-EVA Länkberäkningar'!$L$143-2010) -> 1534.246575 | P49: 0.56 | Q49: 0.06482112 | R49: 0.097156416 | S49: 0.00271386304 | T49: 0.01660781696 | U49: 0.077834736 | V49: 0.1683683556 | W49: 0.002987733025 | X49: 0.016542437 | Y49: 0.02823328883 | Z49: 0.1323190512 | AA49: 1.178578489 | AB49: 0.005079146142 | AC49: 0.02812214291 | AF49: 0.112 | AG49: 1.51 | AH49: 2.6 | AI49: 16.9 | AJ49: 80.5 | AK49: 1.777777778 | AL49: 0.06272 | AM49: 0.0947072 | AN49: 0.0024623872 | AO49: 0.0160055168 | AP49: 0.076239296 | AQ49: 0.1683683556 | AR49: 0.002853243814 | AS49: 0.01595532198 | AT49: 0.02720937856 | AU49: 0.1296068032 | AV49: 1.178578489 | AW49: 0.004850514484 | AX49: 0.02712404737 | AZ49: 0.195 | BA49: 0.0329784 | BB49: 1.7 | BC49: 1.7 | BD49: 7 | BE49: 0.083 | BF49: 0.33 | BG49: 0.02 | BH49: 0.14 | BJ49: 0.00509507824 | BK49: 0.0284916464 | BM49: 1.15 | BN49: 1.1 | BO49: 15 | BP49: 30 | BQ49: 55 | BR49: 0.00072128 | BS49: 0.000793408 | BT49: 0.0001190112 | BU49: 0.0002380224 | BV49: 0.0004363744 | BW49: 5.07384416e-05 | BX49: 0.00021025312 | BY49: 0.00040463808 | BZ49: 0.00074183648 | CA49: 8.625535072e-05 | CB49: 0.000357430304 | CD49: 0.45 | CF49: 1.7 | CG49: 1.7 | CH49: 0.16 | CI49: 0.48 | CJ49: 0.029 | CK49: 0.22 | CL49: 9.060436e-05 | CM49: 0.000375452 | CN49: 2.2 | CO49: 1.2 | CP49: 8 | CQ49: 22 | CR49: 70 | CS49: 0.00137984 | CT49: 0.001655808 | CU49: 0.00013246464 | CV49: 0.00036427776 | CW49: 0.0011590656 | CX49: 8.375076864e-05 | CY49: 0.0003768619008 | CZ49: 0.000619272192 | DA49: 0.00197041152 | DB49: 0.0001423763067 | DC49: 0.0006406652314 | DE49: 0.3 | DG49: 1.7 | DH49: 1.7 | DI49: 0.144 | DJ49: 0.43 | DK49: 0.027 | DL49: 0.19 | DM49: 0.000149554944 | DN49: 0.00067296768
A50: 42 | B50: Statlig | C50: Landsbygd | D50: VV | E50: 2 | F50: 80 | G50: 8-10 | H50: - | I50: - | J50: - | K50: Statlig Landsbygd VV 80 8-10 - - | M50: - | N50: ='0. Beräkna - Länk'!$C$26 -> 1 | O50: ='TS-EVA Länkberäkningar'!$L$142/('TS-EVA Länkberäkningar'!$L$145)^('TS-EVA Länkberäkningar'!$L$143-2010) -> 1534.246575 | P50: 0.56 | Q50: 0.04803708 | R50: 0.074323844 | S50: 0.00178155516 | T50: 0.01262782584 | U50: 0.059914463 | V50: 0.1346592 | W50: 0.002285371378 | X50: 0.01267747996 | Y50: 0.02146730393 | Z50: 0.1018545871 | AA50: 0.9426144 | AB50: 0.003885131343 | AC50: 0.02155171593 | AF50: 0.083 | AG50: 1.56 | AH50: 2.2 | AI50: 16.8 | AJ50: 81 | AK50: 1.857142857 | AL50: 0.04648 | AM50: 0.0725088 | AN50: 0.0015951936 | AO50: 0.0121814784 | AP50: 0.058732128 | AQ50: 0.1346592 | AR50: 0.002185705267 | AS50: 0.01224238579 | AT50: 0.02070851328 | AU50: 0.0998446176 | AV50: 0.9426144 | AW50: 0.003715698954 | AX50: 0.02081205585 | AZ50: 0.19 | BA50: 0.0246012 | BB50: 1.7 | BC50: 1.7 | BD50: 7 | BE50: 0.083 | BF50: 0.33 | BG50: 0.02 | BH50: 0.14 | BJ50: 0.00390304512 | BK50: 0.0218614032 | BM50: 1.15 | BN50: 1.1 | BO50: 15 | BP50: 30 | BQ50: 55 | BR50: 0.00053452 | BS50: 0.000587972 | BT50: 8.81958e-05 | BU50: 0.0001763916 | BV50: 0.0003233846 | BW50: 3.76008094e-05 | BX50: 0.00015581258 | BY50: 0.00029986572 | BZ50: 0.00054975382 | CA50: 6.392137598e-05 | CB50: 0.000264881386 | CD50: 0.45 | CF50: 1.7 | CG50: 1.7 | CH50: 0.16 | CI50: 0.48 | CJ50: 0.029 | CK50: 0.22 | CL50: 6.71443025e-05 | CM50: 0.00027823675 | CN50: 2.2 | CO50: 1.2 | CP50: 8 | CQ50: 22 | CR50: 70 | CS50: 0.00102256 | CT50: 0.001227072 | CU50: 9.816576e-05 | CV50: 0.00026995584 | CW50: 0.0008589504 | CX50: 6.206530176e-05 | CY50: 0.0002792815872 | CZ50: 0.000458924928 | DA50: 0.00146021568 | DB50: 0.000105511013 | DC50: 0.0004747786982 | DE50: 0.3 | DG50: 1.7 | DH50: 1.7 | DI50: 0.144 | DJ50: 0.43 | DK50: 0.027 | DL50: 0.19 | DM50: 0.000110830896 | DN50: 0.00049871712
A51: 43 | B51: Statlig | C51: Landsbygd | D51: VV | E51: 2 | F51: 80 | G51: 10,1-11,5 | H51: - | I51: - | J51: - | K51: Statlig Landsbygd VV 80 10,1-11,5 - - | M51: - | N51: ='0. Beräkna - Länk'!$C$26 -> 1 | O51: ='TS-EVA Länkberäkningar'!$L$142/('TS-EVA Länkberäkningar'!$L$145)^('TS-EVA Länkberäkningar'!$L$143-2010) -> 1534.246575 | P51: 0.56 | Q51: 0.0491946 | R51: 0.07992278 | S51: 0.0022985802 | T51: 0.0155234548 | U51: 0.062100745 | V51: 0.144976 | W51: 0.00257037332 | X51: 0.01394206332 | Y51: 0.02638987316 | Z51: 0.1055712665 | AA51: 1.014832 | AB51: 0.004369634644 | AC51: 0.02370150765 | AF51: 0.085 | AG51: 1.64 | AH51: 2.7 | AI51: 19.3 | AJ51: 78 | AK51: 1.857142857 | AL51: 0.0476 | AM51: 0.078064 | AN51: 0.002107728 | AO51: 0.015066352 | AP51: 0.06088992 | AQ51: 0.144976 | AR51: 0.002468305616 | AS51: 0.01349648496 | AT51: 0.0256127984 | AU51: 0.103512864 | AV51: 1.014832 | AW51: 0.004196119547 | AX51: 0.02294402443 | AZ51: 0.22 | BA51: 0.030668 | BB51: 1.7 | BC51: 1.7 | BD51: 7 | BE51: 0.083 | BF51: 0.33 | BG51: 0.02 | BH51: 0.14 | BJ51: 0.0044076886 | BK51: 0.024100866 | BM51: 1.15 | BN51: 1.1 | BO51: 15 | BP51: 30 | BQ51: 55 | BR51: 0.0005474 | BS51: 0.00060214 | BT51: 9.0321e-05 | BU51: 0.000180642 | BV51: 0.000331177 | BW51: 3.8506853e-05 | BX51: 0.0001595671 | BY51: 0.0003070914 | BZ51: 0.0005630009 | CA51: 6.54616501e-05 | CB51: 0.00027126407 | CD51: 0.45 | CF51: 1.7 | CG51: 1.7 | CH51: 0.16 | CI51: 0.48 | CJ51: 0.029 | CK51: 0.22 | CL51: 6.87622375e-05 | CM51: 0.00028494125 | CN51: 2.2 | CO51: 1.2 | CP51: 8 | CQ51: 22 | CR51: 70 | CS51: 0.0010472 | CT51: 0.00125664 | CU51: 0.0001005312 | CV51: 0.0002764608 | CW51: 0.000879648 | CX51: 6.35608512e-05 | CY51: 0.000286011264 | CZ51: 0.00046998336 | DA51: 0.0014954016 | DB51: 0.000108053447 | DC51: 0.0004862191488 | DE51: 0.3 | DG51: 1.7 | DH51: 1.7 | DI51: 0.144 | DJ51: 0.43 | DK51: 0.027 | DL51: 0.19 | DM51: 0.00011350152 | DN51: 0.0005107344
A52: 44 | B52: Statlig | C52: Landsbygd | D52: VV | E52: 2 | F52: 80 | G52: 11,6- | H52: - | I52: - | J52: - | K52: Statlig Landsbygd VV 80 11,6- - - | M52: - | N52: ='0. Beräkna - Länk'!$C$26 -> 1 | O52: ='TS-EVA Länkberäkningar'!$L$142/('TS-EVA Länkberäkningar'!$L$145)^('TS-EVA Länkberäkningar'!$L$143-2010) -> 1534.246575 | P52: 0.56 | Q52: 0.0491946 | R52: 0.07992278 | S52: 0.0025327722 | T52: 0.0152892628 | U52: 0.062100745 | V52: 0.144976 | W52: 0.002550935384 | X52: 0.01386477996 | Y52: 0.02599174676 | Z52: 0.1055712665 | AA52: 1.014832 | AB52: 0.004336590153 | AC52: 0.02357012594 | AF52: 0.085 | AG52: 1.64 | AH52: 3 | AI52: 19 | AJ52: 78 | AK52: 1.857142857 | AL52: 0.0476 | AM52: 0.078064 | AN52: 0.00234192 | AO52: 0.01483216 | AP52: 0.06088992 | AQ52: 0.144976 | AR52: 0.00244886768 | AS52: 0.0134192016 | AT52: 0.025214672 | AU52: 0.103512864 | AV52: 1.014832 | AW52: 0.004163075056 | AX52: 0.02281264272 | AZ52: 0.22 | BA52: 0.030668 | BB52: 1.7 | BC52: 1.7 | BD52: 7 | BE52: 0.083 | BF52: 0.33 | BG52: 0.02 | BH52: 0.14 | BJ52: 0.004372978 | BK52: 0.02396286 | BM52: 1.15 | BN52: 1.1 | BO52: 15 | BP52: 30 | BQ52: 55 | BR52: 0.0005474 | BS52: 0.00060214 | BT52: 9.0321e-05 | BU52: 0.000180642 | BV52: 0.000331177 | BW52: 3.8506853e-05 | BX52: 0.0001595671 | BY52: 0.0003070914 | BZ52: 0.0005630009 | CA52: 6.54616501e-05 | CB52: 0.00027126407 | CD52: 0.45 | CF52: 1.7 | CG52: 1.7 | CH52: 0.16 | CI52: 0.48 | CJ52: 0.029 | CK52: 0.22 | CL52: 6.87622375e-05 | CM52: 0.00028494125 | CN52: 2.2 | CO52: 1.2 | CP52: 8 | CQ52: 22 | CR52: 70 | CS52: 0.0010472 | CT52: 0.00125664 | CU52: 0.0001005312 | CV52: 0.0002764608 | CW52: 0.000879648 | CX52: 6.35608512e-05 | CY52: 0.000286011264 | CZ52: 0.00046998336 | DA52: 0.0014954016 | DB52: 0.000108053447 | DC52: 0.0004862191488 | DE52: 0.3 | DG52: 1.7 | DH52: 1.7 | DI52: 0.144 | DJ52: 0.43 | DK52: 0.027 | DL52: 0.19 | DM52: 0.00011350152 | DN52: 0.0005107344
A53: 45 | B53: Statlig | C53: Landsbygd | D53: VV | E53: 2 | F53: 90 | G53: <5,7 | H53: - | I53: - | J53: - | K53: Statlig Landsbygd VV 90 <5,7 - - | M53: - | N53: ='0. Beräkna - Länk'!$C$26 -> 1 | O53: ='TS-EVA Länkberäkningar'!$L$142/('TS-EVA Länkberäkningar'!$L$145)^('TS-EVA Länkberäkningar'!$L$143-2010) -> 1534.246575 | P53: 0.56 | Q53: 0.0519876 | R53: 0.0850941 | S53: 0.002381085 | T53: 0.012674655 | U53: 0.07003836 | V53: 0.14784 | W53: 0.00262269504 | X53: 0.0143629668 | Y53: 0.0215469135 | Z53: 0.119065212 | AA53: 1.03488 | AB53: 0.004458581568 | AC53: 0.02441704356 | AF53: 0.09 | AG53: 1.65 | AH53: 2.5 | AI53: 14.5 | AJ53: 83 | AK53: 1.777777778 | AL53: 0.0504 | AM53: 0.08316 | AN53: 0.002079 | AO53: 0.0120582 | AP53: 0.0690228 | AQ53: 0.14784 | AR53: 0.0025018686 | AS53: 0.013883562 | AT53: 0.02049894 | AU53: 0.11733876 | AV53: 1.03488 | AW53: 0.00425317662 | AX53: 0.0236020554 | AZ53: 0.17 | BA53: 0.025245 | BB53: 1.7 | BC53: 1.7 | BD53: 7 | BE53: 0.093 | BF53: 0.35 | BG53: 0.02 | BH53: 0.14 | BJ53: 0.0044676225 | BK53: 0.024792075 | BM53: 1.15 | BN53: 1.25 | BO53: 25 | BP53: 35 | BQ53: 40 | BR53: 0.0005796 | BS53: 0.0007245 | BT53: 0.000181125 | BU53: 0.000253575 | BV53: 0.0002898 | BW53: 4.89762e-05 | BX53: 0.000185472 | BY53: 0.0004310775 | BZ53: 0.00049266 | CA53: 8.325954e-05 | CB53: 0.0003153024 | CD53: 0.6 | CF53: 1.7 | CG53: 1.7 | CH53: 0.16 | CI53: 0.48 | CJ53: 0.029 | CK53: 0.22 | CL53: 8.74575e-05 | CM53: 0.0003312 | CN53: 2 | CO53: 1.2 | CP53: 10 | CQ53: 30 | CR53: 60 | CS53: 0.001008 | CT53: 0.0012096 | CU53: 0.00012096 | CV53: 0.00036288 | CW53: 0.00072576 | CX53: 7.185024e-05 | CY53: 0.0002939328 | CZ53: 0.000616896 | DA53: 0.001233792 | DB53: 0.000122145408 | DC53: 0.00049968576 | DE53: 0.4 | DG53: 1.7 | DH53: 1.7 | DI53: 0.144 | DJ53: 0.43 | DK53: 0.027 | DL53: 0.19 | DM53: 0.000128304 | DN53: 0.00052488
A54: 46 | B54: Statlig | C54: Landsbygd | D54: VV | E54: 2 | F54: 90 | G54: 5,7-6,6 | H54: - | I54: - | J54: - | K54: Statlig Landsbygd VV 90 5,7-6,6 - - | M54: - | N54: ='0. Beräkna - Länk'!$C$26 -> 1 | O54: ='TS-EVA Länkberäkningar'!$L$142/('TS-EVA Länkberäkningar'!$L$145)^('TS-EVA Länkberäkningar'!$L$143-2010) -> 1534.246575 | P54: 0.56 | Q54: 0.0519876 | R54: 0.0815661 | S54: 0.002372517 | T54: 0.014074263 | U54: 0.06511932 | V54: 0.141568 | W54: 0.002654477784 | X54: 0.014164164 | Y54: 0.0239262471 | Z54: 0.110702844 | AA54: 0.990976 | AB54: 0.004512612233 | AC54: 0.0240790788 | AF54: 0.09 | AG54: 1.58 | AH54: 2.6 | AI54: 16.9 | AJ54: 80.5 | AK54: 1.777777778 | AL54: 0.0504 | AM54: 0.079632 | AN54: 0.002070432 | AO54: 0.013457808 | AP54: 0.06410376 | AQ54: 0.141568 | AR54: 0.002533651344 | AS54: 0.0136847592 | AT54: 0.0228782736 | AU54: 0.108976392 | AV54: 0.990976 | AW54: 0.004307207285 | AX54: 0.02326409064 | AZ54: 0.195 | BA54: 0.027729 | BB54: 1.7 | BC54: 1.7 | BD54: 7 | BE54: 0.093 | BF54: 0.35 | BG54: 0.02 | BH54: 0.14 | BJ54: 0.0045243774 | BK54: 0.02443707 | BM54: 1.15 | BN54: 1.25 | BO54: 25 | BP54: 35 | BQ54: 40 | BR54: 0.0005796 | BS54: 0.0007245 | BT54: 0.000181125 | BU54: 0.000253575 | BV54: 0.0002898 | BW54: 4.89762e-05 | BX54: 0.000185472 | BY54: 0.0004310775 | BZ54: 0.00049266 | CA54: 8.325954e-05 | CB54: 0.0003153024 | CD54: 0.6 | CF54: 1.7 | CG54: 1.7 | CH54: 0.16 | CI54: 0.48 | CJ54: 0.029 | CK54: 0.22 | CL54: 8.74575e-05 | CM54: 0.0003312 | CN54: 2 | CO54: 1.2 | CP54: 10 | CQ54: 30 | CR54: 60 | CS54: 0.001008 | CT54: 0.0012096 | CU54: 0.00012096 | CV54: 0.00036288 | CW54: 0.00072576 | CX54: 7.185024e-05 | CY54: 0.0002939328 | CZ54: 0.000616896 | DA54: 0.001233792 | DB54: 0.000122145408 | DC54: 0.00049968576 | DE54: 0.4 | DG54: 1.7 | DH54: 1.7 | DI54: 0.144 | DJ54: 0.43 | DK54: 0.027 | DL54: 0.19 | DM54: 0.000128304 | DN54: 0.00052488
A55: 47 | B55: Statlig | C55: Landsbygd | D55: VV | E55: 2 | F55: 90 | G55: 6,7-7,9 | H55: - | I55: - | J55: - | K55: Statlig Landsbygd VV 90 6,7-7,9 - - | M55: - | N55: ='0. Beräkna - Länk'!$C$26 -> 1 | O55: ='TS-EVA Länkberäkningar'!$L$142/('TS-EVA Länkberäkningar'!$L$145)^('TS-EVA Länkberäkningar'!$L$143-2010) -> 1534.246575 | P55: 0.56 | Q55: 0.0519876 | R55: 0.0815661 | S55: 0.002372517 | T55: 0.014074263 | U55: 0.06511932 | V55: 0.141568 | W55: 0.002654477784 | X55: 0.014164164 | Y55: 0.0239262471 | Z55: 0.110702844 | AA55: 0.990976 | AB55: 0.004512612233 | AC55: 0.0240790788 | AF55: 0.09 | AG55: 1.58 | AH55: 2.6 | AI55: 16.9 | AJ55: 80.5 | AK55: 1.777777778 | AL55: 0.0504 | AM55: 0.079632 | AN55: 0.002070432 | AO55: 0.013457808 | AP55: 0.06410376 | AQ55: 0.141568 | AR55: 0.002533651344 | AS55: 0.0136847592 | AT55: 0.0228782736 | AU55: 0.108976392 | AV55: 0.990976 | AW55: 0.004307207285 | AX55: 0.02326409064 | AZ55: 0.195 | BA55: 0.027729 | BB55: 1.7 | BC55: 1.7 | BD55: 7 | BE55: 0.093 | BF55: 0.35 | BG55: 0.02 | BH55: 0.14 | BJ55: 0.0045243774 | BK55: 0.02443707 | BM55: 1.15 | BN55: 1.25 | BO55: 25 | BP55: 35 | BQ55: 40 | BR55: 0.0005796 | BS55: 0.0007245 | BT55: 0.000181125 | BU55: 0.000253575 | BV55: 0.0002898 | BW55: 4.89762e-05 | BX55: 0.000185472 | BY55: 0.0004310775 | BZ55: 0.00049266 | CA55: 8.325954e-05 | CB55: 0.0003153024 | CD55: 0.6 | CF55: 1.7 | CG55: 1.7 | CH55: 0.16 | CI55: 0.48 | CJ55: 0.029 | CK55: 0.22 | CL55: 8.74575e-05 | CM55: 0.0003312 | CN55: 2 | CO55: 1.2 | CP55: 10 | CQ55: 30 | CR55: 60 | CS55: 0.001008 | CT55: 0.0012096 | CU55: 0.00012096 | CV55: 0.00036288 | CW55: 0.00072576 | CX55: 7.185024e-05 | CY55: 0.0002939328 | CZ55: 0.000616896 | DA55: 0.001233792 | DB55: 0.000122145408 | DC55: 0.00049968576 | DE55: 0.4 | DG55: 1.7 | DH55: 1.7 | DI55: 0.144 | DJ55: 0.43 | DK55: 0.027 | DL55: 0.19 | DM55: 0.000128304 | DN55: 0.00052488
A56: 48 | B56: Statlig | C56: Landsbygd | D56: VV | E56: 2 | F56: 90 | G56: 8-10 | H56: - | I56: - | J56: - | K56: Statlig Landsbygd VV 90 8-10 - - | M56: - | N56: ='0. Beräkna - Länk'!$C$26 -> 1 | O56: ='TS-EVA Länkberäkningar'!$L$142/('TS-EVA Länkberäkningar'!$L$145)^('TS-EVA Länkberäkningar'!$L$143-2010) -> 1534.246575 | P56: 0.56 | Q56: 0.04390064 | R56: 0.06972924 | S56: 0.002774646 | T56: 0.01400357 | U56: 0.052951024 | V56: 0.126464 | W56: 0.00239781976 | X56: 0.01241696512 | Y56: 0.023806069 | Z56: 0.0900167408 | AA56: 0.885248 | AB56: 0.004076293592 | AC56: 0.0211088407 | AF56: 0.076 | AG56: 1.6 | AH56: 3.7 | AI56: 19.8 | AJ56: 76.5 | AK56: 1.857142857 | AL56: 0.04256 | AM56: 0.068096 | AN56: 0.002519552 | AO56: 0.013483008 | AP56: 0.05209344 | AQ56: 0.126464 | AR56: 0.002295788544 | AS56: 0.0120121344 | AT56: 0.0229211136 | AU56: 0.088558848 | AV56: 0.885248 | AW56: 0.003902840525 | AX56: 0.02042062848 | AZ56: 0.235 | BA56: 0.028576 | BB56: 1.7 | BC56: 1.7 | BD56: 7 | BE56: 0.093 | BF56: 0.35 | BG56: 0.02 | BH56: 0.14 | BJ56: 0.0040996224 | BK56: 0.02145024 | BM56: 1.15 | BN56: 1.25 | BO56: 25 | BP56: 35 | BQ56: 40 | BR56: 0.00048944 | BS56: 0.0006118 | BT56: 0.00015295 | BU56: 0.00021413 | BV56: 0.00024472 | BW56: 4.135768e-05 | BX56: 0.0001566208 | BY56: 0.000364021 | BZ56: 0.000416024 | CA56: 7.0308056e-05 | CB56: 0.00026625536 | CD56: 0.6 | CF56: 1.7 | CG56: 1.7 | CH56: 0.16 | CI56: 0.48 | CJ56: 0.029 | CK56: 0.22 | CL56: 7.3853e-05 | CM56: 0.00027968 | CN56: 2 | CO56: 1.2 | CP56: 10 | CQ56: 30 | CR56: 60 | CS56: 0.0008512 | CT56: 0.00102144 | CU56: 0.000102144 | CV56: 0.000306432 | CW56: 0.000612864 | CX56: 6.0673536e-05 | CY56: 0.00024820992 | CZ56: 0.0005209344 | DA56: 0.0010418688 | DB56: 0.0001031450112 | DC56: 0.000421956864 | DE56: 0.4 | DG56: 1.7 | DH56: 1.7 | DI56: 0.144 | DJ56: 0.43 | DK56: 0.027 | DL56: 0.19 | DM56: 0.0001083456 | DN56: 0.000443232
A57: 49 | B57: Statlig | C57: Landsbygd | D57: VV | E57: 2 | F57: 90 | G57: 10,1-11,5 | H57: - | I57: - | J57: - | K57: Statlig Landsbygd VV 90 10,1-11,5 - - | M57: - | N57: ='0. Beräkna - Länk'!$C$26 -> 1 | O57: ='TS-EVA Länkberäkningar'!$L$142/('TS-EVA Länkberäkningar'!$L$145)^('TS-EVA Länkberäkningar'!$L$143-2010) -> 1534.246575 | P57: 0.56 | Q57: 0.04216772 | R57: 0.06697677 | S57: 0.0029921605 | T57: 0.0114885575 | U57: 0.052496052 | V57: 0.121472 | W57: 0.00215338466 | X57: 0.01146896576 | Y57: 0.01953054775 | Z57: 0.0892432884 | AA57: 0.850304 | AB57: 0.003660753922 | AC57: 0.01949724179 | AF57: 0.073 | AG57: 1.6 | AH57: 4.2 | AI57: 16.8 | AJ57: 79 | AK57: 1.857142857 | AL57: 0.04088 | AM57: 0.065408 | AN57: 0.002747136 | AO57: 0.010988544 | AP57: 0.05167232 | AQ57: 0.121472 | AR57: 0.002055380992 | AS57: 0.0110801152 | AT57: 0.0186805248 | AU57: 0.087842944 | AV57: 0.850304 | AW57: 0.003494147686 | AX57: 0.01883619584 | AZ57: 0.21 | BA57: 0.024528 | BB57: 1.7 | BC57: 1.7 | BD57: 7 | BE57: 0.093 | BF57: 0.35 | BG57: 0.02 | BH57: 0.14 | BJ57: 0.0036703232 | BK57: 0.01978592 | BM57: 1.15 | BN57: 1.25 | BO57: 25 | BP57: 35 | BQ57: 40 | BR57: 0.00047012 | BS57: 0.00058765 | BT57: 0.0001469125 | BU57: 0.0002056775 | BV57: 0.00023506 | BW57: 3.972514e-05 | BX57: 0.0001504384 | BY57: 0.00034965175 | BZ57: 0.000399602 | CA57: 6.7532738e-05 | CB57: 0.00025574528 | CD57: 0.6 | CF57: 1.7 | CG57: 1.7 | CH57: 0.16 | CI57: 0.48 | CJ57: 0.029 | CK57: 0.22 | CL57: 7.093775e-05 | CM57: 0.00026864 | CN57: 2 | CO57: 1.2 | CP57: 10 | CQ57: 30 | CR57: 60 | CS57: 0.0008176 | CT57: 0.00098112 | CU57: 9.8112e-05 | CV57: 0.000294336 | CW57: 0.000588672 | CX57: 5.8278528e-05 | CY57: 0.00023841216 | CZ57: 0.0005003712 | DA57: 0.0010007424 | DB57: 9.90734976e-05 | DC57: 0.000405300672 | DE57: 0.4 | DG57: 1.7 | DH57: 1.7 | DI57: 0.144 | DJ57: 0.43 | DK57: 0.027 | DL57: 0.19 | DM57: 0.0001040688 | DN57: 0.000425736
A58: 50 | B58: Statlig | C58: Landsbygd | D58: VV | E58: 2 | F58: 90 | G58: 11,6- | H58: - | I58: - | J58: - | K58: Statlig Landsbygd VV 90 11,6- - - | M58: - | N58: ='0. Beräkna - Länk'!$C$26 -> 1 | O58: ='TS-EVA Länkberäkningar'!$L$142/('TS-EVA Länkberäkningar'!$L$145)^('TS-EVA Länkberäkningar'!$L$143-2010) -> 1534.246575 | P58: 0.56 | Q58: 0.04216772 | R58: 0.06697677 | S58: 0.0031883845 | T58: 0.0112923335 | U58: 0.052496052 | V58: 0.121472 | W58: 0.002135135828 | X58: 0.01140028736 | Y58: 0.01919696695 | Z58: 0.0892432884 | AA58: 0.850304 | AB58: 0.003629730908 | AC58: 0.01938048851 | AF58: 0.073 | AG58: 1.6 | AH58: 4.5 | AI58: 16.5 | AJ58: 79 | AK58: 1.857142857 | AL58: 0.04088 | AM58: 0.065408 | AN58: 0.00294336 | AO58: 0.01079232 | AP58: 0.05167232 | AQ58: 0.121472 | AR58: 0.00203713216 | AS58: 0.0110114368 | AT58: 0.018346944 | AU58: 0.087842944 | AV58: 0.850304 | AW58: 0.003463124672 | AX58: 0.01871944256 | AZ58: 0.21 | BA58: 0.024528 | BB58: 1.7 | BC58: 1.7 | BD58: 7 | BE58: 0.093 | BF58: 0.35 | BG58: 0.02 | BH58: 0.14 | BJ58: 0.003637736 | BK58: 0.01966328 | BM58: 1.15 | BN58: 1.25 | BO58: 25 | BP58: 35 | BQ58: 40 | BR58: 0.00047012 | BS58: 0.00058765 | BT58: 0.0001469125 | BU58: 0.0002056775 | BV58: 0.00023506 | BW58: 3.972514e-05 | BX58: 0.0001504384 | BY58: 0.00034965175 | BZ58: 0.000399602 | CA58: 6.7532738e-05 | CB58: 0.00025574528 | CD58: 0.6 | CF58: 1.7 | CG58: 1.7 | CH58: 0.16 | CI58: 0.48 | CJ58: 0.029 | CK58: 0.22 | CL58: 7.093775e-05 | CM58: 0.00026864 | CN58: 2 | CO58: 1.2 | CP58: 10 | CQ58: 30 | CR58: 60 | CS58: 0.0008176 | CT58: 0.00098112 | CU58: 9.8112e-05 | CV58: 0.000294336 | CW58: 0.000588672 | CX58: 5.8278528e-05 | CY58: 0.00023841216 | CZ58: 0.0005003712 | DA58: 0.0010007424 | DB58: 9.90734976e-05 | DC58: 0.000405300672 | DE58: 0.4 | DG58: 1.7 | DH58: 1.7 | DI58: 0.144 | DJ58: 0.43 | DK58: 0.027 | DL58: 0.19 | DM58: 0.0001040688 | DN58: 0.000425736
A59: 51 | B59: Statlig | C59: Landsbygd | D59: VV | E59: 2 | F59: 100 | G59: <5,7 | H59: - | I59: - | J59: - | K59: Statlig Landsbygd VV 100 <5,7 - - | M59: enbart 0,9 km 2012 | N59: ='0. Beräkna - Länk'!$C$26 -> 1 | O59: ='TS-EVA Länkberäkningar'!$L$142/('TS-EVA Länkberäkningar'!$L$145)^('TS-EVA Länkberäkningar'!$L$143-2010) -> 1534.246575 | P59: 0.56 | Q59: 0.0399056 | R59: 0.06196932 | S59: 0.002596412 | T59: 0.007583436 | U59: 0.051789472 | V59: 0.1087146667 | W59: 0.001758427328 | X59: 0.00995469496 | Y59: 0.0128918412 | Z59: 0.0880421024 | AA59: 0.7610026667 | AB59: 0.002989326458 | AC59: 0.01692298143 | AF59: 0.07 | AG59: 1.56 | AH59: 4 | AI59: 12 | AJ59: 84 | AK59: 1.777777778 | AL59: 0.0392 | AM59: 0.061152 | AN59: 0.00244608 | AO59: 0.00733824 | AP59: 0.05136768 | AQ59: 0.1087146667 | AR59: 0.00170980992 | AS59: 0.0097598592 | AT59: 0.012475008 | AU59: 0.087325056 | AV59: 0.7610026667 | AW59: 0.002906676864 | AX59: 0.01659176064 | AZ59: 0.16 | BA59: 0.017472 | BB59: 1.7 | BC59: 1.7 | BD59: 7 | BE59: 0.093 | BF59: 0.35 | BG59: 0.02 | BH59: 0.14 | BJ59: 0.003053232 | BK59: 0.01742832 | BM59: 0.7 | BN59: 1.25 | BO59: 30 | BP59: 30 | BQ59: 40 | BR59: 0.0002744 | BS59: 0.000343 | BT59: 0.0001029 | BU59: 0.0001029 | BV59: 0.0001372 | BW59: 2.04428e-05 | BX59: 7.9576e-05 | BY59: 0.00017493 | BZ59: 0.00023324 | CA59: 3.475276e-05 | CB59: 0.0001352792 | CD59: 0.6 | CF59: 1.7 | CG59: 1.7 | CH59: 0.16 | CI59: 0.48 | CJ59: 0.029 | CK59: 0.22 | CL59: 3.6505e-05 | CM59: 0.0001421 | CN59: 1.1 | CO59: 1.1 | CP59: 10 | CQ59: 30 | CR59: 60 | CS59: 0.0004312 | CT59: 0.00047432 | CU59: 4.7432e-05 | CV59: 0.000142296 | CW59: 0.000284592 | CX59: 2.8174608e-05 | CY59: 0.00011525976 | CZ59: 0.0002419032 | DA59: 0.0004838064 | DB59: 4.78968336e-05 | DC59: 0.000195941592 | DE59: 0.4 | DG59: 1.7 | DH59: 1.7 | DI59: 0.144 | DJ59: 0.43 | DK59: 0.027 | DL59: 0.19 | DM59: 5.03118e-05 | DN59: 0.000205821
A60: 52 | B60: Statlig | C60: Landsbygd | D60: VV | E60: 2 | F60: 100 | G60: 5,7-6,6 | H60: - | I60: - | J60: - | K60: Statlig Landsbygd VV 100 5,7-6,6 - - | M60: - | N60: ='0. Beräkna - Länk'!$C$26 -> 1 | O60: ='TS-EVA Länkberäkningar'!$L$142/('TS-EVA Länkberäkningar'!$L$145)^('TS-EVA Länkberäkningar'!$L$143-2010) -> 1534.246575 | P60: 0.56 | Q60: 0.0399056 | R60: 0.05961732 | S60: 0.002502332 | T60: 0.008477196 | U60: 0.048637792 | V60: 0.1045333333 | W60: 0.001778513408 | X60: 0.00982627576 | Y60: 0.0144112332 | Z60: 0.0826842464 | AA60: 0.7317333333 | AB60: 0.003023472794 | AC60: 0.01670466879 | AF60: 0.07 | AG60: 1.5 | AH60: 4 | AI60: 14 | AJ60: 82 | AK60: 1.777777778 | AL60: 0.0392 | AM60: 0.0588 | AN60: 0.002352 | AO60: 0.008232 | AP60: 0.048216 | AQ60: 0.1045333333 | AR60: 0.001729896 | AS60: 0.00963144 | AT60: 0.0139944 | AU60: 0.0819672 | AV60: 0.7317333333 | AW60: 0.0029408232 | AX60: 0.016373448 | AZ60: 0.18 | BA60: 0.0189 | BB60: 1.7 | BC60: 1.7 | BD60: 7 | BE60: 0.093 | BF60: 0.35 | BG60: 0.02 | BH60: 0.14 | BJ60: 0.0030891 | BK60: 0.017199 | BM60: 0.7 | BN60: 1.25 | BO60: 30 | BP60: 30 | BQ60: 40 | BR60: 0.0002744 | BS60: 0.000343 | BT60: 0.0001029 | BU60: 0.0001029 | BV60: 0.0001372 | BW60: 2.04428e-05 | BX60: 7.9576e-05 | BY60: 0.00017493 | BZ60: 0.00023324 | CA60: 3.475276e-05 | CB60: 0.0001352792 | CD60: 0.6 | CF60: 1.7 | CG60: 1.7 | CH60: 0.16 | CI60: 0.48 | CJ60: 0.029 | CK60: 0.22 | CL60: 3.6505e-05 | CM60: 0.0001421 | CN60: 1.1 | CO60: 1.1 | CP60: 10 | CQ60: 30 | CR60: 60 | CS60: 0.0004312 | CT60: 0.00047432 | CU60: 4.7432e-05 | CV60: 0.000142296 | CW60: 0.000284592 | CX60: 2.8174608e-05 | CY60: 0.00011525976 | CZ60: 0.0002419032 | DA60: 0.0004838064 | DB60: 4.78968336e-05 | DC60: 0.000195941592 | DE60: 0.4 | DG60: 1.7 | DH60: 1.7 | DI60: 0.144 | DJ60: 0.43 | DK60: 0.027 | DL60: 0.19 | DM60: 5.03118e-05 | DN60: 0.000205821
A61: 53 | B61: Statlig | C61: Landsbygd | D61: VV | E61: 2 | F61: 100 | G61: 6,7-7,9 | H61: - | I61: - | J61: - | K61: Statlig Landsbygd VV 100 6,7-7,9 - - | M61: - | N61: ='0. Beräkna - Länk'!$C$26 -> 1 | O61: ='TS-EVA Länkberäkningar'!$L$142/('TS-EVA Länkberäkningar'!$L$145)^('TS-EVA Länkberäkningar'!$L$143-2010) -> 1534.246575 | P61: 0.56 | Q61: 0.0399056 | R61: 0.05961732 | S61: 0.002502332 | T61: 0.008477196 | U61: 0.048637792 | V61: 0.1045333333 | W61: 0.001778513408 | X61: 0.00982627576 | Y61: 0.0144112332 | Z61: 0.0826842464 | AA61: 0.7317333333 | AB61: 0.003023472794 | AC61: 0.01670466879 | AF61: 0.07 | AG61: 1.5 | AH61: 4 | AI61: 14 | AJ61: 82 | AK61: 1.777777778 | AL61: 0.0392 | AM61: 0.0588 | AN61: 0.002352 | AO61: 0.008232 | AP61: 0.048216 | AQ61: 0.1045333333 | AR61: 0.001729896 | AS61: 0.00963144 | AT61: 0.0139944 | AU61: 0.0819672 | AV61: 0.7317333333 | AW61: 0.0029408232 | AX61: 0.016373448 | AZ61: 0.18 | BA61: 0.0189 | BB61: 1.7 | BC61: 1.7 | BD61: 7 | BE61: 0.093 | BF61: 0.35 | BG61: 0.02 | BH61: 0.14 | BJ61: 0.0030891 | BK61: 0.017199 | BM61: 0.7 | BN61: 1.25 | BO61: 30 | BP61: 30 | BQ61: 40 | BR61: 0.0002744 | BS61: 0.000343 | BT61: 0.0001029 | BU61: 0.0001029 | BV61: 0.0001372 | BW61: 2.04428e-05 | BX61: 7.9576e-05 | BY61: 0.00017493 | BZ61: 0.00023324 | CA61: 3.475276e-05 | CB61: 0.0001352792 | CD61: 0.6 | CF61: 1.7 | CG61: 1.7 | CH61: 0.16 | CI61: 0.48 | CJ61: 0.029 | CK61: 0.22 | CL61: 3.6505e-05 | CM61: 0.0001421 | CN61: 1.1 | CO61: 1.1 | CP61: 10 | CQ61: 30 | CR61: 60 | CS61: 0.0004312 | CT61: 0.00047432 | CU61: 4.7432e-05 | CV61: 0.000142296 | CW61: 0.000284592 | CX61: 2.8174608e-05 | CY61: 0.00011525976 | CZ61: 0.0002419032 | DA61: 0.0004838064 | DB61: 4.78968336e-05 | DC61: 0.000195941592 | DE61: 0.4 | DG61: 1.7 | DH61: 1.7 | DI61: 0.144 | DJ61: 0.43 | DK61: 0.027 | DL61: 0.19 | DM61: 5.03118e-05 | DN61: 0.000205821
A62: 54 | B62: Statlig | C62: Landsbygd | D62: VV | E62: 2 | F62: 100 | G62: 8-10 | H62: - | I62: - | J62: - | K62: Statlig Landsbygd VV 100 8-10 - - | M62: - | N62: ='0. Beräkna - Länk'!$C$26 -> 1 | O62: ='TS-EVA Länkberäkningar'!$L$142/('TS-EVA Länkberäkningar'!$L$145)^('TS-EVA Länkberäkningar'!$L$143-2010) -> 1534.246575 | P62: 0.56 | Q62: 0.04104576 | R62: 0.075432672 | S62: 0.0023923872 | T62: 0.0162894816 | U62: 0.0567508032 | V62: 0.138528 | W62: 0.002667812717 | X62: 0.0136978249 | Y62: 0.02769211872 | Z62: 0.09647636544 | AA62: 0.969696 | AB62: 0.004535281619 | AC62: 0.02328630232 | AF62: 0.072 | AG62: 1.85 | AH62: 3 | AI62: 21.5 | AJ62: 75.5 | AK62: 1.857142857 | AL62: 0.04032 | AM62: 0.074592 | AN62: 0.00223776 | AO62: 0.01603728 | AP62: 0.05631696 | AQ62: 0.138528 | AR62: 0.00261780624 | AS62: 0.0134974224 | AT62: 0.027263376 | AU62: 0.095738832 | AV62: 0.969696 | AW62: 0.004450270608 | AX62: 0.02294561808 | AZ62: 0.245 | BA62: 0.032634 | BB62: 1.7 | BC62: 1.7 | BD62: 7 | BE62: 0.093 | BF62: 0.35 | BG62: 0.02 | BH62: 0.14 | BJ62: 0.004674654 | BK62: 0.02410254 | BM62: 0.7 | BN62: 1.25 | BO62: 30 | BP62: 30 | BQ62: 40 | BR62: 0.00028224 | BS62: 0.0003528 | BT62: 0.00010584 | BU62: 0.00010584 | BV62: 0.00014112 | BW62: 2.102688e-05 | BX62: 8.18496e-05 | BY62: 0.000179928 | BZ62: 0.000239904 | CA62: 3.5745696e-05 | CB62: 0.00013914432 | CD62: 0.6 | CF62: 1.7 | CG62: 1.7 | CH62: 0.16 | CI62: 0.48 | CJ62: 0.029 | CK62: 0.22 | CL62: 3.7548e-05 | CM62: 0.00014616 | CN62: 1.1 | CO62: 1.1 | CP62: 10 | CQ62: 30 | CR62: 60 | CS62: 0.00044352 | CT62: 0.000487872 | CU62: 4.87872e-05 | CV62: 0.0001463616 | CW62: 0.0002927232 | CX62: 2.89795968e-05 | CY62: 0.000118552896 | CZ62: 0.00024881472 | DA62: 0.00049762944 | DB62: 4.926531456e-05 | DC62: 0.0002015399232 | DE62: 0.4 | DG62: 1.7 | DH62: 1.7 | DI62: 0.144 | DJ62: 0.43 | DK62: 0.027 | DL62: 0.19 | DM62: 5.174928e-05 | DN62: 0.0002117016
A63: 55 | B63: Statlig | C63: Landsbygd | D63: VV | E63: 2 | F63: 100 | G63: 10,1-11,5 | H63: - | I63: - | J63: - | K63: Statlig Landsbygd VV 100 10,1-11,5 - - | M63: - | N63: ='0. Beräkna - Länk'!$C$26 -> 1 | O63: ='TS-EVA Länkberäkningar'!$L$142/('TS-EVA Länkberäkningar'!$L$145)^('TS-EVA Länkberäkningar'!$L$143-2010) -> 1534.246575 | P63: 0.56 | Q63: 0.04779264 | R63: 0.08224944 | S63: 0.0020293056 | T63: 0.0215824224 | U63: 0.058637712 | V63: 0.1511328 | W63: 0.003198370963 | X63: 0.01581611808 | Y63: 0.03669011808 | Z63: 0.0996841104 | AA63: 1.0579296 | AB63: 0.005437230637 | AC63: 0.02688740074 | AF63: 0.084 | AG63: 1.73 | AH63: 2.3 | AI63: 26.2 | AJ63: 71.5 | AK63: 1.857142857 | AL63: 0.04704 | AM63: 0.0813792 | AN63: 0.0018717216 | AO63: 0.0213213504 | AP63: 0.058186128 | AQ63: 0.1511328 | AR63: 0.003146608147 | AS63: 0.01560853056 | AT63: 0.03624629568 | AU63: 0.0989164176 | AV63: 1.0579296 | AW63: 0.00534923385 | AX63: 0.02653450195 | AZ63: 0.285 | BA63: 0.0414162 | BB63: 1.7 | BC63: 1.7 | BD63: 7 | BE63: 0.093 | BF63: 0.35 | BG63: 0.02 | BH63: 0.14 | BJ63: 0.00561894312 | BK63: 0.027872376 | BM63: 0.6 | BN63: 1.25 | BO63: 30 | BP63: 30 | BQ63: 40 | BR63: 0.00028224 | BS63: 0.0003528 | BT63: 0.00010584 | BU63: 0.00010584 | BV63: 0.00014112 | BW63: 2.102688e-05 | BX63: 8.18496e-05 | BY63: 0.000179928 | BZ63: 0.000239904 | CA63: 3.5745696e-05 | CB63: 0.00013914432 | CD63: 0.6 | CF63: 1.7 | CG63: 1.7 | CH63: 0.16 | CI63: 0.48 | CJ63: 0.029 | CK63: 0.22 | CL63: 3.7548e-05 | CM63: 0.00014616 | CN63: 1 | CO63: 1.1 | CP63: 10 | CQ63: 30 | CR63: 60 | CS63: 0.0004704 | CT63: 0.00051744 | CU63: 5.1744e-05 | CV63: 0.000155232 | CW63: 0.000310464 | CX63: 3.0735936e-05 | CY63: 0.00012573792 | CZ63: 0.0002638944 | DA63: 0.0005277888 | DB63: 5.22510912e-05 | DC63: 0.000213754464 | DE63: 0.4 | DG63: 1.7 | DH63: 1.7 | DI63: 0.144 | DJ63: 0.43 | DK63: 0.027 | DL63: 0.19 | DM63: 5.48856e-05 | DN63: 0.000224532
A64: 56 | B64: Statlig | C64: Landsbygd | D64: VV | E64: 2 | F64: 100 | G64: 11,6- | H64: - | I64: - | J64: - | K64: Statlig Landsbygd VV 100 11,6- - - | M64: - | N64: ='0. Beräkna - Länk'!$C$26 -> 1 | O64: ='TS-EVA Länkberäkningar'!$L$142/('TS-EVA Länkberäkningar'!$L$145)^('TS-EVA Länkberäkningar'!$L$143-2010) -> 1534.246575 | P64: 0.56 | Q64: 0.04779264 | R64: 0.08224944 | S64: 0.002192064 | T64: 0.021419664 | U64: 0.058637712 | V64: 0.1511328 | W64: 0.003183234432 | X64: 0.01575915264 | Y64: 0.0364134288 | Z64: 0.0996841104 | AA64: 1.0579296 | AB64: 0.005411498534 | AC64: 0.02679055949 | AF64: 0.084 | AG64: 1.73 | AH64: 2.5 | AI64: 26 | AJ64: 71.5 | AK64: 1.857142857 | AL64: 0.04704 | AM64: 0.0813792 | AN64: 0.00203448 | AO64: 0.021158592 | AP64: 0.058186128 | AQ64: 0.1511328 | AR64: 0.003131471616 | AS64: 0.01555156512 | AT64: 0.0359696064 | AU64: 0.0989164176 | AV64: 1.0579296 | AW64: 0.005323501747 | AX64: 0.0264376607 | AZ64: 0.285 | BA64: 0.0414162 | BB64: 1.7 | BC64: 1.7 | BD64: 7 | BE64: 0.093 | BF64: 0.35 | BG64: 0.02 | BH64: 0.14 | BJ64: 0.0055919136 | BK64: 0.027770652 | BM64: 0.6 | BN64: 1.25 | BO64: 30 | BP64: 30 | BQ64: 40 | BR64: 0.00028224 | BS64: 0.0003528 | BT64: 0.00010584 | BU64: 0.00010584 | BV64: 0.00014112 | BW64: 2.102688e-05 | BX64: 8.18496e-05 | BY64: 0.000179928 | BZ64: 0.000239904 | CA64: 3.5745696e-05 | CB64: 0.00013914432 | CD64: 0.6 | CF64: 1.7 | CG64: 1.7 | CH64: 0.16 | CI64: 0.48 | CJ64: 0.029 | CK64: 0.22 | CL64: 3.7548e-05 | CM64: 0.00014616 | CN64: 1 | CO64: 1.1 | CP64: 10 | CQ64: 30 | CR64: 60 | CS64: 0.0004704 | CT64: 0.00051744 | CU64: 5.1744e-05 | CV64: 0.000155232 | CW64: 0.000310464 | CX64: 3.0735936e-05 | CY64: 0.00012573792 | CZ64: 0.0002638944 | DA64: 0.0005277888 | DB64: 5.22510912e-05 | DC64: 0.000213754464 | DE64: 0.4 | DG64: 1.7 | DH64: 1.7 | DI64: 0.144 | DJ64: 0.43 | DK64: 0.027 | DL64: 0.19 | DM64: 5.48856e-05 | DN64: 0.000224532
A65: 57 | B65: Statlig | C65: Landsbygd | D65: ML | E65: 2 | F65: 50 | G65: - | H65: - | I65: - | J65: - | K65: Statlig Landsbygd ML 50 - - - | M65: enbart 0,5 km 2012 | N65: ='0. Beräkna - Länk'!$C$26 -> 1 | O65: ='TS-EVA Länkberäkningar'!$L$142/('TS-EVA Länkberäkningar'!$L$145)^('TS-EVA Länkberäkningar'!$L$143-2010) -> 1534.246575 | P65: 0.56 | Q65: 0.056644 | R65: 0.0904036 | S65: 0.0012362 | T65: 0.01161244 | U65: 0.07755496 | V65: 0.2090666667 | W65: 0.00249570496 | X65: 0.0146137964 | Y65: 0.019741148 | Z65: 0.131843432 | AA65: 1.463466667 | AB65: 0.004242698432 | AC65: 0.02484345388 | AF65: 0.1 | AG65: 1.6 | AH65: 1.3 | AI65: 12.7 | AJ65: 86 | AK65: 2.333333333 | AL65: 0.056 | AM65: 0.0896 | AN65: 0.0011648 | AO65: 0.0113792 | AP65: 0.077056 | AQ65: 0.2090666667 | AR65: 0.002451456 | AS65: 0.0144032 | AT65: 0.01934464 | AU65: 0.1309952 | AV65: 1.463466667 | AW65: 0.0041674752 | AX65: 0.02448544 | AZ65: 0.14 | BA65: 0.0224 | BB65: 1.7 | BC65: 1.7 | BD65: 7 | BE65: 0.08 | BF65: 0.25 | BG65: 0.02 | BH65: 0.15 | BJ65: 0.0043776 | BK65: 0.02572 | BM65: 0.95 | BN65: 1.3 | BO65: 10 | BP65: 30 | BQ65: 60 | BR65: 0.000532 | BS65: 0.0006916 | BT65: 6.916e-05 | BU65: 0.00020748 | BV65: 0.00041496 | BW65: 3.900624e-05 | BX65: 0.0001846572 | BY65: 0.000352716 | BZ65: 0.000705432 | CA65: 6.6310608e-05 | CB65: 0.00031391724 | CD65: 0.4 | CF65: 1.7 | CG65: 1.7 | CH65: 0.13 | CI65: 0.45 | CJ65: 0.029 | CK65: 0.22 | CL65: 6.9654e-05 | CM65: 0.000329745 | CN65: 0.2 | CO65: 1 | CP65: 2 | CQ65: 23 | CR65: 75 | CS65: 0.000112 | CT65: 0.000112 | CU65: 2.24e-06 | CV65: 2.576e-05 | CW65: 8.4e-05 | CX65: 5.24272e-06 | CY65: 2.59392e-05 | CZ65: 4.3792e-05 | DA65: 0.0001428 | DB65: 8.912624e-06 | DC65: 4.409664e-05 | DE65: 0.25 | DG65: 1.7 | DH65: 1.7 | DI65: 0.122 | DJ65: 0.42 | DK65: 0.025 | DL65: 0.18 | DM65: 9.362e-06 | DN65: 4.632e-05
A66: 58 | B66: Statlig | C66: Landsbygd | D66: ML | E66: 2 | F66: 70 | G66: - | H66: - | I66: - | J66: - | K66: Statlig Landsbygd ML 70 - - - | M66: 5,0 km år 2012 | N66: ='0. Beräkna - Länk'!$C$26 -> 1 | O66: ='TS-EVA Länkberäkningar'!$L$142/('TS-EVA Länkberäkningar'!$L$145)^('TS-EVA Länkberäkningar'!$L$143-2010) -> 1534.246575 | P66: 0.56 | Q66: 0.0509796 | R66: 0.08640324 | S66: 0.00092106 | T66: 0.017345916 | U66: 0.068136264 | V66: 0.1739563636 | W66: 0.003077445672 | X66: 0.01616687856 | Y66: 0.0294880572 | Z66: 0.1158316488 | AA66: 1.217694545 | AB66: 0.005231657642 | AC66: 0.02748369355 | AF66: 0.09 | AG66: 1.7 | AH66: 1 | AI66: 20 | AJ66: 79 | AK66: 2.03030303 | AL66: 0.0504 | AM66: 0.08568 | AN66: 0.0008568 | AO66: 0.017136 | AP66: 0.0676872 | AQ66: 0.1739563636 | AR66: 0.0030313584 | AS66: 0.015970752 | AT66: 0.0291312 | AU66: 0.11506824 | AV66: 1.217694545 | AW66: 0.00515330928 | AX66: 0.0271502784 | AZ66: 0.21 | BA66: 0.03213 | BB66: 1.7 | BC66: 1.7 | BD66: 7 | BE66: 0.09 | BF66: 0.3 | BG66: 0.022 | BH66: 0.16 | BJ66: 0.00541314 | BK66: 0.0285192 | BM66: 0.95 | BN66: 1.3 | BO66: 10 | BP66: 30 | BQ66: 60 | BR66: 0.0004788 | BS66: 0.00062244 | BT66: 6.2244e-05 | BU66: 0.000186732 | BV66: 0.000373464 | BW66: 4.0707576e-05 | BX66: 0.00017179344 | BY66: 0.0003174444 | BZ66: 0.0006348888 | CA66: 6.92028792e-05 | CB66: 0.000292048848 | CD66: 0.4 | CF66: 1.7 | CG66: 1.7 | CH66: 0.16 | CI66: 0.48 | CJ66: 0.029 | CK66: 0.22 | CL66: 7.26921e-05 | CM66: 0.000306774 | CN66: 0.2 | CO66: 1 | CP66: 2 | CQ66: 23 | CR66: 75 | CS66: 0.0001008 | CT66: 0.0001008 | CU66: 2.016e-06 | CV66: 2.3184e-05 | CW66: 7.56e-05 | CX66: 5.379696e-06 | CY66: 2.433312e-05 | CZ66: 3.94128e-05 | DA66: 0.00012852 | DB66: 9.1454832e-06 | DC66: 4.1366304e-05 | DE66: 0.25 | DG66: 1.7 | DH66: 1.7 | DI66: 0.144 | DJ66: 0.43 | DK66: 0.027 | DL66: 0.19 | DM66: 9.6066e-06 | DN66: 4.3452e-05
A67: 59 | B67: Statlig | C67: Landsbygd | D67: ML | E67: 2 | F67: 80 | G67: - | H67: - | I67: - | J67: - | K67: Statlig Landsbygd ML 80 - - - | M67: enbart 1,5 km 2012 | N67: ='0. Beräkna - Länk'!$C$26 -> 1 | O67: ='TS-EVA Länkberäkningar'!$L$142/('TS-EVA Länkberäkningar'!$L$145)^('TS-EVA Länkberäkningar'!$L$143-2010) -> 1534.246575 | P67: 0.56 | Q67: 0.0453152 | R67: 0.07680288 | S67: 0.002701888 | T67: 0.017398752 | U67: 0.05670224 | V67: 0.14144 | W67: 0.002828341152 | X67: 0.01434315456 | Y67: 0.0295778784 | Z67: 0.096393808 | AA67: 0.99008 | AB67: 0.004808179958 | AC67: 0.02438336275 | AF67: 0.08 | AG67: 1.7 | AH67: 3.4 | AI67: 22.6 | AJ67: 74 | AK67: 1.857142857 | AL67: 0.0448 | AM67: 0.07616 | AN67: 0.00258944 | AO67: 0.01721216 | AP67: 0.0563584 | AQ67: 0.14144 | AR67: 0.0027889792 | AS67: 0.014180992 | AT67: 0.029260672 | AU67: 0.09580928 | AV67: 0.99008 | AW67: 0.00474126464 | AX67: 0.0241076864 | AZ67: 0.26 | BA67: 0.03536 | BB67: 1.7 | BC67: 1.7 | BD67: 7 | BE67: 0.09 | BF67: 0.3 | BG67: 0.022 | BH67: 0.16 | BJ67: 0.00498032 | BK67: 0.0253232 | BM67: 0.95 | BN67: 1.3 | BO67: 20 | BP67: 30 | BQ67: 50 | BR67: 0.0004256 | BS67: 0.00055328 | BT67: 0.000110656 | BU67: 0.000165984 | BV67: 0.00027664 | BW67: 3.458e-05 | BX67: 0.00014053312 | BY67: 0.0002821728 | BZ67: 0.000470288 | CA67: 5.8786e-05 | CB67: 0.000238906304 | CD67: 0.5 | CF67: 1.7 | CG67: 1.7 | CH67: 0.16 | CI67: 0.48 | CJ67: 0.029 | CK67: 0.22 | CL67: 6.175e-05 | CM67: 0.000250952 | CN67: 0.2 | CO67: 1 | CP67: 2 | CQ67: 23 | CR67: 75 | CS67: 8.96e-05 | CT67: 8.96e-05 | CU67: 1.792e-06 | CV67: 2.0608e-05 | CW67: 6.72e-05 | CX67: 4.781952e-06 | CY67: 2.162944e-05 | CZ67: 3.50336e-05 | DA67: 0.00011424 | DB67: 8.1293184e-06 | DC67: 3.6770048e-05 | DE67: 0.25 | DG67: 1.7 | DH67: 1.7 | DI67: 0.144 | DJ67: 0.43 | DK67: 0.027 | DL67: 0.19 | DM67: 8.5392e-06 | DN67: 3.8624e-05
A68: 60 | B68: Statlig | C68: Landsbygd | D68: ML | E68: 2 | F68: 90 | G68: - | H68: - | I68: - | J68: - | K68: Statlig Landsbygd ML 90 - - - | M68: 12,2 km år 2012 | N68: ='0. Beräkna - Länk'!$C$26 -> 1 | O68: ='TS-EVA Länkberäkningar'!$L$142/('TS-EVA Länkberäkningar'!$L$145)^('TS-EVA Länkberäkningar'!$L$143-2010) -> 1534.246575 | P68: 0.56 | Q68: 0.0396508 | R68: 0.06524252 | S68: 0.003332392 | T68: 0.013746068 | U68: 0.04816406 | V68: 0.12012 | W68: 0.002309884108 | X68: 0.01187484424 | Y68: 0.0233683156 | Z68: 0.081878902 | AA68: 0.84084 | AB68: 0.003926802984 | AC68: 0.02018723521 | AF68: 0.07 | AG68: 1.65 | AH68: 5 | AI68: 21 | AJ68: 74 | AK68: 1.857142857 | AL68: 0.0392 | AM68: 0.06468 | AN68: 0.003234 | AO68: 0.0135828 | AP68: 0.0478632 | AQ68: 0.12012 | AR68: 0.0022754424 | AS68: 0.011732952 | AT68: 0.02309076 | AU68: 0.08136744 | AV68: 0.84084 | AW68: 0.00386825208 | AX68: 0.0199460184 | AZ68: 0.26 | BA68: 0.03003 | BB68: 1.7 | BC68: 1.7 | BD68: 7 | BE68: 0.09 | BF68: 0.3 | BG68: 0.022 | BH68: 0.16 | BJ68: 0.00406329 | BK68: 0.0209517 | BM68: 0.95 | BN68: 1.3 | BO68: 20 | BP68: 30 | BQ68: 50 | BR68: 0.0003724 | BS68: 0.00048412 | BT68: 9.6824e-05 | BU68: 0.000145236 | BV68: 0.00024206 | BW68: 3.02575e-05 | BX68: 0.00012296648 | BY68: 0.0002469012 | BZ68: 0.000411502 | CA68: 5.143775e-05 | CB68: 0.000209043016 | CD68: 0.5 | CF68: 1.7 | CG68: 1.7 | CH68: 0.16 | CI68: 0.48 | CJ68: 0.029 | CK68: 0.22 | CL68: 5.403125e-05 | CM68: 0.000219583 | CN68: 0.2 | CO68: 1 | CP68: 2 | CQ68: 23 | CR68: 75 | CS68: 7.84e-05 | CT68: 7.84e-05 | CU68: 1.568e-06 | CV68: 1.8032e-05 | CW68: 5.88e-05 | CX68: 4.184208e-06 | CY68: 1.892576e-05 | CZ68: 3.06544e-05 | DA68: 9.996e-05 | DB68: 7.1131536e-06 | DC68: 3.2173792e-05 | DE68: 0.25 | DG68: 1.7 | DH68: 1.7 | DI68: 0.144 | DJ68: 0.43 | DK68: 0.027 | DL68: 0.19 | DM68: 7.4718e-06 | DN68: 3.3796e-05
A69: 61 | B69: Statlig | C69: Landsbygd | D69: ML | E69: 2 | F69: 100 | G69: - | H69: - | I69: - | J69: - | K69: Statlig Landsbygd ML 100 - - - | M69: enbart 1,1 km 2012 | N69: ='0. Beräkna - Länk'!$C$26 -> 1 | O69: ='TS-EVA Länkberäkningar'!$L$142/('TS-EVA Länkberäkningar'!$L$145)^('TS-EVA Länkberäkningar'!$L$143-2010) -> 1534.246575 | P69: 0.56 | Q69: 0.0396508 | R69: 0.06837852 | S69: 0.003852478 | T69: 0.015446074 | U69: 0.049079968 | V69: 0.125944 | W69: 0.00263697616 | X69: 0.01283801568 | Y69: 0.0262583258 | Z69: 0.0834359456 | AA69: 0.881608 | AB69: 0.004482859472 | AC69: 0.02182462666 | AF69: 0.07 | AG69: 1.73 | AH69: 5.5 | AI69: 22.5 | AJ69: 72 | AK69: 1.857142857 | AL69: 0.0392 | AM69: 0.067816 | AN69: 0.00372988 | AO69: 0.0152586 | AP69: 0.04882752 | AQ69: 0.125944 | AR69: 0.00260006544 | AS69: 0.0126951552 | AT69: 0.02593962 | AU69: 0.083006784 | AV69: 0.881608 | AW69: 0.004420111248 | AX69: 0.02158176384 | AZ69: 0.28 | BA69: 0.033908 | BB69: 1.7 | BC69: 1.7 | BD69: 7 | BE69: 0.1 | BF69: 0.32 | BG69: 0.022 | BH69: 0.16 | BJ69: 0.004642974 | BK69: 0.02266992 | BM69: 0.95 | BN69: 1.3 | BO69: 25 | BP69: 35 | BQ69: 40 | BR69: 0.0003724 | BS69: 0.00048412 | BT69: 0.00012103 | BU69: 0.000169442 | BV69: 0.000193648 | BW69: 3.2726512e-05 | BX69: 0.00012393472 | BY69: 0.0002880514 | BZ69: 0.0003292016 | CA69: 5.56350704e-05 | CB69: 0.000210689024 | CD69: 0.6 | CF69: 1.7 | CG69: 1.7 | CH69: 0.16 | CI69: 0.48 | CJ69: 0.029 | CK69: 0.22 | CL69: 5.84402e-05 | CM69: 0.000221312 | CN69: 0.2 | CO69: 1 | CP69: 2 | CQ69: 23 | CR69: 75 | CS69: 7.84e-05 | CT69: 7.84e-05 | CU69: 1.568e-06 | CV69: 1.8032e-05 | CW69: 5.88e-05 | CX69: 4.184208e-06 | CY69: 1.892576e-05 | CZ69: 3.06544e-05 | DA69: 9.996e-05 | DB69: 7.1131536e-06 | DC69: 3.2173792e-05 | DE69: 0.25 | DG69: 1.7 | DH69: 1.7 | DI69: 0.144 | DJ69: 0.43 | DK69: 0.027 | DL69: 0.19 | DM69: 7.4718e-06 | DN69: 3.3796e-05
A70: 62 | B70: Statlig | C70: Landsbygd | D70: ML | E70: 2 | F70: 110 | G70: - | H70: - | I70: - | J70: - | K70: Statlig Landsbygd ML 110 - - - | M70: enbart 0,3 km 2012 | N70: ='0. Beräkna - Länk'!$C$26 -> 1 | O70: ='TS-EVA Länkberäkningar'!$L$142/('TS-EVA Länkberäkningar'!$L$145)^('TS-EVA Länkberäkningar'!$L$143-2010) -> 1534.246575 | P70: 0.56 | Q70: 0.0396508 | R70: 0.07112252 | S70: 0.004356198 | T70: 0.017121874 | U70: 0.049644448 | V70: 0.13104 | W70: 0.00281697472 | X70: 0.01346458848 | Y70: 0.0291071858 | Z70: 0.0843955616 | AA70: 0.91728 | AB70: 0.004788857024 | AC70: 0.02288980042 | AF70: 0.07 | AG70: 1.8 | AH70: 6 | AI70: 24 | AJ70: 70 | AK70: 1.857142857 | AL70: 0.0392 | AM70: 0.07056 | AN70: 0.0042336 | AO70: 0.0169344 | AP70: 0.049392 | AQ70: 0.13104 | AR70: 0.002780064 | AS70: 0.013321728 | AT70: 0.02878848 | AU70: 0.0839664 | AV70: 0.91728 | AW70: 0.0047261088 | AX70: 0.0226469376 | AZ70: 0.3 | BA70: 0.0378 | BB70: 1.7 | BC70: 1.7 | BD70: 7 | BE70: 0.1 | BF70: 0.32 | BG70: 0.022 | BH70: 0.16 | BJ70: 0.0049644 | BK70: 0.0237888 | BM70: 0.95 | BN70: 1.3 | BO70: 25 | BP70: 35 | BQ70: 40 | BR70: 0.0003724 | BS70: 0.00048412 | BT70: 0.00012103 | BU70: 0.000169442 | BV70: 0.000193648 | BW70: 3.2726512e-05 | BX70: 0.00012393472 | BY70: 0.0002880514 | BZ70: 0.0003292016 | CA70: 5.56350704e-05 | CB70: 0.000210689024 | CD70: 0.6 | CF70: 1.7 | CG70: 1.7 | CH70: 0.16 | CI70: 0.48 | CJ70: 0.029 | CK70: 0.22 | CL70: 5.84402e-05 | CM70: 0.000221312 | CN70: 0.2 | CO70: 1 | CP70: 2 | CQ70: 23 | CR70: 75 | CS70: 7.84e-05 | CT70: 7.84e-05 | CU70: 1.568e-06 | CV70: 1.8032e-05 | CW70: 5.88e-05 | CX70: 4.184208e-06 | CY70: 1.892576e-05 | CZ70: 3.06544e-05 | DA70: 9.996e-05 | DB70: 7.1131536e-06 | DC70: 3.2173792e-05 | DE70: 0.25 | DG70: 1.7 | DH70: 1.7 | DI70: 0.144 | DJ70: 0.43 | DK70: 0.027 | DL70: 0.19 | DM70: 7.4718e-06 | DN70: 3.3796e-05
A71: 63 | B71: Statlig | C71: Landsbygd | D71: MLV | E71: 2+1 | F71: 80 | G71: 13-14 | H71: - | I71: - | J71: - | K71: Statlig Landsbygd MLV 80 13-14 - - | M71: - | N71: ='0. Beräkna - Länk'!$C$26 -> 1 | O71: ='TS-EVA Länkberäkningar'!$L$142/('TS-EVA Länkberäkningar'!$L$145)^('TS-EVA Länkberäkningar'!$L$143-2010) -> 1534.246575 | P71: 0.56 | Q71: 0.0458752 | R71: 0.07531776 | S71: 0.0003155712 | T71: 0.0032178048 | U71: 0.071784384 | V71: 0.22176 | W71: 0.001476187507 | X71: 0.0102642167 | Y71: 0.00547026816 | Z71: 0.1220334528 | AA71: 1.55232 | AB71: 0.002509518762 | AC71: 0.0174491684 | AF71: 0.08 | AG71: 1.65 | AH71: 0.2 | AI71: 3.8 | AJ71: 96 | AK71: 3 | AL71: 0.0448 | AM71: 0.07392 | AN71: 0.00014784 | AO71: 0.00280896 | AP71: 0.0709632 | AQ71: 0.22176 | AR71: 0.0013889568 | AS71: 0.0098993664 | AT71: 0.004775232 | AU71: 0.12063744 | AV71: 1.55232 | AW71: 0.00236122656 | AX71: 0.01682892288 | AZ71: 0.04 | BA71: 0.00528 | BB71: 1.7 | BC71: 1.7 | BD71: 7 | BE71: 0.065 | BF71: 0.24 | BG71: 0.017 | BH71: 0.13 | BJ71: 0.00248028 | BK71: 0.01767744 | BM71: 1.8 | BN71: 1.3 | BO71: 15 | BP71: 30 | BQ71: 55 | BR71: 0.0008064 | BS71: 0.00104832 | BT71: 0.000157248 | BU71: 0.000314496 | BV71: 0.000576576 | BW71: 6.7040064e-05 | BX71: 0.0002778048 | BY71: 0.0005346432 | BZ71: 0.0009801792 | CA71: 0.0001139681088 | CB71: 0.00047226816 | CD71: 0.45 | CF71: 1.7 | CG71: 1.7 | CH71: 0.16 | CI71: 0.48 | CJ71: 0.029 | CK71: 0.22 | CL71: 0.0001197144 | CM71: 0.00049608 | CN71: 0.6 | CO71: 1.3 | CP71: 3 | CQ71: 27 | CR71: 70 | CS71: 0.0002688 | CT71: 0.00034944 | CU71: 1.04832e-05 | CV71: 9.43488e-05 | CW71: 0.000244608 | CX71: 2.01906432e-05 | CY71: 8.7045504e-05 | CZ71: 0.00016039296 | DA71: 0.0004158336 | DB71: 3.432409344e-05 | DC71: 0.0001479773568 | DE71: 0.3 | DG71: 1.7 | DH71: 1.7 | DI71: 0.144 | DJ71: 0.43 | DK71: 0.027 | DL71: 0.19 | DM71: 3.605472e-05 | DN71: 0.0001554384
A72: 64 | B72: Statlig | C72: Landsbygd | D72: MLV | E72: 2+1 | F72: 90 | G72: 13-14 | H72: - | I72: - | J72: - | K72: Statlig Landsbygd MLV 90 13-14 - - | M72: - | N72: ='0. Beräkna - Länk'!$C$26 -> 1 | O72: ='TS-EVA Länkberäkningar'!$L$142/('TS-EVA Länkberäkningar'!$L$145)^('TS-EVA Länkberäkningar'!$L$143-2010) -> 1534.246575 | P72: 0.56 | Q72: 0.0400232 | R72: 0.05947816 | S72: 0.0002990568 | T72: 0.0055685952 | U72: 0.053610508 | V72: 0.175224 | W72: 0.001308829945 | X72: 0.008427230896 | Y72: 0.00946661184 | Z72: 0.0911378636 | AA72: 1.226568 | AB72: 0.002225010906 | AC72: 0.01432629252 | AF72: 0.07 | AG72: 1.49 | AH72: 0.3 | AI72: 9 | AJ72: 90.7 | AK72: 3 | AL72: 0.0392 | AM72: 0.058408 | AN72: 0.000175224 | AO72: 0.00525672 | AP72: 0.052976056 | AQ72: 0.175224 | AR72: 0.001242279752 | AS72: 0.00814850008 | AT72: 0.008936424 | AU72: 0.0900592952 | AV72: 1.226568 | AW72: 0.002111875578 | AX72: 0.01385245014 | AZ72: 0.093 | BA72: 0.0096999 | BB72: 1.7 | BC72: 1.7 | BD72: 7 | BE72: 0.065 | BF72: 0.24 | BG72: 0.017 | BH72: 0.13 | BJ72: 0.0022183567 | BK72: 0.014550893 | BM72: 1.5 | BN72: 1.3 | BO72: 15 | BP72: 30 | BQ72: 55 | BR72: 0.000588 | BS72: 0.0007644 | BT72: 0.00011466 | BU72: 0.00022932 | BV72: 0.00042042 | BW72: 4.888338e-05 | BX72: 0.000202566 | BY72: 0.000389844 | BZ72: 0.000714714 | CA72: 8.3101746e-05 | CB72: 0.0003443622 | CD72: 0.45 | CF72: 1.7 | CG72: 1.7 | CH72: 0.16 | CI72: 0.48 | CJ72: 0.029 | CK72: 0.22 | CL72: 8.729175e-05 | CM72: 0.000361725 | CN72: 0.6 | CO72: 1.3 | CP72: 3 | CQ72: 27 | CR72: 70 | CS72: 0.0002352 | CT72: 0.00030576 | CU72: 9.1728e-06 | CV72: 8.25552e-05 | CW72: 0.000214032 | CX72: 1.76668128e-05 | CY72: 7.6164816e-05 | CZ72: 0.00014034384 | DA72: 0.0003638544 | DB72: 3.003358176e-05 | DC72: 0.0001294801872 | DE72: 0.3 | DG72: 1.7 | DH72: 1.7 | DI72: 0.144 | DJ72: 0.43 | DK72: 0.027 | DL72: 0.19 | DM72: 3.154788e-05 | DN72: 0.0001360086
A73: 65 | B73: Statlig | C73: Landsbygd | D73: MLV | E73: 2+1 | F73: 100 | G73: 13-14 | H73: - | I73: - | J73: - | K73: =B73&" "&C73&" "&D73&" "&F73&" "&G73&" "&H73&" "&I73 -> Statlig Landsbygd MLV 100 13-14 - - | M73: - | N73: ='0. Beräkna - Länk'!$C$26 -> 1 | O73: ='TS-EVA Länkberäkningar'!$L$142/('TS-EVA Länkberäkningar'!$L$145)^('TS-EVA Länkberäkningar'!$L$143-2010) -> 1534.246575 | P73: 0.56 | Q73: 0.0326508 | R73: 0.04856404 | S73: 0.0002351888 | T73: 0.0048221432 | U73: 0.043506708 | V73: =AQ73 -> 0.143934 | W73: =AR73+BW73+CX73 -> 0.001118059799 | X73: 0.006967370956 | Y73: =AO73*BB73+BU73*CF73+CV73*DG73 -> 0.00819764344 | Z73: 0.0739614036 | AA73: =AQ73*BD73 -> 1.007538 | AB73: =BE73*AO73*BB73+BG73*AP73*BC73+CH73*BU73*CF73+CJ73*BV73*CG73+DI73*CV73*DG73+DK73*CW73*DH73 -> 0.001900701658 | AC73: =BF73*AO73*BB73+BH73*AP73*BC73+CI73*BU73*CF73+CK73*BV73*CG73+DJ73*CV73*DG73+DL73*CW73*DH73 -> 0.01184453063 | AF73: 0.0575 | AG73: 1.49 | AH73: 0.3 | AI73: 9.7 | AJ73: 90 | AK73: 3 | AL73: 0.0322 | AM73: 0.047978 | AN73: =AH73*$AM73/100 -> 0.000143934 | AO73: 0.004653866 | AP73: 0.0431802 | AQ73: =AK73*$AM73 -> 0.143934 | AR73: =BJ73*P73 -> 0.00108310335 | AS73: =BK73*P73 -> 0.00682343116 | AT73: =AO73*BB73 -> 0.0079115722 | AU73: 0.07340634 | AV73: 1.007538 | AW73: =BE73*AT73+BG73*AU73 -> 0.001841275695 | AX73: =BF73*AT73+BH73*AU73 -> 0.01159983297 | AZ73: =AH73/100+AI73/100 -> 0.1 | BA73: =(AH73/100+AI73/100)*AG73*AF73 -> 0.0085675 | BB73: 1.7 | BC73: 1.7 | BD73: 7 | BE73: 0.075 | BF73: 0.26 | BG73: 0.017 | BH73: 0.13 | BJ73: =$AF73*$AG73*($AI73*BE73+$AJ73*BG73)/100 -> 0.001934113125 | BK73: 0.0121846985 | BM73: 0.8 | BN73: 1.3 | BO73: 25 | BP73: 30 | BQ73: 45 | BR73: =$N$5*BM73/100*AL73 -> 0.0002576 | BS73: =BN73*BR73 -> 0.00033488 | BT73: =BO73/100*BS73 -> 8.372e-05 | BU73: =BP73/100*BS73 -> 0.000100464 | BV73: =BQ73/100*BS73 -> 0.000150696 | BW73: =CL73*P73 -> 2.0444424e-05 | BX73: =CM73*P73 -> 8.137584e-05 | BY73: =BU73*CF73 -> 0.0001707888 | BZ73: 0.0002561832 | CA73: =BY73*CH73+CJ73*BZ73 -> 3.47555208e-05 | CB73: =BZ73*CK73+BY73*CI73 -> 0.000138338928 | CD73: =BO73/100+BP73/100 -> 0.55 | CF73: 1.7 | CG73: 1.7 | CH73: 0.16 | CI73: 0.48 | CJ73: 0.029 | CK73: 0.22 | CL73: 3.65079e-05 | CM73: 0.000145314 | CN73: 0.6 | CO73: 1.3 | CP73: 3 | CQ73: 27 | CR73: 70 | CS73: =$N$6*CN73/100*AL73 -> 0.0001932 | CT73: =CO73*CS73 -> 0.00025116 | CU73: =CP73/100*CT73 -> 7.5348e-06 | CV73: =CQ73/100*CT73 -> 6.78132e-05 | CW73: =CR73/100*CT73 -> 0.000175812 | CX73: =DM73*P73 -> 1.45120248e-05 | CY73: =DN73*P73 -> 6.2563956e-05 | CZ73: =CV73*DG73 -> 0.00011528244 | DA73: 0.0002988804 | DB73: =CZ73*DI73+DA73*DK73 -> 2.467044216e-05 | DC73: =CZ73*DJ73+DA73*DL73 -> 0.0001063587252 | DE73: =CP73/100+CQ73/100 -> 0.3 | DG73: 1.7 | DH73: 1.7 | DI73: 0.144 | DJ73: 0.43 | DK73: 0.027 | DL73: 0.19 | DM73: =$CN73/100*$AF73*$CO73*($CQ73*DI73+$CR73*DK73)/100 -> 2.591433e-05 | DN73: 0.00011172135
A74: 66 | B74: Statlig | C74: Landsbygd | D74: MLV | E74: 2+1 | F74: 110 | G74: 13-14 | H74: - | I74: - | J74: - | K74: Statlig Landsbygd MLV 110 13-14 - - | M74: - | N74: ='0. Beräkna - Länk'!$C$26 -> 1 | O74: ='TS-EVA Länkberäkningar'!$L$142/('TS-EVA Länkberäkningar'!$L$145)^('TS-EVA Länkberäkningar'!$L$143-2010) -> 1534.246575 | P74: =N74*O74*365*0.000001 -> 0.56 | Q74: =AL74+BR74+CS74 -> 0.03804528 | R74: 0.057713264 | S74: 0.00067663568 | T74: 0.00589911952 | U74: 0.0511765296 | V74: 0.1710912 | W74: 0.001332461417 | X74: 0.00825751341 | Y74: 0.01002850318 | Z74: 0.08700010032 | AA74: 1.1976384 | AB74: 0.002265184409 | AC74: 0.0140377728 | AF74: 0.067 | AG74: 1.52 | AH74: 1 | AI74: 10 | AJ74: 89 | AK74: 3 | AL74: =$N$4*P74*AF74 -> 0.03752 | AM74: =AG74*$AL74 -> 0.0570304 | AN74: 0.000570304 | AO74: 0.00570304 | AP74: 0.050757056 | AQ74: 0.1710912 | AR74: 0.001290597952 | AS74: 0.00808120768 | AT74: 0.009695168 | AU74: 0.0862869952 | AV74: 1.1976384 | AW74: 0.002194016518 | AX74: 0.01373805306 | AZ74: 0.11 | BA74: 0.0112024 | BB74: 1.7 | BC74: 1.7 | BD74: 7 | BE74: 0.075 | BF74: 0.26 | BG74: 0.017 | BH74: 0.13 | BJ74: 0.0023046392 | BK74: 0.014430728 | BM74: 0.8 | BN74: 1.3 | BO74: 25 | BP74: 30 | BQ74: 55 | BR74: 0.00030016 | BS74: 0.000390208 | BT74: 9.7552e-05 | BU74: 0.0001170624 | BV74: 0.0002146144 | BW74: 2.49538016e-05 | BX74: 0.00010340512 | BY74: 0.00019900608 | BZ74: 0.00036484448 | CA74: 4.242146272e-05 | CB74: 0.000175788704 | CD74: 0.55 | CF74: 1.7 | CG74: 1.7 | CH74: 0.16 | CI74: 0.48 | CJ74: 0.029 | CK74: 0.22 | CL74: =$BM74/100*$AF74*$BN74*($BP74*CH74+$BQ74*CJ74)/100 -> 4.456036e-05 | CM74: 0.000184652 | CN74: 0.6 | CO74: 1.3 | CP74: 3 | CQ74: 27 | CR74: 70 | CS74: 0.00022512 | CT74: 0.000292656 | CU74: 8.77968e-06 | CV74: 7.901712e-05 | CW74: 0.0002048592 | CX74: 1.690966368e-05 | CY74: 7.29006096e-05 | CZ74: 0.000134329104 | DA74: 0.00034826064 | DB74: 2.874642826e-05 | DC74: 0.0001239310363 | DE74: 0.3 | DG74: 1.7 | DH74: 1.7 | DI74: 0.144 | DJ74: 0.43 | DK74: 0.027 | DL74: 0.19 | DM74: 3.0195828e-05 | DN74: 0.00013017966
A75: 67 | B75: Statlig | C75: Landsbygd | D75: MLV | E75: 2+1 | F75: 90 | G75: 9-13 | H75: - | I75: - | J75: - | K75: Statlig Landsbygd MLV 90 9-13 - - | M75: Gles | N75: ='0. Beräkna - Länk'!$C$26 -> 1 | O75: ='TS-EVA Länkberäkningar'!$L$142/('TS-EVA Länkberäkningar'!$L$145)^('TS-EVA Länkberäkningar'!$L$143-2010) -> 1534.246575 | P75: 0.56 | Q75: 0.0400232 | R75: 0.05889408 | S75: 0.00029730456 | T75: 0.005516028 | U75: 0.05308074744 | V75: 0.1935844278 | W75: 0.001296407147 | X75: 0.008345745895 | Y75: 0.0093772476 | Z75: 0.09023727065 | AA75: 1.355090995 | AB75: 0.00220389215 | AC75: 0.01418776802 | AF75: 0.07 | AG75: 1.4751 | AH75: 0.3 | AI75: 9 | AJ75: 90.7 | AK75: 3.347826087 | AL75: 0.0392 | AM75: 0.05782392 | AN75: 0.00017347176 | AO75: 0.0052041528 | AP75: 0.05244629544 | AQ75: 0.1935844278 | AR75: 0.001229856954 | AS75: 0.008067015079 | AT75: 0.00884705976 | AU75: 0.08915870225 | AV75: 1.355090995 | AW75: 0.002090756823 | AX75: 0.01371392563 | AZ75: 0.093 | BA75: 0.009602901 | BB75: 1.7 | BC75: 1.7 | BD75: 7 | BE75: 0.065 | BF75: 0.24 | BG75: 0.017 | BH75: 0.13 | BJ75: 0.002196173133 | BK75: 0.01440538407 | BM75: 1.5 | BN75: 1.3 | BO75: 15 | BP75: 30 | BQ75: 55 | BR75: 0.000588 | BS75: 0.0007644 | BT75: 0.00011466 | BU75: 0.00022932 | BV75: 0.00042042 | BW75: 4.888338e-05 | BX75: 0.000202566 | BY75: 0.000389844 | BZ75: 0.000714714 | CA75: 8.3101746e-05 | CB75: 0.0003443622 | CD75: 0.45 | CF75: 1.7 | CG75: 1.7 | CH75: 0.16 | CI75: 0.48 | CJ75: 0.029 | CK75: 0.22 | CL75: 8.729175e-05 | CM75: 0.000361725 | CN75: 0.6 | CO75: 1.3 | CP75: 3 | CQ75: 27 | CR75: 70 | CS75: 0.0002352 | CT75: 0.00030576 | CU75: 9.1728e-06 | CV75: 8.25552e-05 | CW75: 0.000214032 | CX75: 1.76668128e-05 | CY75: 7.6164816e-05 | CZ75: 0.00014034384 | DA75: 0.0003638544 | DB75: 3.003358176e-05 | DC75: 0.0001294801872 | DE75: 0.3 | DG75: 1.7 | DH75: 1.7 | DI75: 0.144 | DJ75: 0.43 | DK75: 0.027 | DL75: 0.19 | DM75: 3.154788e-05 | DN75: 0.0001360086
A76: 68 | B76: Statlig | C76: Landsbygd | D76: MLV | E76: 2+1 | F76: 100 | G76: 9-13 | H76: - | I76: - | J76: - | K76: Statlig Landsbygd MLV 100 9-13 - - | M76: Gles | N76: ='0. Beräkna - Länk'!$C$26 -> 1 | O76: ='TS-EVA Länkberäkningar'!$L$142/('TS-EVA Länkberäkningar'!$L$145)^('TS-EVA Länkberäkningar'!$L$143-2010) -> 1534.246575 | P76: 0.56 | Q76: 0.033630324 | R76: 0.0495267878 | S76: 0.0002407619438 | T76: 0.004918872676 | U76: 0.04436715318 | V76: 0.1637862534 | W76: 0.001140445628 | X76: 0.007106110744 | Y76: 0.00836208355 | Z76: 0.07542416041 | AA76: 1.146503774 | AB76: 0.001938757568 | AC76: 0.01208038826 | AF76: 0.059225 | AG76: 1.4751 | AH76: 0.3 | AI76: 9.7 | AJ76: 90 | AK76: 3.347826087 | AL76: 0.033166 | AM76: 0.0489231666 | AN76: 0.0001467694998 | AO76: 0.00474554716 | AP76: 0.04403084994 | AQ76: 0.1637862534 | AR76: 0.001104440486 | AS76: 0.006957852754 | AT76: 0.008067430172 | AU76: 0.0748524449 | AV76: 1.146503774 | AW76: 0.001877548826 | AX76: 0.01182834968 | AZ76: 0.1 | BA76: 0.00873627975 | BB76: 1.7 | BC76: 1.7 | BD76: 7 | BE76: 0.075 | BF76: 0.26 | BG76: 0.017 | BH76: 0.13 | BJ76: 0.001972215154 | BK76: 0.01242473706 | BM76: 0.8 | BN76: 1.3 | BO76: 25 | BP76: 30 | BQ76: 45 | BR76: 0.000265328 | BS76: 0.0003449264 | BT76: 8.62316e-05 | BU76: 0.00010347792 | BV76: 0.00015521688 | BW76: 2.105775672e-05 | BX76: 8.38171152e-05 | BY76: 0.000175912464 | BZ76: 0.000263868696 | CA76: 3.579818642e-05 | CB76: 0.0001424890958 | CD76: 0.55 | CF76: 1.7 | CG76: 1.7 | CH76: 0.16 | CI76: 0.48 | CJ76: 0.029 | CK76: 0.22 | CL76: 3.7603137e-05 | CM76: 0.00014967342 | CN76: 0.6 | CO76: 1.3 | CP76: 3 | CQ76: 27 | CR76: 70 | CS76: 0.000198996 | CT76: 0.0002586948 | CU76: 7.760844e-06 | CV76: 6.9847596e-05 | CW76: 0.00018108636 | CX76: 1.494738554e-05 | CY76: 6.444087468e-05 | CZ76: 0.0001187409132 | DA76: 0.000307846812 | DB76: 2.541055542e-05 | DC76: 0.000109549487 | DE76: 0.3 | DG76: 1.7 | DH76: 1.7 | DI76: 0.144 | DJ76: 0.43 | DK76: 0.027 | DL76: 0.19 | DM76: 2.66917599e-05 | DN76: 0.0001150729905
A77: 69 | B77: Statlig | C77: Landsbygd | D77: MML | E77: 2+1 | F77: 90 | G77: 13-14 | H77: - | I77: - | J77: - | K77: Statlig Landsbygd MML 90 13-14 - - | M77: - | N77: ='0. Beräkna - Länk'!$C$26 -> 1 | O77: ='TS-EVA Länkberäkningar'!$L$142/('TS-EVA Länkberäkningar'!$L$145)^('TS-EVA Länkberäkningar'!$L$143-2010) -> 1534.246575 | P77: 0.56 | Q77: 0.0452928 | R77: 0.07319648 | S77: 0.000792848 | T77: 0.006868848 | U77: 0.065534784 | V77: 0.217728 | W77: 0.001705224864 | X77: 0.01043936208 | Y77: 0.0116770416 | Z77: 0.1114091328 | AA77: =AQ77*BD77 -> 1.524096 | AB77: 0.002898882269 | AC77: 0.01774691554 | AF77: 0.08 | AG77: 1.62 | AH77: 0.9 | AI77: 9.1 | AJ77: 90 | AK77: 3 | AL77: 0.0448 | AM77: 0.072576 | AN77: 0.000653184 | AO77: 0.006604416 | AP77: 0.0653184 | AQ77: 0.217728 | AR77: 0.001664457984 | AS77: 0.01027458432 | AT77: 0.0112275072 | AU77: 0.11104128 | AV77: 1.524096 | AW77: 0.002829578573 | AX77: 0.01746679334 | AZ77: 0.1 | BA77: =(AH77/100+AI77/100)*AG77*AF77 -> 0.01296 | BB77: 1.7 | BC77: 1.7 | BD77: 7 | BE77: 0.074 | BF77: 0.27 | BG77: 0.018 | BH77: 0.13 | BJ77: 0.0029722464 | BK77: 0.018347472 | BM77: 0.95 | BN77: 1.3 | BO77: 25 | BP77: 45 | BQ77: 30 | BR77: 0.0004256 | BS77: 0.00055328 | BT77: 0.00013832 | BU77: 0.000248976 | BV77: 0.000165984 | BW77: 3.7180416e-05 | BX77: 0.00014855568 | BY77: 0.0004232592 | BZ77: 0.0002821728 | CA77: 6.32067072e-05 | CB77: 0.000252544656 | CD77: 0.7 | CF77: 1.7 | CG77: 1.7 | CH77: 0.13 | CI77: 0.45 | CJ77: 0.029 | CK77: 0.22 | CL77: 6.63936e-05 | CM77: 0.000265278 | CN77: 0.15 | CO77: 1 | CP77: 2 | CQ77: 23 | CR77: 75 | CS77: 6.72e-05 | CT77: 6.72e-05 | CU77: 1.344e-06 | CV77: 1.5456e-05 | CW77: 5.04e-05 | CX77: 3.586464e-06 | CY77: 1.622208e-05 | CZ77: 2.62752e-05 | DA77: 8.568e-05 | DB77: 6.0969888e-06 | DC77: 2.7577536e-05 | DE77: 0.25 | DG77: 1.7 | DH77: 1.7 | DI77: 0.144 | DJ77: 0.43 | DK77: 0.027 | DL77: 0.19 | DM77: 6.4044e-06 | DN77: 2.8968e-05
A78: 70 | B78: Statlig | C78: Landsbygd | D78: MML | E78: 2+1 | F78: 100 | G78: 13-14 | H78: - | I78: - | J78: - | K78: Statlig Landsbygd MML 100 13-14 - - | M78: - | N78: ='0. Beräkna - Länk'!$C$26 -> 1 | O78: ='TS-EVA Länkberäkningar'!$L$142/('TS-EVA Länkberäkningar'!$L$145)^('TS-EVA Länkberäkningar'!$L$143-2010) -> 1534.246575 | P78: 0.56 | Q78: 0.04019736 | R78: 0.062178676 | S78: 0.0005553478 | T78: 0.0059660874 | U78: 0.0556572408 | V78: 0.184884 | W78: 0.001522621128 | X78: 0.009025452408 | Y78: 0.01014234858 | Z78: 0.09461730936 | AA78: 1.294188 | AB78: 0.002588455918 | AC78: 0.01534326909 | AF78: 0.071 | AG78: 1.55 | AH78: 0.7 | AI78: 9.3 | AJ78: 90 | AK78: 3 | AL78: 0.03976 | AM78: 0.061628 | AN78: 0.000431396 | AO78: 0.005731404 | AP78: 0.0554652 | AQ78: 0.184884 | AR78: 0.001479811536 | AS78: 0.00887258316 | AT78: 0.0097433868 | AU78: 0.09429084 | AV78: 1.294188 | AW78: 0.002515679611 | AX78: 0.01508339137 | AZ78: 0.1 | BA78: 0.011005 | BB78: 1.7 | BC78: 1.7 | BD78: 7 | BE78: 0.084 | BF78: 0.29 | BG78: 0.018 | BH78: 0.13 | BJ78: 0.0026425206 | BK78: 0.0158438985 | BM78: 0.95 | BN78: 1.3 | BO78: 25 | BP78: 45 | BQ78: 30 | BR78: 0.00037772 | BS78: 0.000491036 | BT78: 0.000122759 | BU78: 0.0002209662 | BV78: 0.0001473108 | BW78: 3.96266052e-05 | BX78: 0.000138472152 | BY78: 0.00037564254 | BZ78: 0.00025042836 | CA78: 6.736522884e-05 | CB78: 0.0002354026584 | CD78: 0.7 | CF78: 1.7 | CG78: 1.7 | CH78: 0.16 | CI78: 0.48 | CJ78: 0.029 | CK78: 0.22 | CL78: 7.0761795e-05 | CM78: 0.0002472717 | CN78: 0.15 | CO78: 1 | CP78: 2 | CQ78: 23 | CR78: 75 | CS78: 5.964e-05 | CT78: 5.964e-05 | CU78: 1.1928e-06 | CV78: 1.37172e-05 | CW78: 4.473e-05 | CX78: 3.1829868e-06 | CY78: 1.4397096e-05 | CZ78: 2.331924e-05 | DA78: 7.6041e-05 | DB78: 5.41107756e-06 | DC78: 2.44750632e-05 | DE78: 0.25 | DG78: 1.7 | DH78: 1.7 | DI78: 0.144 | DJ78: 0.43 | DK78: 0.027 | DL78: 0.19 | DM78: 5.683905e-06 | DN78: 2.57091e-05
A79: 71 | B79: Statlig | C79: Landsbygd | D79: MML | E79: 2+1 | F79: 110 | G79: 13-14 | H79: - | I79: - | J79: - | K79: Statlig Landsbygd MML 110 13-14 - - | M79: - | N79: ='0. Beräkna - Länk'!$C$26 -> 1 | O79: ='TS-EVA Länkberäkningar'!$L$142/('TS-EVA Länkberäkningar'!$L$145)^('TS-EVA Länkberäkningar'!$L$143-2010) -> 1534.246575 | P79: 0.56 | Q79: 0.02887416 | R79: 0.041807556 | S79: 0.0009172758 | T79: 0.0051380154 | U79: 0.0357522648 | V79: 0.124236 | W79: 0.001089241272 | X79: 0.006180806688 | Y79: 0.00873462618 | Z79: 0.06077885016 | AA79: 0.869652 | AB79: 0.001851710162 | AC79: 0.01050737137 | AF79: 0.051 | AG79: 1.45 | AH79: 2 | AI79: 12 | AJ79: 86 | AK79: 3 | AL79: 0.02856 | AM79: 0.041412 | AN79: 0.00082824 | AO79: 0.00496944 | AP79: 0.03561432 | AQ79: 0.124236 | AR79: 0.00105849072 | AS79: 0.0060709992 | AT79: 0.008448048 | AU79: 0.060544344 | AV79: 0.869652 | AW79: 0.001799434224 | AX79: 0.01032069864 | AZ79: 0.14 | BA79: 0.010353 | BB79: 1.7 | BC79: 1.7 | BD79: 7 | BE79: 0.084 | BF79: 0.29 | BG79: 0.018 | BH79: 0.13 | BJ79: 0.001890162 | BK79: 0.01084107 | BM79: 0.95 | BN79: 1.3 | BO79: 25 | BP79: 45 | BQ79: 30 | BR79: 0.00027132 | BS79: 0.000352716 | BT79: 8.8179e-05 | BU79: 0.0001587222 | BV79: 0.0001058148 | BW79: 2.84641812e-05 | BX79: 9.9465912e-05 | BY79: 0.00026982774 | BZ79: 0.00017988516 | CA79: 4.838910804e-05 | CB79: 0.0001690920504 | CD79: 0.7 | CF79: 1.7 | CG79: 1.7 | CH79: 0.16 | CI79: 0.48 | CJ79: 0.029 | CK79: 0.22 | CL79: 5.0828895e-05 | CM79: 0.0001776177 | CN79: 0.15 | CO79: 1 | CP79: 2 | CQ79: 23 | CR79: 75 | CS79: 4.284e-05 | CT79: 4.284e-05 | CU79: 8.568e-07 | CV79: 9.8532e-06 | CW79: 3.213e-05 | CX79: 2.2863708e-06 | CY79: 1.0341576e-05 | CZ79: 1.675044e-05 | DA79: 5.4621e-05 | DB79: 3.88683036e-06 | DC79: 1.75806792e-05 | DE79: 0.25 | DG79: 1.7 | DH79: 1.7 | DI79: 0.144 | DJ79: 0.43 | DK79: 0.027 | DL79: 0.19 | DM79: 4.082805e-06 | DN79: 1.84671e-05
A80: 72 | B80: Statlig | C80: Landsbygd | D80: Målad 2+1 | E80: 2+1 | F80: 80 | G80: 12,5-13 | H80: - | I80: - | J80: - | K80: Statlig Landsbygd Målad 2+1 80 12,5-13 - - | M80: - | N80: ='0. Beräkna - Länk'!$C$26 -> 1 | O80: ='TS-EVA Länkberäkningar'!$L$142/('TS-EVA Länkberäkningar'!$L$145)^('TS-EVA Länkberäkningar'!$L$143-2010) -> 1534.246575 | P80: 0.56 | Q80: 0.0516096 | R80: 0.08889048 | S80: 0.0019350576 | T80: 0.0091917504 | U80: 0.077763672 | V80: 0.162162 | W80: 0.002127404866 | X80: 0.01284453979 | Y80: 0.01562597568 | Z80: 0.1321982424 | AA80: 1.135134 | AB80: 0.003616588272 | AC80: 0.02183571765 | AF80: 0.09 | AG80: 1.7325 | AH80: 2 | AI80: 10 | AJ80: 88 | AK80: 1.857142857 | AL80: 0.0504 | AM80: 0.087318 | AN80: 0.00174636 | AO80: 0.0087318 | AP80: 0.07683984 | AQ80: 0.162162 | AR80: 0.00202927032 | AS80: 0.0124340832 | AT80: 0.01484406 | AU80: 0.130627728 | AV80: 1.135134 | AW80: 0.003449759544 | AX80: 0.02113794144 | AZ80: 0.12 | BA80: 0.018711 | BB80: 1.7 | BC80: 1.7 | BD80: 7 | BE80: =(BE52+BE71)/2 -> 0.074 | BF80: 0.28 | BG80: 0.018 | BH80: 0.13 | BJ80: 0.003623697 | BK80: 0.02220372 | BM80: 1.8 | BN80: 1.3 | BO80: 15 | BP80: 30 | BQ80: 55 | BR80: 0.0009072 | BS80: 0.00117936 | BT80: 0.000176904 | BU80: 0.000353808 | BV80: 0.000648648 | BW80: 7.5420072e-05 | BX80: 0.0003125304 | BY80: 0.0006014736 | BZ80: 0.0011027016 | CA80: 0.0001282141224 | CB80: 0.00053130168 | CD80: 0.45 | CF80: 1.7 | CG80: 1.7 | CH80: 0.16 | CI80: 0.48 | CJ80: 0.029 | CK80: 0.22 | CL80: 0.0001346787 | CM80: 0.00055809 | CN80: 0.6 | CO80: 1.3 | CP80: 3 | CQ80: 27 | CR80: 70 | CS80: 0.0003024 | CT80: 0.00039312 | CU80: 1.17936e-05 | CV80: 0.0001061424 | CW80: 0.000275184 | CX80: 2.27144736e-05 | CY80: 9.7926192e-05 | CZ80: 0.00018044208 | DA80: 0.0004678128 | DB80: 3.861460512e-05 | DC80: 0.0001664745264 | DE80: 0.3 | DG80: 1.7 | DH80: 1.7 | DI80: 0.144 | DJ80: 0.43 | DK80: 0.027 | DL80: 0.19 | DM80: 4.056156e-05 | DN80: 0.0001748682
A81: 73 | B81: Statlig | C81: Landsbygd | D81: Målad 2+1 | E81: 2+1 | F81: 90 | G81: 12,5-13 | H81: - | I81: - | J81: - | K81: Statlig Landsbygd Målad 2+1 90 12,5-13 - - | M81: - | N81: ='0. Beräkna - Länk'!$C$26 -> 1 | O81: ='TS-EVA Länkberäkningar'!$L$142/('TS-EVA Länkberäkningar'!$L$145)^('TS-EVA Länkberäkningar'!$L$143-2010) -> 1534.246575 | P81: 0.56 | Q81: 0.04459728 | R81: 0.069529824 | S81: 0.00218810592 | T81: 0.00854800128 | U81: 0.0587937168 | V81: 0.12691224 | W81: 0.00176755571 | X81: 0.01024000417 | Y81: 0.01453160218 | Z81: 0.09994931856 | AA81: 0.88838568 | AB81: 0.003004844707 | AC81: 0.0174080071 | AF81: 0.078 | AG81: 1.5645 | AH81: 3 | AI81: 12 | AJ81: 85 | AK81: 1.857142857 | AL81: 0.04368 | AM81: 0.06833736 | AN81: 0.0020501208 | AO81: 0.0082004832 | AP81: 0.058086756 | AQ81: 0.12691224 | AR81: 0.001693399781 | AS81: 0.009929418408 | AT81: 0.01394082144 | AU81: 0.0987474852 | AV81: 0.88838568 | AW81: 0.002878779627 | AX81: 0.01688001129 | AZ81: 0.15 | BA81: 0.01830465 | BB81: 1.7 | BC81: 1.7 | BD81: 7 | BE81: =(BE53+BE72)/2 -> 0.079 | BF81: 0.29 | BG81: 0.018 | BH81: 0.13 | BJ81: 0.00302392818 | BK81: 0.0177311043 | BM81: 1.5 | BN81: 1.3 | BO81: 15 | BP81: 30 | BQ81: 55 | BR81: 0.0006552 | BS81: 0.00085176 | BT81: 0.000127764 | BU81: 0.000255528 | BV81: 0.000468468 | BW81: 5.4470052e-05 | BX81: 0.0002257164 | BY81: 0.0004343976 | BZ81: 0.0007963956 | CA81: 9.25990884e-05 | CB81: 0.00038371788 | CD81: 0.45 | CF81: 1.7 | CG81: 1.7 | CH81: 0.16 | CI81: 0.48 | CJ81: 0.029 | CK81: 0.22 | CL81: 9.726795e-05 | CM81: 0.000403065 | CN81: 0.6 | CO81: 1.3 | CP81: 3 | CQ81: 27 | CR81: 70 | CS81: 0.00026208 | CT81: 0.000340704 | CU81: 1.022112e-05 | CV81: 9.199008e-05 | CW81: 0.0002384928 | CX81: 1.968587712e-05 | CY81: 8.48693664e-05 | CZ81: 0.000156383136 | DA81: 0.00040543776 | DB81: 3.34659911e-05 | DC81: 0.0001442779229 | DE81: 0.3 | DG81: 1.7 | DH81: 1.7 | DI81: 0.144 | DJ81: 0.43 | DK81: 0.027 | DL81: 0.19 | DM81: 3.5153352e-05 | DN81: 0.00015155244
A82: 74 | B82: Statlig | C82: Landsbygd | D82: Målad 2+1 | E82: 2+1 | F82: 100 | G82: 12,5-13 | H82: - | I82: - | J82: - | K82: Statlig Landsbygd Målad 2+1 100 12,5-13 - - | M82: - | N82: ='0. Beräkna - Länk'!$C$26 -> 1 | O82: ='TS-EVA Länkberäkningar'!$L$142/('TS-EVA Länkberäkningar'!$L$145)^('TS-EVA Länkberäkningar'!$L$143-2010) -> 1534.246575 | P82: 0.56 | Q82: 0.044051 | R82: 0.0687456 | S82: 0.0018345831 | T82: 0.0097496364 | U82: 0.0571613805 | V82: 0.1260987 | W82: 0.001869581902 | X82: 0.01042995549 | Y82: 0.01657438188 | Z82: 0.09717434685 | AA82: 0.8826909 | AB82: 0.003178289233 | AC82: 0.01773092433 | AF82: 0.0775 | AG82: 1.5645 | AH82: 2.5 | AI82: 14 | AJ82: 83.5 | AK82: 1.857142857 | AL82: 0.0434 | AM82: 0.0678993 | AN82: 0.0016974825 | AO82: 0.009505902 | AP82: 0.0566959155 | AQ82: 0.1260987 | AR82: 0.001819022247 | AS82: 0.01022223961 | AT82: 0.0161600334 | AU82: 0.09638305635 | AV82: 0.8826909 | AW82: 0.00309233782 | AX82: 0.01737780735 | AZ82: 0.165 | BA82: 0.02000604375 | BB82: 1.7 | BC82: 1.7 | BD82: 7 | BE82: =(BE54+BE73)/2 -> 0.084 | BF82: 0.3 | BG82: 0.018 | BH82: 0.13 | BJ82: 0.003248254012 | BK82: 0.01825399931 | BM82: 0.9 | BN82: 1.3 | BO82: 25 | BP82: 30 | BQ82: 45 | BR82: 0.0003906 | BS82: 0.00050778 | BT82: 0.000126945 | BU82: 0.000152334 | BV82: 0.000228501 | BW82: 3.0999969e-05 | BX82: 0.00012339054 | BY82: 0.0002589678 | BZ82: 0.0003884517 | CA82: 5.26999473e-05 | CB82: 0.000209763918 | CD82: 0.55 | CF82: 1.7 | CG82: 1.7 | CH82: 0.16 | CI82: 0.48 | CJ82: 0.029 | CK82: 0.22 | CL82: 5.53570875e-05 | CM82: 0.00022034025 | CN82: 0.6 | CO82: 1.3 | CP82: 3 | CQ82: 27 | CR82: 70 | CS82: 0.0002604 | CT82: 0.00033852 | CU82: 1.01556e-05 | CV82: 9.14004e-05 | CW82: 0.000236964 | CX82: 1.95596856e-05 | CY82: 8.4325332e-05 | CZ82: 0.00015538068 | DA82: 0.0004028388 | DB82: 3.325146552e-05 | DC82: 0.0001433530644 | DE82: 0.3 | DG82: 1.7 | DH82: 1.7 | DI82: 0.144 | DJ82: 0.43 | DK82: 0.027 | DL82: 0.19 | DM82: 3.492801e-05 | DN82: 0.00015058095
A83: 75 | B83: Statlig | C83: Landsbygd | D83: Målad 2+1 | E83: 2+1 | F83: 80 | G83: 6,7-13 | H83: - | I83: - | J83: - | K83: Statlig Landsbygd Målad 2+1 80 6,7-13 - - | M83: gles 1+1<9 m | N83: ='0. Beräkna - Länk'!$C$26 -> 1 | O83: ='TS-EVA Länkberäkningar'!$L$142/('TS-EVA Länkberäkningar'!$L$145)^('TS-EVA Länkberäkningar'!$L$143-2010) -> 1534.246575 | P83: 0.56 | Q83: 0.06193152 | R83: 0.106668576 | S83: 0.00190294272 | T83: 0.01197313488 | U83: 0.0927924984 | V83: 0.1945944 | W83: 0.00261324004 | X83: 0.01560938934 | Y83: 0.0203543293 | Z83: 0.1577472473 | AA83: 1.3621608 | AB83: 0.004442508069 | AC83: 0.02653596188 | AF83: 0.108 | AG83: 1.7325 | AH83: 1.6 | AI83: 10.9 | AJ83: 87.5 | AK83: 1.857142857 | AL83: 0.06048 | AM83: 0.1047816 | AN83: 0.0016765056 | AO83: 0.0114211944 | AP83: 0.0916839 | AQ83: 0.1945944 | AR83: 0.002495478586 | AS83: 0.01511684143 | AT83: 0.01941603048 | AU83: 0.15586263 | AV83: 1.3621608 | AW83: 0.004242313596 | AX83: 0.02569863043 | AZ83: 0.125 | BA83: 0.02338875 | BB83: 1.7 | BC83: 1.7 | BD83: 7 | BE83: 0.074 | BF83: 0.28 | BG83: 0.018 | BH83: 0.13 | BJ83: 0.00445621176 | BK83: 0.0269943597 | BM83: 1.8 | BN83: 1.3 | BO83: 15 | BP83: 30 | BQ83: 55 | BR83: 0.00108864 | BS83: 0.001415232 | BT83: 0.0002122848 | BU83: 0.0004245696 | BV83: 0.0007783776 | BW83: 9.05040864e-05 | BX83: 0.00037503648 | BY83: 0.00072176832 | BZ83: 0.00132324192 | CA83: 0.0001538569469 | CB83: 0.000637562016 | CD83: 0.45 | CF83: 1.7 | CG83: 1.7 | CH83: 0.16 | CI83: 0.48 | CJ83: 0.029 | CK83: 0.22 | CL83: 0.00016161444 | CM83: 0.000669708 | CN83: 0.6 | CO83: 1.3 | CP83: 3 | CQ83: 27 | CR83: 70 | CS83: 0.00036288 | CT83: 0.000471744 | CU83: 1.415232e-05 | CV83: 0.00012737088 | CW83: 0.0003302208 | CX83: 2.725736832e-05 | CY83: 0.0001175114304 | CZ83: 0.000216530496 | DA83: 0.00056137536 | DB83: 4.633752614e-05 | DC83: 0.0001997694317 | DE83: 0.3 | DG83: 1.7 | DH83: 1.7 | DI83: 0.144 | DJ83: 0.43 | DK83: 0.027 | DL83: 0.19 | DM83: 4.8673872e-05 | DN83: 0.00020984184
A84: 76 | B84: Statlig | C84: Landsbygd | D84: Målad 2+1 | E84: 2+1 | F84: 80 | G84: 8-13 | H84: - | I84: - | J84: - | K84: Statlig Landsbygd Målad 2+1 80 8-13 - - | M84: gles 1+1>=9 | N84: ='0. Beräkna - Länk'!$C$26 -> 1 | O84: ='TS-EVA Länkberäkningar'!$L$142/('TS-EVA Länkberäkningar'!$L$145)^('TS-EVA Länkberäkningar'!$L$143-2010) -> 1534.246575 | P84: 0.56 | Q84: 0.055738368 | R84: 0.0960017184 | S84: 0.001901255328 | T84: 0.01011569731 | U84: 0.08398476576 | V84: 0.17513496 | W84: 0.002311554164 | X84: 0.0139249129 | Y84: 0.01719668543 | Z84: 0.1427741018 | AA84: 1.22594472 | AB84: 0.003929642079 | AC84: 0.02367235193 | AF84: 0.0972 | AG84: 1.7325 | AH84: 1.8 | AI84: 10.2 | AJ84: 88 | AK84: 1.857142857 | AL84: 0.054432 | AM84: 0.09430344 | AN84: 0.00169746192 | AO84: 0.00961895088 | AP84: 0.0829870272 | AQ84: 0.17513496 | AR84: 0.002205568855 | AS84: 0.01348161978 | AT84: 0.0163522165 | AU84: 0.1410779462 | AV84: 1.22594472 | AW84: 0.003749467053 | AX84: 0.02291875363 | AZ84: 0.12 | BA84: 0.02020788 | BB84: 1.7 | BC84: 1.7 | BD84: 7 | BE84: 0.074 | BF84: 0.28 | BG84: 0.018 | BH84: 0.13 | BJ84: 0.003938515812 | BK84: 0.02407432104 | BM84: 1.8 | BN84: 1.3 | BO84: 15 | BP84: 30 | BQ84: 55 | BR84: 0.000979776 | BS84: 0.0012737088 | BT84: 0.00019105632 | BU84: 0.00038211264 | BV84: 0.00070053984 | BW84: 8.145367776e-05 | BX84: 0.000337532832 | BY84: 0.000649591488 | BZ84: 0.001190917728 | CA84: 0.0001384712522 | CB84: 0.0005738058144 | CD84: 0.45 | CF84: 1.7 | CG84: 1.7 | CH84: 0.16 | CI84: 0.48 | CJ84: 0.029 | CK84: 0.22 | CL84: 0.000145452996 | CM84: 0.0006027372 | CN84: 0.6 | CO84: 1.3 | CP84: 3 | CQ84: 27 | CR84: 70 | CS84: 0.000326592 | CT84: 0.0004245696 | CU84: 1.2737088e-05 | CV84: 0.000114633792 | CW84: 0.00029719872 | CX84: 2.453163149e-05 | CY84: 0.0001057602874 | CZ84: 0.0001948774464 | DA84: 0.000505237824 | DB84: 4.170377353e-05 | DC84: 0.0001797924885 | DE84: 0.3 | DG84: 1.7 | DH84: 1.7 | DI84: 0.144 | DJ84: 0.43 | DK84: 0.027 | DL84: 0.19 | DM84: 4.38064848e-05 | DN84: 0.000188857656
A85: 77 | B85: Statlig | C85: Landsbygd | D85: Målad 2+1 | E85: 2+1 | F85: 90 | G85: 6,7-13 | H85: - | I85: - | J85: - | K85: Statlig Landsbygd Målad 2+1 90 6,7-13 - - | M85: gles 1+1<9 m | N85: ='0. Beräkna - Länk'!$C$26 -> 1 | O85: ='TS-EVA Länkberäkningar'!$L$142/('TS-EVA Länkberäkningar'!$L$145)^('TS-EVA Länkberäkningar'!$L$143-2010) -> 1534.246575 | P85: 0.56 | Q85: 0.053516736 | R85: 0.0834357888 | S85: 0.002215702944 | T85: 0.01107764986 | U85: 0.070142436 | V85: 0.152294688 | W85: 0.002178470234 | X85: 0.01247251588 | Y85: 0.01883200476 | Z85: 0.1192421412 | AA85: 1.066062816 | AB85: 0.003703399398 | AC85: 0.021203277 | AF85: 0.0936 | AG85: 1.5645 | AH85: 2.5 | AI85: 13 | AJ85: 84.5 | AK85: 1.857142857 | AL85: 0.052416 | AM85: 0.082004832 | AN85: 0.0020501208 | AO85: 0.01066062816 | AP85: 0.06929408304 | AQ85: 0.152294688 | AR85: 0.002089483119 | AS85: 0.01209981296 | AT85: 0.01812306787 | AU85: 0.1177999412 | AV85: 1.066062816 | AW85: 0.003552121303 | AX85: 0.02056968203 | AZ85: 0.155 | BA85: 0.022697766 | BB85: 1.7 | BC85: 1.7 | BD85: 7 | BE85: 0.079 | BF85: 0.29 | BG85: 0.018 | BH85: 0.13 | BJ85: 0.003731219856 | BK85: 0.02160680886 | BM85: 1.5 | BN85: 1.3 | BO85: 15 | BP85: 30 | BQ85: 55 | BR85: 0.00078624 | BS85: 0.001022112 | BT85: 0.0001533168 | BU85: 0.0003066336 | BV85: 0.0005621616 | BW85: 6.53640624e-05 | BX85: 0.00027085968 | BY85: 0.00052127712 | BZ85: 0.00095567472 | CA85: 0.0001111189061 | CB85: 0.000460461456 | CD85: 0.45 | CF85: 1.7 | CG85: 1.7 | CH85: 0.16 | CI85: 0.48 | CJ85: 0.029 | CK85: 0.22 | CL85: 0.00011672154 | CM85: 0.000483678 | CN85: 0.6 | CO85: 1.3 | CP85: 3 | CQ85: 27 | CR85: 70 | CS85: 0.000314496 | CT85: 0.0004088448 | CU85: 1.2265344e-05 | CV85: 0.000110388096 | CW85: 0.00028619136 | CX85: 2.362305254e-05 | CY85: 0.0001018432397 | CZ85: 0.0001876597632 | DA85: 0.000486525312 | DB85: 4.015918932e-05 | DC85: 0.0001731335075 | DE85: 0.3 | DG85: 1.7 | DH85: 1.7 | DI85: 0.144 | DJ85: 0.43 | DK85: 0.027 | DL85: 0.19 | DM85: 4.21840224e-05 | DN85: 0.000181862928
A86: 78 | B86: Statlig | C86: Landsbygd | D86: Målad 2+1 | E86: 2+1 | F86: 90 | G86: 8-13 | H86: - | I86: - | J86: - | K86: Statlig Landsbygd Målad 2+1 90 8-13 - - | M86: gles 1+1>=9 | N86: ='0. Beräkna - Länk'!$C$26 -> 1 | O86: ='TS-EVA Länkberäkningar'!$L$142/('TS-EVA Länkberäkningar'!$L$145)^('TS-EVA Länkberäkningar'!$L$143-2010) -> 1534.246575 | P86: 0.56 | Q86: 0.0481650624 | R86: 0.07509220992 | S86: 0.002215545696 | T86: 0.00937945008 | U86: 0.06349721414 | V86: 0.1370652192 | W86: 0.001920621254 | X86: 0.01110201103 | Y86: 0.01594506514 | Z86: 0.107945264 | AA86: 0.9594565344 | AB86: 0.003265056132 | AC86: 0.01887341875 | AF86: 0.08424 | AG86: 1.5645 | AH86: 2.8 | AI86: 12.2 | AJ86: 85 | AK86: 1.857142857 | AL86: 0.0471744 | AM86: 0.0738043488 | AN86: 0.002066521766 | AO86: 0.009004130554 | AP86: 0.06273369648 | AQ86: 0.1370652192 | AR86: 0.00184053285 | AS86: 0.0107665784 | AT86: 0.01530702194 | AU86: 0.106647284 | AV86: 0.9594565344 | AW86: 0.003128905846 | AX86: 0.01830318329 | AZ86: 0.15 | BA86: 0.019769022 | BB86: 1.7 | BC86: 1.7 | BD86: 7 | BE86: 0.079 | BF86: 0.29 | BG86: 0.018 | BH86: 0.13 | BJ86: 0.003286665804 | BK86: 0.01922603286 | BM86: 1.5 | BN86: 1.3 | BO86: 15 | BP86: 30 | BQ86: 55 | BR86: 0.000707616 | BS86: 0.0009199008 | BT86: 0.00013798512 | BU86: 0.00027597024 | BV86: 0.00050594544 | BW86: 5.882765616e-05 | BX86: 0.000243773712 | BY86: 0.000469149408 | BZ86: 0.000860107248 | CA86: 0.0001000070155 | CB86: 0.0004144153104 | CD86: 0.45 | CF86: 1.7 | CG86: 1.7 | CH86: 0.16 | CI86: 0.48 | CJ86: 0.029 | CK86: 0.22 | CL86: 0.000105049386 | CM86: 0.0004353102 | CN86: 0.6 | CO86: 1.3 | CP86: 3 | CQ86: 27 | CR86: 70 | CS86: 0.0002830464 | CT86: 0.00036796032 | CU86: 1.10388096e-05 | CV86: 9.93492864e-05 | CW86: 0.000257572224 | CX86: 2.126074729e-05 | CY86: 9.165891571e-05 | CZ86: 0.0001688937869 | DA86: 0.0004378727808 | DB86: 3.614327039e-05 | DC86: 0.0001558201567 | DE86: 0.3 | DG86: 1.7 | DH86: 1.7 | DI86: 0.144 | DJ86: 0.43 | DK86: 0.027 | DL86: 0.19 | DM86: 3.796562016e-05 | DN86: 0.0001636766352
A87: 79 | B87: Statlig | C87: Landsbygd | D87: Målad 2+1 | E87: 2+1 | F87: 100 | G87: 6,7-13 | H87: - | I87: - | J87: - | K87: Statlig Landsbygd Målad 2+1 100 6,7-13 - - | M87: gles 1+1<9 m | N87: ='0. Beräkna - Länk'!$C$26 -> 1 | O87: ='TS-EVA Länkberäkningar'!$L$142/('TS-EVA Länkberäkningar'!$L$145)^('TS-EVA Länkberäkningar'!$L$143-2010) -> 1534.246575 | P87: 0.56 | Q87: 0.0528612 | R87: 0.08249472 | S87: 0.0024459372 | T87: 0.011862522 | U87: 0.0681862608 | V87: 0.15131844 | W87: 0.002249853656 | X87: 0.01251187263 | Y87: 0.0201662874 | Z87: 0.1159166434 | AA87: 1.05922908 | AB87: 0.003824751216 | AC87: 0.02127018346 | AF87: 0.093 | AG87: 1.5645 | AH87: 2.8 | AI87: 14.2 | AJ87: 83 | AK87: 1.857142857 | AL87: 0.05208 | AM87: 0.08147916 | AN87: 0.00228141648 | AO87: 0.01157004072 | AP87: 0.0676277028 | AQ87: 0.15131844 | AR87: 0.002189182071 | AS87: 0.01226261358 | AT87: 0.01966906922 | AU87: 0.1149670948 | AV87: 1.05922908 | AW87: 0.00372160952 | AX87: 0.02084644309 | AZ87: 0.17 | BA87: 0.024734745 | BB87: 1.7 | BC87: 1.7 | BD87: 7 | BE87: 0.084 | BF87: 0.3 | BG87: 0.018 | BH87: 0.13 | BJ87: 0.003909253698 | BK87: 0.02189752425 | BM87: 0.9 | BN87: 1.3 | BO87: 25 | BP87: 30 | BQ87: 45 | BR87: 0.00046872 | BS87: 0.000609336 | BT87: 0.000152334 | BU87: 0.0001828008 | BV87: 0.0002742012 | BW87: 3.71999628e-05 | BX87: 0.000148068648 | BY87: 0.00031076136 | BZ87: 0.00046614204 | CA87: 6.323993676e-05 | CB87: 0.0002517167016 | CD87: 0.55 | CF87: 1.7 | CG87: 1.7 | CH87: 0.16 | CI87: 0.48 | CJ87: 0.029 | CK87: 0.22 | CL87: 6.6428505e-05 | CM87: 0.0002644083 | CN87: 0.6 | CO87: 1.3 | CP87: 3 | CQ87: 27 | CR87: 70 | CS87: 0.00031248 | CT87: 0.000406224 | CU87: 1.218672e-05 | CV87: 0.00010968048 | CW87: 0.0002843568 | CX87: 2.347162272e-05 | CY87: 0.0001011903984 | CZ87: 0.000186456816 | DA87: 0.00048340656 | DB87: 3.990175862e-05 | DC87: 0.0001720236773 | DE87: 0.3 | DG87: 1.7 | DH87: 1.7 | DI87: 0.144 | DJ87: 0.43 | DK87: 0.027 | DL87: 0.19 | DM87: 4.1913612e-05 | DN87: 0.00018069714
A88: 80 | B88: Statlig | C88: Landsbygd | D88: Målad 2+1 | E88: 2+1 | F88: 100 | G88: 8-13 | H88: - | I88: - | J88: - | K88: Statlig Landsbygd Målad 2+1 100 8-13 - - | M88: gles 1+1>=9 | N88: ='0. Beräkna - Länk'!$C$26 -> 1 | O88: ='TS-EVA Länkberäkningar'!$L$142/('TS-EVA Länkberäkningar'!$L$145)^('TS-EVA Länkberäkningar'!$L$143-2010) -> 1534.246575 | P88: 0.56 | Q88: 0.04757508 | R88: 0.074245248 | S88: 0.001981349748 | T88: 0.01052960731 | U88: 0.06173429094 | V88: 0.136186596 | W88: 0.002019148454 | X88: 0.01126435193 | Y88: 0.01790033243 | Z88: 0.1049482946 | AA88: 0.953306172 | AB88: 0.003432552371 | AC88: 0.01914939827 | AF88: 0.0837 | AG88: 1.5645 | AH88: 2.5 | AI88: 14 | AJ88: 83.5 | AK88: 1.857142857 | AL88: 0.046872 | AM88: 0.073331244 | AN88: 0.0018332811 | AO88: 0.01026637416 | AP88: 0.06123158874 | AQ88: 0.136186596 | AR88: 0.001964544027 | AS88: 0.01104001878 | AT88: 0.01745283607 | AU88: 0.1040937009 | AV88: 0.953306172 | AW88: 0.003339724845 | AX88: 0.01876803193 | AZ88: 0.165 | BA88: 0.02160652725 | BB88: 1.7 | BC88: 1.7 | BD88: 7 | BE88: 0.084 | BF88: 0.3 | BG88: 0.018 | BH88: 0.13 | BJ88: 0.003508114334 | BK88: 0.01971431926 | BM88: 0.9 | BN88: 1.3 | BO88: 25 | BP88: 30 | BQ88: 45 | BR88: 0.000421848 | BS88: 0.0005484024 | BT88: 0.0001371006 | BU88: 0.00016452072 | BV88: 0.00024678108 | BW88: 3.347996652e-05 | BX88: 0.0001332617832 | BY88: 0.000279685224 | BZ88: 0.000419527836 | CA88: 5.691594308e-05 | CB88: 0.0002265450314 | CD88: 0.55 | CF88: 1.7 | CG88: 1.7 | CH88: 0.16 | CI88: 0.48 | CJ88: 0.029 | CK88: 0.22 | CL88: 5.97856545e-05 | CM88: 0.00023796747 | CN88: 0.6 | CO88: 1.3 | CP88: 3 | CQ88: 27 | CR88: 70 | CS88: 0.000281232 | CT88: 0.0003656016 | CU88: 1.0968048e-05 | CV88: 9.8712432e-05 | CW88: 0.00025592112 | CX88: 2.112446045e-05 | CY88: 9.107135856e-05 | CZ88: 0.0001678111344 | DA88: 0.000435065904 | DB88: 3.591158276e-05 | DC88: 0.0001548213096 | DE88: 0.3 | DG88: 1.7 | DH88: 1.7 | DI88: 0.144 | DJ88: 0.43 | DK88: 0.027 | DL88: 0.19 | DM88: 3.77222508e-05 | DN88: 0.000162627426
A89: 81 | B89: Statlig | C89: Landsbygd | D89: MV | E89: 4 | F89: 50 | G89: - | H89: - | I89: - | J89: - | K89: Statlig Landsbygd MV 50 - - - | M89: enbart 1,8 km 2012 | N89: ='0. Beräkna - Länk'!$C$26 -> 1 | O89: ='TS-EVA Länkberäkningar'!$L$142/('TS-EVA Länkberäkningar'!$L$145)^('TS-EVA Länkberäkningar'!$L$143-2010) -> 1534.246575 | P89: 0.56 | Q89: 0.169008 | R89: 0.253071 | S89: 0.00056406 | T89: 0.01108674 | U89: 0.2414202 | V89: 0.756 | W89: 0.00449845368 | X89: 0.0313044858 | Y89: 0.018847458 | Z89: 0.41041434 | AA89: 5.292 | AB89: 0.007647371256 | AC89: 0.05321762586 | AF89: 0.3 | AG89: 1.5 | AH89: 0.2 | AI89: 4.3 | AJ89: 95.5 | AK89: 3 | AL89: 0.168 | AM89: 0.252 | AN89: 0.000504 | AO89: 0.010836 | AP89: 0.24066 | AQ89: 0.756 | AR89: 0.00444654 | AS89: 0.0310464 | AT89: 0.0184212 | AU89: 0.409122 | AV89: 5.292 | AW89: 0.007559118 | AX89: 0.05277888 | AZ89: 0.045 | BA89: 0.02025 | BB89: 1.7 | BC89: 1.7 | BD89: 7 | BE89: 0.055 | BF89: 0.2 | BG89: 0.016 | BH89: 0.12 | BJ89: 0.00794025 | BK89: 0.05544 | BM89: 0.25 | BN89: 1.15 | BO89: 10 | BP89: 30 | BQ89: 60 | BR89: 0.00042 | BS89: 0.000483 | BT89: 4.83e-05 | BU89: 0.0001449 | BV89: 0.0002898 | BW89: 2.72412e-05 | BX89: 0.000128961 | BY89: 0.00024633 | BZ89: 0.00049266 | CA89: 4.631004e-05 | CB89: 0.0002192337 | CD89: 0.4 | CF89: 1.7 | CG89: 1.7 | CH89: 0.13 | CI89: 0.45 | CJ89: 0.029 | CK89: 0.22 | CL89: 4.8645e-05 | CM89: 0.0002302875 | CN89: 0.35 | CO89: 1 | CP89: 2 | CQ89: 18 | CR89: 80 | CS89: 0.000588 | CT89: 0.000588 | CU89: 1.176e-05 | CV89: 0.00010584 | CW89: 0.0004704 | CX89: 2.467248e-05 | CY89: 0.0001291248 | CZ89: 0.000179928 | DA89: 0.00079968 | DB89: 4.1943216e-05 | DC89: 0.00021951216 | DE89: 0.2 | DG89: 1.7 | DH89: 1.7 | DI89: 0.122 | DJ89: 0.42 | DK89: 0.025 | DL89: 0.18 | DM89: 4.4058e-05 | DN89: 0.00023058
A90: 82 | B90: Statlig | C90: Landsbygd | D90: MV | E90: 4-6 | F90: 70 | G90: - | H90: - | I90: - | J90: - | K90: Statlig Landsbygd MV 70 - - - | M90: 52 km år 2012 | N90: ='0. Beräkna - Länk'!$C$26 -> 1 | O90: ='TS-EVA Länkberäkningar'!$L$142/('TS-EVA Länkberäkningar'!$L$145)^('TS-EVA Länkberäkningar'!$L$143-2010) -> 1534.246575 | P90: 0.56 | Q90: 0.101556 | R90: 0.15705648 | S90: 0.000545328 | T90: 0.009953496 | U90: 0.146557656 | V90: 0.36456 | W90: 0.003304035 | X90: 0.0216327888 | Y90: 0.0169209432 | Z90: 0.2491480152 | AA90: 2.55192 | AB90: 0.0056168595 | AC90: 0.03677574096 | AF90: 0.18 | AG90: 1.55 | AH90: 0.3 | AI90: 6.2 | AJ90: 93.5 | AK90: 2.333333333 | AL90: 0.1008 | AM90: 0.15624 | AN90: 0.00046872 | AO90: 0.00968688 | AP90: 0.1460844 | AQ90: 0.36456 | AR90: 0.00324947952 | AS90: 0.021412692 | AT90: 0.016467696 | AU90: 0.24834348 | AV90: 2.55192 | AW90: 0.005524115184 | AX90: 0.0364015764 | AZ90: 0.065 | BA90: 0.018135 | BB90: 1.7 | BC90: 1.7 | BD90: 7 | BE90: 0.064 | BF90: 0.25 | BG90: 0.018 | BH90: 0.13 | BJ90: 0.005802642 | BK90: 0.03823695 | BM90: 0.4 | BN90: 1.15 | BO90: 15 | BP90: 40 | BQ90: 45 | BR90: 0.0004032 | BS90: 0.00046368 | BT90: 6.9552e-05 | BU90: 0.000185472 | BV90: 0.000208656 | BW90: 3.5726544e-05 | BX90: 0.00013493088 | BY90: 0.0003153024 | BZ90: 0.0003547152 | CA90: 6.07351248e-05 | CB90: 0.000229382496 | CD90: 0.55 | CF90: 1.7 | CG90: 1.7 | CH90: 0.16 | CI90: 0.48 | CJ90: 0.029 | CK90: 0.22 | CL90: 6.37974e-05 | CM90: 0.000240948 | CN90: 0.35 | CO90: 1 | CP90: 2 | CQ90: 23 | CR90: 75 | CS90: 0.0003528 | CT90: 0.0003528 | CU90: 7.056e-06 | CV90: 8.1144e-05 | CW90: 0.0002646 | CX90: 1.8828936e-05 | CY90: 8.516592e-05 | CZ90: 0.0001379448 | DA90: 0.00044982 | DB90: 3.20091912e-05 | DC90: 0.000144782064 | DE90: 0.25 | DG90: 1.7 | DH90: 1.7 | DI90: 0.144 | DJ90: 0.43 | DK90: 0.027 | DL90: 0.19 | DM90: 3.36231e-05 | DN90: 0.000152082
A91: 83 | B91: Statlig | C91: Landsbygd | D91: MV | E91: 4-6 | F91: 80 | G91: - | H91: - | I91: - | J91: - | K91: Statlig Landsbygd MV 80 - - - | M91: 37,5 km år 2012 | N91: ='0. Beräkna - Länk'!$C$26 -> 1 | O91: ='TS-EVA Länkberäkningar'!$L$142/('TS-EVA Länkberäkningar'!$L$145)^('TS-EVA Länkberäkningar'!$L$143-2010) -> 1534.246575 | P91: 0.56 | Q91: 0.04856936 | R91: 0.080398304 | S91: 0.0002920904 | T91: 0.0047175128 | U91: 0.0753887008 | V91: 0.1865397333 | W91: 0.001676350872 | X91: 0.01103434214 | Y91: 0.00801977176 | Z91: 0.1281607914 | AA91: 1.305778133 | AB91: 0.002849796482 | AC91: 0.01875838164 | AF91: 0.086 | AG91: 1.66 | AH91: 0.3 | AI91: 5.7 | AJ91: 94 | AK91: 2.333333333 | AL91: 0.04816 | AM91: 0.0799456 | AN91: 0.0002398368 | AO91: 0.0045568992 | AP91: 0.075148864 | AQ91: 0.1865397333 | AR91: 0.001644321101 | AS91: 0.01090857712 | AT91: 0.00774672864 | AU91: 0.1277530688 | AV91: 1.305778133 | AW91: 0.002795345871 | AX91: 0.0185445811 | AZ91: 0.06 | BA91: 0.0085656 | BB91: 1.7 | BC91: 1.7 | BD91: 7 | BE91: 0.064 | BF91: 0.25 | BG91: 0.018 | BH91: 0.13 | BJ91: 0.00293628768 | BK91: 0.019479602 | BM91: 0.6 | BN91: 1.15 | BO91: 15 | BP91: 40 | BQ91: 45 | BR91: 0.00028896 | BS91: 0.000332304 | BT91: 4.98456e-05 | BU91: 0.0001329216 | BV91: 0.0001495368 | BW91: 2.56040232e-05 | BX91: 9.6700464e-05 | BY91: 0.00022596672 | BZ91: 0.00025421256 | CA91: 4.352683944e-05 | CB91: 0.0001643907888 | CD91: 0.55 | CF91: 1.7 | CG91: 1.7 | CH91: 0.16 | CI91: 0.48 | CJ91: 0.029 | CK91: 0.22 | CL91: 4.572147e-05 | CM91: 0.0001726794 | CN91: 0.25 | CO91: 1 | CP91: 2 | CQ91: 23 | CR91: 75 | CS91: 0.0001204 | CT91: 0.0001204 | CU91: 2.408e-06 | CV91: 2.7692e-05 | CW91: 9.03e-05 | CX91: 6.425748e-06 | CY91: 2.906456e-05 | CZ91: 4.70764e-05 | DA91: 0.00015351 | DB91: 1.09237716e-05 | DC91: 4.9409752e-05 | DE91: 0.25 | DG91: 1.7 | DH91: 1.7 | DI91: 0.144 | DJ91: 0.43 | DK91: 0.027 | DL91: 0.19 | DM91: 1.147455e-05 | DN91: 5.1901e-05
A92: 84 | B92: Statlig | C92: Landsbygd | D92: MV | E92: 4-6 | F92: 90 | G92: - | H92: - | I92: - | J92: - | K92: Statlig Landsbygd MV 90 - - - | M92: - | N92: ='0. Beräkna - Länk'!$C$26 -> 1 | O92: ='TS-EVA Länkberäkningar'!$L$142/('TS-EVA Länkberäkningar'!$L$145)^('TS-EVA Länkberäkningar'!$L$143-2010) -> 1534.246575 | P92: 0.56 | Q92: 0.04409496 | R92: 0.069044976 | S92: 0.0004446624 | T92: 0.0076791624 | U92: 0.0609211512 | V92: 0.1600144 | W92: 0.001603257583 | X92: 0.009889204416 | Y92: 0.01305457608 | Z92: 0.103565957 | AA92: 1.1201008 | AB92: 0.002725537891 | AC92: 0.01681164751 | AF92: 0.078 | AG92: 1.57 | AH92: 0.5 | AI92: 11 | AJ92: 88.5 | AK92: 2.333333333 | AL92: 0.04368 | AM92: 0.0685776 | AN92: 0.000342888 | AO92: 0.007543536 | AP92: 0.060691176 | AQ92: 0.1600144 | AR92: 0.001575227472 | AS92: 0.00977573688 | AT92: 0.0128240112 | AU92: 0.1031749992 | AV92: 1.1201008 | AW92: 0.002677886702 | AX92: 0.0166187527 | AZ92: 0.115 | BA92: 0.0140829 | BB92: 1.7 | BC92: 1.7 | BD92: 7 | BE92: 0.064 | BF92: 0.25 | BG92: 0.018 | BH92: 0.13 | BJ92: 0.0028129062 | BK92: 0.017456673 | BM92: 0.8 | BN92: 1.15 | BO92: 25 | BP92: 30 | BQ92: 45 | BR92: 0.00034944 | BS92: 0.000401856 | BT92: 0.000100464 | BU92: 0.0001205568 | BV92: 0.0001808352 | BW92: 2.45333088e-05 | BX92: 9.7651008e-05 | BY92: 0.00020494656 | BZ92: 0.00030741984 | CA92: 4.170662496e-05 | CB92: 0.0001660067136 | CD92: 0.55 | CF92: 1.7 | CG92: 1.7 | CH92: 0.16 | CI92: 0.48 | CJ92: 0.029 | CK92: 0.22 | CL92: 4.380948e-05 | CM92: 0.0001743768 | CN92: 0.15 | CO92: 1 | CP92: 2 | CQ92: 23 | CR92: 75 | CS92: 6.552e-05 | CT92: 6.552e-05 | CU92: 1.3104e-06 | CV92: 1.50696e-05 | CW92: 4.914e-05 | CX92: 3.4968024e-06 | CY92: 1.5816528e-05 | CZ92: 2.561832e-05 | DA92: 8.3538e-05 | DB92: 5.94456408e-06 | DC92: 2.68880976e-05 | DE92: 0.25 | DG92: 1.7 | DH92: 1.7 | DI92: 0.144 | DJ92: 0.43 | DK92: 0.027 | DL92: 0.19 | DM92: 6.24429e-06 | DN92: 2.82438e-05
A93: 85 | B93: Statlig | C93: Landsbygd | D93: MV | E93: 4 | F93: 100 | G93: 18.5 | H93: - | I93: - | J93: - | K93: Statlig Landsbygd MV 100 18,5 - - | M93: 14,3 km år 2012 | N93: ='0. Beräkna - Länk'!$C$26 -> 1 | O93: ='TS-EVA Länkberäkningar'!$L$142/('TS-EVA Länkberäkningar'!$L$145)^('TS-EVA Länkberäkningar'!$L$143-2010) -> 1534.246575 | P93: 0.56 | Q93: 0.0395528 | R93: 0.0654836 | S93: 0.000414736 | T93: 0.006626564 | U93: 0.0584423 | V93: 0.195216 | W93: 0.001554519316 | X93: 0.00942799592 | Y93: 0.0112651588 | Z93: 0.09935191 | AA93: 1.366512 | AB93: 0.002642682837 | AC93: 0.01602759306 | AF93: 0.07 | AG93: 1.66 | AH93: 0.5 | AI93: 10 | AJ93: 89.5 | AK93: 3 | AL93: 0.0392 | AM93: 0.065072 | AN93: 0.00032536 | AO93: 0.0065072 | AP93: 0.05823944 | AQ93: 0.195216 | AR93: 0.00152984272 | AS93: 0.0093280712 | AT93: 0.01106224 | AU93: 0.099007048 | AV93: 1.366512 | AW93: 0.002600732624 | AX93: 0.01585772104 | AZ93: 0.105 | BA93: 0.012201 | BB93: 1.7 | BC93: 1.7 | BD93: 7 | BE93: 0.074 | BF93: 0.27 | BG93: 0.018 | BH93: 0.13 | BJ93: 0.002731862 | BK93: 0.01665727 | BM93: 0.75 | BN93: 1.2 | BO93: 25 | BP93: 30 | BQ93: 45 | BR93: 0.000294 | BS93: 0.0003528 | BT93: 8.82e-05 | BU93: 0.00010584 | BV93: 0.00015876 | BW93: 2.153844e-05 | BX93: 8.57304e-05 | BY93: 0.000179928 | BZ93: 0.000269892 | CA93: 3.6615348e-05 | CB93: 0.00014574168 | CD93: 0.55 | CF93: 1.7 | CG93: 1.7 | CH93: 0.16 | CI93: 0.48 | CJ93: 0.029 | CK93: 0.22 | CL93: 3.84615e-05 | CM93: 0.00015309 | CN93: 0.15 | CO93: 1 | CP93: 2 | CQ93: 23 | CR93: 75 | CS93: 5.88e-05 | CT93: 5.88e-05 | CU93: 1.176e-06 | CV93: 1.3524e-05 | CW93: 4.41e-05 | CX93: 3.138156e-06 | CY93: 1.419432e-05 | CZ93: 2.29908e-05 | DA93: 7.497e-05 | DB93: 5.3348652e-06 | DC93: 2.4130344e-05 | DE93: 0.25 | DG93: 1.7 | DH93: 1.7 | DI93: 0.144 | DJ93: 0.43 | DK93: 0.027 | DL93: 0.19 | DM93: 5.60385e-06 | DN93: 2.5347e-05
A94: 86 | B94: Statlig | C94: Landsbygd | D94: MV | E94: 4 | F94: 100 | G94: 21.5 | H94: - | I94: - | J94: - | K94: Statlig Landsbygd MV 100 21,5 - - | M94: 14,5 km år 2012 | N94: ='0. Beräkna - Länk'!$C$26 -> 1 | O94: ='TS-EVA Länkberäkningar'!$L$142/('TS-EVA Länkberäkningar'!$L$145)^('TS-EVA Länkberäkningar'!$L$143-2010) -> 1534.246575 | P94: 0.56 | Q94: 0.0310926 | R94: 0.04962188 | S94: 0.000321244 | T94: 0.00453453 | U94: 0.044766106 | V94: 0.14784 | W94: 0.001151492958 | X94: 0.00707829892 | Y94: 0.007708701 | Z94: 0.0761023802 | AA94: 1.03488 | AB94: 0.001957538029 | AC94: 0.01203310816 | AF94: 0.055 | AG94: 1.6 | AH94: 0.5 | AI94: 9 | AJ94: 90.5 | AK94: 3 | AL94: 0.0308 | AM94: 0.04928 | AN94: 0.0002464 | AO94: 0.0044352 | AP94: 0.0445984 | AQ94: 0.14784 | AR94: 0.001130976 | AS94: 0.006995296 | AT94: 0.00753984 | AU94: 0.07581728 | AV94: 1.03488 | AW94: 0.0019226592 | AX94: 0.0118920032 | AZ94: 0.095 | BA94: 0.00836 | BB94: 1.7 | BC94: 1.7 | BD94: 7 | BE94: 0.074 | BF94: 0.27 | BG94: 0.018 | BH94: 0.13 | BJ94: 0.0020196 | BK94: 0.0124916 | BM94: 0.8 | BN94: 1.2 | BO94: 25 | BP94: 30 | BQ94: 45 | BR94: 0.0002464 | BS94: 0.00029568 | BT94: 7.392e-05 | BU94: 8.8704e-05 | BV94: 0.000133056 | BW94: 1.8051264e-05 | BX94: 7.185024e-05 | BY94: 0.0001507968 | BZ94: 0.0002261952 | CA94: 3.06871488e-05 | CB94: 0.000122145408 | CD94: 0.55 | CF94: 1.7 | CG94: 1.7 | CH94: 0.16 | CI94: 0.48 | CJ94: 0.029 | CK94: 0.22 | CL94: 3.22344e-05 | CM94: 0.000128304 | CN94: 0.15 | CO94: 1 | CP94: 2 | CQ94: 23 | CR94: 75 | CS94: 4.62e-05 | CT94: 4.62e-05 | CU94: 9.24e-07 | CV94: 1.0626e-05 | CW94: 3.465e-05 | CX94: 2.465694e-06 | CY94: 1.115268e-05 | CZ94: 1.80642e-05 | DA94: 5.8905e-05 | DB94: 4.1916798e-06 | DC94: 1.8959556e-05 | DE94: 0.25 | DG94: 1.7 | DH94: 1.7 | DI94: 0.144 | DJ94: 0.43 | DK94: 0.027 | DL94: 0.19 | DM94: 4.403025e-06 | DN94: 1.99155e-05
A95: 87 | B95: Statlig | C95: Landsbygd | D95: MV | E95: 4-6 | F95: 100 | G95: >24,5 | H95: - | I95: - | J95: - | K95: Statlig Landsbygd MV 100 >24,5 - - | M95: - | N95: ='0. Beräkna - Länk'!$C$26 -> 1 | O95: ='TS-EVA Länkberäkningar'!$L$142/('TS-EVA Länkberäkningar'!$L$145)^('TS-EVA Länkberäkningar'!$L$143-2010) -> 1534.246575 | P95: 0.56 | Q95: 0.03898776 | R95: 0.06377532 | S95: 0.0004049472 | T95: 0.0067714668 | U95: 0.056598906 | V95: 0.1478624 | W95: 0.001531886857 | X95: 0.009226888104 | Y95: 0.01151149356 | Z95: 0.0962181402 | AA95: 1.0350368 | AB95: 0.002604207657 | AC95: 0.01568570978 | AF95: 0.069 | AG95: 1.64 | AH95: 0.5 | AI95: 10.5 | AJ95: 89 | AK95: 2.333333333 | AL95: 0.03864 | AM95: 0.0633696 | AN95: 0.000316848 | AO95: 0.006653808 | AP95: 0.056398944 | AQ95: 0.1478624 | AR95: 0.001507562784 | AS95: 0.00912839088 | AT95: 0.0113114736 | AU95: 0.0958782048 | AV95: 1.0350368 | AW95: 0.002562856733 | AX95: 0.0155182645 | AZ95: 0.11 | BA95: 0.0124476 | BB95: 1.7 | BC95: 1.7 | BD95: 7 | BE95: 0.074 | BF95: 0.27 | BG95: 0.018 | BH95: 0.13 | BJ95: 0.0026920764 | BK95: 0.016300698 | BM95: 0.75 | BN95: 1.2 | BO95: 25 | BP95: 30 | BQ95: 45 | BR95: 0.0002898 | BS95: 0.00034776 | BT95: 8.694e-05 | BU95: 0.000104328 | BV95: 0.000156492 | BW95: 2.1230748e-05 | BX95: 8.450568e-05 | BY95: 0.0001773576 | BZ95: 0.0002660364 | CA95: 3.60922716e-05 | CB95: 0.000143659656 | CD95: 0.55 | CF95: 1.7 | CG95: 1.7 | CH95: 0.16 | CI95: 0.48 | CJ95: 0.029 | CK95: 0.22 | CL95: 3.791205e-05 | CM95: 0.000150903 | CN95: 0.15 | CO95: 1 | CP95: 2 | CQ95: 23 | CR95: 75 | CS95: 5.796e-05 | CT95: 5.796e-05 | CU95: 1.1592e-06 | CV95: 1.33308e-05 | CW95: 4.347e-05 | CX95: 3.0933252e-06 | CY95: 1.3991544e-05 | CZ95: 2.266236e-05 | DA95: 7.3899e-05 | DB95: 5.25865284e-06 | DC95: 2.37856248e-05 | DE95: 0.25 | DG95: 1.7 | DH95: 1.7 | DI95: 0.144 | DJ95: 0.43 | DK95: 0.027 | DL95: 0.19 | DM95: 5.523795e-06 | DN95: 2.49849e-05
A96: 88 | B96: Statlig | C96: Landsbygd | D96: MV | E96: 4 | F96: 110 | G96: 18.5 | H96: - | I96: - | J96: - | K96: Statlig Landsbygd MV 110 18,5 - - | M96: - | N96: ='0. Beräkna - Länk'!$C$26 -> 1 | O96: ='TS-EVA Länkberäkningar'!$L$142/('TS-EVA Länkberäkningar'!$L$145)^('TS-EVA Länkberäkningar'!$L$143-2010) -> 1534.246575 | P96: 0.56 | Q96: 0.031031 | R96: 0.04959416 | S96: 0.0005844608 | T96: 0.0052259592 | U96: 0.04378374 | V96: 0.14784 | W96: 0.001180855553 | X96: 0.007127222256 | Y96: 0.00888413064 | Z96: 0.074432358 | AA96: 1.03488 | AB96: 0.00200745444 | AC96: 0.01211627784 | AF96: 0.055 | AG96: 1.6 | AH96: 1 | AI96: 10.5 | AJ96: 88.5 | AK96: 3 | AL96: 0.0308 | AM96: 0.04928 | AN96: 0.0004928 | AO96: 0.0051744 | AP96: 0.0436128 | AQ96: 0.14784 | AR96: 0.001167936 | AS96: 0.007066752 | AT96: 0.00879648 | AU96: 0.07414176 | AV96: 1.03488 | AW96: 0.0019854912 | AX96: 0.0120134784 | AZ96: 0.115 | BA96: 0.01012 | BB96: 1.7 | BC96: 1.7 | BD96: 7 | BE96: 0.074 | BF96: 0.27 | BG96: 0.018 | BH96: 0.13 | BJ96: 0.0020856 | BK96: 0.0126192 | BM96: 0.6 | BN96: 1.4 | BO96: 35 | BP96: 15 | BQ96: 50 | BR96: 0.0001848 | BS96: 0.00025872 | BT96: 9.0552e-05 | BU96: 3.8808e-05 | BV96: 0.00012936 | BW96: 9.96072e-06 | BX96: 4.708704e-05 | BY96: 6.59736e-05 | BZ96: 0.000219912 | CA96: 1.6933224e-05 | CB96: 8.0047968e-05 | CD96: 0.5 | CF96: 1.7 | CG96: 1.7 | CH96: 0.16 | CI96: 0.48 | CJ96: 0.029 | CK96: 0.22 | CL96: 1.7787e-05 | CM96: 8.4084e-05 | CN96: 0.15 | CO96: 1.2 | CP96: 2 | CQ96: 23 | CR96: 75 | CS96: 4.62e-05 | CT96: 5.544e-05 | CU96: 1.1088e-06 | CV96: 1.27512e-05 | CW96: 4.158e-05 | CX96: 2.9588328e-06 | CY96: 1.3383216e-05 | CZ96: 2.167704e-05 | DA96: 7.0686e-05 | DB96: 5.03001576e-06 | DC96: 2.27514672e-05 | DE96: 0.25 | DG96: 1.7 | DH96: 1.7 | DI96: 0.144 | DJ96: 0.43 | DK96: 0.027 | DL96: 0.19 | DM96: 5.28363e-06 | DN96: 2.38986e-05
A97: 89 | B97: Statlig | C97: Landsbygd | D97: MV | E97: 4 | F97: 110 | G97: 21.5 | H97: - | I97: - | J97: - | K97: Statlig Landsbygd MV 110 21,5 - - | M97: - | N97: ='0. Beräkna - Länk'!$C$26 -> 1 | O97: ='TS-EVA Länkberäkningar'!$L$142/('TS-EVA Länkberäkningar'!$L$145)^('TS-EVA Länkberäkningar'!$L$143-2010) -> 1534.246575 | P97: 0.56 | Q97: 0.02371992 | R97: 0.032495232 | S97: 0.00040374432 | T97: 0.00294432768 | U97: 0.02914716 | V97: 0.0966672 | W97: 0.0007477376323 | X97: 0.004605195302 | Y97: 0.005005357056 | Z97: 0.049550172 | AA97: 0.6766704 | AB97: 0.001271153975 | AC97: 0.007828832014 | AF97: 0.042 | AG97: 1.37 | AH97: 1 | AI97: 9 | AJ97: 90 | AK97: 3 | AL97: 0.02352 | AM97: 0.0322224 | AN97: 0.000322224 | AO97: 0.002900016 | AP97: 0.02900016 | AQ97: 0.0966672 | AR97: 0.000736604064 | AS97: 0.00455302512 | AT97: 0.0049300272 | AU97: 0.049300272 | AV97: 0.6766704 | AW97: 0.001252226909 | AX97: 0.007740142704 | AZ97: 0.1 | BA97: 0.005754 | BB97: 1.7 | BC97: 1.7 | BD97: 7 | BE97: 0.074 | BF97: 0.27 | BG97: 0.018 | BH97: 0.13 | BJ97: 0.0013153644 | BK97: 0.008130402 | BM97: 0.7 | BN97: 1.4 | BO97: 35 | BP97: 15 | BQ97: 50 | BR97: 0.00016464 | BS97: 0.000230496 | BT97: 8.06736e-05 | BU97: 3.45744e-05 | BV97: 0.000115248 | BW97: 8.874096e-06 | BX97: 4.1950272e-05 | BY97: 5.877648e-05 | BZ97: 0.0001959216 | CA97: 1.50859632e-05 | CB97: 7.13154624e-05 | CD97: 0.5 | CF97: 1.7 | CG97: 1.7 | CH97: 0.16 | CI97: 0.48 | CJ97: 0.029 | CK97: 0.22 | CL97: 1.58466e-05 | CM97: 7.49112e-05 | CN97: 0.15 | CO97: 1.2 | CP97: 2 | CQ97: 23 | CR97: 75 | CS97: 3.528e-05 | CT97: 4.2336e-05 | CU97: 8.4672e-07 | CV97: 9.73728e-06 | CW97: 3.1752e-05 | CX97: 2.25947232e-06 | CY97: 1.02199104e-05 | CZ97: 1.6553376e-05 | DA97: 5.39784e-05 | DB97: 3.841102944e-06 | DC97: 1.737384768e-05 | DE97: 0.25 | DG97: 1.7 | DH97: 1.7 | DI97: 0.144 | DJ97: 0.43 | DK97: 0.027 | DL97: 0.19 | DM97: 4.034772e-06 | DN97: 1.824984e-05
A98: 90 | B98: Statlig | C98: Landsbygd | D98: MV | E98: 4 | F98: 110 | G98: >24,5 | H98: - | I98: - | J98: <32000 | K98: Statlig Landsbygd MV 110 >24,5 - - | M98: - | N98: ='0. Beräkna - Länk'!$C$26 -> 1 | O98: ='TS-EVA Länkberäkningar'!$L$142/('TS-EVA Länkberäkningar'!$L$145)^('TS-EVA Länkberäkningar'!$L$143-2010) -> 1534.246575 | P98: 0.56 | Q98: 0.02710848 | R98: 0.042244608 | S98: 0.00055442688 | T98: 0.00462131712 | U98: 0.037068864 | V98: 0.0978432 | W98: 0.001015169595 | X98: 0.00609081769 | Y98: 0.007856239104 | Z98: 0.0630170688 | AA98: 0.6849024 | AB98: 0.001725788311 | AC98: 0.01035439007 | AF98: 0.048 | AG98: 1.56 | AH98: 1.1 | AI98: 10.9 | AJ98: 88 | AK98: 2.333333333 | AL98: 0.02688 | AM98: 0.0419328 | AN98: 0.0004612608 | AO98: 0.0045706752 | AP98: 0.036900864 | AQ98: 0.0978432 | AR98: 0.001002445517 | AS98: 0.006031194624 | AT98: 0.00777014784 | AU98: 0.0627314688 | AV98: 0.6849024 | AW98: 0.001704157379 | AX98: 0.01025303086 | AZ98: 0.12 | BA98: 0.0089856 | BB98: 1.7 | BC98: 1.7 | BD98: 7 | BE98: 0.074 | BF98: 0.27 | BG98: 0.018 | BH98: 0.13 | BJ98: 0.00179008128 | BK98: 0.0107699904 | BM98: 0.7 | BN98: 1.4 | BO98: 35 | BP98: 15 | BQ98: 50 | BR98: 0.00018816 | BS98: 0.000263424 | BT98: 9.21984e-05 | BU98: 3.95136e-05 | BV98: 0.000131712 | BW98: 1.0141824e-05 | BX98: 4.7943168e-05 | BY98: 6.717312e-05 | BZ98: 0.0002239104 | CA98: 1.72411008e-05 | CB98: 8.15033856e-05 | CD98: 0.5 | CF98: 1.7 | CG98: 1.7 | CH98: 0.16 | CI98: 0.48 | CJ98: 0.029 | CK98: 0.22 | CL98: 1.81104e-05 | CM98: 8.56128e-05 | CN98: 0.15 | CO98: 1.2 | CP98: 2 | CQ98: 23 | CR98: 75 | CS98: 4.032e-05 | CT98: 4.8384e-05 | CU98: 9.6768e-07 | CV98: 1.112832e-05 | CW98: 3.6288e-05 | CX98: 2.58225408e-06 | CY98: 1.16798976e-05 | CZ98: 1.8918144e-05 | DA98: 6.16896e-05 | DB98: 4.389831936e-06 | DC98: 1.985582592e-05 | DE98: 0.25 | DG98: 1.7 | DH98: 1.7 | DI98: 0.144 | DJ98: 0.43 | DK98: 0.027 | DL98: 0.19 | DM98: 4.611168e-06 | DN98: 2.085696e-05
A99: 91 | B99: Statlig | C99: Landsbygd | D99: MV | E99: 4-6 | F99: 110 | G99: >24,5 | H99: - | I99: - | J99: >32000 | K99: Statlig Landsbygd MV 110 >24,5 - - | M99: - | N99: ='0. Beräkna - Länk'!$C$26 -> 1 | O99: ='TS-EVA Länkberäkningar'!$L$142/('TS-EVA Länkberäkningar'!$L$145)^('TS-EVA Länkberäkningar'!$L$143-2010) -> 1534.246575 | P99: 0.56 | Q99: 0.0315952 | R99: 0.049868672 | S99: 0.00063836416 | T99: 0.00545331584 | U99: 0.043776992 | V99: 0.1156138667 | W99: 0.001197668067 | X99: 0.007188173619 | Y99: 0.009270636928 | Z99: 0.0744208864 | AA99: 0.8092970667 | AB99: 0.002036035713 | AC99: 0.01221989515 | AF99: 0.056 | AG99: 1.58 | AH99: 1.1 | AI99: 10.9 | AJ99: 88 | AK99: 2.333333333 | AL99: 0.03136 | AM99: 0.0495488 | AN99: 0.0005450368 | AO99: 0.0054008192 | AP99: 0.043602944 | AQ99: 0.1156138667 | AR99: 0.001184513613 | AS99: 0.007126603904 | AT99: 0.00918139264 | AU99: 0.0741250048 | AV99: 0.8092970667 | AW99: 0.002013673142 | AX99: 0.01211522664 | AZ99: 0.12 | BA99: 0.0106176 | BB99: 1.7 | BC99: 1.7 | BD99: 7 | BE99: 0.074 | BF99: 0.27 | BG99: 0.018 | BH99: 0.13 | BJ99: 0.00211520288 | BK99: 0.0127260784 | BM99: 0.6 | BN99: 1.4 | BO99: 35 | BP99: 15 | BQ99: 50 | BR99: 0.00018816 | BS99: 0.000263424 | BT99: 9.21984e-05 | BU99: 3.95136e-05 | BV99: 0.000131712 | BW99: 1.0141824e-05 | BX99: 4.7943168e-05 | BY99: 6.717312e-05 | BZ99: 0.0002239104 | CA99: 1.72411008e-05 | CB99: 8.15033856e-05 | CD99: 0.5 | CF99: 1.7 | CG99: 1.7 | CH99: 0.16 | CI99: 0.48 | CJ99: 0.029 | CK99: 0.22 | CL99: 1.81104e-05 | CM99: 8.56128e-05 | CN99: 0.15 | CO99: 1.2 | CP99: 2 | CQ99: 23 | CR99: 75 | CS99: 4.704e-05 | CT99: 5.6448e-05 | CU99: 1.12896e-06 | CV99: 1.298304e-05 | CW99: 4.2336e-05 | CX99: 3.01262976e-06 | CY99: 1.36265472e-05 | CZ99: 2.2071168e-05 | DA99: 7.19712e-05 | DB99: 5.121470592e-06 | DC99: 2.316513024e-05 | DE99: 0.25 | DG99: 1.7 | DH99: 1.7 | DI99: 0.144 | DJ99: 0.43 | DK99: 0.027 | DL99: 0.19 | DM99: 5.379696e-06 | DN99: 2.433312e-05
A100: 92 | B100: Statlig | C100: Landsbygd | D100: MV | E100: 4 | F100: 120 | G100: <24,5 | H100: - | I100: - | J100: <32000 | K100: Statlig Landsbygd MV 120 <24,5 - - | M100: - | N100: ='0. Beräkna - Länk'!$C$26 -> 1 | O100: ='TS-EVA Länkberäkningar'!$L$142/('TS-EVA Länkberäkningar'!$L$145)^('TS-EVA Länkberäkningar'!$L$143-2010) -> 1534.246575 | P100: 0.56 | Q100: 0.0366002 | R100: 0.06396663 | S100: 0.0005323136 | T100: 0.0123357689 | U100: 0.0510985475 | V100: 0.1638 | W100: 0.001837619884 | X100: 0.009993976902 | Y100: 0.02097080713 | Z100: 0.08686753075 | AA100: 1.1466 | AB100: 0.003123953803 | AC100: 0.01698976073 | AF100: 0.065 | AG100: 1.75 | AH100: 0.7 | AI100: 19.3 | AJ100: 80 | AK100: 2.571428571 | AL100: 0.0364 | AM100: 0.0637 | AN100: 0.0004459 | AO100: 0.0122941 | AP100: 0.05096 | AQ100: 0.1638 | AR100: 0.0018270434 | AS100: 0.009944207 | AT100: 0.02089997 | AU100: 0.086632 | AV100: 1.1466 | AW100: 0.00310597378 | AX100: 0.0169051519 | AZ100: 0.2 | BA100: 0.02275 | BB100: 1.7 | BC100: 1.7 | BD100: 7 | BE100: 0.074 | BF100: 0.27 | BG100: 0.018 | BH100: 0.13 | BJ100: 0.0032625775 | BK100: 0.0177575125 | BM100: 0.5 | BN100: 1.35 | BO100: 35 | BP100: 15 | BQ100: 50 | BR100: 0.000182 | BS100: 0.0002457 | BT100: 8.5995e-05 | BU100: 3.6855e-05 | BV100: 0.00012285 | BW100: 9.45945e-06 | BX100: 4.47174e-05 | BY100: 6.26535e-05 | BZ100: 0.000208845 | CA100: 1.6081065e-05 | CB100: 7.601958e-05 | CD100: 0.5 | CF100: 1.7 | CG100: 1.7 | CH100: 0.16 | CI100: 0.48 | CJ100: 0.029 | CK100: 0.22 | CL100: 1.6891875e-05 | CM100: 7.98525e-05 | CN100: 0.05 | CO100: 1.15 | CP100: 2 | CQ100: 23 | CR100: 75 | CS100: 1.82e-05 | CT100: 2.093e-05 | CU100: 4.186e-07 | CV100: 4.8139e-06 | CW100: 1.56975e-05 | CX100: 1.1170341e-06 | CY100: 5.052502e-06 | CZ100: 8.18363e-06 | DA100: 2.668575e-05 | DB100: 1.89895797e-06 | DC100: 8.5892534e-06 | DE100: 0.25 | DG100: 1.7 | DH100: 1.7 | DI100: 0.144 | DJ100: 0.43 | DK100: 0.027 | DL100: 0.19 | DM100: 1.99470375e-06 | DN100: 9.022325e-06
A101: 93 | B101: Statlig | C101: Landsbygd | D101: MV | E101: 4 | F101: 120 | G101: >24,5 | H101: - | I101: - | J101: <32000 | K101: Statlig Landsbygd MV 120 >24,5 - - | M101: - | N101: ='0. Beräkna - Länk'!$C$26 -> 1 | O101: ='TS-EVA Länkberäkningar'!$L$142/('TS-EVA Länkberäkningar'!$L$145)^('TS-EVA Länkberäkningar'!$L$143-2010) -> 1534.246575 | P101: 0.56 | Q101: 0.028196 | R101: 0.0419818 | S101: 0.000628677 | T101: 0.005881358 | U101: 0.035471765 | V101: 0.10728 | W101: 0.001078601027 | X101: 0.00621940914 | Y101: 0.0099983086 | Z101: 0.0603020005 | AA101: 0.75096 | AB101: 0.001833621746 | AC101: 0.01057299554 | AF101: 0.05 | AG101: 1.49 | AH101: 1.3 | AI101: 14 | AJ101: 84.7 | AK101: 2.571428571 | AL101: 0.028 | AM101: 0.04172 | AN101: 0.00054236 | AO101: 0.0058408 | AP101: 0.03533684 | AQ101: 0.10728 | AR101: 0.00106828232 | AS101: 0.0061708052 | AT101: 0.00992936 | AU101: 0.060072628 | AV101: 0.75096 | AW101: 0.001816079944 | AX101: 0.01049036884 | AZ101: 0.153 | BA101: 0.0113985 | BB101: 1.7 | BC101: 1.7 | BD101: 7 | BE101: 0.074 | BF101: 0.27 | BG101: 0.018 | BH101: 0.13 | BJ101: 0.001907647 | BK101: 0.011019295 | BM101: 0.65 | BN101: 1.35 | BO101: 35 | BP101: 15 | BQ101: 50 | BR101: 0.000182 | BS101: 0.0002457 | BT101: 8.5995e-05 | BU101: 3.6855e-05 | BV101: 0.00012285 | BW101: 9.45945e-06 | BX101: 4.47174e-05 | BY101: 6.26535e-05 | BZ101: 0.000208845 | CA101: 1.6081065e-05 | CB101: 7.601958e-05 | CD101: 0.5 | CF101: 1.7 | CG101: 1.7 | CH101: 0.16 | CI101: 0.48 | CJ101: 0.029 | CK101: 0.22 | CL101: 1.6891875e-05 | CM101: 7.98525e-05 | CN101: 0.05 | CO101: 1.15 | CP101: 2 | CQ101: 23 | CR101: 75 | CS101: 1.4e-05 | CT101: 1.61e-05 | CU101: 3.22e-07 | CV101: 3.703e-06 | CW101: 1.2075e-05 | CX101: 8.59257e-07 | CY101: 3.88654e-06 | CZ101: 6.2951e-06 | DA101: 2.05275e-05 | DB101: 1.4607369e-06 | DC101: 6.607118e-06 | DE101: 0.25 | DG101: 1.7 | DH101: 1.7 | DI101: 0.144 | DJ101: 0.43 | DK101: 0.027 | DL101: 0.19 | DM101: 1.5343875e-06 | DN101: 6.94025e-06
A102: 94 | B102: Statlig | C102: Landsbygd | D102: MV | E102: 4 | F102: 120 | G102: Alla | H102: - | I102: - | J102: <32000 | K102: Statlig Landsbygd MV 120 Alla - - | M102: - | N102: ='0. Beräkna - Länk'!$C$26 -> 1 | O102: ='TS-EVA Länkberäkningar'!$L$142/('TS-EVA Länkberäkningar'!$L$145)^('TS-EVA Länkberäkningar'!$L$143-2010) -> 1534.246575 | P102: 0.56 | Q102: 0.032121096 | R102: 0.0519786876 | S102: 0.00065665824 | T102: 0.00862563786 | U102: 0.0426963915 | V102: 0.1329696 | W102: 0.001411850416 | X102: 0.007900074395 | Y102: 0.01466358436 | Z102: 0.07258386555 | AA102: 0.9307872 | AB102: 0.002400145707 | AC102: 0.01343012647 | AF102: 0.057 | AG102: 1.62 | AH102: 1.1 | AI102: 16.6 | AJ102: 82.3 | AK102: 2.571428571 | AL102: 0.03192 | AM102: 0.0517104 | AN102: 0.0005688144 | AO102: 0.0085839264 | AP102: 0.0425576592 | AQ102: 0.1329696 | AR102: 0.001401248419 | AS102: 0.007850155824 | AT102: 0.01459267488 | AU102: 0.07234802064 | AV102: 0.9307872 | AW102: 0.002382122313 | AX102: 0.0133452649 | AZ102: 0.177 | BA102: 0.01634418 | BB102: 1.7 | BC102: 1.7 | BD102: 7 | BE102: 0.074 | BF102: 0.27 | BG102: 0.018 | BH102: 0.13 | BJ102: 0.00250222932 | BK102: 0.0140181354 | BM102: 0.58 | BN102: 1.35 | BO102: 35 | BP102: 15 | BQ102: 50 | BR102: 0.000185136 | BS102: 0.0002499336 | BT102: 8.747676e-05 | BU102: 3.749004e-05 | BV102: 0.0001249668 | BW102: 9.6224436e-06 | BX102: 4.54879152e-05 | BY102: 6.3733068e-05 | BZ102: 0.00021244356 | CA102: 1.635815412e-05 | CB102: 7.732945584e-05 | CD102: 0.5 | CF102: 1.7 | CG102: 1.7 | CH102: 0.16 | CI102: 0.48 | CJ102: 0.029 | CK102: 0.22 | CL102: 1.7182935e-05 | CM102: 8.122842e-05 | CN102: 0.05 | CO102: 1.15 | CP102: 2 | CQ102: 23 | CR102: 75 | CS102: 1.596e-05 | CT102: 1.8354e-05 | CU102: 3.6708e-07 | CV102: 4.22142e-06 | CW102: 1.37655e-05 | CX102: 9.7955298e-07 | CY102: 4.4306556e-06 | CZ102: 7.176414e-06 | DA102: 2.340135e-05 | DB102: 1.665240066e-06 | DC102: 7.53211452e-06 | DE102: 0.25 | DG102: 1.7 | DH102: 1.7 | DI102: 0.144 | DJ102: 0.43 | DK102: 0.027 | DL102: 0.19 | DM102: 1.74920175e-06 | DN102: 7.911885e-06
A103: 95 | B103: Statlig | C103: Landsbygd | D103: 4F | E103: 4 | F103: 80 | G103: >16 | H103: - | I103: - | J103: - | K103: Statlig Landsbygd 4F 80 >16 - - | M103: - | N103: ='0. Beräkna - Länk'!$C$26 -> 1 | O103: ='TS-EVA Länkberäkningar'!$L$142/('TS-EVA Länkberäkningar'!$L$145)^('TS-EVA Länkberäkningar'!$L$143-2010) -> 1534.246575 | P103: 0.56 | Q103: 0.0592998 | R103: 0.09345672 | S103: 0.000528318 | T103: 0.008557458 | U103: 0.084370944 | V103: 0.216776 | W103: 0.002187975636 | X103: 0.01401018192 | Y103: 0.0145476786 | Z103: 0.1434306048 | AA103: 1.517432 | AB103: 0.003719558581 | AC103: 0.02381730926 | AF103: 0.105 | AG103: 1.58 | AH103: 0.5 | AI103: 9 | AJ103: 90.5 | AK103: 2.333333333 | AL103: 0.0588 | AM103: 0.092904 | AN103: 0.00046452 | AO103: 0.00836136 | AP103: 0.08407812 | AQ103: 0.216776 | AR103: 0.00214886952 | AS103: 0.0138566316 | AT103: 0.014214312 | AU103: 0.142932804 | AV103: 1.517432 | AW103: 0.003653078184 | AX103: 0.02355627372 | AZ103: 0.095 | BA103: 0.0157605 | BB103: 1.7 | BC103: 1.7 | BD103: 7 | BE103: 0.076 | BF103: 0.35 | BG103: 0.018 | BH103: 0.13 | BJ103: 0.003837267 | BK103: 0.024743985 | BM103: 0.6 | BN103: 1.15 | BO103: 15 | BP103: 40 | BQ103: 45 | BR103: 0.0003528 | BS103: 0.00040572 | BT103: 6.0858e-05 | BU103: 0.000162288 | BV103: 0.000182574 | BW103: 3.1260726e-05 | BX103: 0.00011806452 | BY103: 0.0002758896 | BZ103: 0.0003103758 | CA103: 5.31432342e-05 | CB103: 0.000200709684 | CD103: 0.55 | CF103: 1.7 | CG103: 1.7 | CH103: 0.16 | CI103: 0.48 | CJ103: 0.029 | CK103: 0.22 | CL103: 5.5822725e-05 | CM103: 0.0002108295 | CN103: 0.25 | CO103: 1 | CP103: 2 | CQ103: 23 | CR103: 75 | CS103: 0.000147 | CT103: 0.000147 | CU103: 2.94e-06 | CV103: 3.381e-05 | CW103: 0.00011025 | CX103: 7.84539e-06 | CY103: 3.54858e-05 | CZ103: 5.7477e-05 | DA103: 0.000187425 | DB103: 1.3337163e-05 | DC103: 6.032586e-05 | DE103: 0.25 | DG103: 1.7 | DH103: 1.7 | DI103: 0.144 | DJ103: 0.43 | DK103: 0.027 | DL103: 0.19 | DM103: 1.4009625e-05 | DN103: 6.33675e-05
A104: 96 | B104: Statlig | C104: Landsbygd | D104: 4F | E104: 4 | F104: 90 | G104: 15.75 | H104: - | I104: - | J104: - | K104: Statlig Landsbygd 4F 90 15,75 - - | M104: Välj MML. Finns ej, enbart 0,2 km | N104: ='0. Beräkna - Länk'!$C$26 -> 1 | O104: ='TS-EVA Länkberäkningar'!$L$142/('TS-EVA Länkberäkningar'!$L$145)^('TS-EVA Länkberäkningar'!$L$143-2010) -> 1534.246575 | P104: 0.56 | Q104: 0.0452928 | R104: 0.07319648 | S104: 0.000792848 | T104: 0.006868848 | U104: 0.065534784 | V104: 0.217728 | W104: 0.001705224864 | X104: 0.01043936208 | Y104: 0.0116770416 | Z104: 0.1114091328 | AA104: 1.524096 | AB104: 0.002898882269 | AC104: 0.01774691554 | AF104: 0.08 | AG104: 1.62 | AH104: 0.9 | AI104: 9.1 | AJ104: 90 | AK104: 3 | AL104: 0.0448 | AM104: 0.072576 | AN104: 0.000653184 | AO104: 0.006604416 | AP104: 0.0653184 | AQ104: 0.217728 | AR104: 0.001664457984 | AS104: 0.01027458432 | AT104: 0.0112275072 | AU104: 0.11104128 | AV104: 1.524096 | AW104: 0.002829578573 | AX104: 0.01746679334 | AZ104: 0.1 | BA104: 0.01296 | BB104: 1.7 | BC104: 1.7 | BD104: 7 | BE104: 0.074 | BF104: 0.27 | BG104: 0.018 | BH104: 0.13 | BJ104: 0.0029722464 | BK104: 0.018347472 | BM104: 0.95 | BN104: 1.3 | BO104: 25 | BP104: 45 | BQ104: 30 | BR104: 0.0004256 | BS104: 0.00055328 | BT104: 0.00013832 | BU104: 0.000248976 | BV104: 0.000165984 | BW104: 3.7180416e-05 | BX104: 0.00014855568 | BY104: 0.0004232592 | BZ104: 0.0002821728 | CA104: 6.32067072e-05 | CB104: 0.000252544656 | CD104: 0.7 | CF104: 1.7 | CG104: 1.7 | CH104: 0.13 | CI104: 0.45 | CJ104: 0.029 | CK104: 0.22 | CL104: 6.63936e-05 | CM104: 0.000265278 | CN104: 0.15 | CO104: 1 | CP104: 2 | CQ104: 23 | CR104: 75 | CS104: 6.72e-05 | CT104: 6.72e-05 | CU104: 1.344e-06 | CV104: 1.5456e-05 | CW104: 5.04e-05 | CX104: 3.586464e-06 | CY104: 1.622208e-05 | CZ104: 2.62752e-05 | DA104: 8.568e-05 | DB104: 6.0969888e-06 | DC104: 2.7577536e-05 | DE104: 0.25 | DG104: 1.7 | DH104: 1.7 | DI104: 0.144 | DJ104: 0.43 | DK104: 0.027 | DL104: 0.19 | DM104: 6.4044e-06 | DN104: 2.8968e-05
A105: 97 | B105: Statlig | C105: Landsbygd | D105: 4F | E105: 4 | F105: 90 | G105: >18 | H105: - | I105: - | J105: - | K105: Statlig Landsbygd 4F 90 >18 - - | M105: - | N105: ='0. Beräkna - Länk'!$C$26 -> 1 | O105: ='TS-EVA Länkberäkningar'!$L$142/('TS-EVA Länkberäkningar'!$L$145)^('TS-EVA Länkberäkningar'!$L$143-2010) -> 1534.246575 | P105: 0.56 | Q105: 0.0480522 | R105: 0.07666932 | S105: 0.000491708 | T105: 0.009667798 | U105: 0.066509814 | V105: 0.19584 | W105: =AR105+BW105+CX105 -> 0.001946731234 | X105: 0.01206934652 | Y105: =AO105*BB105+BU105*CF105+CV105*DG105 -> 0.0164352566 | Z105: 0.1130666838 | AA105: 1.37088 | AB105: 0.003309443098 | AC105: 0.02051788908 | AF105: 0.085 | AG105: 1.6 | AH105: 0.5 | AI105: 12.5 | AJ105: 87 | AK105: 2.571428571 | AL105: 0.0476 | AM105: 0.07616 | AN105: =AH105*$AM105/100 -> 0.0003808 | AO105: 0.00952 | AP105: 0.0662592 | AQ105: 0.19584 | AR105: 0.0019161856 | AS105: 0.011945696 | AT105: =AO105*BB105 -> 0.016184 | AU105: 0.11264064 | AV105: 1.37088 | AW105: 0.00325751552 | AX105: 0.0203076832 | AZ105: 0.13 | BA105: 0.01768 | BB105: 1.7 | BC105: 1.7 | BD105: 7 | BE105: 0.076 | BF105: 0.35 | BG105: 0.018 | BH105: 0.13 | BJ105: =$AF105*$AG105*($AI105*BE105+$AJ105*BG105)/100 -> 0.00342176 | BK105: 0.0213316 | BM105: 0.8 | BN105: 1.15 | BO105: 25 | BP105: 30 | BQ105: 45 | BR105: 0.0003808 | BS105: 0.00043792 | BT105: 0.00010948 | BU105: 0.000131376 | BV105: 0.000197064 | BW105: 2.6735016e-05 | BX105: 0.00010641456 | BY105: =BU105*CF105 -> 0.0002233392 | BZ105: 0.0003350088 | CA105: 4.54495272e-05 | CB105: 0.000180904752 | CD105: 0.55 | CF105: 1.7 | CG105: 1.7 | CH105: 0.16 | CI105: 0.48 | CJ105: 0.029 | CK105: 0.22 | CL105: 4.77411e-05 | CM105: 0.000190026 | CN105: 0.15 | CO105: 1 | CP105: 2 | CQ105: 23 | CR105: 75 | CS105: 7.14e-05 | CT105: 7.14e-05 | CU105: 1.428e-06 | CV105: 1.6422e-05 | CW105: 5.355e-05 | CX105: 3.810618e-06 | CY105: 1.723596e-05 | CZ105: =CV105*DG105 -> 2.79174e-05 | DA105: 9.1035e-05 | DB105: 6.4780506e-06 | DC105: 2.9301132e-05 | DE105: 0.25 | DG105: 1.7 | DH105: 1.7 | DI105: 0.144 | DJ105: 0.43 | DK105: 0.027 | DL105: 0.19 | DM105: =$CN105/100*$AF105*$CO105*($CQ105*DI105+$CR105*DK105)/100 -> 6.804675e-06 | DN105: 3.07785e-05
A106: 98 | B106: Statlig | C106: Landsbygd | D106: 4F | E106: 4 | F106: 100 | G106: 15.75 | H106: - | I106: - | J106: - | K106: Statlig Landsbygd 4F 100 15,75 - - | M106: Välj MML. Finns ej, enbart 0,7 km | N106: ='0. Beräkna - Länk'!$C$26 -> 1 | O106: ='TS-EVA Länkberäkningar'!$L$142/('TS-EVA Länkberäkningar'!$L$145)^('TS-EVA Länkberäkningar'!$L$143-2010) -> 1534.246575 | P106: 0.56 | Q106: =AL106+BR106+CS106 -> 0.04019736 | R106: 0.062178676 | S106: 0.0005553478 | T106: 0.0059660874 | U106: 0.0556572408 | V106: 0.184884 | W106: 0.001522621128 | X106: 0.009025452408 | Y106: 0.01014234858 | Z106: 0.09461730936 | AA106: 1.294188 | AB106: 0.002588455918 | AC106: 0.01534326909 | AF106: 0.071 | AG106: 1.55 | AH106: 0.7 | AI106: 9.3 | AJ106: 90 | AK106: 3 | AL106: 0.03976 | AM106: 0.061628 | AN106: 0.000431396 | AO106: 0.005731404 | AP106: 0.0554652 | AQ106: 0.184884 | AR106: 0.001479811536 | AS106: 0.00887258316 | AT106: 0.0097433868 | AU106: 0.09429084 | AV106: 1.294188 | AW106: 0.002515679611 | AX106: 0.01508339137 | AZ106: 0.1 | BA106: 0.011005 | BB106: 1.7 | BC106: 1.7 | BD106: 7 | BE106: 0.084 | BF106: 0.29 | BG106: 0.018 | BH106: 0.13 | BJ106: 0.0026425206 | BK106: 0.0158438985 | BM106: 0.95 | BN106: 1.3 | BO106: 25 | BP106: 45 | BQ106: 30 | BR106: 0.00037772 | BS106: 0.000491036 | BT106: 0.000122759 | BU106: 0.0002209662 | BV106: 0.0001473108 | BW106: 3.96266052e-05 | BX106: 0.000138472152 | BY106: 0.00037564254 | BZ106: 0.00025042836 | CA106: 6.736522884e-05 | CB106: 0.0002354026584 | CD106: 0.7 | CF106: 1.7 | CG106: 1.7 | CH106: 0.16 | CI106: 0.48 | CJ106: 0.029 | CK106: 0.22 | CL106: =$BM106/100*$AF106*$BN106*($BP106*CH106+$BQ106*CJ106)/100 -> 7.0761795e-05 | CM106: 0.0002472717 | CN106: 0.15 | CO106: 1 | CP106: 2 | CQ106: 23 | CR106: 75 | CS106: 5.964e-05 | CT106: 5.964e-05 | CU106: 1.1928e-06 | CV106: 1.37172e-05 | CW106: 4.473e-05 | CX106: 3.1829868e-06 | CY106: 1.4397096e-05 | CZ106: 2.331924e-05 | DA106: 7.6041e-05 | DB106: 5.41107756e-06 | DC106: 2.44750632e-05 | DE106: 0.25 | DG106: 1.7 | DH106: 1.7 | DI106: 0.144 | DJ106: 0.43 | DK106: 0.027 | DL106: 0.19 | DM106: 5.683905e-06 | DN106: 2.57091e-05
A107: 99 | B107: Statlig | C107: Landsbygd | D107: 4F | E107: 4 | F107: 100 | G107: 18.5 | H107: - | I107: - | J107: - | K107: Statlig Landsbygd 4F 100 18,5 - - | M107: Finns ej, enbart 0,7 km | N107: ='0. Beräkna - Länk'!$C$26 -> 1 | O107: ='TS-EVA Länkberäkningar'!$L$142/('TS-EVA Länkberäkningar'!$L$145)^('TS-EVA Länkberäkningar'!$L$143-2010) -> 1534.246575 | P107: 0.56 | Q107: 0.042378 | R107: 0.068481 | S107: 0.00043596 | T107: 0.00761229 | U107: 0.06043275 | V107: 0.20412 | W107: 0.00175397481 | X107: 0.0107042922 | Y107: 0.012940893 | Z107: 0.102735675 | AA107: 1.42884 | AB107: 0.002981757177 | AC107: 0.01819729674 | AF107: 0.075 | AG107: 1.62 | AH107: 0.5 | AI107: 11 | AJ107: 88.5 | AK107: 3 | AL107: 0.042 | AM107: 0.06804 | AN107: 0.0003402 | AO107: 0.0074844 | AP107: 0.0602154 | AQ107: 0.20412 | AR107: 0.0017275356 | AS107: 0.01059723 | AT107: 0.01272348 | AU107: 0.10236618 | AV107: 1.42884 | AW107: 0.00293681052 | AX107: 0.018015291 | AZ107: 0.115 | BA107: 0.0139725 | BB107: 1.7 | BC107: 1.7 | BD107: 7 | BE107: 0.086 | BF107: 0.37 | BG107: 0.018 | BH107: 0.13 | BJ107: 0.003084885 | BK107: 0.018923625 | BM107: 0.75 | BN107: 1.2 | BO107: 25 | BP107: 30 | BQ107: 45 | BR107: 0.000315 | BS107: 0.000378 | BT107: 9.45e-05 | BU107: 0.0001134 | BV107: 0.0001701 | BW107: 2.30769e-05 | BX107: 9.1854e-05 | BY107: 0.00019278 | BZ107: 0.00028917 | CA107: 3.923073e-05 | CB107: 0.0001561518 | CD107: 0.55 | CF107: 1.7 | CG107: 1.7 | CH107: 0.16 | CI107: 0.48 | CJ107: 0.029 | CK107: 0.22 | CL107: 4.120875e-05 | CM107: 0.000164025 | CN107: 0.15 | CO107: 1 | CP107: 2 | CQ107: 23 | CR107: 75 | CS107: 6.3e-05 | CT107: 6.3e-05 | CU107: 1.26e-06 | CV107: 1.449e-05 | CW107: 4.725e-05 | CX107: 3.36231e-06 | CY107: 1.52082e-05 | CZ107: 2.4633e-05 | DA107: 8.0325e-05 | DB107: 5.715927e-06 | DC107: 2.585394e-05 | DE107: 0.25 | DG107: 1.7 | DH107: 1.7 | DI107: 0.144 | DJ107: 0.43 | DK107: 0.027 | DL107: 0.19 | DM107: 6.004125e-06 | DN107: 2.71575e-05
A108: 100 | B108: Statlig | C108: Landsbygd | D108: 4F | E108: 4 | F108: 100 | G108: >20,5 | H108: - | I108: - | J108: - | K108: Statlig Landsbygd 4F 100 >20,5 - - | M108: enbart 2,6 km 2012 | N108: ='0. Beräkna - Länk'!$C$26 -> 1 | O108: ='TS-EVA Länkberäkningar'!$L$142/('TS-EVA Länkberäkningar'!$L$145)^('TS-EVA Länkberäkningar'!$L$143-2010) -> 1534.246575 | P108: 0.56 | Q108: 0.042378 | R108: 0.068481 | S108: 0.00043596 | T108: 0.00761229 | U108: 0.06043275 | V108: 0.15876 | W108: 0.00175397481 | X108: 0.0107042922 | Y108: 0.012940893 | Z108: 0.102735675 | AA108: 1.11132 | AB108: 0.002981757177 | AC108: 0.01819729674 | AF108: 0.075 | AG108: 1.62 | AH108: 0.5 | AI108: 11 | AJ108: 88.5 | AK108: 2.333333333 | AL108: 0.042 | AM108: 0.06804 | AN108: 0.0003402 | AO108: 0.0074844 | AP108: 0.0602154 | AQ108: 0.15876 | AR108: 0.0017275356 | AS108: 0.01059723 | AT108: 0.01272348 | AU108: 0.10236618 | AV108: 1.11132 | AW108: 0.00293681052 | AX108: 0.018015291 | AZ108: 0.115 | BA108: 0.0139725 | BB108: 1.7 | BC108: 1.7 | BD108: 7 | BE108: 0.086 | BF108: 0.37 | BG108: 0.018 | BH108: 0.13 | BJ108: 0.003084885 | BK108: 0.018923625 | BM108: 0.75 | BN108: 1.2 | BO108: 25 | BP108: 30 | BQ108: 45 | BR108: 0.000315 | BS108: 0.000378 | BT108: 9.45e-05 | BU108: 0.0001134 | BV108: 0.0001701 | BW108: 2.30769e-05 | BX108: 9.1854e-05 | BY108: 0.00019278 | BZ108: 0.00028917 | CA108: 3.923073e-05 | CB108: 0.0001561518 | CD108: 0.55 | CF108: 1.7 | CG108: 1.7 | CH108: 0.16 | CI108: 0.48 | CJ108: 0.029 | CK108: 0.22 | CL108: 4.120875e-05 | CM108: 0.000164025 | CN108: 0.15 | CO108: 1 | CP108: 2 | CQ108: 23 | CR108: 75 | CS108: 6.3e-05 | CT108: 6.3e-05 | CU108: 1.26e-06 | CV108: 1.449e-05 | CW108: 4.725e-05 | CX108: 3.36231e-06 | CY108: 1.52082e-05 | CZ108: 2.4633e-05 | DA108: 8.0325e-05 | DB108: 5.715927e-06 | DC108: 2.585394e-05 | DE108: 0.25 | DG108: 1.7 | DH108: 1.7 | DI108: 0.144 | DJ108: 0.43 | DK108: 0.027 | DL108: 0.19 | DM108: 6.004125e-06 | DN108: 2.71575e-05
A109: 101 | B109: Statlig | C109: Landsbygd | D109: 4F | E109: 4 | F109: 110 | G109: 15.75 | H109: - | I109: - | J109: - | K109: Statlig Landsbygd 4F 110 15,75 - - | M109: Välj MML. Finns ej 2012, 0,0 km | N109: ='0. Beräkna - Länk'!$C$26 -> 1 | O109: ='TS-EVA Länkberäkningar'!$L$142/('TS-EVA Länkberäkningar'!$L$145)^('TS-EVA Länkberäkningar'!$L$143-2010) -> 1534.246575 | P109: 0.56 | Q109: 0.02887416 | R109: 0.041807556 | S109: 0.0009172758 | T109: 0.0051380154 | U109: 0.0357522648 | V109: 0.124236 | W109: 0.001089241272 | X109: 0.006180806688 | Y109: 0.00873462618 | Z109: 0.06077885016 | AA109: 0.869652 | AB109: 0.001851710162 | AC109: 0.01050737137 | AF109: 0.051 | AG109: 1.45 | AH109: 2 | AI109: 12 | AJ109: 86 | AK109: 3 | AL109: 0.02856 | AM109: 0.041412 | AN109: 0.00082824 | AO109: 0.00496944 | AP109: 0.03561432 | AQ109: 0.124236 | AR109: 0.00105849072 | AS109: 0.0060709992 | AT109: 0.008448048 | AU109: 0.060544344 | AV109: 0.869652 | AW109: 0.001799434224 | AX109: 0.01032069864 | AZ109: 0.14 | BA109: 0.010353 | BB109: 1.7 | BC109: 1.7 | BD109: 7 | BE109: 0.084 | BF109: 0.29 | BG109: 0.018 | BH109: 0.13 | BJ109: 0.001890162 | BK109: 0.01084107 | BM109: 0.95 | BN109: 1.3 | BO109: 25 | BP109: 45 | BQ109: 30 | BR109: 0.00027132 | BS109: 0.000352716 | BT109: 8.8179e-05 | BU109: 0.0001587222 | BV109: 0.0001058148 | BW109: 2.84641812e-05 | BX109: 9.9465912e-05 | BY109: 0.00026982774 | BZ109: 0.00017988516 | CA109: 4.838910804e-05 | CB109: 0.0001690920504 | CD109: 0.7 | CF109: 1.7 | CG109: 1.7 | CH109: 0.16 | CI109: 0.48 | CJ109: 0.029 | CK109: 0.22 | CL109: 5.0828895e-05 | CM109: 0.0001776177 | CN109: 0.15 | CO109: 1 | CP109: 2 | CQ109: 23 | CR109: 75 | CS109: 4.284e-05 | CT109: 4.284e-05 | CU109: 8.568e-07 | CV109: 9.8532e-06 | CW109: 3.213e-05 | CX109: 2.2863708e-06 | CY109: 1.0341576e-05 | CZ109: 1.675044e-05 | DA109: 5.4621e-05 | DB109: 3.88683036e-06 | DC109: 1.75806792e-05 | DE109: 0.25 | DG109: 1.7 | DH109: 1.7 | DI109: 0.144 | DJ109: 0.43 | DK109: 0.027 | DL109: 0.19 | DM109: 4.082805e-06 | DN109: 1.84671e-05
A110: 102 | B110: Statlig | C110: Landsbygd | D110: 4F | E110: 4 | F110: 110 | G110: 18.5 | H110: - | I110: - | J110: - | K110: Statlig Landsbygd 4F 110 18,5 - - | M110: 10,2 km år 2012 | N110: ='0. Beräkna - Länk'!$C$26 -> 1 | O110: ='TS-EVA Länkberäkningar'!$L$142/('TS-EVA Länkberäkningar'!$L$145)^('TS-EVA Länkberäkningar'!$L$143-2010) -> 1534.246575 | P110: 0.56 | Q110: 0.0366912 | R110: 0.05135676 | S110: 0.0006268444 | T110: 0.0061799556 | U110: 0.04454996 | V110: 0.15288 | W110: 0.001340190342 | X110: 0.008102302208 | Y110: 0.01050592452 | Z110: 0.075734932 | AA110: 1.07016 | AB110: 0.002278323582 | AC110: 0.01377391375 | AF110: 0.065 | AG110: 1.4 | AH110: 1 | AI110: 12 | AJ110: 87 | AK110: 3 | AL110: 0.0364 | AM110: 0.05096 | AN110: 0.0005096 | AO110: 0.0061152 | AP110: 0.0443352 | AQ110: 0.15288 | AR110: 0.0013239408 | AS110: 0.0080262 | AT110: 0.01039584 | AU110: 0.07536984 | AV110: 1.07016 | AW110: 0.00225069936 | AX110: 0.01364454 | AZ110: 0.13 | BA110: 0.01183 | BB110: 1.7 | BC110: 1.7 | BD110: 7 | BE110: 0.086 | BF110: 0.37 | BG110: 0.018 | BH110: 0.13 | BJ110: 0.00236418 | BK110: 0.0143325 | BM110: 0.65 | BN110: 1.4 | BO110: 35 | BP110: 15 | BQ110: 50 | BR110: 0.0002366 | BS110: 0.00033124 | BT110: 0.000115934 | BU110: 4.9686e-05 | BV110: 0.00016562 | BW110: 1.275274e-05 | BX110: 6.028568e-05 | BY110: 8.44662e-05 | BZ110: 0.000281554 | CA110: 2.1679658e-05 | CB110: 0.000102485656 | CD110: 0.5 | CF110: 1.7 | CG110: 1.7 | CH110: 0.16 | CI110: 0.48 | CJ110: 0.029 | CK110: 0.22 | CL110: 2.277275e-05 | CM110: 0.000107653 | CN110: 0.15 | CO110: 1.2 | CP110: 2 | CQ110: 23 | CR110: 75 | CS110: 5.46e-05 | CT110: 6.552e-05 | CU110: 1.3104e-06 | CV110: 1.50696e-05 | CW110: 4.914e-05 | CX110: 3.4968024e-06 | CY110: 1.5816528e-05 | CZ110: 2.561832e-05 | DA110: 8.3538e-05 | DB110: 5.94456408e-06 | DC110: 2.68880976e-05 | DE110: 0.25 | DG110: 1.7 | DH110: 1.7 | DI110: 0.144 | DJ110: 0.43 | DK110: 0.027 | DL110: 0.19 | DM110: 6.24429e-06 | DN110: 2.82438e-05
A111: 103 | B111: Statlig | C111: Landsbygd | D111: 4F | E111: 4 | F111: 110 | G111: >20,5 | H111: - | I111: - | J111: - | K111: Statlig Landsbygd 4F 110 >20,5 - - | M111: 6,3 km år 2012 | N111: ='0. Beräkna - Länk'!$C$26 -> 1 | O111: ='TS-EVA Länkberäkningar'!$L$142/('TS-EVA Länkberäkningar'!$L$145)^('TS-EVA Länkberäkningar'!$L$143-2010) -> 1534.246575 | P111: 0.56 | Q111: 0.03445036 | R111: 0.056760256 | S111: 0.00073840256 | T111: 0.00705349344 | U111: 0.04896836 | V111: 0.131516 | W111: 0.001494823359 | X111: 0.008999883099 | Y111: 0.01199093885 | Z111: 0.083246212 | AA111: 0.920612 | AB111: 0.00254119971 | AC111: 0.01529980127 | AF111: 0.061 | AG111: 1.65 | AH111: 1.1 | AI111: 12.4 | AJ111: 86.5 | AK111: 2.333333333 | AL111: 0.03416 | AM111: 0.056364 | AN111: 0.000620004 | AO111: 0.006989136 | AP111: 0.04875486 | AQ111: 0.131516 | AR111: 0.001478653176 | AS111: 0.00892411212 | AT111: 0.0118815312 | AU111: 0.082883262 | AV111: 0.920612 | AW111: 0.002513710399 | AX111: 0.0151709906 | AZ111: 0.135 | BA111: 0.01358775 | BB111: 1.7 | BC111: 1.7 | BD111: 7 | BE111: 0.086 | BF111: 0.37 | BG111: 0.018 | BH111: 0.13 | BJ111: 0.0026404521 | BK111: 0.0159359145 | BM111: 0.7 | BN111: 1.4 | BO111: 35 | BP111: 15 | BQ111: 50 | BR111: 0.00023912 | BS111: 0.000334768 | BT111: 0.0001171688 | BU111: 5.02152e-05 | BV111: 0.000167384 | BW111: 1.2888568e-05 | BX111: 6.0927776e-05 | BY111: 8.536584e-05 | BZ111: 0.0002845528 | CA111: 2.19105656e-05 | CB111: 0.0001035772192 | CD111: 0.5 | CF111: 1.7 | CG111: 1.7 | CH111: 0.16 | CI111: 0.48 | CJ111: 0.029 | CK111: 0.22 | CL111: 2.30153e-05 | CM111: 0.0001087996 | CN111: 0.15 | CO111: 1.2 | CP111: 2 | CQ111: 23 | CR111: 75 | CS111: 5.124e-05 | CT111: 6.1488e-05 | CU111: 1.22976e-06 | CV111: 1.414224e-05 | CW111: 4.6116e-05 | CX111: 3.28161456e-06 | CY111: 1.48432032e-05 | CZ111: 2.4041808e-05 | DA111: 7.83972e-05 | DB111: 5.578744752e-06 | DC111: 2.523344544e-05 | DE111: 0.25 | DG111: 1.7 | DH111: 1.7 | DI111: 0.144 | DJ111: 0.43 | DK111: 0.027 | DL111: 0.19 | DM111: 5.860026e-06 | DN111: 2.650572e-05
A112: 104 | B112: Kommunal | C112: Tätort | D112: 4F | E112: 4 | F112: 40 | G112: - | H112: City | I112: C | J112: - | K112: Kommunal Tätort 4F 40 - City C | M112: - | N112: ='0. Beräkna - Länk'!$C$26 -> 1 | O112: ='TS-EVA Länkberäkningar'!$L$142/('TS-EVA Länkberäkningar'!$L$145)^('TS-EVA Länkberäkningar'!$L$143-2010) -> 1534.246575 | P112: 0.56 | Q112: 0.22876 | R112: 0.266 | S112: 0.00205352 | T112: 0.03167528 | U112: 0.2322712 | V112: 0.4592933333 | W112: 0.00732689552 | X112: 0.043225532 | Y112: 0.04751292 | Z112: 0.3484068 | AA112: 3.215053333 | AB112: 0.01099034328 | AC112: 0.064838298 | AF112: 0.285 | AG112: 1.233333333 | AH112: 0.2 | AI112: 7.8 | AJ112: 92 | AK112: 2.333333333 | AL112: 0.1596 | AM112: 0.19684 | AN112: 0.00039368 | AO112: 0.01535352 | AP112: 0.1810928 | AQ112: 0.4592933333 | AR112: 0.00434977032 | AS112: 0.0278410496 | AT112: 0.02303028 | AU112: 0.2716392 | AV112: 3.215053333 | AW112: 0.00652465548 | AX112: 0.0417615744 | AZ112: 0.08 | BA112: 0.02812 | BB112: 1.5 | BC112: 1.5 | BD112: 7 | BE112: 0.071 | BF112: 0.28 | BG112: 0.018 | BH112: 0.13 | BJ112: 0.007767447 | BK112: 0.04971616 | BM112: 20 | BN112: 1 | BO112: 4.5 | BP112: 28.5 | BQ112: 67 | BR112: 0.03192 | BS112: 0.03192 | BT112: 0.0014364 | BU112: 0.0090972 | BV112: 0.0213864 | BW112: 0.0016290372 | BX112: 0.008098104 | BY112: 0.0136458 | BZ112: 0.0320796 | CA112: 0.0024435558 | CB112: 0.012147156 | CD112: 0.33 | CF112: 1.5 | CG112: 1.5 | CH112: 0.125 | CI112: 0.42 | CJ112: 0.023 | CK112: 0.2 | CL112: 0.002908995 | CM112: 0.0144609 | CN112: 23.33333333 | CO112: 1 | CP112: 0.6 | CQ112: 19.4 | CR112: 80 | CS112: 0.03724 | CT112: 0.03724 | CU112: 0.00022344 | CV112: 0.00722456 | CW112: 0.029792 | CX112: 0.001348088 | CY112: 0.0072863784 | CZ112: 0.01083684 | DA112: 0.044688 | DB112: 0.002022132 | DC112: 0.0109295676 | DE112: 0.2 | DG112: 1.5 | DH112: 1.5 | DI112: 0.1 | DJ112: 0.39 | DK112: 0.021 | DL112: 0.15 | DM112: 0.0024073 | DN112: 0.01301139
A113: 105 | B113: Kommunal | C113: Tätort | D113: 4F | E113: 4 | F113: 40 | G113: - | H113: City | I113: M | J113: - | K113: Kommunal Tätort 4F 40 - City M | M113: - | N113: ='0. Beräkna - Länk'!$C$26 -> 1 | O113: ='TS-EVA Länkberäkningar'!$L$142/('TS-EVA Länkberäkningar'!$L$145)^('TS-EVA Länkberäkningar'!$L$143-2010) -> 1534.246575 | P113: 0.56 | Q113: 0.20664 | R113: 0.25704 | S113: 0.00171864 | T113: 0.02877336 | U113: 0.226548 | V113: 0.4704 | W113: 0.0068357268 | X113: 0.0408243024 | Y113: 0.04316004 | Z113: 0.339822 | AA113: 3.2928 | AB113: 0.0102535902 | AC113: 0.0612364536 | AF113: 0.27 | AG113: 1.333333333 | AH113: 0.2 | AI113: 7.8 | AJ113: 92 | AK113: 2.333333333 | AL113: 0.1512 | AM113: 0.2016 | AN113: 0.0004032 | AO113: 0.0157248 | AP113: 0.185472 | AQ113: 0.4704 | AR113: 0.0044549568 | AS113: 0.028514304 | AT113: 0.0235872 | AU113: 0.278208 | AV113: 3.2928 | AW113: 0.0066824352 | AX113: 0.042771456 | AZ113: 0.08 | BA113: 0.0288 | BB113: 1.5 | BC113: 1.5 | BD113: 7 | BE113: 0.071 | BF113: 0.28 | BG113: 0.018 | BH113: 0.13 | BJ113: 0.00795528 | BK113: 0.0509184 | BM113: 16.66666667 | BN113: 1 | BO113: 4.5 | BP113: 28.5 | BQ113: 67 | BR113: 0.0252 | BS113: 0.0252 | BT113: 0.001134 | BU113: 0.007182 | BV113: 0.016884 | BW113: 0.001286082 | BX113: 0.00639324 | BY113: 0.010773 | BZ113: 0.025326 | CA113: 0.001929123 | CB113: 0.00958986 | CD113: 0.33 | CF113: 1.5 | CG113: 1.5 | CH113: 0.125 | CI113: 0.42 | CJ113: 0.023 | CK113: 0.2 | CL113: 0.002296575 | CM113: 0.0114165 | CN113: 20 | CO113: 1 | CP113: 0.6 | CQ113: 19.4 | CR113: 80 | CS113: 0.03024 | CT113: 0.03024 | CU113: 0.00018144 | CV113: 0.00586656 | CW113: 0.024192 | CX113: 0.001094688 | CY113: 0.0059167584 | CZ113: 0.00879984 | DA113: 0.036288 | DB113: 0.001642032 | DC113: 0.0088751376 | DE113: 0.2 | DG113: 1.5 | DH113: 1.5 | DI113: 0.1 | DJ113: 0.39 | DK113: 0.021 | DL113: 0.15 | DM113: 0.0019548 | DN113: 0.01056564
A114: 106 | B114: Kommunal | C114: Tätort | D114: 4F | E114: 4 | F114: 40 | G114: - | H114: GIF | I114: C | J114: - | K114: Kommunal Tätort 4F 40 - GIF C | M114: - | N114: ='0. Beräkna - Länk'!$C$26 -> 1 | O114: ='TS-EVA Länkberäkningar'!$L$142/('TS-EVA Länkberäkningar'!$L$145)^('TS-EVA Länkberäkningar'!$L$143-2010) -> 1534.246575 | P114: 0.56 | Q114: 0.168448 | R114: 0.235648 | S114: 0.00123648 | T114: 0.02379776 | U114: 0.21061376 | V114: 0.4704 | W114: 0.00592675328 | X114: 0.0361122048 | Y114: 0.03569664 | Z114: 0.31592064 | AA114: 3.2928 | AB114: 0.00889012992 | AC114: 0.0541683072 | AF114: 0.24 | AG114: 1.5 | AH114: 0.2 | AI114: 7.8 | AJ114: 92 | AK114: 2.333333333 | AL114: 0.1344 | AM114: 0.2016 | AN114: 0.0004032 | AO114: 0.0157248 | AP114: 0.185472 | AQ114: 0.4704 | AR114: 0.0044549568 | AS114: 0.028514304 | AT114: 0.0235872 | AU114: 0.278208 | AV114: 3.2928 | AW114: 0.0066824352 | AX114: 0.042771456 | AZ114: 0.08 | BA114: 0.0288 | BB114: 1.5 | BC114: 1.5 | BD114: 7 | BE114: 0.071 | BF114: 0.28 | BG114: 0.018 | BH114: 0.13 | BJ114: 0.00795528 | BK114: 0.0509184 | BM114: 12 | BN114: 1 | BO114: 4.5 | BP114: 28.5 | BQ114: 67 | BR114: 0.016128 | BS114: 0.016128 | BT114: 0.00072576 | BU114: 0.00459648 | BV114: 0.01080576 | BW114: 0.00082309248 | BX114: 0.0040916736 | BY114: 0.00689472 | BZ114: 0.01620864 | CA114: 0.00123463872 | CB114: 0.0061375104 | CD114: 0.33 | CF114: 1.5 | CG114: 1.5 | CH114: 0.125 | CI114: 0.42 | CJ114: 0.023 | CK114: 0.2 | CL114: 0.001469808 | CM114: 0.00730656 | CN114: 13.33333333 | CO114: 1 | CP114: 0.6 | CQ114: 19.4 | CR114: 80 | CS114: 0.01792 | CT114: 0.01792 | CU114: 0.00010752 | CV114: 0.00347648 | CW114: 0.014336 | CX114: 0.000648704 | CY114: 0.0035062272 | CZ114: 0.00521472 | DA114: 0.021504 | DB114: 0.000973056 | DC114: 0.0052593408 | DE114: 0.2 | DG114: 1.5 | DH114: 1.5 | DI114: 0.1 | DJ114: 0.39 | DK114: 0.021 | DL114: 0.15 | DM114: 0.0011584 | DN114: 0.00626112
A115: 107 | B115: Kommunal | C115: Tätort | D115: 4F | E115: 4 | F115: 40 | G115: - | H115: Tangent | I115: C | J115: - | K115: Kommunal Tätort 4F 40 - Tangent C | M115: - | N115: ='0. Beräkna - Länk'!$C$26 -> 1 | O115: ='TS-EVA Länkberäkningar'!$L$142/('TS-EVA Länkberäkningar'!$L$145)^('TS-EVA Länkberäkningar'!$L$143-2010) -> 1534.246575 | P115: 0.56 | Q115: 0.19656 | R115: 0.24696 | S115: 0.0014616 | T115: 0.0263592 | U115: 0.2191392 | V115: 0.4704 | W115: 0.0063960624 | X115: 0.038559528 | Y115: 0.0395388 | Z115: 0.3287088 | AA115: 3.2928 | AB115: 0.0095940936 | AC115: 0.057839292 | AF115: 0.27 | AG115: 1.333333333 | AH115: 0.2 | AI115: 7.8 | AJ115: 92 | AK115: 2.333333333 | AL115: 0.1512 | AM115: 0.2016 | AN115: 0.0004032 | AO115: 0.0157248 | AP115: 0.185472 | AQ115: 0.4704 | AR115: 0.0044549568 | AS115: 0.028514304 | AT115: 0.0235872 | AU115: 0.278208 | AV115: 3.2928 | AW115: 0.0066824352 | AX115: 0.042771456 | AZ115: 0.08 | BA115: 0.0288 | BB115: 1.5 | BC115: 1.5 | BD115: 7 | BE115: 0.071 | BF115: 0.28 | BG115: 0.018 | BH115: 0.13 | BJ115: 0.00795528 | BK115: 0.0509184 | BM115: 13.33333333 | BN115: 1 | BO115: 4.5 | BP115: 28.5 | BQ115: 67 | BR115: 0.02016 | BS115: 0.02016 | BT115: 0.0009072 | BU115: 0.0057456 | BV115: 0.0135072 | BW115: 0.0010288656 | BX115: 0.005114592 | BY115: 0.0086184 | BZ115: 0.0202608 | CA115: 0.0015432984 | CB115: 0.007671888 | CD115: 0.33 | CF115: 1.5 | CG115: 1.5 | CH115: 0.125 | CI115: 0.42 | CJ115: 0.023 | CK115: 0.2 | CL115: 0.00183726 | CM115: 0.0091332 | CN115: 16.66666667 | CO115: 1 | CP115: 0.6 | CQ115: 19.4 | CR115: 80 | CS115: 0.0252 | CT115: 0.0252 | CU115: 0.0001512 | CV115: 0.0048888 | CW115: 0.02016 | CX115: 0.00091224 | CY115: 0.004930632 | CZ115: 0.0073332 | DA115: 0.03024 | DB115: 0.00136836 | DC115: 0.007395948 | DE115: 0.2 | DG115: 1.5 | DH115: 1.5 | DI115: 0.1 | DJ115: 0.39 | DK115: 0.021 | DL115: 0.15 | DM115: 0.001629 | DN115: 0.0088047
A116: 108 | B116: Kommunal | C116: Tätort | D116: 4F | E116: 4 | F116: 50 | G116: - | H116: City | I116: C | J116: - | K116: Kommunal Tätort 4F 50 - City C | M116: - | N116: ='0. Beräkna - Länk'!$C$26 -> 1 | O116: ='TS-EVA Länkberäkningar'!$L$142/('TS-EVA Länkberäkningar'!$L$145)^('TS-EVA Länkberäkningar'!$L$143-2010) -> 1534.246575 | P116: 0.56 | Q116: 0.25284 | R116: 0.294 | S116: 0.00237846 | T116: 0.03598854 | U116: 0.255633 | V116: 0.50764 | W116: 0.0081480777 | X116: 0.0479082996 | Y116: 0.05398281 | Z116: 0.3834495 | AA116: 3.55348 | AB116: 0.01222211655 | AC116: 0.0718624494 | AF116: 0.315 | AG116: 1.233333333 | AH116: 0.25 | AI116: 8.25 | AJ116: 91.5 | AK116: 2.333333333 | AL116: 0.1764 | AM116: 0.21756 | AN116: 0.0005439 | AO116: 0.0179487 | AP116: 0.1990674 | AQ116: 0.50764 | AR116: 0.0048575709 | AS116: 0.030904398 | AT116: 0.02692305 | AU116: 0.2986011 | AV116: 3.55348 | AW116: 0.00728635635 | AX116: 0.046356597 | AZ116: 0.085 | BA116: 0.0330225 | BB116: 1.5 | BC116: 1.5 | BD116: 7 | BE116: 0.071 | BF116: 0.28 | BG116: 0.018 | BH116: 0.13 | BJ116: 0.00867423375 | BK116: 0.055186425 | BM116: 20 | BN116: 1 | BO116: 4.5 | BP116: 28.5 | BQ116: 67 | BR116: 0.03528 | BS116: 0.03528 | BT116: 0.0015876 | BU116: 0.0100548 | BV116: 0.0236376 | BW116: 0.0018005148 | BX116: 0.008950536 | BY116: 0.0150822 | BZ116: 0.0354564 | CA116: 0.0027007722 | CB116: 0.013425804 | CD116: 0.33 | CF116: 1.5 | CG116: 1.5 | CH116: 0.125 | CI116: 0.42 | CJ116: 0.023 | CK116: 0.2 | CL116: 0.003215205 | CM116: 0.0159831 | CN116: 23.33333333 | CO116: 1 | CP116: 0.6 | CQ116: 19.4 | CR116: 80 | CS116: 0.04116 | CT116: 0.04116 | CU116: 0.00024696 | CV116: 0.00798504 | CW116: 0.032928 | CX116: 0.001489992 | CY116: 0.0080533656 | CZ116: 0.01197756 | DA116: 0.049392 | DB116: 0.002234988 | DC116: 0.0120800484 | DE116: 0.2 | DG116: 1.5 | DH116: 1.5 | DI116: 0.1 | DJ116: 0.39 | DK116: 0.021 | DL116: 0.15 | DM116: 0.0026607 | DN116: 0.01438101
A117: 109 | B117: Kommunal | C117: Tätort | D117: 4F | E117: 4 | F117: 50 | G117: - | H117: City | I117: M | J117: - | K117: Kommunal Tätort 4F 50 - City M | M117: - | N117: ='0. Beräkna - Länk'!$C$26 -> 1 | O117: ='TS-EVA Länkberäkningar'!$L$142/('TS-EVA Länkberäkningar'!$L$145)^('TS-EVA Länkberäkningar'!$L$143-2010) -> 1534.246575 | P117: 0.56 | Q117: 0.225008 | R117: 0.279888 | S117: 0.001981168 | T117: 0.032318832 | U117: 0.245588 | V117: 0.5122133333 | W117: 0.0074937268 | X117: 0.04458703648 | Y117: 0.048478248 | Z117: 0.368382 | AA117: 3.585493333 | AB117: 0.0112405902 | AC117: 0.06688055472 | AF117: 0.294 | AG117: 1.333333333 | AH117: 0.25 | AI117: 8.25 | AJ117: 91.5 | AK117: 2.333333333 | AL117: 0.16464 | AM117: 0.21952 | AN117: 0.0005488 | AO117: 0.0181104 | AP117: 0.2008608 | AQ117: 0.5122133333 | AR117: 0.0049013328 | AS117: 0.031182816 | AT117: 0.0271656 | AU117: 0.3012912 | AV117: 3.585493333 | AW117: 0.0073519992 | AX117: 0.046774224 | AZ117: 0.085 | BA117: 0.03332 | BB117: 1.5 | BC117: 1.5 | BD117: 7 | BE117: 0.071 | BF117: 0.28 | BG117: 0.018 | BH117: 0.13 | BJ117: 0.00875238 | BK117: 0.0556836 | BM117: 16.66666667 | BN117: 1 | BO117: 4.5 | BP117: 28.5 | BQ117: 67 | BR117: 0.02744 | BS117: 0.02744 | BT117: 0.0012348 | BU117: 0.0078204 | BV117: 0.0183848 | BW117: 0.0014004004 | BX117: 0.006961528 | BY117: 0.0117306 | BZ117: 0.0275772 | CA117: 0.0021006006 | CB117: 0.010442292 | CD117: 0.33 | CF117: 1.5 | CG117: 1.5 | CH117: 0.125 | CI117: 0.42 | CJ117: 0.023 | CK117: 0.2 | CL117: 0.002500715 | CM117: 0.0124313 | CN117: 20 | CO117: 1 | CP117: 0.6 | CQ117: 19.4 | CR117: 80 | CS117: 0.032928 | CT117: 0.032928 | CU117: 0.000197568 | CV117: 0.006388032 | CW117: 0.0263424 | CX117: 0.0011919936 | CY117: 0.00644269248 | CZ117: 0.009582048 | DA117: 0.0395136 | DB117: 0.0017879904 | DC117: 0.00966403872 | DE117: 0.2 | DG117: 1.5 | DH117: 1.5 | DI117: 0.1 | DJ117: 0.39 | DK117: 0.021 | DL117: 0.15 | DM117: 0.00212856 | DN117: 0.011504808
A118: 110 | B118: Kommunal | C118: Tätort | D118: 4F | E118: 4 | F118: 50 | G118: - | H118: GIF | I118: C | J118: - | K118: Kommunal Tätort 4F 50 - GIF C | M118: - | N118: ='0. Beräkna - Länk'!$C$26 -> 1 | O118: ='TS-EVA Länkberäkningar'!$L$142/('TS-EVA Länkberäkningar'!$L$145)^('TS-EVA Länkberäkningar'!$L$143-2010) -> 1534.246575 | P118: 0.56 | Q118: 0.189504 | R118: 0.265104 | S118: 0.00150444 | T118: 0.02779308 | U118: 0.23580648 | V118: 0.5292 | W118: 0.00671964804 | X118: 0.0407645784 | Y118: 0.04168962 | Z118: 0.35370972 | AA118: 3.7044 | AB118: 0.01007947206 | AC118: 0.0611468676 | AF118: 0.27 | AG118: 1.5 | AH118: 0.25 | AI118: 8.25 | AJ118: 91.5 | AK118: 2.333333333 | AL118: 0.1512 | AM118: 0.2268 | AN118: 0.000567 | AO118: 0.018711 | AP118: 0.207522 | AQ118: 0.5292 | AR118: 0.005063877 | AS118: 0.03221694 | AT118: 0.0280665 | AU118: 0.311283 | AV118: 3.7044 | AW118: 0.0075958155 | AX118: 0.04832541 | AZ118: 0.085 | BA118: 0.034425 | BB118: 1.5 | BC118: 1.5 | BD118: 7 | BE118: 0.071 | BF118: 0.28 | BG118: 0.018 | BH118: 0.13 | BJ118: 0.0090426375 | BK118: 0.05753025 | BM118: 12 | BN118: 1 | BO118: 4.5 | BP118: 28.5 | BQ118: 67 | BR118: 0.018144 | BS118: 0.018144 | BT118: 0.00081648 | BU118: 0.00517104 | BV118: 0.01215648 | BW118: 0.00092597904 | BX118: 0.0046031328 | BY118: 0.00775656 | BZ118: 0.01823472 | CA118: 0.00138896856 | CB118: 0.0069046992 | CD118: 0.33 | CF118: 1.5 | CG118: 1.5 | CH118: 0.125 | CI118: 0.42 | CJ118: 0.023 | CK118: 0.2 | CL118: 0.001653534 | CM118: 0.00821988 | CN118: 13.33333333 | CO118: 1 | CP118: 0.6 | CQ118: 19.4 | CR118: 80 | CS118: 0.02016 | CT118: 0.02016 | CU118: 0.00012096 | CV118: 0.00391104 | CW118: 0.016128 | CX118: 0.000729792 | CY118: 0.0039445056 | CZ118: 0.00586656 | DA118: 0.024192 | DB118: 0.001094688 | DC118: 0.0059167584 | DE118: 0.2 | DG118: 1.5 | DH118: 1.5 | DI118: 0.1 | DJ118: 0.39 | DK118: 0.021 | DL118: 0.15 | DM118: 0.0013032 | DN118: 0.00704376
A119: 111 | B119: Kommunal | C119: Tätort | D119: 4F | E119: 4 | F119: 50 | G119: - | H119: GIF | I119: M | J119: - | K119: Kommunal Tätort 4F 50 - GIF M | M119: - | N119: ='0. Beräkna - Länk'!$C$26 -> 1 | O119: ='TS-EVA Länkberäkningar'!$L$142/('TS-EVA Länkberäkningar'!$L$145)^('TS-EVA Länkberäkningar'!$L$143-2010) -> 1534.246575 | P119: 0.56 | Q119: 0.1646568 | R119: 0.2326968 | S119: 0.0012124728 | T119: 0.0236221272 | U119: 0.2078622 | V119: 0.47628 | W119: 0.00579384414 | X119: 0.03537639101 | Y119: 0.0354331908 | Z119: 0.3117933 | AA119: 3.33396 | AB119: 0.00869076621 | AC119: 0.05306458651 | AF119: 0.243 | AG119: 1.5 | AH119: 0.25 | AI119: 8.25 | AJ119: 91.5 | AK119: 2.333333333 | AL119: 0.13608 | AM119: 0.20412 | AN119: 0.0005103 | AO119: 0.0168399 | AP119: 0.1867698 | AQ119: 0.47628 | AR119: 0.0045574893 | AS119: 0.028995246 | AT119: 0.02525985 | AU119: 0.2801547 | AV119: 3.33396 | AW119: 0.00683623395 | AX119: 0.043492869 | AZ119: 0.085 | BA119: 0.0309825 | BB119: 1.5 | BC119: 1.5 | BD119: 7 | BE119: 0.071 | BF119: 0.28 | BG119: 0.018 | BH119: 0.13 | BJ119: 0.00813837375 | BK119: 0.051777225 | BM119: 10 | BN119: 1 | BO119: 4.5 | BP119: 28.5 | BQ119: 67 | BR119: 0.013608 | BS119: 0.013608 | BT119: 0.00061236 | BU119: 0.00387828 | BV119: 0.00911736 | BW119: 0.00069448428 | BX119: 0.0034523496 | BY119: 0.00581742 | BZ119: 0.01367604 | CA119: 0.00104172642 | CB119: 0.0051785244 | CD119: 0.33 | CF119: 1.5 | CG119: 1.5 | CH119: 0.125 | CI119: 0.42 | CJ119: 0.023 | CK119: 0.2 | CL119: 0.0012401505 | CM119: 0.00616491 | CN119: 11 | CO119: 1 | CP119: 0.6 | CQ119: 19.4 | CR119: 80 | CS119: 0.0149688 | CT119: 0.0149688 | CU119: 8.98128e-05 | CV119: 0.0029039472 | CW119: 0.01197504 | CX119: 0.00054187056 | CY119: 0.002928795408 | CZ119: 0.0043559208 | DA119: 0.01796256 | DB119: 0.00081280584 | DC119: 0.004393193112 | DE119: 0.2 | DG119: 1.5 | DH119: 1.5 | DI119: 0.1 | DJ119: 0.39 | DK119: 0.021 | DL119: 0.15 | DM119: 0.000967626 | DN119: 0.0052299918
A120: 112 | B120: Kommunal | C120: Tätort | D120: 4F | E120: 4 | F120: 50 | G120: - | H120: GIF | I120: Y | J120: - | K120: Kommunal Tätort 4F 50 - GIF Y | M120: - | N120: ='0. Beräkna - Länk'!$C$26 -> 1 | O120: ='TS-EVA Länkberäkningar'!$L$142/('TS-EVA Länkberäkningar'!$L$145)^('TS-EVA Länkberäkningar'!$L$143-2010) -> 1534.246575 | P120: 0.56 | Q120: 0.142968 | R120: 0.225848 | S120: 0.0009692816 | T120: 0.0215036304 | U120: 0.203375088 | V120: 0.4834666667 | W120: 0.005430415704 | X120: 0.03358651498 | Y120: 0.0322554456 | Z120: 0.305062632 | AA120: 3.384266667 | AB120: 0.008145623556 | AC120: 0.05037977246 | AF120: 0.222 | AG120: 1.666666667 | AH120: 0.25 | AI120: 8.25 | AJ120: 91.5 | AK120: 2.333333333 | AL120: 0.12432 | AM120: 0.2072 | AN120: 0.000518 | AO120: 0.017094 | AP120: 0.189588 | AQ120: 0.4834666667 | AR120: 0.004626258 | AS120: 0.02943276 | AT120: 0.025641 | AU120: 0.284382 | AV120: 3.384266667 | AW120: 0.006939387 | AX120: 0.04414914 | AZ120: 0.085 | BA120: 0.03145 | BB120: 1.5 | BC120: 1.5 | BD120: 7 | BE120: 0.071 | BF120: 0.28 | BG120: 0.018 | BH120: 0.13 | BJ120: 0.008261175 | BK120: 0.0525585 | BM120: 7 | BN120: 1 | BO120: 4.5 | BP120: 28.5 | BQ120: 67 | BR120: 0.0087024 | BS120: 0.0087024 | BT120: 0.000391608 | BU120: 0.002480184 | BV120: 0.005830608 | BW120: 0.000444126984 | BX120: 0.00220779888 | BY120: 0.003720276 | BZ120: 0.008745912 | CA120: 0.000666190476 | CB120: 0.00331169832 | CD120: 0.33 | CF120: 1.5 | CG120: 1.5 | CH120: 0.125 | CI120: 0.42 | CJ120: 0.023 | CK120: 0.2 | CL120: 0.0007930839 | CM120: 0.003942498 | CN120: 8 | CO120: 1 | CP120: 0.6 | CQ120: 19.4 | CR120: 80 | CS120: 0.0099456 | CT120: 0.0099456 | CU120: 5.96736e-05 | CV120: 0.0019294464 | CW120: 0.00795648 | CX120: 0.00036003072 | CY120: 0.001945956096 | CZ120: 0.0028941696 | DA120: 0.01193472 | DB120: 0.00054004608 | DC120: 0.002918934144 | DE120: 0.2 | DG120: 1.5 | DH120: 1.5 | DI120: 0.1 | DJ120: 0.39 | DK120: 0.021 | DL120: 0.15 | DM120: 0.000642912 | DN120: 0.0034749216
